{"text_format":"1","workbook":"xlsx","n_sheets":4,"sheets":["Master Database - amended","READ ME","Device Selector","HIDDEN LISTS"],"not_rendered":{"charts":0,"images":0,"macros":1,"external_links":0,"defined_names":4,"comments":0,"pivot_tables":0},"unopened":[],"bounds":{"document_bytes":16777216,"sheet_cells":100000,"rows_first":2000,"rows_last":500,"rows_between":2000,"halvings":0,"cell_chars":16384,"cell_head_chars":4096},"cells_cut":0,"cells_raw":0,"read":"whole","date_system":"1900"}

{"sheet":"Master Database - amended","index":0,"n_rows":216,"n_cols":41,"rows_kept":216,"cut":false,"hidden":true,"merged":[[0,7,1,8],[0,4,1,6],[0,3,1,3]]}
[null,null,null,"Hearing Groups","Device",null,null,"Further Details",null,null,null,"Acoustic characteristics",null,null,null,null,null,null,null,null,null,null,null,null,"Species Group(s) - evidence score",null,null,null,null,null,null,null,null,"Mitigation range"]
[null,null,null,null,null,null,null,null,null,null,null,"Source level",null,null,null,null,null,null,null,null,null,null,null,null,"Evidence score showing known (and proven) efficacy on each receptor group"]
["Helper Column 1","Helper Column 2","Helper Column 3","LF, MF, HF, PW, All Species, All Devices","ID","Make","Model","Control (manual / automatic)","Link to manufacturer website",null,"Current known use","rms, dB re 1 μPa re 1 m","pk, dB re 1 μPa re 1 m","SEL, dB re 1 μPa2s re 1 m (per pulse)","Lowest Frequency (kHz)","Highest Frequency (kHz)","Source frequency(s), Hz","Shortest Pulse Interval, ms","Longest Pulse Interval, ms","Intermittency","Continuous / pulsed","Shortest Pulse Width, ms","Longest Pulse Width, ms","Pulse width, ms","LF Confidence Score",null,"MF Confidence Score",null,"HF Confidence Score",null,"PW Confidence Score",null,"List of species for which evidence is available","LF mitigation range","MF mitigation range","HF mitigation range","PW mitigation range","Links to evidence","Links to evidence","Reviewers comments","Comment"]
[1,{"$f":"IF(D4='Device Selector'!$B$6,'Master Database - amended'!A4,\"\")","v":""},{"$f":"IFERROR(SMALL($B$4:$B$132,A4),\"\")","v":3},"Low Frequency Cetaceans",1,"Ace Aquatech","Ace Aquatec marine Mammal Mitigation Device (MMD) LOW (Pinnipeds and Low Frequency Cetaceans)","Automatic","http://aceaquatec.com/",null,"Offshore piling mitigation",195,198,176,1,5,"1 - 5 kHz (can be restricted to 1 - 2 kHz)",25000,300000,"Intermittent - duration between pulses is on a random cycle, 12 - 144 per hour selectable.","Intermittent",3.3,14,"Pulse uniformly shorten from 14 ms to 3.3 ms followed by an upshift in the frequency of the tonal components and their equivalent distribution (Lepper et al. 2004)","2: Medium confidence","Y","No Data Available","No Data Available","No Data Available","No Data Available","2: Medium confidence","Y","Pinnipeds and low frequency odontocetes","500 - 1000 m","No Data Available","No Data Available","500 - 1000m","https://infrastructure.planninginspectorate.gov.uk/wp-content/ipc/uploads/projects/EN010049/EN010049-001947-Tidal%20lagoon%20(Swansea%20Bay)%20Plc%201.pdf",null,"ABPmer conclude that the AceAquatec MMD is recommended as an option should increased mitigation be needed at the tidal lagoon (see conclusions for use of Aquamark 100). Given the potential for wide-scale exclusion impacts on harbour porpoise, this should only be used for short periods of time when a marine mammal is recorded in a defined area in the vicinity of turbines. The use of an automated sonar system to trigger the device is a potentially useful (albeit more costly) tool. Manufacturer update: average source level within a transmission 182dB re 1uPa rms@1m; Frequency > Flex (setting 1) = 0.9-1.4kHz, Ring (setting 2) = 1-2kHz. ","Manufacturer update: average source level within a transmission 182dB re 1uPa rms@1m; Frequency > Flex (setting 1) = 0.9-1.4kHz, Ring (setting 2) = 1-2kHz. "]
[2,{"$f":"IF(D5='Device Selector'!$B$6,'Master Database - amended'!A5,\"\")","v":""},4,"Pinnipeds",1,"Ace Aquatech","Ace Aquatec marine Mammal Mitigation Device (MMD) LOW (Pinnipeds and Low Frequency Cetaceans)","Automatic","http://aceaquatec.com/",null,"Offshore piling mitigation",195,198,176,1,5,"1 - 5 kHz (can be restricted to 1 - 2 kHz)",25000,300000,"Intermittent - duration between pulses is on a random cycle, 12 - 144 per hour selectable.","Intermittent",3.3,14,"Pulse uniformly shorten from 14 ms to 3.3 ms followed by an upshift in the frequency of the tonal components and their equivalent distribution (Lepper et al. 2004)","2: Medium confidence","Y","No Data Available","No Data Available","No Data Available","No Data Available","2: Medium confidence","Y","Pinnipeds and low frequency odontocetes","500 - 1000m","No Data Available","No Data Available","500 - 1000m","https://infrastructure.planninginspectorate.gov.uk/wp-content/ipc/uploads/projects/EN010049/EN010049-001947-Tidal%20lagoon%20(Swansea%20Bay)%20Plc%201.pdf",null,"ABPmer conclude that the AceAquatec MMD is recommended as an option should increased mitigation be needed at the tidal lagoon (see conclusions for use of Aquamark 100). Given the potential for wide-scale exclusion impacts on harbour porpoise, this should only be used for short periods of time when a marine mammal is recorded in a defined area in the vicinity of turbines. The use of an automated sonar system to trigger the device is a potentially useful (albeit more costly) tool. Manufacturer update: average source level within a transmission 182dB re 1uPa rms@1m; Frequency > Flex (setting 1) = 0.9-1.4kHz, Ring (setting 2) = 1-2kHz. ","Manufacturer update: average source level within a transmission 182dB re 1uPa rms@1m; Frequency > Flex (setting 1) = 0.9-1.4kHz, Ring (setting 2) = 1-2kHz. "]
[3,{"$f":"IF(D6='Device Selector'!$B$6,'Master Database - amended'!A6,\"\")","v":3},6,"All Devices",1,"Ace Aquatech","Ace Aquatec marine Mammal Mitigation Device (MMD) LOW (Pinnipeds and Low Frequency Cetaceans)","Automatic","http://aceaquatec.com/",null,"Offshore piling mitigation",195,198,176,1,5,"1 - 5 kHz (can be restricted to 1 - 2 kHz)",25000,300000,"Intermittent - duration between pulses is on a random cycle, 12 - 144 per hour selectable.","Intermittent",3.3,14,"Pulse uniformly shorten from 14 ms to 3.3 ms followed by an upshift in the frequency of the tonal components and their equivalent distribution (Lepper et al. 2004)","2: Medium confidence","Y","No Data Available","No Data Available","No Data Available","No Data Available","2: Medium confidence","Y","Pinnipeds and low frequency odontocetes","500 - 1000m","No Data Available","No Data Available","500 - 1000m","https://infrastructure.planninginspectorate.gov.uk/wp-content/ipc/uploads/projects/EN010049/EN010049-001947-Tidal%20lagoon%20(Swansea%20Bay)%20Plc%201.pdf",null,"ABPmer conclude that the AceAquatec MMD is recommended as an option should increased mitigation be needed at the tidal lagoon (see conclusions for use of Aquamark 100). Given the potential for wide-scale exclusion impacts on harbour porpoise, this should only be used for short periods of time when a marine mammal is recorded in a defined area in the vicinity of turbines. The use of an automated sonar system to trigger the device is a potentially useful (albeit more costly) tool. Manufacturer update: average source level within a transmission 182dB re 1uPa rms@1m; Frequency > Flex (setting 1) = 0.9-1.4kHz, Ring (setting 2) = 1-2kHz. ","Manufacturer update: average source level within a transmission 182dB re 1uPa rms@1m; Frequency > Flex (setting 1) = 0.9-1.4kHz, Ring (setting 2) = 1-2kHz. "]
[4,{"$f":"IF(D7='Device Selector'!$B$6,'Master Database - amended'!A7,\"\")","v":4},9,"All Devices",2,"Ace Aquatech","Ace Aquatec marine Mammal Mitigation Device Ultra LOW frequency","Automatic","http://aceaquatec.com/",null,"Offshore piling mitigation",184,187,"No Data Available",0.02,0.09,"20 - 90 Hz","No Data Available","No Data Available","Intermittent. Duration between pulses is on a random cycle.","Intermittent",3.3,14,"Pulse uniformly shorten from 14 ms to 3.3 ms followed by an upshift in the frequency of the tonal components and their equivalent distribution (Lepper et al. 2004)","No Data Available","Y","No Data Available","No Data Available","No Data Available","No Data Available","No Data Available","No Data Available","Fish","<500m","No Data Available","No Data Available","No Data Available","https://infrastructure.planninginspectorate.gov.uk/wp-content/ipc/uploads/projects/EN010049/EN010049-001947-Tidal%20lagoon%20(Swansea%20Bay)%20Plc%201.pdf",null,"Manufacturer update: average source level within a transmission 182dB re 1uPa rms@1m; Frequency > 200-900Hz","Manufacturer update: average source level within a transmission 182dB re 1uPa rms@1m; Frequency > 200-900Hz"]
[5,{"$f":"IF(D8='Device Selector'!$B$6,'Master Database - amended'!A8,\"\")","v":""},11,"High Frequency Cetaceans",3,"Ace Aquatech","Ace Aquatec marine Mammal Mitigation Device (MMD) (Mid Frequency) Pinnipeds and Cetaceans","Automatic","http://aceaquatec.com/",null,"Offshore piling mitigation",195,198,176,8,24,"8 - 24 kHz","No Data Available","No Data Available","Intermittent - duration between pulses is on a random cycle.","Intermittent",3.3,14,"Pulse uniformly shorten from 14 ms to 3.3 ms followed by an upshift in the frequency of the tonal components and their equivalent distribution (Lepper et al. 2004)","No Data Available","No Data Available","1: Low confidence","Y","No Data Available","No Data Available","No Data Available","No Data Available","Pinnipeds and mid-frequency odontoces","No Data Available","500 - 1000m","No Data Available","No Data Available","https://infrastructure.planninginspectorate.gov.uk/wp-content/ipc/uploads/projects/EN010049/EN010049-001947-Tidal%20lagoon%20(Swansea%20Bay)%20Plc%201.pdf",null,"ABPmer conclude that the AceAquatec MMD is recommended as an option should increased mitigation be needed at the tidal lagoon (see conclusions for use of Aquamark 100). Given the potential for wide-scale exclusion impacts on harbour porpoise, this should only be used for short periods of time when a marine mammal is recorded in a defined area in the vicinity of turbines. The use of an automated sonar system to trigger the device is a potentially useful (albeit more costly) tool. Manufacturer update: average source level within a transmission 188dB re 1uPa rms@1m; Frequency = 8-24kHz","Manufacturer update: average source level within a transmission 188dB re 1uPa rms@1m; Frequency = 8-24kHz"]
[6,{"$f":"IF(D9='Device Selector'!$B$6,'Master Database - amended'!A9,\"\")","v":6},14,"All Devices",3,"Ace Aquatech","Ace Aquatec marine Mammal Mitigation Device (MMD) (Mid Frequency) Pinnipeds and Cetaceans","Automatic","http://aceaquatec.com/",null,"Offshore piling mitigation",195,198,176,8,24,"8 - 24 kHz","No Data Available","No Data Available","Intermittent - duration between pulses is on a random cycle.","Intermittent",3.3,14,"Pulse uniformly shorten from 14 ms to 3.3 ms followed by an upshift in the frequency of the tonal components and their equivalent distribution (Lepper et al. 2004)","No Data Available","No Data Available","1: Low confidence","Y","No Data Available","No Data Available","No Data Available","No Data Available","Pinnipeds and mid-frequency odontoces","No Data Available","500 - 1000m","No Data Available","No Data Available","https://infrastructure.planninginspectorate.gov.uk/wp-content/ipc/uploads/projects/EN010049/EN010049-001947-Tidal%20lagoon%20(Swansea%20Bay)%20Plc%201.pdf",null,"ABPmer conclude that the AceAquatec MMD is recommended as an option should increased mitigation be needed at the tidal lagoon (see conclusions for use of Aquamark 100). Given the potential for wide-scale exclusion impacts on harbour porpoise, this should only be used for short periods of time when a marine mammal is recorded in a defined area in the vicinity of turbines. The use of an automated sonar system to trigger the device is a potentially useful (albeit more costly) tool. Manufacturer update: average source level within a transmission 188dB re 1uPa rms@1m; Frequency = 8-24kHz","Manufacturer update: average source level within a transmission 188dB re 1uPa rms@1m; Frequency = 8-24kHz"]
[7,{"$f":"IF(D10='Device Selector'!$B$6,'Master Database - amended'!A10,\"\")","v":""},15,"Very High Frequency Cetaceans",4,"Ace Aquatech","Marine Mammal Mitigation (MMM) Device (HF)","Automatic","http://aceaquatec.com/",null,"Offshore piling mitigation",184,187,165,20,40,"20 - 40 kHz","No Data Available","No Data Available","Intermittent - duration between pulses is on a random cycle.","Intermittent",3.3,14,"Pulse uniformly shorten from 14 ms to 3.3 ms followed by an upshift in the frequency of the tonal components and their equivalent distribution (Lepper et al. 2004)","No Data Available","No Data Available","No Data Available","No Data Available","2: Medium confidence","Y","2: Medium confidence","Y","Pinnipeds and high-frequency odontoces","No Data Available","No Data Available",">1000m",">1000m","https://infrastructure.planninginspectorate.gov.uk/wp-content/ipc/uploads/projects/EN010049/EN010049-001947-Tidal%20lagoon%20(Swansea%20Bay)%20Plc%201.pdf",null,"ABPmer conclude that the AceAquatec MMD is recommended as an option should increased mitigation be needed at the tidal lagoon (see conclusions for use of Aquamark 100). Given the potential for wide-scale exclusion impacts on harbour porpoise, this should only be used for short periods of time when a marine mammal is recorded in a defined area in the vicinity of turbines. The use of an automated sonar system to trigger the device is a potentially useful (albeit more costly) tool. Manufacturer update: average source level within a transmission 180dB re 1uPa rms@1m; Frequency = 20-70kHz","Manufacturer update: average source level within a transmission 180dB re 1uPa rms@1m; Frequency = 20-70kHz"]
[8,{"$f":"IF(D11='Device Selector'!$B$6,'Master Database - amended'!A11,\"\")","v":""},18,"Pinnipeds",4,"Ace Aquatech","Marine Mammal Mitigation (MMM) Device (HF)","Automatic","http://aceaquatec.com/",null,"Offshore piling mitigation",184,187,165,20,40,"20 - 40 kHz","No Data Available","No Data Available","Intermittent - duration between pulses is on a random cycle.","Intermittent",3.3,14,"Pulse uniformly shorten from 14 ms to 3.3 ms followed by an upshift in the frequency of the tonal components and their equivalent distribution (Lepper et al. 2004)","No Data Available","No Data Available","No Data Available","No Data Available","2: Medium confidence","Y","2: Medium confidence","Y","Pinnipeds and high-frequency odontoces","No Data Available","No Data Available",">1000m",">1000m","https://infrastructure.planninginspectorate.gov.uk/wp-content/ipc/uploads/projects/EN010049/EN010049-001947-Tidal%20lagoon%20(Swansea%20Bay)%20Plc%201.pdf",null,"ABPmer conclude that the AceAquatec MMD is recommended as an option should increased mitigation be needed at the tidal lagoon (see conclusions for use of Aquamark 100). Given the potential for wide-scale exclusion impacts on harbour porpoise, this should only be used for short periods of time when a marine mammal is recorded in a defined area in the vicinity of turbines. The use of an automated sonar system to trigger the device is a potentially useful (albeit more costly) tool. Manufacturer update: average source level within a transmission 180dB re 1uPa rms@1m; Frequency = 20-70kHz","Manufacturer update: average source level within a transmission 180dB re 1uPa rms@1m; Frequency = 20-70kHz"]
[9,{"$f":"IF(D12='Device Selector'!$B$6,'Master Database - amended'!A12,\"\")","v":9},19,"All Devices",4,"Ace Aquatech","Marine Mammal Mitigation (MMM) Device (HF)","Automatic","http://aceaquatec.com/",null,"Offshore piling mitigation",184,187,165,20,40,"20 - 40 kHz","No Data Available","No Data Available","Intermittent - duration between pulses is on a random cycle.","Intermittent",3.3,14,"Pulse uniformly shorten from 14 ms to 3.3 ms followed by an upshift in the frequency of the tonal components and their equivalent distribution (Lepper et al. 2004)","No Data Available","No Data Available","No Data Available","No Data Available","2: Medium confidence","Y","2: Medium confidence","Y","Pinnipeds and high-frequency odontoces","No Data Available","No Data Available",">1000m",">1000m","https://infrastructure.planninginspectorate.gov.uk/wp-content/ipc/uploads/projects/EN010049/EN010049-001947-Tidal%20lagoon%20(Swansea%20Bay)%20Plc%201.pdf",null,"ABPmer conclude that the AceAquatec MMD is recommended as an option should increased mitigation be needed at the tidal lagoon (see conclusions for use of Aquamark 100). Given the potential for wide-scale exclusion impacts on harbour porpoise, this should only be used for short periods of time when a marine mammal is recorded in a defined area in the vicinity of turbines. The use of an automated sonar system to trigger the device is a potentially useful (albeit more costly) tool. Manufacturer update: average source level within a transmission 180dB re 1uPa rms@1m; Frequency = 20-70kHz","Manufacturer update: average source level within a transmission 180dB re 1uPa rms@1m; Frequency = 20-70kHz"]
[10,{"$f":"IF(D13='Device Selector'!$B$6,'Master Database - amended'!A13,\"\")","v":""},25,"Pinnipeds",5,"Ace Aquatech","Universal Scrammer (US2)","Automatic","http://aceaquatec.com/products/predator-control/",null,"Aquaculture",194,197,"No Data Available",8,30,"8 - 30 kHz",20,20,"Intermittent","Intermittent","No Data Available","No Data Available","Transmission duration of 20s (double scram of 40s and a pulse duration of 20ms)","No Data Available","No Data Available","No Data Available","No Data Available","No Data Available","No Data Available","No Data Available","No Data Available","Seals","No Data Available","No Data Available","No Data Available","No Data Available","No Evidence Available",null,"Manufacturer update: average source level within a transmission 181dB re 1uPa rms@1m","Manufacturer update: average source level within a transmission 181dB re 1uPa rms@1m"]
[11,{"$f":"IF(D14='Device Selector'!$B$6,'Master Database - amended'!A14,\"\")","v":11},29,"All Devices",5,"Ace Aquatech","Universal Scrammer (US2)","Automatic","http://aceaquatec.com/products/predator-control/",null,"Aquaculture",194,197,"No Data Available",8,30,"8 - 30 kHz",20,20,"Intermittent","Intermittent","No Data Available","No Data Available","Transmission duration of 20s (double scram of 40s and a pulse duration of 20ms)","No Data Available","No Data Available","No Data Available","No Data Available","No Data Available","No Data Available","No Data Available","No Data Available","Seals","No Data Available","No Data Available","No Data Available","No Data Available","No Evidence Available",null,"Manufacturer update: average source level within a transmission 181dB re 1uPa rms@1m","Manufacturer update: average source level within a transmission 181dB re 1uPa rms@1m"]
[12,{"$f":"IF(D15='Device Selector'!$B$6,'Master Database - amended'!A15,\"\")","v":""},32,"Very High Frequency Cetaceans",6,"Ace Aquatech","Universal Scrammer (US3)","Automatic","http://aceaquatec.com/products/predator-control/",null,"Aquaculture",195,198,"No Data Available",10,20,"10 - 20 kHz","No Data Available","No Data Available","Intermittent","Intermittent","No Data Available","No Data Available","A random selection of pulses in 2 - 5 second cycles.","No Data Available","No Data Available","No Data Available","No Data Available","3: High confidence","Y","2: Medium confidence","Y","Seals","No Data Available","No Data Available",">1000m",">1000m","https://infrastructure.planninginspectorate.gov.uk/wp-content/ipc/uploads/projects/EN010049/EN010049-001947-Tidal%20lagoon%20(Swansea%20Bay)%20Plc%201.pdf",null,"Manufacturer update: average source level within a transmission 181dB re 1uPa rms@1m; Frequency 8-11kHz. Note: Propagation papers referenced prior to this update used the maximum output in modelling not the average energy level of the signal. This has been addresses in a SAIC funded project with the University of St Andrews","Manufacturer update: average source level within a transmission 181dB re 1uPa rms@1m; Frequency 8-11kHz. Note: Propagation papers referenced prior to this update used the maximum output in modelling not the average energy level of the signal. This has been addresses in a SAIC funded project with the University of St Andrews"]
[13,{"$f":"IF(D16='Device Selector'!$B$6,'Master Database - amended'!A16,\"\")","v":""},34,"Pinnipeds",6,"Ace Aquatech","Universal Scrammer (US3)","Automatic","http://aceaquatec.com/products/predator-control/",null,"Aquaculture",195,198,"No Data Available",10,20,"10 - 20 kHz","No Data Available","No Data Available","Intermittent","Intermittent","No Data Available","No Data Available","A random selection of pulses in 2 - 5 second cycles.","No Data Available","No Data Available","No Data Available","No Data Available","3: High confidence","Y","2: Medium confidence","Y","Seals","No Data Available","No Data Available",">1000m",">1000m","https://infrastructure.planninginspectorate.gov.uk/wp-content/ipc/uploads/projects/EN010049/EN010049-001947-Tidal%20lagoon%20(Swansea%20Bay)%20Plc%201.pdf",null,"Manufacturer update: average source level within a transmission 181dB re 1uPa rms@1m; Frequency 8-11kHz. Note: Propagation papers referenced prior to this update used the maximum output in modelling not the average energy level of the signal. This has been addresses in a SAIC funded project with the University of St Andrews","Manufacturer update: average source level within a transmission 181dB re 1uPa rms@1m; Frequency 8-11kHz. Note: Propagation papers referenced prior to this update used the maximum output in modelling not the average energy level of the signal. This has been addresses in a SAIC funded project with the University of St Andrews"]
[14,{"$f":"IF(D17='Device Selector'!$B$6,'Master Database - amended'!A17,\"\")","v":14},35,"All Devices",6,"Ace Aquatech","Universal Scrammer (US3)","Automatic","http://aceaquatec.com/products/predator-control/",null,"Aquaculture",195,198,"No Data Available",10,20,"10 - 20 kHz","No Data Available","No Data Available","Intermittent","Intermittent","No Data Available","No Data Available","A random selection of pulses in 2 - 5 second cycles.","No Data Available","No Data Available","No Data Available","No Data Available","3: High confidence","Y","2: Medium confidence","Y","Seals","No Data Available","No Data Available",">1000m",">1000m","https://infrastructure.planninginspectorate.gov.uk/wp-content/ipc/uploads/projects/EN010049/EN010049-001947-Tidal%20lagoon%20(Swansea%20Bay)%20Plc%201.pdf",null,"Manufacturer update: average source level within a transmission 181dB re 1uPa rms@1m; Frequency 8-11kHz. Note: Propagation papers referenced prior to this update used the maximum output in modelling not the average energy level of the signal. This has been addresses in a SAIC funded project with the University of St Andrews","Manufacturer update: average source level within a transmission 181dB re 1uPa rms@1m; Frequency 8-11kHz. Note: Propagation papers referenced prior to this update used the maximum output in modelling not the average energy level of the signal. This has been addresses in a SAIC funded project with the University of St Andrews"]
[15,{"$f":"IF(D18='Device Selector'!$B$6,'Master Database - amended'!A18,\"\")","v":15},37,"All Devices",7,"Ace Aquatech","RT1","Automatic","http://aceaquatec.com/products/predator-control/",null,"Aquaculture",195,198,"No Data Available",1,5,"1 - 5 kHz (can be restricted to 1 - 2 kHz in applications near harbour porpoise)","No Data Available","No Data Available","Intermittent.","Intermittent","No Data Available","No Data Available","A random selection of pulses in 2 - 5 second cycles.","No Data Available","No Data Available","No Data Available","No Data Available","No Data Available",null,"No Data Available","No Data Available","No Evidence Available","No Data Available","No Data Available","No Data Available","No Data Available","No Evidence Available",null,"Manufacturer update: average source level within a transmission 180dB re 1uPa rms@1m (ring transducer) & 182dB re 1uPa rms@1m (flex transducer); Frequency 0.9-1.4kHz","Manufacturer update: average source level within a transmission 180dB re 1uPa rms@1m (ring transducer) & 182dB re 1uPa rms@1m (flex transducer); Frequency 0.9-1.4kHz"]
[16,{"$f":"IF(D19='Device Selector'!$B$6,'Master Database - amended'!A19,\"\")","v":""},40,"Very High Frequency Cetaceans",8,"Airmar","dB plus II (became Mohn Aqua MAG seal deterrent)","Manual","http://www.airmar.com/",null,"Aquaculture",198,201,169,1.5,50,"A broadband spectral response at the beginning of each pulse, with detectable energy levels between 1.5 kHz to 50 kHz (Lepper et al. 2014).",40,40,"Sequence of pulsed sinusoidal tonal bursts (Lepper et al. 2014).","Intermittent",1.4,1.4,"Each tonal burst is ~1.4 ms in duration with 40 ms interval.  A 2.25 s long sequence is then formed from 57-58 tone bursts. The sequence is then repeated with ~50% duty cycle allowing ~2 s quiet period (Lepper et al. 2014).","No Data Available","No Data Available","No Data Available","No Data Available","3: High confidence","Y","3: High confidence","Y","Seals","No Data Available","No Data Available",">1000m","<500m","http://onlinelibrary.wiley.com/doi/10.1111/j.1748-7692.2002.tb01077.x/abstract\n\nhttps://www.sciencedirect.com/science/article/pii/S000632070200099X\n\nhttp://islandora.mlml.calstate.edu/islandora/object/ir%3A1920\n\nhttps://research-repository.st-andrews.ac.uk/handle/10023/848\n\nhttps://www.ncbi.nlm.nih.gov/pubmed/20400639\n\nhttps://www.researchgate.net/publication/273094995_Pingers_cause_temporary_habitat_displacement_of_harbour_porpoises_Phocoena_phocoena_L\n\nhttps://www.carbontrust.com/media/675291/orjip-add-study-final-report-stage-1-phase-2.pdf\n\nhttp://www.snh.org.uk/pdfs/publications/commissioned_reports/517.pdf\n\nhttp://www.gov.scot/Publications/2013/10/7618/4\n",null,"The Olesiuk et al. (2002) study involved substantially greater observation effort over a much-extended period and was thus able to investigate long-term effects. In comparison the Johnston (2002) study was able to measure ranges more accurately and track movements and could scan within a smaller observation range more effectively.\n\nSummary taken from ORJIP report show the results indicate that there might be scope to reduce the ADD time below the 30 minutes applied during the construction of these OWFs.","NA"]
[17,{"$f":"IF(D20='Device Selector'!$B$6,'Master Database - amended'!A20,\"\")","v":""},43,"Pinnipeds",8,"Airmar","dB plus II (became Mohn Aqua MAG seal deterrent)","Manual","http://www.airmar.com/",null,"Aquaculture",198,201,169,1.5,50,"A broadband spectral response at the beginning of each pulse, with detectable energy levels between 1.5 kHz to 50 kHz (Lepper et al. 2014).",40,40,"Sequence of pulsed sinusoidal tonal bursts (Lepper et al. 2014).","Intermittent",1.4,1.4,"Each tonal burst is ~1.4 ms in duration with 40 ms interval.  A 2.25 s long sequence is then formed from 57-58 tone bursts. The sequence is then repeated with ~50% duty cycle allowing ~2 s quiet period (Lepper et al. 2014).","No Data Available","No Data Available","No Data Available","No Data Available","3: High confidence","Y","3: High confidence","Y","Seals","No Data Available","No Data Available",">1000m","<500m","http://onlinelibrary.wiley.com/doi/10.1111/j.1748-7692.2002.tb01077.x/abstract\n\nhttps://www.sciencedirect.com/science/article/pii/S000632070200099X\n\nhttp://islandora.mlml.calstate.edu/islandora/object/ir%3A1920\n\nhttps://research-repository.st-andrews.ac.uk/handle/10023/848\n\nhttps://www.ncbi.nlm.nih.gov/pubmed/20400639\n\nhttps://www.researchgate.net/publication/273094995_Pingers_cause_temporary_habitat_displacement_of_harbour_porpoises_Phocoena_phocoena_L\n\nhttps://www.carbontrust.com/media/675291/orjip-add-study-final-report-stage-1-phase-2.pdf\n\nhttp://www.snh.org.uk/pdfs/publications/commissioned_reports/517.pdf\n\nhttp://www.gov.scot/Publications/2013/10/7618/4\n",null,"The Olesiuk et al. (2002) study involved substantially greater observation effort over a much-extended period and was thus able to investigate long-term effects. In comparison the Johnston (2002) study was able to measure ranges more accurately and track movements and could scan within a smaller observation range more effectively.\n\nSummary taken from ORJIP report show the results indicate that there might be scope to reduce the ADD time below the 30 minutes applied during the construction of these OWFs.","NA"]
[18,{"$f":"IF(D21='Device Selector'!$B$6,'Master Database - amended'!A21,\"\")","v":18},46,"All Devices",8,"Airmar","dB plus II (became Mohn Aqua MAG seal deterrent)","Manual","http://www.airmar.com/",null,"Aquaculture",198,201,169,1.5,50,"A broadband spectral response at the beginning of each pulse, with detectable energy levels between 1.5 kHz to 50 kHz (Lepper et al. 2014).",40,40,"Sequence of pulsed sinusoidal tonal bursts (Lepper et al. 2014).","Intermittent",1.4,1.4,"Each tonal burst is ~1.4 ms in duration with 40 ms interval.  A 2.25 s long sequence is then formed from 57-58 tone bursts. The sequence is then repeated with ~50% duty cycle allowing ~2 s quiet period (Lepper et al. 2014).","No Data Available","No Data Available","No Data Available","No Data Available","3: High confidence","Y","3: High confidence","Y","Seals","No Data Available","No Data Available",">1000m","<500m","http://onlinelibrary.wiley.com/doi/10.1111/j.1748-7692.2002.tb01077.x/abstract\n\nhttps://www.sciencedirect.com/science/article/pii/S000632070200099X\n\nhttp://islandora.mlml.calstate.edu/islandora/object/ir%3A1920\n\nhttps://research-repository.st-andrews.ac.uk/handle/10023/848\n\nhttps://www.ncbi.nlm.nih.gov/pubmed/20400639\n\nhttps://www.researchgate.net/publication/273094995_Pingers_cause_temporary_habitat_displacement_of_harbour_porpoises_Phocoena_phocoena_L\n\nhttps://www.carbontrust.com/media/675291/orjip-add-study-final-report-stage-1-phase-2.pdf\n\nhttp://www.snh.org.uk/pdfs/publications/commissioned_reports/517.pdf\n\nhttp://www.gov.scot/Publications/2013/10/7618/4\n",null,"The Olesiuk et al. (2002) study involved substantially greater observation effort over a much-extended period and was thus able to investigate long-term effects. In comparison the Johnston (2002) study was able to measure ranges more accurately and track movements and could scan within a smaller observation range more effectively.\n\nSummary taken from ORJIP report show the results indicate that there might be scope to reduce the ADD time below the 30 minutes applied during the construction of these OWFs.","NA"]
[19,{"$f":"IF(D22='Device Selector'!$B$6,'Master Database - amended'!A22,\"\")","v":19},49,"All Devices",9,"Airmar","Gillnet pinger","Automatic","http://www.airmar.com/productinfo.html?category=AD&name=Acoustic%20Deterrents",null,"Bycatch (gillnets)",132,200,191,10,10,"10 kHz",4000,4000,"Pulse duration 300 ms with repeat intervals of 4 s.","Intermittent",300,300,"Pulse duration 300 ms with repeat intervals of 4 s.","No Data Available","No Data Available","No Data Available","No Data Available","No Data Available","No Data Available","No Data Available","No Data Available","Harbour Porpoise","No Data Available","No Data Available","No Data Available","No Data Available","No Evidence Available",null,"No Comments","NA"]
[20,{"$f":"IF(D23='Device Selector'!$B$6,'Master Database - amended'!A23,\"\")","v":""},52,"Low Frequency Cetaceans",10,"Aquatech","Aquamark 848","Automatic","http://www.aquatecgroup.com/11-products/25-aquamark-840",null,"Bycatch (gillnets)",165,168,"No Data Available",5,30,"5 - 30 kHz (with harmonic energy up to 120 kHz).","No Data Available","No Data Available","Four alternative signals: general deterrence 'Aquamark' chirp repertoire; pseudo-clicks for echo-location confusion; pseudo-noise for echo-location masking; random composite of all modes.","Intermittent","No Data Available","No Data Available","No Data Available","1: Low confidence","Y","1: Low confidence","Y","2: Medium confidence","Y","2: Medium confidence","Y","Marine Mammals","H: >1000 m","H: >1000 m","H: >1000 m","H: >1000 m","http://www.ascobans.org/sites/default/files/document/Dawson_To-ping-or-not_ESR-2013.pdf\n\nhttps://infrastructure.planninginspectorate.gov.uk/wp-content/ipc/uploads/projects/EN010049/EN010049-001947-Tidal%20lagoon%20(Swansea%20Bay)%20Plc%201.pdf\n\nhttps://www.carbontrust.com/media/675291/orjip-add-study-final-report-stage-1-phase-2.pdf",null,"ORJIP review concludes that, as no information available – due to lack of response this is not recommended for use during OWF construction.","NA"]
[21,{"$f":"IF(D24='Device Selector'!$B$6,'Master Database - amended'!A24,\"\")","v":""},55,"High Frequency Cetaceans",10,"Aquatech","Aquamark 848","Automatic","http://www.aquatecgroup.com/11-products/25-aquamark-840",null,"Bycatch (gillnets)",165,168,"No Data Available",5,30,"5 - 30 kHz (with harmonic energy up to 120 kHz).","No Data Available","No Data Available","Four alternative signals: general deterrence 'Aquamark' chirp repertoire; pseudo-clicks for echo-location confusion; pseudo-noise for echo-location masking; random composite of all modes.","Intermittent","No Data Available","No Data Available","No Data Available","1: Low confidence","Y","1: Low confidence","Y","2: Medium confidence","Y","2: Medium confidence","Y","Marine Mammals",">1000m",">1000m",">1000m",">1000m","http://www.ascobans.org/sites/default/files/document/Dawson_To-ping-or-not_ESR-2013.pdf\n\nhttps://infrastructure.planninginspectorate.gov.uk/wp-content/ipc/uploads/projects/EN010049/EN010049-001947-Tidal%20lagoon%20(Swansea%20Bay)%20Plc%201.pdf\n\nhttps://www.carbontrust.com/media/675291/orjip-add-study-final-report-stage-1-phase-2.pdf",null,"ORJIP review concludes that, as no information available – due to lack of response this is not recommended for use during OWF construction.","NA"]
[22,{"$f":"IF(D25='Device Selector'!$B$6,'Master Database - amended'!A25,\"\")","v":""},57,"Very High Frequency Cetaceans",10,"Aquatech","Aquamark 848","Automatic","http://www.aquatecgroup.com/11-products/25-aquamark-840",null,"Bycatch (gillnets)",165,168,"No Data Available",5,30,"5 - 30 kHz (with harmonic energy up to 120 kHz).","No Data Available","No Data Available","Four alternative signals: general deterrence 'Aquamark' chirp repertoire; pseudo-clicks for echo-location confusion; pseudo-noise for echo-location masking; random composite of all modes.","Intermittent","No Data Available","No Data Available","No Data Available","1: Low confidence","Y","1: Low confidence","Y","2: Medium confidence","Y","2: Medium confidence","Y","Marine Mammals",">1000m",">1000m",">1000m",">1000m","http://www.ascobans.org/sites/default/files/document/Dawson_To-ping-or-not_ESR-2013.pdf\n\nhttps://infrastructure.planninginspectorate.gov.uk/wp-content/ipc/uploads/projects/EN010049/EN010049-001947-Tidal%20lagoon%20(Swansea%20Bay)%20Plc%201.pdf\n\nhttps://www.carbontrust.com/media/675291/orjip-add-study-final-report-stage-1-phase-2.pdf",null,"ORJIP review concludes that, as no information available – due to lack of response this is not recommended for use during OWF construction.","NA"]
[23,{"$f":"IF(D26='Device Selector'!$B$6,'Master Database - amended'!A26,\"\")","v":""},59,"Pinnipeds",10,"Aquatech","Aquamark 848","Automatic","http://www.aquatecgroup.com/11-products/25-aquamark-840",null,"Bycatch (gillnets)",165,168,"No Data Available",5,30,"5 - 30 kHz (with harmonic energy up to 120 kHz).","No Data Available","No Data Available","Four alternative signals: general deterrence 'Aquamark' chirp repertoire; pseudo-clicks for echo-location confusion; pseudo-noise for echo-location masking; random composite of all modes.","Intermittent","No Data Available","No Data Available","No Data Available","1: Low confidence","Y","1: Low confidence","Y","2: Medium confidence","Y","2: Medium confidence","Y","Marine Mammals",">1000m",">1000m",">1000m",">1000m","http://www.ascobans.org/sites/default/files/document/Dawson_To-ping-or-not_ESR-2013.pdf\n\nhttps://infrastructure.planninginspectorate.gov.uk/wp-content/ipc/uploads/projects/EN010049/EN010049-001947-Tidal%20lagoon%20(Swansea%20Bay)%20Plc%201.pdf\n\nhttps://www.carbontrust.com/media/675291/orjip-add-study-final-report-stage-1-phase-2.pdf",null,"ORJIP review concludes that, as no information available – due to lack of response this is not recommended for use during OWF construction.","NA"]
[24,{"$f":"IF(D27='Device Selector'!$B$6,'Master Database - amended'!A27,\"\")","v":""},61,"All Species",10,"Aquatech","Aquamark 848","Automatic","http://www.aquatecgroup.com/11-products/25-aquamark-840",null,"Bycatch (gillnets)",165,168,"No Data Available",5,30,"5 - 30 kHz (with harmonic energy up to 120 kHz).","No Data Available","No Data Available","Four alternative signals: general deterrence 'Aquamark' chirp repertoire; pseudo-clicks for echo-location confusion; pseudo-noise for echo-location masking; random composite of all modes.","Intermittent","No Data Available","No Data Available","No Data Available","1: Low confidence","Y","1: Low confidence","Y","2: Medium confidence","Y","2: Medium confidence","Y","Marine Mammals",">1000m",">1000m",">1000m",">1000m","http://www.ascobans.org/sites/default/files/document/Dawson_To-ping-or-not_ESR-2013.pdf\n\nhttps://infrastructure.planninginspectorate.gov.uk/wp-content/ipc/uploads/projects/EN010049/EN010049-001947-Tidal%20lagoon%20(Swansea%20Bay)%20Plc%201.pdf\n\nhttps://www.carbontrust.com/media/675291/orjip-add-study-final-report-stage-1-phase-2.pdf",null,"ORJIP review concludes that, as no information available – due to lack of response this is not recommended for use during OWF construction.","NA"]
[25,{"$f":"IF(D28='Device Selector'!$B$6,'Master Database - amended'!A28,\"\")","v":25},64,"All Devices",10,"Aquatech","Aquamark 848","Automatic","http://www.aquatecgroup.com/11-products/25-aquamark-840",null,"Bycatch (gillnets)",165,168,"No Data Available",5,30,"5 - 30 kHz (with harmonic energy up to 120 kHz).","No Data Available","No Data Available","Four alternative signals: general deterrence 'Aquamark' chirp repertoire; pseudo-clicks for echo-location confusion; pseudo-noise for echo-location masking; random composite of all modes.","Intermittent","No Data Available","No Data Available","No Data Available","1: Low confidence","Y","1: Low confidence","Y","2: Medium confidence","Y","2: Medium confidence","Y","Marine Mammals",">1000m",">1000m",">1000m",">1000m","http://www.ascobans.org/sites/default/files/document/Dawson_To-ping-or-not_ESR-2013.pdf\n\nhttps://infrastructure.planninginspectorate.gov.uk/wp-content/ipc/uploads/projects/EN010049/EN010049-001947-Tidal%20lagoon%20(Swansea%20Bay)%20Plc%201.pdf\n\nhttps://www.carbontrust.com/media/675291/orjip-add-study-final-report-stage-1-phase-2.pdf",null,"ORJIP review concludes that, as no information available – due to lack of response this is not recommended for use during OWF construction.","NA"]
[26,{"$f":"IF(D29='Device Selector'!$B$6,'Master Database - amended'!A29,\"\")","v":""},66,"High Frequency Cetaceans","11a","Aquatech","Aquamark 100","Automatic","No manufacturers website available",null,"Bycatch (gillnets)",145,148,140,10,160,"10 - 160 kHz",5000,30000,"Signal duration of 200 – 300 ms, with a signal interval of 5 – 30 s (Dawson et al. 2013).","Intermittent",200,300,"Signal duration of 200 – 300 ms, with a signal interval of 5 – 30 s (Dawson et al. 2013).","No Data Available","No Data Available","3: High confidence","Y","3: High confidence","Y","2: Medium confidence","Y","Harbour Porpoise","No Data Available","No Data Available","<500m","<500m","https://stecf.jrc.ec.europa.eu/documents/43805/44956/Trials+pinger+spacing+DK+2007.pdf\n\nhttps://www.sciencedirect.com/science/article/pii/S0165783607003669\n\nhttp://bycatch.org/articles/can-acoustic-deterrent-devices-reduce-catch-cornish-inshore-gillnet-fishery\n\nhttps://www.researchgate.net/publication/286890618_An_investigation_of_acoustic_deterrent_devices_to_reduce_cetacean_bycatch_in_an_inshore_set_net_fishery\n\nhttp://www.ascobans.org/sites/default/files/document/Dawson_To-ping-or-not_ESR-2013.pdf\n\nhttps://infrastructure.planninginspectorate.gov.uk/wp-content/ipc/uploads/projects/EN010049/EN010049-001947-Tidal%20lagoon%20(Swansea%20Bay)%20Plc%201.pdf",null,"ABPmer conclude that the use of AQUAmark 100 is considered a viable mitigation option to trial during initial turbine operation at the tidal lagoon given that the device is unlikely to cause wide-scale displacement and has had proven effectiveness in harbour porpoise field trials. Given the predicted relatively small area of avoidance this could be used on a permanent basis without the need for a triggering system.","NA"]
[27,{"$f":"IF(D30='Device Selector'!$B$6,'Master Database - amended'!A30,\"\")","v":""},68,"Very High Frequency Cetaceans","11a","Aquatech","Aquamark 100","Automatic","No manufacturers website available",null,"Bycatch (gillnets)",145,148,140,10,160,"10 - 160 kHz",5000,30000,"Signal duration of 200 – 300 ms, with a signal interval of 5 – 30 s (Dawson et al. 2013).","Intermittent",200,300,"Signal duration of 200 – 300 ms, with a signal interval of 5 – 30 s (Dawson et al. 2013).","No Data Available","No Data Available","3: High confidence","Y","3: High confidence","Y","2: Medium confidence","Y","Harbour Porpoise","No Data Available","No Data Available","<500m","<500m","https://stecf.jrc.ec.europa.eu/documents/43805/44956/Trials+pinger+spacing+DK+2007.pdf\n\nhttps://www.sciencedirect.com/science/article/pii/S0165783607003669\n\nhttp://bycatch.org/articles/can-acoustic-deterrent-devices-reduce-catch-cornish-inshore-gillnet-fishery\n\nhttps://www.researchgate.net/publication/286890618_An_investigation_of_acoustic_deterrent_devices_to_reduce_cetacean_bycatch_in_an_inshore_set_net_fishery\n\nhttp://www.ascobans.org/sites/default/files/document/Dawson_To-ping-or-not_ESR-2013.pdf\n\nhttps://infrastructure.planninginspectorate.gov.uk/wp-content/ipc/uploads/projects/EN010049/EN010049-001947-Tidal%20lagoon%20(Swansea%20Bay)%20Plc%201.pdf",null,"ABPmer conclude that the use of AQUAmark 100 is considered a viable mitigation option to trial during initial turbine operation at the tidal lagoon given that the device is unlikely to cause wide-scale displacement and has had proven effectiveness in harbour porpoise field trials. Given the predicted relatively small area of avoidance this could be used on a permanent basis without the need for a triggering system.","NA"]
[28,{"$f":"IF(D31='Device Selector'!$B$6,'Master Database - amended'!A31,\"\")","v":""},71,"Pinnipeds","11a","Aquatech","Aquamark 100","Automatic","No manufacturers website available",null,"Bycatch (gillnets)",145,148,140,10,160,"10 - 160 kHz",5000,30000,"Signal duration of 200 – 300 ms, with a signal interval of 5 – 30 s (Dawson et al. 2013).","Intermittent",200,300,"Signal duration of 200 – 300 ms, with a signal interval of 5 – 30 s (Dawson et al. 2013).","No Data Available","No Data Available","3: High confidence","Y","3: High confidence","Y","2: Medium confidence","Y","Harbour Porpoise","No Data Available","No Data Available","<500m","<500m","https://stecf.jrc.ec.europa.eu/documents/43805/44956/Trials+pinger+spacing+DK+2007.pdf\n\nhttps://www.sciencedirect.com/science/article/pii/S0165783607003669\n\nhttp://bycatch.org/articles/can-acoustic-deterrent-devices-reduce-catch-cornish-inshore-gillnet-fishery\n\nhttps://www.researchgate.net/publication/286890618_An_investigation_of_acoustic_deterrent_devices_to_reduce_cetacean_bycatch_in_an_inshore_set_net_fishery\n\nhttp://www.ascobans.org/sites/default/files/document/Dawson_To-ping-or-not_ESR-2013.pdf\n\nhttps://infrastructure.planninginspectorate.gov.uk/wp-content/ipc/uploads/projects/EN010049/EN010049-001947-Tidal%20lagoon%20(Swansea%20Bay)%20Plc%201.pdf",null,"ABPmer conclude that the use of AQUAmark 100 is considered a viable mitigation option to trial during initial turbine operation at the tidal lagoon given that the device is unlikely to cause wide-scale displacement and has had proven effectiveness in harbour porpoise field trials. Given the predicted relatively small area of avoidance this could be used on a permanent basis without the need for a triggering system.","NA"]
[29,{"$f":"IF(D32='Device Selector'!$B$6,'Master Database - amended'!A32,\"\")","v":29},73,"All Devices","11a","Aquatech","Aquamark 100","Automatic","No manufacturers website available",null,"Bycatch (gillnets)",145,148,140,10,160,"10 - 160 kHz",5000,30000,"Signal duration of 200 – 300 ms, with a signal interval of 5 – 30 s (Dawson et al. 2013).","Intermittent",200,300,"Signal duration of 200 – 300 ms, with a signal interval of 5 – 30 s (Dawson et al. 2013).","No Data Available","No Data Available","3: High confidence","Y","3: High confidence","Y","2: Medium confidence","Y","Harbour Porpoise","No Data Available","No Data Available","<500m","<500m","https://stecf.jrc.ec.europa.eu/documents/43805/44956/Trials+pinger+spacing+DK+2007.pdf\n\nhttps://www.sciencedirect.com/science/article/pii/S0165783607003669\n\nhttp://bycatch.org/articles/can-acoustic-deterrent-devices-reduce-catch-cornish-inshore-gillnet-fishery\n\nhttps://www.researchgate.net/publication/286890618_An_investigation_of_acoustic_deterrent_devices_to_reduce_cetacean_bycatch_in_an_inshore_set_net_fishery\n\nhttp://www.ascobans.org/sites/default/files/document/Dawson_To-ping-or-not_ESR-2013.pdf\n\nhttps://infrastructure.planninginspectorate.gov.uk/wp-content/ipc/uploads/projects/EN010049/EN010049-001947-Tidal%20lagoon%20(Swansea%20Bay)%20Plc%201.pdf",null,"ABPmer conclude that the use of AQUAmark 100 is considered a viable mitigation option to trial during initial turbine operation at the tidal lagoon given that the device is unlikely to cause wide-scale displacement and has had proven effectiveness in harbour porpoise field trials. Given the predicted relatively small area of avoidance this could be used on a permanent basis without the need for a triggering system.","NA"]
[30,{"$f":"IF(D33='Device Selector'!$B$6,'Master Database - amended'!A33,\"\")","v":""},75,"High Frequency Cetaceans","11b","Aquatech","Aquamark 200","Automatic","No manufacturers website available",null,"Bycatch (gillnets)",145,148,140,5,160,"5 - 160 kHz",4000,21000,"Signal duration of 200 – 300 ms, with a signal interval of 4 – 21 s (Dawson et al. 2013).","Intermittent",200,300,"Signal duration of 200 – 300 ms, with a signal interval of 4 – 21 s (Dawson et al. 2013).","No Data Available","No Data Available","2: Medium confidence","Y","3: High confidence","Y","No Data Available","No Data Available","Harbour Porpoise [Confidence Score 3] & Hector's Dolphin [Confidence Score 2] ","No Data Available","No Data Available","<500m","No Data Available","http://www.ascobans.org/sites/default/files/document/Dawson_To-ping-or-not_ESR-2013.pdf",null,"No Comments","NA"]
[31,{"$f":"IF(D34='Device Selector'!$B$6,'Master Database - amended'!A34,\"\")","v":""},80,"Very High Frequency Cetaceans","11b","Aquatech","Aquamark 200","Automatic","No manufacturers website available",null,"Bycatch (gillnets)",145,148,140,5,160,"5 - 160 kHz",4000,21000,"Signal duration of 200 – 300 ms, with a signal interval of 4 – 21 s (Dawson et al. 2013).","Intermittent",200,300,"Signal duration of 200 – 300 ms, with a signal interval of 4 – 21 s (Dawson et al. 2013).","No Data Available","No Data Available","2: Medium confidence","Y","3: High confidence","Y","No Data Available","No Data Available","Harbour Porpoise [Confidence Score 3] & Hector's Dolphin [Confidence Score 2] ","No Data Available","No Data Available","<500m","No Data Available","http://www.ascobans.org/sites/default/files/document/Dawson_To-ping-or-not_ESR-2013.pdf",null,"No Comments","NA"]
[32,{"$f":"IF(D35='Device Selector'!$B$6,'Master Database - amended'!A35,\"\")","v":32},82,"All Devices","11b","Aquatech","Aquamark 200","Automatic","No manufacturers website available",null,"Bycatch (gillnets)",145,148,140,5,160,"5 - 160 kHz",4000,21000,"Signal duration of 200 – 300 ms, with a signal interval of 4 – 21 s (Dawson et al. 2013).","Intermittent",200,300,"Signal duration of 200 – 300 ms, with a signal interval of 4 – 21 s (Dawson et al. 2013).","No Data Available","No Data Available","2: Medium confidence","Y","3: High confidence","Y","No Data Available","No Data Available","Harbour Porpoise [Confidence Score 3] & Hector's Dolphin [Confidence Score 2] ","No Data Available","No Data Available","<500m","No Data Available","http://www.ascobans.org/sites/default/files/document/Dawson_To-ping-or-not_ESR-2013.pdf",null,"No Comments","NA"]
[33,{"$f":"IF(D36='Device Selector'!$B$6,'Master Database - amended'!A36,\"\")","v":""},{"$f":"IFERROR(SMALL($B$4:$B$132,A36),\"\")","v":83},"High Frequency Cetaceans","11c","Aquatech","Aquamark 210","Automatic","No manufacturers website available",null,"Bycatch (gillnets)",150,153,145,5,160,"5 - 160 kHz",5000,30000,"Signal duration of 50 – 300 ms, with a signal interval of 5 – 30 s (Dawson et al. 2013).","Intermittent",50,300,"Signal duration of 50 – 300 ms, with a signal interval of 5 – 30 s (Dawson et al. 2013).","No Data Available","No Data Available","3: High confidence","Y","No Data Available","No Data Available","No Data Available","No Data Available","Dolphins","No Data Available","No Data Available","No Data Available","No Data Available","http://www.int-res.com/articles/esr2008/5/n005p301.pdf",null,"No Comments","NA"]
[34,{"$f":"IF(D37='Device Selector'!$B$6,'Master Database - amended'!A37,\"\")","v":34},87,"All Devices","11c","Aquatech","Aquamark 210","Automatic","No manufacturers website available",null,"Bycatch (gillnets)",150,153,145,5,160,"5 - 160 kHz",5000,30000,"Signal duration of 50 – 300 ms, with a signal interval of 5 – 30 s (Dawson et al. 2013).","Intermittent",50,300,"Signal duration of 50 – 300 ms, with a signal interval of 5 – 30 s (Dawson et al. 2013).","No Data Available","No Data Available","3: High confidence","Y","No Data Available","No Data Available","No Data Available","No Data Available","Dolphins","No Data Available","No Data Available","No Data Available","No Data Available","http://www.int-res.com/articles/esr2008/5/n005p301.pdf",null,"No Comments","NA"]
[35,{"$f":"IF(D38='Device Selector'!$B$6,'Master Database - amended'!A38,\"\")","v":35},90,"All Devices","11d","Aquatech","Aquamark 300","Automatic","No manufacturers website available",null,"Bycatch (gillnets)",132,135,127,10,10,"10 kHz",4000,4000,"Signal duration of 300 ms, with a signal interval of 4 s (Dawson et al. 2013).","Intermittent",300,300,"Signal duration of 300 ms, with a signal interval of 4 s (Dawson et al. 2013).","No Data Available","No Data Available","No Data Available",null,"3: High confidence","No Data Available","No Data Available","No Data Available","Harbour Porpoise","No Data Available","No Data Available","No Data Available","No Data Available","No Evidence Available",null,"No Comments","NA"]
[36,{"$f":"IF(D39='Device Selector'!$B$6,'Master Database - amended'!A39,\"\")","v":""},94,"High Frequency Cetaceans",12,"IFREMER / IXTrawl","Cetasaver V.03","No Data Available","No manufacturers website available",null,"Bycatch (gillnets)",165,168,165,30,150,"Signal 1: Frequency modulated signal between 30 - 150 kHz. Signal 2: Click train at 90 kHz.",2000,5500,"Signal 1: repeated at a minimum of every 2 seconds, maximum of 5.5 seconds with an average of 4 seconds. Signal 2: Click train of 0.1 second duration, with a constant click time and repetition.","Intermittent",100,1000,"Signal 1: 1 second duration (random time and frequency organised sweeps of base square wave). Signal 2: Click train of 0.1 second duration, with a constant click time and repetition.","No Data Available","No Data Available","3: High confidence","Y","No Data Available","No Data Available","No Data Available","No Data Available","Harbour Porpoise and Dolphins","No Data Available","No Data Available","No Data Available","No Data Available","http://www.iqoe.org/library/9639\n\nhttps://www.environment.gov.au/system/files/resources/c2bdc649-02a2-49c2-9c0f-74d0c4a65b27/files/technical-review-bycatch-mitigation-devices.pdf",null,"No Comments","NA"]
[37,{"$f":"IF(D40='Device Selector'!$B$6,'Master Database - amended'!A40,\"\")","v":37},96,"All Devices",12,"IFREMER / IXTrawl","Cetasaver V.03","No Data Available","No manufacturers website available",null,"Bycatch (gillnets)",165,168,165,30,150,"Signal 1: Frequency modulated signal between 30 - 150 kHz. Signal 2: Click train at 90 kHz.",2000,5500,"Signal 1: repeated at a minimum of every 2 seconds, maximum of 5.5 seconds with an average of 4 seconds. Signal 2: Click train of 0.1 second duration, with a constant click time and repetition.","Intermittent",100,1000,"Signal 1: 1 second duration (random time and frequency organised sweeps of base square wave). Signal 2: Click train of 0.1 second duration, with a constant click time and repetition.","No Data Available","No Data Available","3: High confidence","Y","No Data Available","No Data Available","No Data Available","No Data Available","Harbour Porpoise and Dolphins","No Data Available","No Data Available","No Data Available","No Data Available","http://www.iqoe.org/library/9639\n\nhttps://www.environment.gov.au/system/files/resources/c2bdc649-02a2-49c2-9c0f-74d0c4a65b27/files/technical-review-bycatch-mitigation-devices.pdf",null,"No Comments","NA"]
[38,{"$f":"IF(D41='Device Selector'!$B$6,'Master Database - amended'!A41,\"\")","v":""},98,"High Frequency Cetaceans","13a","STM products","Dolphin Deterrent Device (DDD) 03L","Automatic","http://www.stm-products.com/en/products/fishing-technology/",null,"Bycatch (gillnets)",165,168,165,5.0000000000000001E-3,0.5,"5 - 500 kHz (random).",150000,150000,"Average duration between each pulse is 150 s.","Intermittent",500,9000,"Pulse duration can be random or vary between 500 ms and 9000 ms.","No Data Available","No Data Available","3: High confidence","N","2: Medium confidence","Y","No Data Available","No Data Available","Dolphins","No Data Available",">1000m",">1000m","No Data Available","https://www.carbontrust.com/media/675291/orjip-add-study-final-report-stage-1-phase-2.pdf",null,"ORJIP review  concludes that the DDD and DDD03 are not designed to have the control functions necessary for OWF applications.","NA"]
[39,{"$f":"IF(D42='Device Selector'!$B$6,'Master Database - amended'!A42,\"\")","v":""},102,"Very High Frequency Cetaceans","13a","STM products","Dolphin Deterrent Device (DDD) 03L","Automatic","http://www.stm-products.com/en/products/fishing-technology/",null,"Bycatch (gillnets)",165,168,165,5.0000000000000001E-3,0.5,"5 - 500 kHz (random).",150000,150000,"Average duration between each pulse is 150 s.","Intermittent",500,9000,"Pulse duration can be random or vary between 500 ms and 9000 ms.","No Data Available","No Data Available","3: High confidence","N","2: Medium confidence","Y","No Data Available","No Data Available","Dolphins","No Data Available",">1000m",">1000m","No Data Available","https://www.carbontrust.com/media/675291/orjip-add-study-final-report-stage-1-phase-2.pdf",null,"ORJIP review  concludes that the DDD and DDD03 are not designed to have the control functions necessary for OWF applications.","NA"]
[40,{"$f":"IF(D43='Device Selector'!$B$6,'Master Database - amended'!A43,\"\")","v":40},103,"All Devices","13a","STM products","Dolphin Deterrent Device (DDD) 03L","Automatic","http://www.stm-products.com/en/products/fishing-technology/",null,"Bycatch (gillnets)",165,168,165,5.0000000000000001E-3,0.5,"5 - 500 kHz (random).",150000,150000,"Average duration between each pulse is 150 s.","Intermittent",500,9000,"Pulse duration can be random or vary between 500 ms and 9000 ms.","No Data Available","No Data Available","3: High confidence","N","2: Medium confidence","Y","No Data Available","No Data Available","Dolphins","No Data Available",">1000m",">1000m","No Data Available","https://www.carbontrust.com/media/675291/orjip-add-study-final-report-stage-1-phase-2.pdf",null,"ORJIP review  concludes that the DDD and DDD03 are not designed to have the control functions necessary for OWF applications.","NA"]
[41,{"$f":"IF(D44='Device Selector'!$B$6,'Master Database - amended'!A44,\"\")","v":""},104,"High Frequency Cetaceans","13b","STM products","DDD 03N","Automatic","http://www.stm-products.com/en/products/fishing-technology/",null,"Bycatch (gillnets)",165,168,165,5.0000000000000001E-3,0.5,"5 - 500 kHz (random).",90000,90000,"Average duration between each pulse is 90 s.","Intermittent",500,9000,"Pulse duration can be random or vary between 500 ms and 9000 ms.","No Data Available","No Data Available","3: High confidence","N","2: Medium confidence","Y","No Data Available","No Data Available","Dolphins","No Data Available",">1000m",">1000m","No Data Available","https://www.carbontrust.com/media/675291/orjip-add-study-final-report-stage-1-phase-2.pdf",null,"ORJIP review  concludes that the DDD and DDD03 are not designed to have the control functions necessary for OWF applications.","NA"]
[42,{"$f":"IF(D45='Device Selector'!$B$6,'Master Database - amended'!A45,\"\")","v":""},105,"Very High Frequency Cetaceans","13b","STM products","DDD 03N","Automatic","http://www.stm-products.com/en/products/fishing-technology/",null,"Bycatch (gillnets)",165,168,165,5.0000000000000001E-3,0.5,"5 - 500 kHz (random).",90000,90000,"Average duration between each pulse is 90 s.","Intermittent",500,9000,"Pulse duration can be random or vary between 500 ms and 9000 ms.","No Data Available","No Data Available","3: High confidence","N","2: Medium confidence","Y","No Data Available","No Data Available","Dolphins","No Data Available",">1000m",">1000m","No Data Available","https://www.carbontrust.com/media/675291/orjip-add-study-final-report-stage-1-phase-2.pdf",null,"ORJIP review  concludes that the DDD and DDD03 are not designed to have the control functions necessary for OWF applications.","NA"]
[43,{"$f":"IF(D46='Device Selector'!$B$6,'Master Database - amended'!A46,\"\")","v":43},107,"All Devices","13b","STM products","DDD 03N","Automatic","http://www.stm-products.com/en/products/fishing-technology/",null,"Bycatch (gillnets)",165,168,165,5.0000000000000001E-3,0.5,"5 - 500 kHz (random).",90000,90000,"Average duration between each pulse is 90 s.","Intermittent",500,9000,"Pulse duration can be random or vary between 500 ms and 9000 ms.","No Data Available","No Data Available","3: High confidence","N","2: Medium confidence","Y","No Data Available","No Data Available","Dolphins","No Data Available",">1000m",">1000m","No Data Available","https://www.carbontrust.com/media/675291/orjip-add-study-final-report-stage-1-phase-2.pdf",null,"ORJIP review  concludes that the DDD and DDD03 are not designed to have the control functions necessary for OWF applications.","NA"]
[44,{"$f":"IF(D47='Device Selector'!$B$6,'Master Database - amended'!A47,\"\")","v":""},109,"High Frequency Cetaceans","13c","STM products","DDD 03H","Automatic","http://www.stm-products.com/en/products/fishing-technology/",null,"Bycatch (gillnets)",165,168,165,5.0000000000000001E-3,0.5,"5 - 500 kHz (random).",40000,40000,"Average duration between each pulse is 40 s.","Intermittent",500,9000,"Pulse duration can be random or vary between 500 ms and 9000 ms.","No Data Available","No Data Available","3: High confidence","N","2: Medium confidence","Y","No Data Available","No Data Available","Dolphins","No Data Available",">1000m",">1000m","No Data Available","https://www.carbontrust.com/media/675291/orjip-add-study-final-report-stage-1-phase-2.pdf",null,"ORJIP review  concludes that the DDD and DDD03 are not designed to have the control functions necessary for OWF applications.","NA"]
[45,{"$f":"IF(D48='Device Selector'!$B$6,'Master Database - amended'!A48,\"\")","v":""},111,"Very High Frequency Cetaceans","13c","STM products","DDD 03H","Automatic","http://www.stm-products.com/en/products/fishing-technology/",null,"Bycatch (gillnets)",165,168,165,5.0000000000000001E-3,0.5,"5 - 500 kHz (random).",40000,40000,"Average duration between each pulse is 40 s.","Intermittent",500,9000,"Pulse duration can be random or vary between 500 ms and 9000 ms.","No Data Available","No Data Available","3: High confidence","N","2: Medium confidence","Y","No Data Available","No Data Available","Dolphins","No Data Available",">1000m",">1000m","No Data Available","https://www.carbontrust.com/media/675291/orjip-add-study-final-report-stage-1-phase-2.pdf",null,"ORJIP review  concludes that the DDD and DDD03 are not designed to have the control functions necessary for OWF applications.","NA"]
[46,{"$f":"IF(D49='Device Selector'!$B$6,'Master Database - amended'!A49,\"\")","v":46},112,"All Devices","13c","STM products","DDD 03H","Automatic","http://www.stm-products.com/en/products/fishing-technology/",null,"Bycatch (gillnets)",165,168,165,5.0000000000000001E-3,0.5,"5 - 500 kHz (random).",40000,40000,"Average duration between each pulse is 40 s.","Intermittent",500,9000,"Pulse duration can be random or vary between 500 ms and 9000 ms.","No Data Available","No Data Available","3: High confidence","N","2: Medium confidence","Y","No Data Available","No Data Available","Dolphins","No Data Available",">1000m",">1000m","No Data Available","https://www.carbontrust.com/media/675291/orjip-add-study-final-report-stage-1-phase-2.pdf",null,"ORJIP review  concludes that the DDD and DDD03 are not designed to have the control functions necessary for OWF applications.","NA"]
[47,{"$f":"IF(D50='Device Selector'!$B$6,'Master Database - amended'!A50,\"\")","v":""},113,"High Frequency Cetaceans","13d","STM products","DDD 03U","Automatic","http://www.stm-products.com/en/products/fishing-technology/",null,"Bycatch (gillnets)",165,168,165,5.0000000000000001E-3,0.5,"5 - 500 kHz (random).",25000,25000,"Average duration between each pulse is 25 s.","Intermittent",500,9000,"Pulse duration can be random or vary between 500 ms and 9000 ms.","No Data Available","No Data Available","3: High confidence","N","2: Medium confidence","Y","No Data Available","No Data Available","Dolphins","No Data Available",">1000m",">1000m","No Data Available","https://www.carbontrust.com/media/675291/orjip-add-study-final-report-stage-1-phase-2.pdf",null,"ORJIP review  concludes that the DDD and DDD03 are not designed to have the control functions necessary for OWF applications.","NA"]
[48,{"$f":"IF(D51='Device Selector'!$B$6,'Master Database - amended'!A51,\"\")","v":""},115,"Very High Frequency Cetaceans","13c","STM products","DDD 03U","Automatic","http://www.stm-products.com/en/products/fishing-technology/",null,"Bycatch (gillnets)",165,168,165,5.0000000000000001E-3,0.5,"5 - 500 kHz (random).",25000,25000,"Average duration between each pulse is 25 s.","Intermittent",500,9000,"Pulse duration can be random or vary between 500 ms and 9000 ms.","No Data Available","No Data Available","3: High confidence","N","2: Medium confidence","Y","No Data Available","No Data Available","Dolphins","No Data Available",">1000m",">1000m","No Data Available","https://www.carbontrust.com/media/675291/orjip-add-study-final-report-stage-1-phase-2.pdf",null,"ORJIP review  concludes that the DDD and DDD03 are not designed to have the control functions necessary for OWF applications.","NA"]
[49,{"$f":"IF(D52='Device Selector'!$B$6,'Master Database - amended'!A52,\"\")","v":49},117,"All Devices","13d","STM products","DDD 03U","Automatic","http://www.stm-products.com/en/products/fishing-technology/",null,"Bycatch (gillnets)",165,168,165,5.0000000000000001E-3,0.5,"5 - 500 kHz (random).",25000,25000,"Average duration between each pulse is 25 s.","Intermittent",500,9000,"Pulse duration can be random or vary between 500 ms and 9000 ms.","No Data Available","No Data Available","3: High confidence","N","2: Medium confidence","Y","No Data Available","No Data Available","Dolphins","No Data Available",">1000m",">1000m","No Data Available","https://www.carbontrust.com/media/675291/orjip-add-study-final-report-stage-1-phase-2.pdf",null,"ORJIP review  concludes that the DDD and DDD03 are not designed to have the control functions necessary for OWF applications.","NA"]
[50,{"$f":"IF(D53='Device Selector'!$B$6,'Master Database - amended'!A53,\"\")","v":""},120,"High Frequency Cetaceans","13e","STM products","Dolphin interactive deterrent (DiD) 01","Automatic","http://www.stm-products.com/en/products/fishing-technology/",null,"Bycatch (gillnets)",165,168,"No Data Available",5.0000000000000001E-3,0.5,"5 - 500 kHz (random).","No Data Available","No Data Available","Interactive depending on the presence of mammals in it's vicinity.","Intermittent","No Data Available","No Data Available","Interactive depending on the presence of mammals in it's vicinity.","No Data Available","No Data Available","3: High confidence","N","2: Medium confidence","Y","No Data Available","No Data Available","Dolphins","No Data Available",">1000m",">1000m","No Data Available","No Evidence Available",null,"No Comments","NA"]
[51,{"$f":"IF(D54='Device Selector'!$B$6,'Master Database - amended'!A54,\"\")","v":""},123,"Very High Frequency Cetaceans","13e","STM products","Dolphin interactive deterrent (DiD) 01","Automatic","http://www.stm-products.com/en/products/fishing-technology/",null,"Bycatch (gillnets)",165,168,"No Data Available",5.0000000000000001E-3,0.5,"5 - 500 kHz (random).","No Data Available","No Data Available","Interactive depending on the presence of mammals in it's vicinity.","Intermittent","No Data Available","No Data Available","Interactive depending on the presence of mammals in it's vicinity.","No Data Available","No Data Available","3: High confidence","N","2: Medium confidence","Y","No Data Available","No Data Available","Dolphins","No Data Available",">1000m",">1000m","No Data Available","No Evidence Available",null,"No Comments","NA"]
[52,{"$f":"IF(D55='Device Selector'!$B$6,'Master Database - amended'!A55,\"\")","v":52},126,"All Devices","13e","STM products","Dolphin interactive deterrent (DiD) 01","Automatic","http://www.stm-products.com/en/products/fishing-technology/",null,"Bycatch (gillnets)",165,168,"No Data Available",5.0000000000000001E-3,0.5,"5 - 500 kHz (random).","No Data Available","No Data Available","Interactive depending on the presence of mammals in it's vicinity.","Intermittent","No Data Available","No Data Available","Interactive depending on the presence of mammals in it's vicinity.","No Data Available","No Data Available","3: High confidence","N","2: Medium confidence","Y","No Data Available","No Data Available","Dolphins","No Data Available",">1000m",">1000m","No Data Available","No Evidence Available",null,"No Comments","NA"]
[53,{"$f":"IF(D56='Device Selector'!$B$6,'Master Database - amended'!A56,\"\")","v":""},{"$f":"IFERROR(SMALL($B$4:$B$133,A56),\"\")","v":129},"High Frequency Cetaceans",14,"Dukane","NetMark 1000 alarm","No Data Available","https://spinoff.nasa.gov/spinoff1997/er1.html",null,"Bycatch (gillnets)",132,135,127,10,10,"10 kHz",4000,4000,"Pulse interval of 4 s.","Intermittent",300,300,"300 ms","No Data Available","No Data Available","2: Medium confidence","Y","3: High confidence","Y","No Data Available","No Data Available","Harbour Porpoise [Confidence Score 3] & Hector's Dolphin [Confidence Score 2] ","No Data Available","No Data Available","<500m","No Data Available","https://www.nature.com/articles/41451\n\nhttp://www.ascobans.org/sites/default/files/document/Dawson_To-ping-or-not_ESR-2013.pdf\n\nhttps://swfsc.noaa.gov/uploadedFiles/Divisions/PRD/Programs/Coastal_Marine_Mammal/Barlow_Cameron_MMS19.pdf\n\nhttp://www.int-res.com/articles/esr2008/5/n005p301.pdf\n\nhttps://www.researchgate.net/publication/228419119_Will_Harbour_porpoises_Phocoena_phocoena_habituate_to_pingers\n\nhttps://www.researchgate.net/publication/222300489_Behavioral_Responses_of_Bottlenose_Dolphins_Tursiops_truncatus_to_Gillnets_and_Acoustic_Alarms\n\nhttp://www.nrcresearchpress.com/doi/pdfplus/10.1139/f98-162\n\nhttp://www.nrcresearchpress.com/doi/10.1139/F08-186#.Wplyzq5l-Ul\n\nhttps://www.researchgate.net/publication/285703537_The_effect_of_pingers_on_harbour_porpoise_Phocoena_phocoena_bycatch_and_fishing_effort_in_the_turbot_gill_net_fishery_in_the_Turkish_Black_Sea_coast\n\nhttps://www.rufford.org/files/2-20.12.08%20Detailed%20Final%20Report.pdf\n\nhttp://conservation.govt.nz/Documents/science-and-technical/CSL3071.PDF\n\nhttps://www.researchgate.net/publication/227652806_Reducing_incidental_mortality_of_Franciscana_dolphin_Pontoporia_blainvilei_with_acoustic_warning_devices_attached_to_fishing_nets\n\nhttp://www.gov.scot/Publications/2013/10/7618/4",null,"In Bordino et al. 2002, although pingers show promise as a management tool for this species, pinniped depredation suggests that higher pinger frequencies will be needed to avoid a “dinner bell” effect.\n\nIn Wilson and Carter 2013, deployment of off-the-shelf acoustic devices developed for other applications, is shown to be unlikely to be appropriate for a particular tidal-stream site. An AHD is likely to be detectable at ranges far greater than the sphere of influence of an individual turbine or even an entire array.\n","NA"]
[54,{"$f":"IF(D57='Device Selector'!$B$6,'Master Database - amended'!A57,\"\")","v":""},130,"Very High Frequency Cetaceans",14,"Dukane","NetMark 1000 alarm","No Data Available","https://spinoff.nasa.gov/spinoff1997/er1.html",null,"Bycatch (gillnets)",132,135,127,10,10,"10 kHz",4000,4000,"Pulse interval of 4 s.","Intermittent",300,300,"300 ms","No Data Available","No Data Available","2: Medium confidence","Y","3: High confidence","Y","No Data Available","No Data Available","Harbour Porpoise [Confidence Score 3] & Hector's Dolphin [Confidence Score 2] ","No Data Available","No Data Available","<500m","No Data Available","https://www.nature.com/articles/41451\n\nhttp://www.ascobans.org/sites/default/files/document/Dawson_To-ping-or-not_ESR-2013.pdf\n\nhttps://swfsc.noaa.gov/uploadedFiles/Divisions/PRD/Programs/Coastal_Marine_Mammal/Barlow_Cameron_MMS19.pdf\n\nhttp://www.int-res.com/articles/esr2008/5/n005p301.pdf\n\nhttps://www.researchgate.net/publication/228419119_Will_Harbour_porpoises_Phocoena_phocoena_habituate_to_pingers\n\nhttps://www.researchgate.net/publication/222300489_Behavioral_Responses_of_Bottlenose_Dolphins_Tursiops_truncatus_to_Gillnets_and_Acoustic_Alarms\n\nhttp://www.nrcresearchpress.com/doi/pdfplus/10.1139/f98-162\n\nhttp://www.nrcresearchpress.com/doi/10.1139/F08-186#.Wplyzq5l-Ul\n\nhttps://www.researchgate.net/publication/285703537_The_effect_of_pingers_on_harbour_porpoise_Phocoena_phocoena_bycatch_and_fishing_effort_in_the_turbot_gill_net_fishery_in_the_Turkish_Black_Sea_coast\n\nhttps://www.rufford.org/files/2-20.12.08%20Detailed%20Final%20Report.pdf\n\nhttp://conservation.govt.nz/Documents/science-and-technical/CSL3071.PDF\n\nhttps://www.researchgate.net/publication/227652806_Reducing_incidental_mortality_of_Franciscana_dolphin_Pontoporia_blainvilei_with_acoustic_warning_devices_attached_to_fishing_nets\n\nhttp://www.gov.scot/Publications/2013/10/7618/4",null,"In Bordino et al. 2002, although pingers show promise as a management tool for this species, pinniped depredation suggests that higher pinger frequencies will be needed to avoid a “dinner bell” effect.\n\nIn Wilson and Carter 2013, deployment of off-the-shelf acoustic devices developed for other applications, is shown to be unlikely to be appropriate for a particular tidal-stream site. An AHD is likely to be detectable at ranges far greater than the sphere of influence of an individual turbine or even an entire array.\n","NA"]
[55,{"$f":"IF(D58='Device Selector'!$B$6,'Master Database - amended'!A58,\"\")","v":55},"","All Devices",14,"Dukane","NetMark 1000 alarm","No Data Available","https://spinoff.nasa.gov/spinoff1997/er1.html",null,"Bycatch (gillnets)",132,135,127,10,10,"10 kHz",4000,4000,"Pulse interval of 4 s.","Intermittent",300,300,"300 ms","No Data Available","No Data Available","2: Medium confidence","Y","3: High confidence","Y","No Data Available","No Data Available","Harbour Porpoise [Confidence Score 3] & Hector's Dolphin [Confidence Score 2] ","No Data Available","No Data Available","<500m","No Data Available","https://www.nature.com/articles/41451\n\nhttp://www.ascobans.org/sites/default/files/document/Dawson_To-ping-or-not_ESR-2013.pdf\n\nhttps://swfsc.noaa.gov/uploadedFiles/Divisions/PRD/Programs/Coastal_Marine_Mammal/Barlow_Cameron_MMS19.pdf\n\nhttp://www.int-res.com/articles/esr2008/5/n005p301.pdf\n\nhttps://www.researchgate.net/publication/228419119_Will_Harbour_porpoises_Phocoena_phocoena_habituate_to_pingers\n\nhttps://www.researchgate.net/publication/222300489_Behavioral_Responses_of_Bottlenose_Dolphins_Tursiops_truncatus_to_Gillnets_and_Acoustic_Alarms\n\nhttp://www.nrcresearchpress.com/doi/pdfplus/10.1139/f98-162\n\nhttp://www.nrcresearchpress.com/doi/10.1139/F08-186#.Wplyzq5l-Ul\n\nhttps://www.researchgate.net/publication/285703537_The_effect_of_pingers_on_harbour_porpoise_Phocoena_phocoena_bycatch_and_fishing_effort_in_the_turbot_gill_net_fishery_in_the_Turkish_Black_Sea_coast\n\nhttps://www.rufford.org/files/2-20.12.08%20Detailed%20Final%20Report.pdf\n\nhttp://conservation.govt.nz/Documents/science-and-technical/CSL3071.PDF\n\nhttps://www.researchgate.net/publication/227652806_Reducing_incidental_mortality_of_Franciscana_dolphin_Pontoporia_blainvilei_with_acoustic_warning_devices_attached_to_fishing_nets\n\nhttp://www.gov.scot/Publications/2013/10/7618/4",null,"In Bordino et al. 2002, although pingers show promise as a management tool for this species, pinniped depredation suggests that higher pinger frequencies will be needed to avoid a “dinner bell” effect.\n\nIn Wilson and Carter 2013, deployment of off-the-shelf acoustic devices developed for other applications, is shown to be unlikely to be appropriate for a particular tidal-stream site. An AHD is likely to be detectable at ranges far greater than the sphere of influence of an individual turbine or even an entire array.\n","NA"]
[56,{"$f":"IF(D59='Device Selector'!$B$6,'Master Database - amended'!A59,\"\")","v":""},"","Very High Frequency Cetaceans","15a","Future Oceans","10KHz Porpoise pinger","Automatic","https://futureoceans.com/pingers/porpoise-pinger/",null,"Bycatch (gillnets)",132,135,127,10,10,"10 kHz (includes multiple ultrasonic harmonics).",4000,4000,"Pulse interval 4 s.","Intermittent",300,300,"300 ms","No Data Available",null,"3: High confidence",null,"No Data Available",null,"No Data Available",null,"Harbour Porpoise","No Data Available","No Data Available","<500m","No Data Available","http://www.int-res.com/articles/esr_oa/n020p271.pdf",null,"This device is unlikely to be effective for the mitigation of impacts from wind farm piling (for humpback and snubfin dolphins at least)."]
[57,{"$f":"IF(D60='Device Selector'!$B$6,'Master Database - amended'!A60,\"\")","v":57},"","All Devices","15a","Future Oceans","10KHz Porpoise pinger","Automatic","https://futureoceans.com/pingers/porpoise-pinger/",null,"Bycatch (gillnets)",132,135,127,10,10,"10 kHz (includes multiple ultrasonic harmonics).",4000,4000,"Pulse interval 4 s.","Intermittent",300,300,"300 ms","No Data Available",null,"3: High confidence",null,"No Data Available",null,"No Data Available",null,"Harbour Porpoise","No Data Available","No Data Available","<500m","No Data Available","http://www.int-res.com/articles/esr_oa/n020p271.pdf",null,"This device is unlikely to be effective for the mitigation of impacts from wind farm piling (for humpback and snubfin dolphins at least)."]
[58,{"$f":"IF(D61='Device Selector'!$B$6,'Master Database - amended'!A61,\"\")","v":""},"","High Frequency Cetaceans","15b","Future Oceans","70 KHz Dolphin pinger","Automatic","https://futureoceans.com/pingers/dolphin-pinger/",null,"Bycatch (gillnets)",145,148,140,70,70,"70 kHz",4000,4000,"Pulse interval 4 s.","Intermittent",300,300,"300 ms","No Data Available","No Data Available","2: Medium confidence","Y","No Data Available","No Data Available","No Data Available","No Data Available","Humpback dolphin & snubfin dolphin [Confidence Score 3 and Y], Bottlenose Dolphin [Confidence Score 2 and N].","No Data Available","<500m","No Data Available","No Data Available","http://www.ascobans.org/sites/default/files/document/Dawson_To-ping-or-not_ESR-2013.pdf",null,"No Comments","NA"]
[59,{"$f":"IF(D62='Device Selector'!$B$6,'Master Database - amended'!A62,\"\")","v":59},"","All Devices","15b","Future Oceans","70 KHz Dolphin pinger","Automatic","https://futureoceans.com/pingers/dolphin-pinger/",null,"Bycatch (gillnets)",145,148,140,70,70,"70 kHz",4000,4000,"Pulse interval 4 s.","Intermittent",300,300,"300 ms","No Data Available","No Data Available","2: Medium confidence","Y","No Data Available","No Data Available","No Data Available","No Data Available","Humpback dolphin & snubfin dolphin [Confidence Score 3 and Y], Bottlenose Dolphin [Confidence Score 2 and N].","No Data Available","<500m","No Data Available","No Data Available","http://www.ascobans.org/sites/default/files/document/Dawson_To-ping-or-not_ESR-2013.pdf",null,"No Comments","NA"]
[60,{"$f":"IF(D63='Device Selector'!$B$6,'Master Database - amended'!A63,\"\")","v":""},"","Low Frequency Cetaceans","15c","Future Oceans","3 kHz Whale pinger","Automatic","https://futureoceans.com/pingers/whale-pinger/",null,"Bycatch (gillnets)",135,138,130,3,3,"3 kHz (± .5 kHz)",4000,4000,"Pulse interval 4 s.","Intermittent",300,300,"300 ms","3: High confidence","N","No Data Available","No Data Available","No Data Available","No Data Available","No Data Available","No Data Available","Whales","<500m","No Data Available","No Data Available","No Data Available","http://www.int-res.com/articles/esr_oa/n025p035.pdf",null,"No Comments","NA"]
[61,{"$f":"IF(D64='Device Selector'!$B$6,'Master Database - amended'!A64,\"\")","v":61},"","All Devices","15c","Future Oceans","3 kHz Whale pinger","Automatic","https://futureoceans.com/pingers/whale-pinger/",null,"Bycatch (gillnets)",135,138,130,3,3,"3 kHz (± .5 kHz)",4000,4000,"Pulse interval 4 s.","Intermittent",300,300,"300 ms","3: High confidence","N","No Data Available","No Data Available","No Data Available","No Data Available","No Data Available","No Data Available","Whales","<500m","No Data Available","No Data Available","No Data Available","http://www.int-res.com/articles/esr_oa/n025p035.pdf",null,"No Comments","NA"]
[62,{"$f":"IF(D65='Device Selector'!$B$6,'Master Database - amended'!A65,\"\")","v":""},"","High Frequency Cetaceans","16a","Fishtek Marine","Banana Pinger (50-120)","Automatic","https://www.fishtekmarine.com/product/deterrent-pinger-50-120/",null,"Bycatch (gillnets)","145 (±3)",148,140,50,120,"50 - 120 kHz (±2 kHz)",4000,12000,"Signal interval of 4 - 12 s. Randomised signal interval and structure.","Intermittent",300,300,"300 ms","No Data Available","No Data Available","2: Medium confidence","Y","3: High confidence","Y","No Data Available","No Data Available","Porpoise and Dolphin species","No Data Available","<500m","<500m","No Data Available","http://www.ascobans.org/sites/default/files/document/NSG4_Inf_4.3_BananaPinger.pdf\n\nhttps://www.fishtekmarine.com/wp-content/uploads/2017/06/FINAL-REPORT-Investigation-into-the-attraction-of-Atlantic-grey-seals-to-the-Fishteck-Banana-Pinger.pdf\n\nhttps://infrastructure.planninginspectorate.gov.uk/wp-content/ipc/uploads/projects/EN010049/EN010049-001947-Tidal%20lagoon%20(Swansea%20Bay)%20Plc%201.pdf\n\nhttps://www.fishtekmarine.com/wp-content/uploads/2017/04/ve_UK_HP_WFA-FishTek-Banana-Pinger-Commercial-Test_Woolmar_2015.pdf\n\nhttps://www.ifm.liu.se/edu/biology/master_projects/2017/louise-friis-charlotte/abstract/                                                                                                                                                                                                                                                        \n\nhttps://www.researchgate.net/publication/303365156_RESOLVING_BOTTLENOSE_DOLPHIN-FISHERIES_ASSOCIATION_PROBLEMS_IN_MALTESE_WATERS_CENTRAL_MEDITERRANEAN",null,"No Comments","NA"]
[63,{"$f":"IF(D66='Device Selector'!$B$6,'Master Database - amended'!A66,\"\")","v":""},"","Very High Frequency Cetaceans","16a","Fishtek Marine","Banana Pinger (50-120)","Automatic","https://www.fishtekmarine.com/product/deterrent-pinger-50-120/",null,"Bycatch (gillnets)","145 (±3)",148,140,50,120,"50 - 120 kHz (±2 kHz)",4000,12000,"Signal interval of 4 - 12 s. Randomised signal interval and structure.","Intermittent",300,300,"300 ms","No Data Available","No Data Available","2: Medium confidence","Y","3: High confidence","Y","No Data Available","No Data Available","Porpoise and Dolphin species","No Data Available","<500m","<500m","No Data Available","http://www.ascobans.org/sites/default/files/document/NSG4_Inf_4.3_BananaPinger.pdf\n\nhttps://infrastructure.planninginspectorate.gov.uk/wp-content/ipc/uploads/projects/EN010049/EN010049-001947-Tidal%20lagoon%20(Swansea%20Bay)%20Plc%201.pdf\n\nhttps://www.fishtekmarine.com/wp-content/uploads/2017/04/ve_UK_HP_WFA-FishTek-Banana-Pinger-Commercial-Test_Woolmar_2015.pdf\n\nhttps://www.ifm.liu.se/edu/biology/master_projects/2017/louise-friis-charlotte/\n\nhttps://www.researchgate.net/publication/303365156_RESOLVING_BOTTLENOSE_DOLPHIN-FISHERIES_ASSOCIATION_PROBLEMS_IN_MALTESE_WATERS_CENTRAL_MEDITERRANEAN",null,"No Comments","NA"]
[64,{"$f":"IF(D67='Device Selector'!$B$6,'Master Database - amended'!A67,\"\")","v":64},"","All Devices","16a","Fishtek Marine","Banana Pinger (50-120)","Automatic","https://www.fishtekmarine.com/product/deterrent-pinger-50-120/",null,"Bycatch (gillnets)","145 (±3)",148,140,50,120,"50 - 120 kHz (±2 kHz)",4000,12000,"Signal interval of 4 - 12 s. Randomised signal interval and structure.","Intermittent",300,300,"300 ms","No Data Available","No Data Available","2: Medium confidence","Y","3: High confidence","Y","No Data Available","No Data Available","Porpoise and Dolphin species","No Data Available","<500m","<500m","No Data Available","http://www.ascobans.org/sites/default/files/document/NSG4_Inf_4.3_BananaPinger.pdf\n\nhttps://infrastructure.planninginspectorate.gov.uk/wp-content/ipc/uploads/projects/EN010049/EN010049-001947-Tidal%20lagoon%20(Swansea%20Bay)%20Plc%201.pdf\n\nhttps://www.fishtekmarine.com/wp-content/uploads/2017/04/ve_UK_HP_WFA-FishTek-Banana-Pinger-Commercial-Test_Woolmar_2015.pdf\n\nhttps://www.ifm.liu.se/edu/biology/master_projects/2017/louise-friis-charlotte/\n\nhttps://www.researchgate.net/publication/303365156_RESOLVING_BOTTLENOSE_DOLPHIN-FISHERIES_ASSOCIATION_PROBLEMS_IN_MALTESE_WATERS_CENTRAL_MEDITERRANEAN",null,"No Comments","NA"]
[65,{"$f":"IF(D68='Device Selector'!$B$6,'Master Database - amended'!A68,\"\")","v":""},"","Low Frequency Cetaceans","16b","Fishtek Marine","Banana Pinger whale (3-20)","Automatic","https://www.fishtekmarine.com/deterrent-pingers/",null,"Bycatch (gillnets)","135 (±3)",138,130,3,20,"3 - 20 kHz (±2 kHz)",4000,4000,"Signal interval of 4 s.","Intermittent",300,300,"300 ms","1: Low confidence","Y","No Data Available","No Data Available","No Data Available","No Data Available","No Data Available","No Data Available","Baleen and Beaked Whales","<500m","No Data Available","No Data Available","No Data Available","No Evidence Available",null,"No Comments","NA"]
[66,{"$f":"IF(D69='Device Selector'!$B$6,'Master Database - amended'!A69,\"\")","v":66},"","All Devices","16b","Fishtek Marine","Banana Pinger whale (3-20)","Automatic","https://www.fishtekmarine.com/deterrent-pingers/",null,"Bycatch (gillnets)","135 (±3)",138,130,3,20,"3 - 20 kHz (±2 kHz)",4000,4000,"Signal interval of 4 s.","Intermittent",300,300,"300 ms","1: Low confidence","Y","No Data Available","No Data Available","No Data Available","No Data Available","No Data Available","No Data Available","Baleen and Beaked Whales","<500m","No Data Available","No Data Available","No Data Available","No Evidence Available",null,"No Comments","NA"]
[67,{"$f":"IF(D70='Device Selector'!$B$6,'Master Database - amended'!A70,\"\")","v":""},"","Very High Frequency Cetaceans","16c","Fishtek Marine","Banana Pinger porpoise (10)","Automatic","https://www.fishtekmarine.com/product/deterrent-pinger-10/",null,"Bycatch (gillnets)","132 (±3)",135,127,10,10,"10 kHz (± 2kHz)",4000,4000,"Signal interval of 4 s.","Intermittent",300,300,"300 ms","No Data Available","No Data Available","No Data Available","1: Intended for use but no evidence","3: High confidence","Y","No Data Available","No Data Available","Porpoise","No Data Available","No Data Available","<500m","No Data Available","https://swfsc.noaa.gov/uploadedFiles/Divisions/PRD/Programs/Coastal_Marine_Mammal/Barlow_Cameron_MMS19.pdf",null,"Meets acoustic characteristics as set out under US Federal Register etc.","NA"]
[68,{"$f":"IF(D71='Device Selector'!$B$6,'Master Database - amended'!A71,\"\")","v":68},"","All Devices","16c","Fishtek Marine","Banana Pinger porpoise (10)","Automatic","https://www.fishtekmarine.com/product/deterrent-pinger-10/",null,"Bycatch (gillnets)","132 (±3)",135,127,10,10,"10 kHz (± 2kHz)",4000,4000,"Signal interval of 4 s.","Intermittent",300,300,"300 ms","No Data Available","No Data Available","No Data Available","1: Intended for use but no evidence","3: High confidence","Y","No Data Available","No Data Available","Porpoise","No Data Available","No Data Available","<500m","No Data Available","https://swfsc.noaa.gov/uploadedFiles/Divisions/PRD/Programs/Coastal_Marine_Mammal/Barlow_Cameron_MMS19.pdf",null,"Meets acoustic characteristics as set out under US Federal Register etc.","NA"]
[69,{"$f":"IF(D72='Device Selector'!$B$6,'Master Database - amended'!A72,\"\")","v":""},"","High Frequency Cetaceans","16d","Fishtek Marine","Dolphin Anti-depredation pinger","Automatic","https://www.fishtekmarine.com/anti-depredation-pinger/ ",null,"Bycatch ‚fisheries depredation ‚mitigation for construction","175 (±3)",178,170,40,40,"40 kHz (± 2kHz)",4000,12000,"Signal interval of 4 - 12 s. Randomised signal interval and structure.","Intermittent",30,30,"30 ms","No Data Available","No Data Available","2: Medium confidence","Y","No Data Available","No Data Available","No Data Available","No Data Available","Dolphin and Porpoise species","No Data Available","<500m","No Data Available","No Data Available","https://www.fishtekmarine.com/wp-content/uploads/2018/07/ECS_2018.pdf",null,"No Comments","NA"]
[70,{"$f":"IF(D73='Device Selector'!$B$6,'Master Database - amended'!A73,\"\")","v":""},"","Very High Frequency Cetaceans","16d","Fishtek Marine","Dolphin Anti-depredation pinger","Automatic","https://www.fishtekmarine.com/anti-depredation-pinger/ ",null,"Bycatch ‚fisheries depredation ‚mitigation for construction","175 (±3)",178,170,40,40,"40 kHz (± 2kHz)",4000,12000,"Signal interval of 4 - 12 s. Randomised signal interval and structure.","Intermittent",30,30,"30 ms","No Data Available","No Data Available","2: Medium confidence","Y","No Data Available","No Data Available","No Data Available","No Data Available","Dolphin and Porpoise species","No Data Available","<500m","No Data Available","No Data Available","https://www.fishtekmarine.com/wp-content/uploads/2018/07/ECS_2018.pdf",null,"No Comments","NA"]
[71,{"$f":"IF(D74='Device Selector'!$B$6,'Master Database - amended'!A74,\"\")","v":71},"","All Devices","16d","Fishtek Marine","Dolphin Anti-depredation pinger","Automatic","https://www.fishtekmarine.com/anti-depredation-pinger/ ",null,"Bycatch ‚fisheries depredation ‚mitigation for construction","175 (±3)",178,170,40,40,"40 kHz (± 2kHz)",4000,12000,"Signal interval of 4 - 12 s. Randomised signal interval and structure.","Intermittent",30,30,"30 ms","No Data Available","No Data Available","2: Medium confidence","Y","No Data Available","No Data Available","No Data Available","No Data Available","Dolphin and Porpoise species","No Data Available","<500m","No Data Available","No Data Available","https://www.fishtekmarine.com/wp-content/uploads/2018/07/ECS_2018.pdf",null,"No Comments","NA"]
[72,{"$f":"IF(D75='Device Selector'!$B$6,'Master Database - amended'!A75,\"\")","v":""},"","Very High Frequency Cetaceans","17a","F3 Maritime Technology UG Ltd (Life Systems)","Porpoise PAL","Automatic","No manufacturers website available",null,"Bycatch (gillnets)",145,148,145,133,133,"133 kHz Porpoise clicks. Narrow band porpoise click train. ",8000,24000,"Random pulse interval between 8 - 24 s.","Intermittent",1000,1000,"1 s","No Data Available","No Data Available","No Data Available","No Data Available","3: High confidence","Y","No Data Available","No Data Available","Porpoise species","No Data Available","No Data Available","<500m","No Data Available","http://lifeplatform.eu/wp-content/uploads/2017/05/Flensburg_ENG.pd",null,"No Comments","NA"]
[73,{"$f":"IF(D76='Device Selector'!$B$6,'Master Database - amended'!A76,\"\")","v":73},"","All Devices","17a","F3 Maritime Technology UG Ltd (Life Systems)","Porpoise PAL","Automatic","No manufacturers website available",null,"Bycatch (gillnets)",145,148,145,133,133,"133 kHz Porpoise clicks. Narrow band porpoise click train. ",8000,24000,"Random pulse interval between 8 - 24 s.","Intermittent",1000,1000,"1 s","No Data Available","No Data Available","No Data Available","No Data Available","3: High confidence","Y","No Data Available","No Data Available","Porpoise species","No Data Available","No Data Available","<500m","No Data Available","http://lifeplatform.eu/wp-content/uploads/2017/05/Flensburg_ENG.pd",null,"No Comments","NA"]
[74,{"$f":"IF(D77='Device Selector'!$B$6,'Master Database - amended'!A77,\"\")","v":""},"","Very High Frequency Cetaceans","17b","F3 Maritime Technology UG Ltd","10 kHz PAL","Automatic","No manufacturers website available",null,"Bycatch (gillnets)",132,135,127,10,10,"10 kHz narrow band.",4000,4000,"Pulse interval of 4 s.","Intermittent",300,300,"300 ms","No Data Available","No Data Available","No Data Available","No Data Available","No Data Available","No Data Available","No Data Available","No Data Available","Marine Mammals","No Data Available","No Data Available","No Data Available","No Data Available","No Evidence Available",null,"No Comments","NA"]
[75,{"$f":"IF(D78='Device Selector'!$B$6,'Master Database - amended'!A78,\"\")","v":75},"","All Devices","17b","F3 Maritime Technology UG Ltd","10 kHz PAL","Automatic","No manufacturers website available",null,"Bycatch (gillnets)",132,135,127,10,10,"10 kHz narrow band.",4000,4000,"Pulse interval of 4 s.","Intermittent",300,300,"300 ms","No Data Available","No Data Available","No Data Available","No Data Available","No Data Available","No Data Available","No Data Available","No Data Available","Marine Mammals","No Data Available","No Data Available","No Data Available","No Data Available","No Evidence Available",null,"No Comments","NA"]
[76,{"$f":"IF(D79='Device Selector'!$B$6,'Master Database - amended'!A79,\"\")","v":""},"","Low Frequency Cetaceans","17c","F3 Maritime Technology UG Ltd","Wideband PAL","Automatic","No manufacturers website available",null,"Bycatch (gillnets)",145,148,140,20,160,"20 - 160 kHz",4000,30000,"Random pulse interval between 4 - 30 s.","Intermittent",300,300,"300 ms","No Data Available","No Data Available","No Data Available","No Data Available","No Data Available","No Data Available","No Data Available","No Data Available","Marine Mammals","No Data Available","No Data Available","No Data Available","No Data Available","No Evidence Available",null,"No Comments","NA"]
[77,{"$f":"IF(D80='Device Selector'!$B$6,'Master Database - amended'!A80,\"\")","v":""},"","High Frequency Cetaceans","17c","F3 Maritime Technology UG Ltd","Wideband PAL","Automatic","No manufacturers website available",null,"Bycatch (gillnets)",145,148,140,20,160,"20 - 160 kHz",4000,30000,"Random pulse interval between 4 - 30 s.","Intermittent",300,300,"300 ms","No Data Available","No Data Available","No Data Available","No Data Available","No Data Available","No Data Available","No Data Available","No Data Available","Marine Mammals","No Data Available","No Data Available","No Data Available","No Data Available","No Evidence Available",null,"No Comments","NA"]
[78,{"$f":"IF(D81='Device Selector'!$B$6,'Master Database - amended'!A81,\"\")","v":""},"","Very High Frequency Cetaceans","17c","F3 Maritime Technology UG Ltd","Wideband PAL","Automatic","No manufacturers website available",null,"Bycatch (gillnets)",145,148,140,20,160,"20 - 160 kHz",4000,30000,"Random pulse interval between 4 - 30 s.","Intermittent",300,300,"300 ms","No Data Available","No Data Available","No Data Available","No Data Available","No Data Available","No Data Available","No Data Available","No Data Available","Marine Mammals","No Data Available","No Data Available","No Data Available","No Data Available","No Evidence Available",null,"No Comments","NA"]
[79,{"$f":"IF(D82='Device Selector'!$B$6,'Master Database - amended'!A82,\"\")","v":""},"","Pinnipeds","17c","F3 Maritime Technology UG Ltd","Wideband PAL","Automatic","No manufacturers website available",null,"Bycatch (gillnets)",145,148,140,20,160,"20 - 160 kHz",4000,30000,"Random pulse interval between 4 - 30 s.","Intermittent",300,300,"300 ms","No Data Available","No Data Available","No Data Available","No Data Available","No Data Available","No Data Available","No Data Available","No Data Available","Marine Mammals","No Data Available","No Data Available","No Data Available","No Data Available","No Evidence Available",null,"No Comments","NA"]
[80,{"$f":"IF(D83='Device Selector'!$B$6,'Master Database - amended'!A83,\"\")","v":80},"","All Devices","17c","F3 Maritime Technology UG Ltd","Wideband PAL","Automatic","No manufacturers website available",null,"Bycatch (gillnets)",145,148,140,20,160,"20 - 160 kHz",4000,30000,"Random pulse interval between 4 - 30 s.","Intermittent",300,300,"300 ms","No Data Available","No Data Available","No Data Available","No Data Available","No Data Available","No Data Available","No Data Available","No Data Available","Marine Mammals","No Data Available","No Data Available","No Data Available","No Data Available","No Evidence Available",null,"No Comments","NA"]
[81,{"$f":"IF(D84='Device Selector'!$B$6,'Master Database - amended'!A84,\"\")","v":""},"","Low Frequency Cetaceans","17d","F3 Maritime Technology UG Ltd","Whale PAL","Automatic","http://lifeplatform.eu/wp-content/uploads/2017/05/Flensburg_ENG.pdf",null,"Bycatch (gillnets)",145,148,140,3,3,"3 kHz narrow band.",4000,4000,"Pulse interval of 4 s.","Intermittent",300,300,"300 ms","No Data Available","No Data Available","No Data Available","No Data Available","No Data Available","No Data Available","No Data Available","No Data Available","Whales","No Data Available","No Data Available","No Data Available","No Data Available","No Evidence Available",null,"No Comments","NA"]
[82,{"$f":"IF(D85='Device Selector'!$B$6,'Master Database - amended'!A85,\"\")","v":82},"","All Devices","17d","F3 Maritime Technology UG Ltd","Whale PAL","Automatic","http://lifeplatform.eu/wp-content/uploads/2017/05/Flensburg_ENG.pdf",null,"Bycatch (gillnets)",145,148,140,3,3,"3 kHz narrow band.",4000,4000,"Pulse interval of 4 s.","Intermittent",300,300,"300 ms","No Data Available","No Data Available","No Data Available","No Data Available","No Data Available","No Data Available","No Data Available","No Data Available","Whales","No Data Available","No Data Available","No Data Available","No Data Available","No Evidence Available",null,"No Comments","NA"]
[83,{"$f":"IF(D86='Device Selector'!$B$6,'Master Database - amended'!A86,\"\")","v":83},"","All Devices",18,"Loughborough University","LU - 1","No Data Available","No manufacturers website available",null,"Bycatch (gillnets)",145,148,140,40,120,"40 - 120 kHz",5000,30000,"Random pulse interval between 5 and 30 s.","Intermittent",300,300,"300 ms","No Data Available","No Data Available","No Data Available","No Data Available","3: High confidence","Y","No Data Available","No Data Available","No Evidence Available","No Data Available","No Data Available","No Data Available","No Data Available","https://www.researchgate.net/publication/266214228_The_effect_of_acoustic_alarms_on_the_by-catch_of_harbour_porpoises_in_the_Danish_North_Sea_gill_net_fishery\n\nhttps://www.researchgate.net/profile/Ronald_Kastelein/publication/40188899_The_effects_of_various_sounds_on_a_harbour_porpoise_Phocoena_phocoena/links/00b7d52b47fc7f19c1000000.pdf\n",null,"No Comments","NA"]
[84,{"$f":"IF(D87='Device Selector'!$B$6,'Master Database - amended'!A87,\"\")","v":""},"","Low Frequency Cetaceans",19,"Lofitech","Seal Scarer","Manual","http://www.google.co.uk/url?sa=t&rct=j&q=&esrc=s&source=web&cd=1&ved=0ahUKEwj81O2HxP_YAhXCC8AKHVEfCAIQFggqMAA&url=http%3A%2F%2Fwww.lofitech.no%2Fen%2Fseal-scarer.html&usg=AOvVaw3j2knhMqLfNBjF9g5v2oWS",null,"Offshore piling mitigation",191,194,190,10,20,"10 - 20 kHz. With measured fundamental frequency at 14.6 kHz with harmonics at 29.2 kHz, 43.6 kHz and 72.8 kHz (McGarry et al. 2017).","No Data Available","No Data Available","Intermittent - duration between pulses is on a random cycle.","Intermittent",500,752,"Manufacturer states the pulse length is 500 ms. However the measured pulse length is 752 ms.","2: Medium confidence","Y","No Data Available","No Data Available","3: High confidence","Y","3: High confidence","Y","Seals and odonocetes","500 - 1000m","No Data Available",">1000m","<500m","https://www.carbontrust.com/resources/reports/technology/acoustic-deterrent-devices/\n\nhttp://www.int-res.com/articles/meps_oa/m580p221.pdf\n\nhttps://www.carbontrust.com/media/675291/orjip-add-study-final-report-stage-1-phase-2.pdf\n\nhttps://www.ncbi.nlm.nih.gov/pmc/articles/PMC5541550/\n\nhttps://corporate.vattenfall.co.uk/globalassets/uk/projects/norfolk-vanguard/consultation-peir-oct-2017/peir/volume-3-appendices/chapter-12-marine-mammals/appendix-12.2-add-mitigation.pdf\n\nhttps://www.researchgate.net/publication/258246312_Far-reaching_effects_of_a_seal_scarer_on_harbour_porpoises_Phocoena_phocoena\n\nhttps://www.researchgate.net/publication/258246447_Seal_scarers_as_a_tool_to_deter_harbour_porpoises_from_offshore_construction_sites\n\nhttps://www.carbontrust.com/media/675291/orjip-add-study-final-report-stage-1-phase-2.pdf\n\nhttps://www.researchgate.net/publication/236149619_Acoustic_harassment_devices_reduce_seal_interaction_in_the_Baltic_salmon-trap_net_fishery\n\nhttps://research-repository.st-andrews.ac.uk/handle/10023/848\n\nhttps://www.ncbi.nlm.nih.gov/pubmed/20400639\n\nhttps://link.springer.com/article/10.1007/s10750-014-2035-x\n\nhttps://link.springer.com/article/10.1007/s10750-014-2152-6\n\nhttp://www.smru.st-andrews.ac.uk/documents/scotgov/MR8-1_ADD_mitigation_report_summary.pdf\n\nhttps://academic.oup.com/icesjms/article/66/5/860/664210",null,"Recommended that duration of deployment should be tailored to each project requirements. \n\nThe strong reaction to the seal scarer noted in Dahne et al. 2017 raises concern that it may surpass the reactions to the pile-driving noise itself, when operating with bubble curtains, and calls for a re-evaluation of the specifications of seal scarer sounds.\n\nORJIP review concludes that the Lofitec provides the most consistent effective deterrence ranges for both harbour seals and harbour porpoise in environments similar to those at offshore wind farm construction sites.  Recommended as is usable in current form during OWF construction but note that improvements could be made and an OWF specific model developed. The results indicate that there might be scope to reduce the ADD time below the 30 minutes applied during the construction of these OWFs.\n\nIn Brandt et al. 2012 the use of seal scarers as a mitigation tool during offshore construction seems promising.\nNevertheless, these results also highlight that its\napplication will not guarantee the safety of all\nanimals, as not all individuals will react with\navoidance reactions.\n\nIn Brandt et al. 2013, porpoises seem to be startled when the seal scarer is activated at close range, a soft start to this device should be considered so as not to cause panic reactions in harbour porpoises, which could potentially\nlead to the separation of mother−calf pairs.\n\nThe use of this ADD should result in low probabilities of animals remaining within exclusion zones of ~1 km.\n\nWhen used for mitigation there should be no delay between the end of the mitigation broadcast and the start of pile driving.","NA"]
[85,{"$f":"IF(D88='Device Selector'!$B$6,'Master Database - amended'!A88,\"\")","v":""},{"$f":"IFERROR(SMALL($B$4:$B$133,A88),\"\")","v":""},"Very High Frequency Cetaceans",19,"Lofitech","Seal Scarer","Manual","http://www.google.co.uk/url?sa=t&rct=j&q=&esrc=s&source=web&cd=1&ved=0ahUKEwj81O2HxP_YAhXCC8AKHVEfCAIQFggqMAA&url=http%3A%2F%2Fwww.lofitech.no%2Fen%2Fseal-scarer.html&usg=AOvVaw3j2knhMqLfNBjF9g5v2oWS",null,"Offshore piling mitigation",191,194,190,10,20,"10 - 20 kHz. With measured fundamental frequency at 14.6 kHz with harmonics at 29.2 kHz, 43.6 kHz and 72.8 kHz (McGarry et al. 2017).","No Data Available","No Data Available","Intermittent - duration between pulses is on a random cycle.","Intermittent",500,752,"Manufacturer states the pulse length is 500 ms. However the measured pulse length is 752 ms.","2: Medium confidence","Y","No Data Available","No Data Available","3: High confidence","Y","3: High confidence","Y","Seals and odonocetes","500 - 1000m","No Data Available",">1000m","<500m","https://www.carbontrust.com/resources/reports/technology/acoustic-deterrent-devices/\n\nhttp://www.int-res.com/articles/meps_oa/m580p221.pdf\n\nhttps://www.carbontrust.com/media/675291/orjip-add-study-final-report-stage-1-phase-2.pdf\n\nhttps://www.ncbi.nlm.nih.gov/pmc/articles/PMC5541550/\n\nhttps://corporate.vattenfall.co.uk/globalassets/uk/projects/norfolk-vanguard/consultation-peir-oct-2017/peir/volume-3-appendices/chapter-12-marine-mammals/appendix-12.2-add-mitigation.pdf\n\nhttps://www.researchgate.net/publication/258246312_Far-reaching_effects_of_a_seal_scarer_on_harbour_porpoises_Phocoena_phocoena\n\nhttps://www.researchgate.net/publication/258246447_Seal_scarers_as_a_tool_to_deter_harbour_porpoises_from_offshore_construction_sites\n\nhttps://www.carbontrust.com/media/675291/orjip-add-study-final-report-stage-1-phase-2.pdf\n\nhttps://www.researchgate.net/publication/236149619_Acoustic_harassment_devices_reduce_seal_interaction_in_the_Baltic_salmon-trap_net_fishery\n\nhttps://research-repository.st-andrews.ac.uk/handle/10023/848\n\nhttps://www.ncbi.nlm.nih.gov/pubmed/20400639\n\nhttps://link.springer.com/article/10.1007/s10750-014-2035-x\n\nhttps://link.springer.com/article/10.1007/s10750-014-2152-6\n\nhttp://www.smru.st-andrews.ac.uk/documents/scotgov/MR8-1_ADD_mitigation_report_summary.pdf\n\nhttps://academic.oup.com/icesjms/article/66/5/860/664210",null,"Recommended that duration of deployment should be tailored to each project requirements. \n\nThe strong reaction to the seal scarer noted in Dahne et al. 2017 raises concern that it may surpass the reactions to the pile-driving noise itself, when operating with bubble curtains, and calls for a re-evaluation of the specifications of seal scarer sounds.\n\nORJIP review concludes that the Lofitec provides the most consistent effective deterrence ranges for both harbour seals and harbour porpoise in environments similar to those at offshore wind farm construction sites.  Recommended as is usable in current form during OWF construction but note that improvements could be made and an OWF specific model developed. The results indicate that there might be scope to reduce the ADD time below the 30 minutes applied during the construction of these OWFs.\n\nIn Brandt et al. 2012 the use of seal scarers as a mitigation tool during offshore construction seems promising.\nNevertheless, these results also highlight that its\napplication will not guarantee the safety of all\nanimals, as not all individuals will react with\navoidance reactions.\n\nIn Brandt et al. 2013, porpoises seem to be startled when the seal scarer is activated at close range, a soft start to this device should be considered so as not to cause panic reactions in harbour porpoises, which could potentially\nlead to the separation of mother−calf pairs.\n\nThe use of this ADD should result in low probabilities of animals remaining within exclusion zones of ~1 km.\n\nWhen used for mitigation there should be no delay between the end of the mitigation broadcast and the start of pile driving.","NA"]
[86,{"$f":"IF(D89='Device Selector'!$B$6,'Master Database - amended'!A89,\"\")","v":""},"","Pinnipeds",19,"Lofitech","Seal Scarer","Manual","http://www.google.co.uk/url?sa=t&rct=j&q=&esrc=s&source=web&cd=1&ved=0ahUKEwj81O2HxP_YAhXCC8AKHVEfCAIQFggqMAA&url=http%3A%2F%2Fwww.lofitech.no%2Fen%2Fseal-scarer.html&usg=AOvVaw3j2knhMqLfNBjF9g5v2oWS",null,"Offshore piling mitigation",191,194,190,10,20,"10 - 20 kHz. With measured fundamental frequency at 14.6 kHz with harmonics at 29.2 kHz, 43.6 kHz and 72.8 kHz (McGarry et al. 2017).","No Data Available","No Data Available","Intermittent - duration between pulses is on a random cycle.","Intermittent",500,752,"Manufacturer states the pulse length is 500 ms. However the measured pulse length is 752 ms.","2: Medium confidence","Y","No Data Available","No Data Available","3: High confidence","Y","3: High confidence","Y","Seals and odonocetes","500 - 1000m","No Data Available",">1000m","<500m","https://www.carbontrust.com/resources/reports/technology/acoustic-deterrent-devices/\n\nhttp://www.int-res.com/articles/meps_oa/m580p221.pdf\n\nhttps://www.carbontrust.com/media/675291/orjip-add-study-final-report-stage-1-phase-2.pdf\n\nhttps://www.ncbi.nlm.nih.gov/pmc/articles/PMC5541550/\n\nhttps://corporate.vattenfall.co.uk/globalassets/uk/projects/norfolk-vanguard/consultation-peir-oct-2017/peir/volume-3-appendices/chapter-12-marine-mammals/appendix-12.2-add-mitigation.pdf\n\nhttps://www.researchgate.net/publication/258246312_Far-reaching_effects_of_a_seal_scarer_on_harbour_porpoises_Phocoena_phocoena\n\nhttps://www.researchgate.net/publication/258246447_Seal_scarers_as_a_tool_to_deter_harbour_porpoises_from_offshore_construction_sites\n\nhttps://www.carbontrust.com/media/675291/orjip-add-study-final-report-stage-1-phase-2.pdf\n\nhttps://www.researchgate.net/publication/236149619_Acoustic_harassment_devices_reduce_seal_interaction_in_the_Baltic_salmon-trap_net_fishery\n\nhttps://research-repository.st-andrews.ac.uk/handle/10023/848\n\nhttps://www.ncbi.nlm.nih.gov/pubmed/20400639\n\nhttps://link.springer.com/article/10.1007/s10750-014-2035-x\n\nhttps://link.springer.com/article/10.1007/s10750-014-2152-6\n\nhttp://www.smru.st-andrews.ac.uk/documents/scotgov/MR8-1_ADD_mitigation_report_summary.pdf\n\nhttps://academic.oup.com/icesjms/article/66/5/860/664210",null,"Recommended that duration of deployment should be tailored to each project requirements. \n\nThe strong reaction to the seal scarer noted in Dahne et al. 2017 raises concern that it may surpass the reactions to the pile-driving noise itself, when operating with bubble curtains, and calls for a re-evaluation of the specifications of seal scarer sounds.\n\nORJIP review concludes that the Lofitec provides the most consistent effective deterrence ranges for both harbour seals and harbour porpoise in environments similar to those at offshore wind farm construction sites.  Recommended as is usable in current form during OWF construction but note that improvements could be made and an OWF specific model developed. The results indicate that there might be scope to reduce the ADD time below the 30 minutes applied during the construction of these OWFs.\n\nIn Brandt et al. 2012 the use of seal scarers as a mitigation tool during offshore construction seems promising.\nNevertheless, these results also highlight that its\napplication will not guarantee the safety of all\nanimals, as not all individuals will react with\navoidance reactions.\n\nIn Brandt et al. 2013, porpoises seem to be startled when the seal scarer is activated at close range, a soft start to this device should be considered so as not to cause panic reactions in harbour porpoises, which could potentially\nlead to the separation of mother−calf pairs.\n\nThe use of this ADD should result in low probabilities of animals remaining within exclusion zones of ~1 km.\n\nWhen used for mitigation there should be no delay between the end of the mitigation broadcast and the start of pile driving.","NA"]
[87,{"$f":"IF(D90='Device Selector'!$B$6,'Master Database - amended'!A90,\"\")","v":87},"","All Devices",19,"Lofitech","Seal Scarer","Manual","http://www.google.co.uk/url?sa=t&rct=j&q=&esrc=s&source=web&cd=1&ved=0ahUKEwj81O2HxP_YAhXCC8AKHVEfCAIQFggqMAA&url=http%3A%2F%2Fwww.lofitech.no%2Fen%2Fseal-scarer.html&usg=AOvVaw3j2knhMqLfNBjF9g5v2oWS",null,"Offshore piling mitigation",191,194,190,10,20,"10 - 20 kHz. With measured fundamental frequency at 14.6 kHz with harmonics at 29.2 kHz, 43.6 kHz and 72.8 kHz (McGarry et al. 2017).","No Data Available","No Data Available","Intermittent - duration between pulses is on a random cycle.","Intermittent",500,752,"Manufacturer states the pulse length is 500 ms. However the measured pulse length is 752 ms.","2: Medium confidence","Y","No Data Available","No Data Available","3: High confidence","Y","3: High confidence","Y","Seals and odonocetes","500 - 1000m","No Data Available",">1000m","<500m","https://www.carbontrust.com/resources/reports/technology/acoustic-deterrent-devices/\n\nhttp://www.int-res.com/articles/meps_oa/m580p221.pdf\n\nhttps://www.carbontrust.com/media/675291/orjip-add-study-final-report-stage-1-phase-2.pdf\n\nhttps://www.ncbi.nlm.nih.gov/pmc/articles/PMC5541550/\n\nhttps://corporate.vattenfall.co.uk/globalassets/uk/projects/norfolk-vanguard/consultation-peir-oct-2017/peir/volume-3-appendices/chapter-12-marine-mammals/appendix-12.2-add-mitigation.pdf\n\nhttps://www.researchgate.net/publication/258246312_Far-reaching_effects_of_a_seal_scarer_on_harbour_porpoises_Phocoena_phocoena\n\nhttps://www.researchgate.net/publication/258246447_Seal_scarers_as_a_tool_to_deter_harbour_porpoises_from_offshore_construction_sites\n\nhttps://www.carbontrust.com/media/675291/orjip-add-study-final-report-stage-1-phase-2.pdf\n\nhttps://www.researchgate.net/publication/236149619_Acoustic_harassment_devices_reduce_seal_interaction_in_the_Baltic_salmon-trap_net_fishery\n\nhttps://research-repository.st-andrews.ac.uk/handle/10023/848\n\nhttps://www.ncbi.nlm.nih.gov/pubmed/20400639\n\nhttps://link.springer.com/article/10.1007/s10750-014-2035-x\n\nhttps://link.springer.com/article/10.1007/s10750-014-2152-6\n\nhttp://www.smru.st-andrews.ac.uk/documents/scotgov/MR8-1_ADD_mitigation_report_summary.pdf\n\nhttps://academic.oup.com/icesjms/article/66/5/860/664210",null,"Recommended that duration of deployment should be tailored to each project requirements. \n\nThe strong reaction to the seal scarer noted in Dahne et al. 2017 raises concern that it may surpass the reactions to the pile-driving noise itself, when operating with bubble curtains, and calls for a re-evaluation of the specifications of seal scarer sounds.\n\nORJIP review concludes that the Lofitec provides the most consistent effective deterrence ranges for both harbour seals and harbour porpoise in environments similar to those at offshore wind farm construction sites.  Recommended as is usable in current form during OWF construction but note that improvements could be made and an OWF specific model developed. The results indicate that there might be scope to reduce the ADD time below the 30 minutes applied during the construction of these OWFs.\n\nIn Brandt et al. 2012 the use of seal scarers as a mitigation tool during offshore construction seems promising.\nNevertheless, these results also highlight that its\napplication will not guarantee the safety of all\nanimals, as not all individuals will react with\navoidance reactions.\n\nIn Brandt et al. 2013, porpoises seem to be startled when the seal scarer is activated at close range, a soft start to this device should be considered so as not to cause panic reactions in harbour porpoises, which could potentially\nlead to the separation of mother−calf pairs.\n\nThe use of this ADD should result in low probabilities of animals remaining within exclusion zones of ~1 km.\n\nWhen used for mitigation there should be no delay between the end of the mitigation broadcast and the start of pile driving.","NA"]
[88,{"$f":"IF(D91='Device Selector'!$B$6,'Master Database - amended'!A91,\"\")","v":""},"","High Frequency Cetaceans",20,"Marexi Marine Technology","Acoustic Pinger V2.2","No Data Available","http://www.marexi.com/PDF/Pinger_V22_english.v2_P.pdf",null,"Bycatch (gillnets)",132,135,127,30,150,"Signal 1: Frequency modulated signal between 30 - 150 kHz. Signal 2: Click train at 90 kHz.",3800,4200,"Pulse interval 4 s  (± 0.2 s).","Intermittent",285,315,"300 ms  (± 15 ms)","No Data Available","No Data Available","2: Medium confidence","Y","2: Medium confidence","N","No Data Available",null,"No Evidence Available","No Data Available","No Data Available","No Data Available","No Data Available","https://www.researchgate.net/profile/Bruno_Diaz_Lopez/publication/317033696_Trial_of_acoustics_deterrents_for_prevention_of_bottlenose_dolphin_depredation_on_gillnets/links/59206858458515e3d402f65f/Trial-of-acoustics-deterrents-for-prevention-of-bottlenose-dolphin-depredation-on-gillnets.pdf",null,"No Comments","NA"]
[89,{"$f":"IF(D92='Device Selector'!$B$6,'Master Database - amended'!A92,\"\")","v":""},"","Very High Frequency Cetaceans",20,"Marexi Marine Technology","Acoustic Pinger V2.2","No Data Available","http://www.marexi.com/PDF/Pinger_V22_english.v2_P.pdf",null,"Bycatch (gillnets)",132,135,127,30,150,"Signal 1: Frequency modulated signal between 30 - 150 kHz. Signal 2: Click train at 90 kHz.",3800,4200,"Pulse interval 4 s  (± 0.2 s).","Intermittent",285,315,"300 ms  (± 15 ms)","No Data Available","No Data Available","2: Medium confidence","Y","2: Medium confidence","N","No Data Available",null,"No Evidence Available","No Data Available","No Data Available","No Data Available","No Data Available","https://www.researchgate.net/profile/Bruno_Diaz_Lopez/publication/317033696_Trial_of_acoustics_deterrents_for_prevention_of_bottlenose_dolphin_depredation_on_gillnets/links/59206858458515e3d402f65f/Trial-of-acoustics-deterrents-for-prevention-of-bottlenose-dolphin-depredation-on-gillnets.pdf",null,"No Comments","NA"]
[90,{"$f":"IF(D93='Device Selector'!$B$6,'Master Database - amended'!A93,\"\")","v":90},"","All Devices",20,"Marexi Marine Technology","Acoustic Pinger V2.2","No Data Available","http://www.marexi.com/PDF/Pinger_V22_english.v2_P.pdf",null,"Bycatch (gillnets)",132,135,127,30,150,"Signal 1: Frequency modulated signal between 30 - 150 kHz. Signal 2: Click train at 90 kHz.",3800,4200,"Pulse interval 4 s  (± 0.2 s).","Intermittent",285,315,"300 ms  (± 15 ms)","No Data Available","No Data Available","2: Medium confidence","Y","2: Medium confidence","N","No Data Available",null,"No Evidence Available","No Data Available","No Data Available","No Data Available","No Data Available","https://www.researchgate.net/profile/Bruno_Diaz_Lopez/publication/317033696_Trial_of_acoustics_deterrents_for_prevention_of_bottlenose_dolphin_depredation_on_gillnets/links/59206858458515e3d402f65f/Trial-of-acoustics-deterrents-for-prevention-of-bottlenose-dolphin-depredation-on-gillnets.pdf",null,"No Comments","NA"]
[91,{"$f":"IF(D94='Device Selector'!$B$6,'Master Database - amended'!A94,\"\")","v":""},"","High Frequency Cetaceans","21a","GenusWave Ltd","SalmonSafe","No Data Available","http://www.salmonsafe.co.uk/",null,"Aquaculture",182,185,175,0.5,22,"500 Hz - 22 kHz. The measured sound pressure level output is 180 - 182 dB re 1µPa at 1m (RMS) for signals centred at 10 kHz (Gotz & Janik 2015).","No Data Available","No Data Available","A noise pulse centred at ~1 kHz is used for deterrence of seals only (this noise pulse was within 10 dB of its maximum output between 700 Hz and 1500 Hz), while a similar pulse centred at ~10 kHz would be recommended for deterrence of both seals and odontocetes (McGarry et al. 2017).","Intermittent",200,200,"200 ms long, 2–3 octave-band noise pulses. ","3: High confidence","No Data Available","No Data Available","Y","3: High confidence","N","3: High confidence","Y","Seals and odonocetes","No Data Available","<500m","No Data Available","<500m","http://www.gov.scot/Resource/0043/00438860.pdf\n\nhttp://onlinelibrary.wiley.com/doi/10.1111/acv.12141/abstract\n\nhttps://www.carbontrust.com/media/675291/orjip-add-study-final-report-stage-1-phase-2.pdf",null,"Startle method can selectively deter seals without affecting porpoise.\n\nORJIP review concludes that this device has promising potential deterrence ranges although remains to be demonstrated. Needs commercial  development but one to watch.","NA"]
[92,{"$f":"IF(D95='Device Selector'!$B$6,'Master Database - amended'!A95,\"\")","v":""},"","Very High Frequency Cetaceans","21a","GenusWave Ltd","SalmonSafe","No Data Available","http://www.salmonsafe.co.uk/",null,"Aquaculture",182,185,175,0.5,22,"500 Hz - 22 kHz. The measured sound pressure level output is 180 - 182 dB re 1µPa at 1m (RMS) for signals centred at 10 kHz (Gotz & Janik 2015).","No Data Available","No Data Available","A noise pulse centred at ~1 kHz is used for deterrence of seals only (this noise pulse was within 10 dB of its maximum output between 700 Hz and 1500 Hz), while a similar pulse centred at ~10 kHz would be recommended for deterrence of both seals and odontocetes (McGarry et al. 2017).","Intermittent",200,200,"200 ms long, 2–3 octave-band noise pulses. ","3: High confidence","No Data Available","No Data Available","Y","3: High confidence","N","3: High confidence","Y","Seals and odonocetes","No Data Available","<500m","No Data Available","<500m","http://www.gov.scot/Resource/0043/00438860.pdf\n\nhttp://onlinelibrary.wiley.com/doi/10.1111/acv.12141/abstract\n\nhttps://www.carbontrust.com/media/675291/orjip-add-study-final-report-stage-1-phase-2.pdf",null,"Startle method can selectively deter seals without affecting porpoise.\n\nORJIP review concludes that this device has promising potential deterrence ranges although remains to be demonstrated. Needs commercial  development but one to watch.","NA"]
[93,{"$f":"IF(D96='Device Selector'!$B$6,'Master Database - amended'!A96,\"\")","v":""},"","Pinnipeds","21a","GenusWave Ltd","SalmonSafe","No Data Available","http://www.salmonsafe.co.uk/",null,"Aquaculture",182,185,175,0.5,22,"500 Hz - 22 kHz. The measured sound pressure level output is 180 - 182 dB re 1µPa at 1m (RMS) for signals centred at 10 kHz (Gotz & Janik 2015).","No Data Available","No Data Available","A noise pulse centred at ~1 kHz is used for deterrence of seals only (this noise pulse was within 10 dB of its maximum output between 700 Hz and 1500 Hz), while a similar pulse centred at ~10 kHz would be recommended for deterrence of both seals and odontocetes (McGarry et al. 2017).","Intermittent",200,200,"200 ms long, 2–3 octave-band noise pulses. ","3: High confidence","No Data Available","No Data Available","Y","3: High confidence","N","3: High confidence","Y","Seals and odonocetes","No Data Available","<500m","No Data Available","<500m","http://www.gov.scot/Resource/0043/00438860.pdf\n\nhttp://onlinelibrary.wiley.com/doi/10.1111/acv.12141/abstract\n\nhttps://www.carbontrust.com/media/675291/orjip-add-study-final-report-stage-1-phase-2.pdf",null,"Startle method can selectively deter seals without affecting porpoise.\n\nORJIP review concludes that this device has promising potential deterrence ranges although remains to be demonstrated. Needs commercial  development but one to watch.","NA"]
[94,{"$f":"IF(D97='Device Selector'!$B$6,'Master Database - amended'!A97,\"\")","v":94},"","All Devices","21a","GenusWave Ltd","SalmonSafe","No Data Available","http://www.salmonsafe.co.uk/",null,"Aquaculture",182,185,175,0.5,22,"500 Hz - 22 kHz. The measured sound pressure level output is 180 - 182 dB re 1µPa at 1m (RMS) for signals centred at 10 kHz (Gotz & Janik 2015).","No Data Available","No Data Available","A noise pulse centred at ~1 kHz is used for deterrence of seals only (this noise pulse was within 10 dB of its maximum output between 700 Hz and 1500 Hz), while a similar pulse centred at ~10 kHz would be recommended for deterrence of both seals and odontocetes (McGarry et al. 2017).","Intermittent",200,200,"200 ms long, 2–3 octave-band noise pulses. ","3: High confidence","No Data Available","No Data Available","Y","3: High confidence","N","3: High confidence","Y","Seals and odonocetes","No Data Available","<500m","No Data Available","<500m","http://www.gov.scot/Resource/0043/00438860.pdf\n\nhttp://onlinelibrary.wiley.com/doi/10.1111/acv.12141/abstract\n\nhttps://www.carbontrust.com/media/675291/orjip-add-study-final-report-stage-1-phase-2.pdf",null,"Startle method can selectively deter seals without affecting porpoise.\n\nORJIP review concludes that this device has promising potential deterrence ranges although remains to be demonstrated. Needs commercial  development but one to watch.","NA"]
[95,{"$f":"IF(D98='Device Selector'!$B$6,'Master Database - amended'!A98,\"\")","v":""},"","Pinnipeds","21b","GenusWave Ltd","FisherySafe","No Data Available","http://www.genuswave.com/",null,null,182,"-","-",0.5,1.5,"Seal signal: 0.5 - 1.5 kHz; Odontocete signal: 0.7 - 1.5 kHz","No Data Available","No Data Available",null,"Intermittent","No Data Available","No Data Available","No Data Available","3: High confidence","No Data Available","No Data Available","No Data Available","3: High confidence","Y","3: High confidence","No Data Available","Seals and odonocetes","No Data Available","<500m","No Data Available","<500m","http://www.gov.scot/Resource/0043/00438860.pdf","http://onlinelibrary.wiley.com/doi/10.1111/acv.12141/abstract"]
[96,{"$f":"IF(D99='Device Selector'!$B$6,'Master Database - amended'!A99,\"\")","v":96},"","All Devices","21b","GenusWave Ltd","FisherySafe","No Data Available","http://www.genuswave.com/",null,null,182,"-","-",0.5,1.5,"Seal signal: 0.5 - 1.5 kHz; Odontocete signal: 0.7 - 1.5 kHz","No Data Available","No Data Available",null,"Intermittent","No Data Available","No Data Available","No Data Available","3: High confidence",null,"No Data Available",null,"3: High confidence",null,"3: High confidence",null,"Seals and odonocetes","No Data Available","<500m","No Data Available","<500m","http://www.gov.scot/Resource/0043/00438860.pdf","http://onlinelibrary.wiley.com/doi/10.1111/acv.12141/abstract"]
[97,{"$f":"IF(D100='Device Selector'!$B$6,'Master Database - amended'!A100,\"\")","v":""},"","Pinnipeds","21c","GenusWave Ltd","Mitigation device, TurbineSafe, ConstructionSafe","No Data Available","http://www.genuswave.com/",null,null,185,"-","-",0.5,20,"Seal signal: 0.5 - 1.5 kHz; Odontocete signal: 5 - 20 kHz","No Data Available","No Data Available",null,"Intermittent","No Data Available","No Data Available","No Data Available","1: Low confidence",null,"2: Medium confidence",null,"3: High confidence",null,"1: Low confidence",null,"Seals and odonocetes","No Data Available","<500m",">1000m","<500m","http://www.gov.scot/Resource/0043/00438860.pdf","http://onlinelibrary.wiley.com/doi/10.1111/acv.12141/abstract"]
[98,{"$f":"IF(D101='Device Selector'!$B$6,'Master Database - amended'!A101,\"\")","v":98},"","All Devices","21c","GenusWave Ltd","Mitigation device, TurbineSafe, ConstructionSafe","No Data Available","http://www.genuswave.com/",null,null,185,"-","-",0.5,20,"Seal signal: 0.5 - 1.5 kHz; Odontocete signal: 5 - 20 kHz","No Data Available","No Data Available",null,"Intermittent","No Data Available","No Data Available","No Data Available","1: Low confidence",null,"2: Medium confidence",null,"3: High confidence",null,"1: Low confidence",null,"Seals and odonocetes","No Data Available","<500m",">1000m","<500m","http://www.gov.scot/Resource/0043/00438860.pdf","http://onlinelibrary.wiley.com/doi/10.1111/acv.12141/abstract"]
[99,{"$f":"IF(D102='Device Selector'!$B$6,'Master Database - amended'!A102,\"\")","v":""},"","Very High Frequency Cetaceans","21c","GenusWave Ltd","Mitigation device, TurbineSafe, ConstructionSafe","No Data Available","http://www.genuswave.com/",null,null,185,"-","-",0.5,20,"Seal signal: 0.5 - 1.5 kHz; Odontocete signal: 5 - 20 kHz","No Data Available","No Data Available",null,"Intermittent","No Data Available","No Data Available","No Data Available","1: Low confidence",null,"2: Medium confidence",null,"3: High confidence",null,"1: Low confidence",null,"Seals and odonocetes","No Data Available","<500m",">1000m","<500m","http://www.gov.scot/Resource/0043/00438860.pdf","http://onlinelibrary.wiley.com/doi/10.1111/acv.12141/abstract"]
[100,{"$f":"IF(D103='Device Selector'!$B$6,'Master Database - amended'!A103,\"\")","v":""},"","High Frequency Cetaceans","22a","Savewave","High Impact Saver","No Data Available","No manufacturers website available",null,"Bycatch (gillnets)",155,158,155,5,160,"5 - 30 kHz and 30 - 160 kHz wide band sweeps.",4000,16000,"Pulse interval of 4 - 16 s randomised.","Intermittent",200,900,"Pulse duration 200 - 900 ms.","No Data Available","No Data Available","3: High confidence","Y","3: High confidence","Y","No Data Available","No Data Available","Dolphins and Seals","No Data Available","No Data Available","No Data Available","No Data Available","No Evidence Available",null,"While this is good for avoiding entanglement no change in dolphin swimming direction or movement of the dolphins away from the area was detected and so it is unlikely to be of use for the mitigation of impacts from wind farm piling for bottlenose dolphins.","NA"]
[101,{"$f":"IF(D104='Device Selector'!$B$6,'Master Database - amended'!A104,\"\")","v":""},"","Very High Frequency Cetaceans","22a","Savewave","High Impact Saver","No Data Available","No manufacturers website available",null,"Bycatch (gillnets)",155,158,155,5,160,"5 - 30 kHz and 30 - 160 kHz wide band sweeps.",4000,16000,"Pulse interval of 4 - 16 s randomised.","Intermittent",200,900,"Pulse duration 200 - 900 ms.","No Data Available","No Data Available","3: High confidence","Y","3: High confidence","Y","No Data Available","No Data Available","Dolphins and Seals","No Data Available","No Data Available","No Data Available","No Data Available","No Evidence Available",null,"While this is good for avoiding entanglement no change in dolphin swimming direction or movement of the dolphins away from the area was detected and so it is unlikely to be of use for the mitigation of impacts from wind farm piling for bottlenose dolphins.","NA"]
[102,{"$f":"IF(D105='Device Selector'!$B$6,'Master Database - amended'!A105,\"\")","v":102},"","All Devices","22a","Savewave","High Impact Saver","No Data Available","No manufacturers website available",null,"Bycatch (gillnets)",155,158,155,5,160,"5 - 30 kHz and 30 - 160 kHz wide band sweeps.",4000,16000,"Pulse interval of 4 - 16 s randomised.","Intermittent",200,900,"Pulse duration 200 - 900 ms.","No Data Available","No Data Available","3: High confidence","Y","3: High confidence","Y","No Data Available","No Data Available","Dolphins and Seals","No Data Available","No Data Available","No Data Available","No Data Available","No Evidence Available",null,"While this is good for avoiding entanglement no change in dolphin swimming direction or movement of the dolphins away from the area was detected and so it is unlikely to be of use for the mitigation of impacts from wind farm piling for bottlenose dolphins.","NA"]
[103,{"$f":"IF(D106='Device Selector'!$B$6,'Master Database - amended'!A106,\"\")","v":103},"","All Devices","22d","SaveWave","OrcaSaver","No Data Available","No manufacturers website available",null,"Bycatch (gillnets)",196,199,196,6.5,6.5,"6.5 kHz","No Data Available","No Data Available","Intermittent","Intermittent",200,1000,"200ms - 1 s","No Data Available","No Data Available","No Data Available","No Data Available","No Data Available","No Data Available","No Data Available","No Data Available","Orcas","No Data Available","No Data Available","No Data Available","No Data Available","No Evidence Available",null,"No Comments","NA"]
[104,{"$f":"IF(D107='Device Selector'!$B$6,'Master Database - amended'!A107,\"\")","v":104},"","All Devices","22b","Savewave","Long Live Saver","No Data Available","No manufacturers website available",null,"Bycatch (gillnets)",155,158,151,5,60,"5 - 60 kHz wide band sweeps.",4000,16000,"Pulse interval of 4 - 16 s randomised.","Intermittent",200,400,"Pulse duration 200 - 400 ms.","No Data Available","No Data Available","No Data Available","No Data Available","No Data Available","No Data Available","No Data Available","No Data Available","No Evidence Available","No Data Available","No Data Available","No Data Available","No Data Available","No Evidence Available",null,"No Comments","NA"]
[105,{"$f":"IF(D108='Device Selector'!$B$6,'Master Database - amended'!A108,\"\")","v":105},"","All Devices","22c","SaveWave","Endurance Saver","No Data Available","No manufacturers website available",null,"Bycatch (gillnets)",140,143,136,5,90,"5 - 90 kHz wide band sweeps.",4000,16000,"Pulse interval of 4 - 30 s randomised.","Intermittent",200,400,"Pulse duration 200 - 400 ms.","No Data Available","No Data Available","No Data Available","No Data Available","No Data Available","No Data Available","No Data Available","No Data Available","No Evidence Available","No Data Available","No Data Available","No Data Available","No Data Available","No Evidence Available",null,"No Comments","NA"]
[106,{"$f":"IF(D109='Device Selector'!$B$6,'Master Database - amended'!A109,\"\")","v":""},"","Pinnipeds",23,"Gael Force","SeaGuard Seal deterrent","Manual","http://www.gaelforcemarinetechnology.com/Aquaculture-Sea/Seal-Deterrents/SeaGuard-Seal-Deterrent.aspx?lang=nb-no",null,"Aquaculture",198,201,"No Data Available",1.5,50,"A broadband spectral response at the beginning of each pulse, with detectable energy levels between 1.5 kHz to 50 kHz (Lepper et al. 2014).","No Data Available","No Data Available","Multiple and random firing patterns, where lentgh and breaks of the siring pulses can be varied.","Intermittent","No Data Available","No Data Available","Varied length and breaks of firing pulses can be varied.","No Data Available","No Data Available","No Data Available","No Data Available","No Data Available","No Data Available","1: Low confidence","Y","Seals","No Data Available","No Data Available","No Data Available","<500m","http://www.smru.st-andrews.ac.uk/documents/scotgov/MR8-1_ADD_mitigation_report_summary.pdf\n\nhttps://www.carbontrust.com/media/675291/orjip-add-study-final-report-stage-1-phase-2.pdf",null,"Note: The literature review was based on the dB Plus II as provided by Mohn Aqua. This was then superceeded by the Gael Force SeaGuard Seal Deterrent which we understand to be the same device.\n\nIn the St Andrews report, the unit measured was a 24v model which had twice the voltage of that tested by Lepper et al., (2004), which would explain the 3dB higher source level (Lepper et al., (2004) measured a sourced level of 192dB RMS for a standard 12v Airmar.). The responses observed did not suggest panic leading to a straightforward flight response; rather the seals’ behaviour appeared to represent controlled responses which often seemed to be adapted to location and circumstances allowing seals to avoid sound sources while continuing with their existing behaviour with minimal disruption.\n\nORJIP review concludes that this device is not suitable in current configuration for use during OWF construction due to limited stated range by manufacturer (40m) and therefore practicalities of deploying a suitable system to achieve adequate deterrence - however recommendation is to take forward further discussion and provide the opportunity for Mohn Aqua to provide potential alternative solutions.\n\n","NA"]
[107,{"$f":"IF(D110='Device Selector'!$B$6,'Master Database - amended'!A110,\"\")","v":107},"","All Devices",23,"Gael Force","SeaGuard Seal deterrent","Manual","http://www.gaelforcemarinetechnology.com/Aquaculture-Sea/Seal-Deterrents/SeaGuard-Seal-Deterrent.aspx?lang=nb-no",null,"Aquaculture",198,201,"No Data Available",1.5,50,"A broadband spectral response at the beginning of each pulse, with detectable energy levels between 1.5 kHz to 50 kHz (Lepper et al. 2014).","No Data Available","No Data Available","Multiple and random firing patterns, where lentgh and breaks of the siring pulses can be varied.","Intermittent","No Data Available","No Data Available","Varied length and breaks of firing pulses can be varied.","No Data Available","No Data Available","No Data Available","No Data Available","No Data Available","No Data Available","1: Low confidence","Y","Seals","No Data Available","No Data Available","No Data Available","<500m","http://www.smru.st-andrews.ac.uk/documents/scotgov/MR8-1_ADD_mitigation_report_summary.pdf\n\nhttps://www.carbontrust.com/media/675291/orjip-add-study-final-report-stage-1-phase-2.pdf",null,"Note: The literature review was based on the dB Plus II as provided by Mohn Aqua. This was then superceeded by the Gael Force SeaGuard Seal Deterrent which we understand to be the same device.\n\nIn the St Andrews report, the unit measured was a 24v model which had twice the voltage of that tested by Lepper et al., (2004), which would explain the 3dB higher source level (Lepper et al., (2004) measured a sourced level of 192dB RMS for a standard 12v Airmar.). The responses observed did not suggest panic leading to a straightforward flight response; rather the seals’ behaviour appeared to represent controlled responses which often seemed to be adapted to location and circumstances allowing seals to avoid sound sources while continuing with their existing behaviour with minimal disruption.\n\nORJIP review concludes that this device is not suitable in current configuration for use during OWF construction due to limited stated range by manufacturer (40m) and therefore practicalities of deploying a suitable system to achieve adequate deterrence - however recommendation is to take forward further discussion and provide the opportunity for Mohn Aqua to provide potential alternative solutions.\n\n","NA"]
[108,{"$f":"IF(D111='Device Selector'!$B$6,'Master Database - amended'!A111,\"\")","v":""},"","Very High Frequency Cetaceans",24,"Van Oord / SEAMARCO","Faunaguard - Porpoise Module","Manual","https://www.vanoord.com/sites/default/files/leaflet_faunaguard_0.pdf",null,"Offshore piling mitigation",172,175,172,60,150,"60 - 150 kHz",3000,10000,"Intermittent - randomised intervals varying between 3 and 10 seconds.","Intermittent",9000,18000,"The signals vary in duration between 9 and 18 s and sound at random intervals, varying between 3 and 10 s. The average duty cycle of the device is 65% (Kastelein et al. 2017).","No Data Available","No Data Available","No Data Available","No Data Available","3: High confidence","Y","No Data Available","No Data Available","Porpoise species","No Data Available","No Data Available",">1000m","No Data Available","https://www.iadc-dredging.com/ul/cms/terraetaqua/document/4/3/5/435/435/1/article-faunaguard-a-scientific-method-for-deterring-marine-fauna-terra-et-aqua-138-2.pdf\n\nhttps://www.researchgate.net/publication/316937682_Behavioral_Responses_of_a_Harbor_Porpoise_Phocoena_phocoena_to_Sounds_from_an_Acoustic_Porpoise_Deterrent",null,"ORJIP review concludes that the Faunaguard is suitable and is recommended for use during OWF construction.","NA"]
[109,{"$f":"IF(D112='Device Selector'!$B$6,'Master Database - amended'!A112,\"\")","v":109},"","All Devices",24,"Van Oord / SEAMARCO","Faunaguard - Porpoise Module","Manual","https://www.vanoord.com/sites/default/files/leaflet_faunaguard_0.pdf",null,"Offshore piling mitigation",172,175,172,60,150,"60 - 150 kHz",3000,10000,"Intermittent - randomised intervals varying between 3 and 10 seconds.","Intermittent",9000,18000,"The signals vary in duration between 9 and 18 s and sound at random intervals, varying between 3 and 10 s. The average duty cycle of the device is 65% (Kastelein et al. 2017).","No Data Available","No Data Available","No Data Available","No Data Available","3: High confidence","Y","No Data Available","No Data Available","Porpoise species","No Data Available","No Data Available",">1000m","No Data Available","https://www.iadc-dredging.com/ul/cms/terraetaqua/document/4/3/5/435/435/1/article-faunaguard-a-scientific-method-for-deterring-marine-fauna-terra-et-aqua-138-2.pdf\n\nhttps://www.researchgate.net/publication/316937682_Behavioral_Responses_of_a_Harbor_Porpoise_Phocoena_phocoena_to_Sounds_from_an_Acoustic_Porpoise_Deterrent",null,"ORJIP review concludes that the Faunaguard is suitable and is recommended for use during OWF construction.","NA"]
[110,{"$f":"IF(D113='Device Selector'!$B$6,'Master Database - amended'!A113,\"\")","v":""},"","Pinnipeds",25,"Van Oord / SEAMARCO","Faunaguard - Seal Module","Manual","https://www.vanoord.com/sites/default/files/leaflet_faunaguard_0.pdf",null,"Offshore piling mitigation",182,185,182,0.2,20,"200 Hz - 20 kHz",3000,10000,"Intermittent - randomised intervals varying between 3 and 10 seconds.","Intermittent",10000,10000,"Sequence of 16 selected signals (square, triangle, saw tooth, sweep) at 10 seconds per signal. The average duty cycle of the device is ~60% (Kastelein et al. 2017).","No Data Available","No Data Available","No Data Available","No Data Available","No Data Available","No Data Available","3: High confidence","Y","Seals","No Data Available","No Data Available","No Data Available","<500m","https://search.proquest.com/openview/c35771a2b798d0e65e04546f9680480d/1?pq-origsite=gscholar&cbl=38594",null," In most cases in the shallow North Sea, PTS in harbour seals would be prevented if they moved 100 to 200 m away from the source of pile driving sounds, and, thus, the FG-SM is considered a good mitigation device.","NA"]
[111,{"$f":"IF(D114='Device Selector'!$B$6,'Master Database - amended'!A114,\"\")","v":111},"","All Devices",25,"Van Oord / SEAMARCO","Faunaguard - Seal Module","Manual","https://www.vanoord.com/sites/default/files/leaflet_faunaguard_0.pdf",null,"Offshore piling mitigation",182,185,182,0.2,20,"200 Hz - 20 kHz",3000,10000,"Intermittent - randomised intervals varying between 3 and 10 seconds.","Intermittent",10000,10000,"Sequence of 16 selected signals (square, triangle, saw tooth, sweep) at 10 seconds per signal. The average duty cycle of the device is ~60% (Kastelein et al. 2017).","No Data Available","No Data Available","No Data Available","No Data Available","No Data Available","No Data Available","3: High confidence","Y","Seals","No Data Available","No Data Available","No Data Available","<500m","https://search.proquest.com/openview/c35771a2b798d0e65e04546f9680480d/1?pq-origsite=gscholar&cbl=38594",null," In most cases in the shallow North Sea, PTS in harbour seals would be prevented if they moved 100 to 200 m away from the source of pile driving sounds, and, thus, the FG-SM is considered a good mitigation device.","NA"]
[112,{"$f":"IF(D115='Device Selector'!$B$6,'Master Database - amended'!A115,\"\")","v":112},"","All Devices",26,"Van Oord / SEAMARCO","Faunaguard - Turtle Module","Manual","https://www.vanoord.com/sites/default/files/leaflet_faunaguard_0.pdf",null,"Offshore piling mitigation",197,200,197,0.2,1,"200 - 1 kHz",3000,10000,"Intermittent - randomised intervals varying between 3 and 10 seconds.","Intermittent",10000,10000,"Sequence of 7 selected signals (square, triangle, saw tooth, sweep) at 10 seconds per signal. The average duty cycle of the device is ~60% (Kastelein et al. 2017).","No Data Available","No Data Available","No Data Available","No Data Available","No Data Available","No Data Available","No Data Available","No Data Available","Turtles","No Data Available","No Data Available","No Data Available","No Data Available","No Evidence Available",null,"No Comments","NA"]
[113,{"$f":"IF(D116='Device Selector'!$B$6,'Master Database - amended'!A116,\"\")","v":113},"","All Devices",27,"Van Oord / SEAMARCO","Faunaguard - Fish Module","Manual","https://www.vanoord.com/sites/default/files/leaflet_faunaguard_0.pdf",null,"Offshore piling mitigation",197,200,197,0.2,1,"200 Hz - 1 kHz",3000,10000,"Intermittent - randomised intervals varying between 3 and 10 seconds.","Intermittent",10000,10000,"Sequence of 20 selected signals (square, triangle, saw tooth, sweep) at 10 seconds per signal. The average duty cycle of the device is ~60% (Kastelein et al. 2017).","No Data Available","No Data Available","No Data Available","No Data Available","No Data Available","No Data Available","No Data Available","No Data Available","Fish","No Data Available","No Data Available","No Data Available","No Data Available","No Evidence Available",null,"No Comments","NA"]
[114,{"$f":"IF(D117='Device Selector'!$B$6,'Master Database - amended'!A117,\"\")","v":""},"","High Frequency Cetaceans",28,"Seamaster","Seamaster Fish Protector","No Data Available","http://www.seamaster.com.tw/sea-master-protector.htm",null,"Bycatch (gillnets)",165,168,165,10,90,"Frequency sweep tones and harmonics 10 - 90 kHz.",15000,15000,"15 s","Intermittent",1900,1900,"1.9 s","No Data Available","No Data Available","1: Low confidence","Y","No Data Available","No Data Available","No Data Available","No Data Available","Dolphins","No Data Available","500 - 1000m","No Data Available","No Data Available","No Evidence Available",null,"No Comments","NA"]
[115,{"$f":"IF(D118='Device Selector'!$B$6,'Master Database - amended'!A118,\"\")","v":115},"","All Devices","2/","Seamaster","Seamaster Fish Protector","No Data Available","http://www.seamaster.com.tw/sea-master-protector.htm",null,"Bycatch (gillnets)",165,168,165,10,90,"Frequency sweep tones and harmonics 10 - 90 kHz.",15000,15000,"15 s","Intermittent",1900,1900,"1.9 s","No Data Available","No Data Available","1: Low confidence","Y","No Data Available","No Data Available","No Data Available","No Data Available","Dolphins","No Data Available","500 - 1000m","No Data Available","No Data Available","No Evidence Available",null,"No Comments","NA"]
[116,{"$f":"IF(D119='Device Selector'!$B$6,'Master Database - amended'!A119,\"\")","v":""},"","Pinnipeds",29,"OTAQ","SealFENCE 3/4","Automatic","https://aquaculture.otaq.com/sealfence/",null,"Aquaculture","169 (Patrol Mode) / 189 (Protect Mode)","No Data Available","No Data Available",10,10,"10 kHz","10000 (patrol mode) / 3000 (protect mode)","10000 (patrol mode) / 9000 (protect mode)","Patrol mode: 2s transmission with a fixed 10s gap between pulses. Protect mode: 3s transmission with random pulse gaps of between 3s to 9s","Intermittent","No Data Available","No Data Available","Transmission period form from a sequence of tone bursts, so overall duty cycle is 0.7% (patrol mode) / 1.3% (protect mode)","No Data Available","No Data Available","No Data Available","No Data Available","No Data Available","Y","1: Low confidence","No Data Available","Seals","Not known","Not known","Not known","Not known","No Evidence Available",null,"No Comments"]
[117,{"$f":"IF(D120='Device Selector'!$B$6,'Master Database - amended'!A120,\"\")","v":117},{"$f":"IFERROR(SMALL($B$4:$B$133,A120),\"\")","v":""},"All Devices",29,"OTAQ","SealFENCE 3/4","Automatic","https://aquaculture.otaq.com/sealfence/",null,"Aquaculture","169 (Patrol Mode) / 189 (Protect Mode)","No Data Available","No Data Available",10,10,"10 kHz","10000 (patrol mode) / 3000 (protect mode)","10000 (patrol mode) / 9000 (protect mode)","Patrol mode: 2s transmission with a fixed 10s gap between pulses. Protect mode: 3s transmission with random pulse gaps of between 3s to 9s","Intermittent","No Data Available","No Data Available","Transmission period form from a sequence of tone bursts, so overall duty cycle is 0.7% (patrol mode) / 1.3% (protect mode)","No Data Available","No Data Available","No Data Available","No Data Available","No Data Available","Y","1: Low confidence","No Data Available","Seals","Not known","Not known","Not known","Not known","No Evidence Available",null,"No Comments"]
[118,{"$f":"IF(D121='Device Selector'!$B$6,'Master Database - amended'!A121,\"\")","v":""},"","Very High Frequency Cetaceans","30a","Terecos Ltd","DSMS-4 - Programme 1 (Sequence 1)","No Data Available","No manufacturers website available",null,"Aquaculture",177,180,177,6.6,27,"Measured sound pressure level output = 177 dB re 1µPa at 1m (RMS) (± 1 dB) at 6.6 kHz (Lepper et al. 2004). No equivalent source levels of greater than 146 dB re 1µPa at 1m (RMS) at frequencies above 27 kHz (Lepper et al. 2014).","No Interval","No Interval","Repetitive five segment (16 ms duration) continuous tonal blocks forming an up and down frequency sweep (Lepper et al. 2004).","Continuous","Continuous","Continuous","Repetitive five segment (16 ms duration) continuous tonal blocks forming an up and down frequency sweep (Lepper et al. 2004).","No Data Available","No Data Available","No Data Available","No Data Available","2: Medium confidence","Y","3: High confidence","N","All species",">1000m",">1000m",">1000m",">1000m","http://www.snh.org.uk/pdfs/publications/commissioned_reports/517.pdf\n\nhttps://research-repository.st-andrews.ac.uk/handle/10023/848\n\nhttps://www.ncbi.nlm.nih.gov/pubmed/20400639",null,"Calibrated hydrophone recordings of active ADD systems suggested that there was considerable variability in the acoustic output of the transducers, and it is suggested that regular measurements should be made at farm sites to ensure that transducers are all operating as intended.","NA"]
[119,{"$f":"IF(D122='Device Selector'!$B$6,'Master Database - amended'!A122,\"\")","v":""},"","Pinnipeds","30a","Terecos Ltd","DSMS-4 - Programme 1 (Sequence 1)","No Data Available","No manufacturers website available",null,"Aquaculture",177,180,177,6.6,27,"Measured sound pressure level output = 177 dB re 1µPa at 1m (RMS) (± 1 dB) at 6.6 kHz (Lepper et al. 2004). No equivalent source levels of greater than 146 dB re 1µPa at 1m (RMS) at frequencies above 27 kHz (Lepper et al. 2014).","No Interval","No Interval","Repetitive five segment (16 ms duration) continuous tonal blocks forming an up and down frequency sweep (Lepper et al. 2004).","Continuous","Continuous","Continuous","Repetitive five segment (16 ms duration) continuous tonal blocks forming an up and down frequency sweep (Lepper et al. 2004).","No Data Available","No Data Available","No Data Available","No Data Available","2: Medium confidence","Y","3: High confidence","N","All species",">1000m",">1000m",">1000m",">1000m","http://www.snh.org.uk/pdfs/publications/commissioned_reports/517.pdf\n\nhttps://research-repository.st-andrews.ac.uk/handle/10023/848\n\nhttps://www.ncbi.nlm.nih.gov/pubmed/20400639",null,"Calibrated hydrophone recordings of active ADD systems suggested that there was considerable variability in the acoustic output of the transducers, and it is suggested that regular measurements should be made at farm sites to ensure that transducers are all operating as intended.","NA"]
[120,{"$f":"IF(D123='Device Selector'!$B$6,'Master Database - amended'!A123,\"\")","v":120},"","All Devices","30a","Terecos Ltd","DSMS-4 - Programme 1 (Sequence 1)","No Data Available","No manufacturers website available",null,"Aquaculture",177,180,177,6.6,27,"Measured sound pressure level output = 177 dB re 1µPa at 1m (RMS) (± 1 dB) at 6.6 kHz (Lepper et al. 2004). No equivalent source levels of greater than 146 dB re 1µPa at 1m (RMS) at frequencies above 27 kHz (Lepper et al. 2014).","No Interval","No Interval","Repetitive five segment (16 ms duration) continuous tonal blocks forming an up and down frequency sweep (Lepper et al. 2004).","Continuous","Continuous","Continuous","Repetitive five segment (16 ms duration) continuous tonal blocks forming an up and down frequency sweep (Lepper et al. 2004).","No Data Available","No Data Available","No Data Available","No Data Available","2: Medium confidence","Y","3: High confidence","N","All species",">1000m",">1000m",">1000m",">1000m","http://www.snh.org.uk/pdfs/publications/commissioned_reports/517.pdf\n\nhttps://research-repository.st-andrews.ac.uk/handle/10023/848\n\nhttps://www.ncbi.nlm.nih.gov/pubmed/20400639",null,"Calibrated hydrophone recordings of active ADD systems suggested that there was considerable variability in the acoustic output of the transducers, and it is suggested that regular measurements should be made at farm sites to ensure that transducers are all operating as intended.","NA"]
[121,{"$f":"IF(D124='Device Selector'!$B$6,'Master Database - amended'!A124,\"\")","v":""},"","Very High Frequency Cetaceans","30b","Terecos Ltd","DSMS-4 - Programme 2","No Data Available","No manufacturers website available",null,"Aquaculture",179,182,179,4.7,27,"Measured sound pressure level output = 179 dB re 1µPa at 1m (RMS) (± 1 dB) and 178 dB re 1µPa at 1m (RMS) (± 1 dB) at 4.7 kHz and 6.8 kHz respectively (Lepper et al. 2014). No equivalent source levels of greater than 145 dB re 1µPa at 1m (RMS) at frequencies above 27 kHz (Lepper et al. 2014).","No Interval","No Interval","Multi-component continuous tones with observed peak level frequencies of 4.7 kHz and 6.8 kHz. Both contain complex multiple frequency components with a broad energy distribution away from the peak level tonal component.","Continuous","Continuous","Continuous","Randomly timed sequence of continuous and time variant multi-component tonal blocks (Lepper et al. 2004).","No Data Available","No Data Available","No Data Available","No Data Available","2: Medium confidence","Y","3: High confidence","N","All species",">1000m",">1000m",">1000m",">1000m","http://www.snh.org.uk/pdfs/publications/commissioned_reports/517.pdf\n\nhttps://research-repository.st-andrews.ac.uk/handle/10023/848\n\nhttps://www.ncbi.nlm.nih.gov/pubmed/20400639",null,"Calibrated hydrophone recordings of active ADD systems suggested that there was considerable variability in the acoustic output of the transducers, and it is suggested that regular measurements should be made at farm sites to ensure that transducers are all operating as intended.","NA"]
[122,{"$f":"IF(D125='Device Selector'!$B$6,'Master Database - amended'!A125,\"\")","v":""},"","Pinnipeds","30b","Terecos Ltd","DSMS-4 - Programme 2","No Data Available","No manufacturers website available",null,"Aquaculture",179,182,179,4.7,27,"Measured sound pressure level output = 179 dB re 1µPa at 1m (RMS) (± 1 dB) and 178 dB re 1µPa at 1m (RMS) (± 1 dB) at 4.7 kHz and 6.8 kHz respectively (Lepper et al. 2014). No equivalent source levels of greater than 145 dB re 1µPa at 1m (RMS) at frequencies above 27 kHz (Lepper et al. 2014).","No Interval","No Interval","Multi-component continuous tones with observed peak level frequencies of 4.7 kHz and 6.8 kHz. Both contain complex multiple frequency components with a broad energy distribution away from the peak level tonal component.","Continuous","Continuous","Continuous","Randomly timed sequence of continuous and time variant multi-component tonal blocks (Lepper et al. 2004).","No Data Available","No Data Available","No Data Available","No Data Available","2: Medium confidence","Y","3: High confidence","N","All species",">1000m",">1000m",">1000m",">1000m","http://www.snh.org.uk/pdfs/publications/commissioned_reports/517.pdf\n\nhttps://research-repository.st-andrews.ac.uk/handle/10023/848\n\nhttps://www.ncbi.nlm.nih.gov/pubmed/20400639",null,"Calibrated hydrophone recordings of active ADD systems suggested that there was considerable variability in the acoustic output of the transducers, and it is suggested that regular measurements should be made at farm sites to ensure that transducers are all operating as intended.","NA"]
[123,{"$f":"IF(D126='Device Selector'!$B$6,'Master Database - amended'!A126,\"\")","v":123},"","All Devices","27b","Terecos Ltd","DSMS-4 - Programme 2","No Data Available","No manufacturers website available",null,"Aquaculture",179,182,179,4.7,27,"Measured sound pressure level output = 179 dB re 1µPa at 1m (RMS) (± 1 dB) and 178 dB re 1µPa at 1m (RMS) (± 1 dB) at 4.7 kHz and 6.8 kHz respectively (Lepper et al. 2014). No equivalent source levels of greater than 145 dB re 1µPa at 1m (RMS) at frequencies above 27 kHz (Lepper et al. 2014).","No Interval","No Interval","Multi-component continuous tones with observed peak level frequencies of 4.7 kHz and 6.8 kHz. Both contain complex multiple frequency components with a broad energy distribution away from the peak level tonal component.","Continuous","Continuous","Continuous","Randomly timed sequence of continuous and time variant multi-component tonal blocks (Lepper et al. 2004).","No Data Available","No Data Available","No Data Available","No Data Available","2: Medium confidence","Y","3: High confidence","N","All species",">1000m",">1000m",">1000m",">1000m","http://www.snh.org.uk/pdfs/publications/commissioned_reports/517.pdf\n\nhttps://research-repository.st-andrews.ac.uk/handle/10023/848\n\nhttps://www.ncbi.nlm.nih.gov/pubmed/20400639",null,"Calibrated hydrophone recordings of active ADD systems suggested that there was considerable variability in the acoustic output of the transducers, and it is suggested that regular measurements should be made at farm sites to ensure that transducers are all operating as intended.","NA"]
[124,{"$f":"IF(D127='Device Selector'!$B$6,'Master Database - amended'!A127,\"\")","v":""},"","Very High Frequency Cetaceans","30c","Terecos Ltd","DSMS-4 - Programme 3 (Sequence 2)","No Data Available","No manufacturers website available",null,"Aquaculture",178,181,178,"No Data Available","No Data Available","Measured sound pressure level output = 178 dB re 1µPa at 1m (RMS) (± 1 dB) at 4.9 kHz (Lepper et al. 2004).","No Interval","No Interval","Sequence of eight segments (8 ms duration) continuous tonal blocks forming an up and down frequency sweep combined with variable continuous multi-component tonal blocks (Lepper et al. 2004).","Continuous","Continuous","Continuous","Sequence of eight segments (8 ms duration) continuous tonal blocks forming an up and down frequency sweep combined with variable continuous multi-component tonal blocks (Lepper et al. 2004).","No Data Available","No Data Available","No Data Available","No Data Available","2: Medium confidence","Y","3: High confidence","N","All species",">1000m",">1000m",">1000m",">1000m","http://www.snh.org.uk/pdfs/publications/commissioned_reports/517.pdf\n\nhttps://research-repository.st-andrews.ac.uk/handle/10023/848\n\nhttps://www.ncbi.nlm.nih.gov/pubmed/20400639",null,"Calibrated hydrophone recordings of active ADD systems suggested that there was considerable variability in the acoustic output of the transducers, and it is suggested that regular measurements should be made at farm sites to ensure that transducers are all operating as intended.","NA"]
[125,{"$f":"IF(D128='Device Selector'!$B$6,'Master Database - amended'!A128,\"\")","v":""},"","Pinnipeds","30c","Terecos Ltd","DSMS-4 - Programme 3 (Sequence 2)","No Data Available","No manufacturers website available",null,"Aquaculture",178,181,178,"No Data Available","No Data Available","Measured sound pressure level output = 178 dB re 1µPa at 1m (RMS) (± 1 dB) at 4.9 kHz (Lepper et al. 2004).","No Interval","No Interval","Sequence of eight segments (8 ms duration) continuous tonal blocks forming an up and down frequency sweep combined with variable continuous multi-component tonal blocks (Lepper et al. 2004).","Continuous","Continuous","Continuous","Sequence of eight segments (8 ms duration) continuous tonal blocks forming an up and down frequency sweep combined with variable continuous multi-component tonal blocks (Lepper et al. 2004).","No Data Available","No Data Available","No Data Available","No Data Available","2: Medium confidence","Y","3: High confidence","N","All species",">1000m",">1000m",">1000m",">1000m","http://www.snh.org.uk/pdfs/publications/commissioned_reports/517.pdf\n\nhttps://research-repository.st-andrews.ac.uk/handle/10023/848\n\nhttps://www.ncbi.nlm.nih.gov/pubmed/20400639",null,"Calibrated hydrophone recordings of active ADD systems suggested that there was considerable variability in the acoustic output of the transducers, and it is suggested that regular measurements should be made at farm sites to ensure that transducers are all operating as intended.","NA"]
[126,{"$f":"IF(D129='Device Selector'!$B$6,'Master Database - amended'!A129,\"\")","v":126},"","All Devices","30c","Terecos Ltd","DSMS-4 - Programme 3 (Sequence 2)","No Data Available","No manufacturers website available",null,"Aquaculture",178,181,178,"No Data Available","No Data Available","Measured sound pressure level output = 178 dB re 1µPa at 1m (RMS) (± 1 dB) at 4.9 kHz (Lepper et al. 2004).","No Interval","No Interval","Sequence of eight segments (8 ms duration) continuous tonal blocks forming an up and down frequency sweep combined with variable continuous multi-component tonal blocks (Lepper et al. 2004).","Continuous","Continuous","Continuous","Sequence of eight segments (8 ms duration) continuous tonal blocks forming an up and down frequency sweep combined with variable continuous multi-component tonal blocks (Lepper et al. 2004).","No Data Available","No Data Available","No Data Available","No Data Available","2: Medium confidence","Y","3: High confidence","N","All species",">1000m",">1000m",">1000m",">1000m","http://www.snh.org.uk/pdfs/publications/commissioned_reports/517.pdf\n\nhttps://research-repository.st-andrews.ac.uk/handle/10023/848\n\nhttps://www.ncbi.nlm.nih.gov/pubmed/20400639",null,"Calibrated hydrophone recordings of active ADD systems suggested that there was considerable variability in the acoustic output of the transducers, and it is suggested that regular measurements should be made at farm sites to ensure that transducers are all operating as intended.","NA"]
[127,{"$f":"IF(D130='Device Selector'!$B$6,'Master Database - amended'!A130,\"\")","v":""},"","Very High Frequency Cetaceans","30d","Terecos Ltd","DSMS-4 - Programme 4 (Combined Sequence 1 and Sequence 2)","No Data Available","No manufacturers website available",null,"Aquaculture",179,182,179,"No Data Available","No Data Available","Combined Sequence 1 and Sequence 2 (See programme 1 and 3).","No Interval","No Interval","Randomly timed combined sequence of Seq. 1, Seq. 2 tonal blocks, continuous multi-component tonal blocks and time variant multi-component tonal blocks (Lepper et al. 2004).","Continuous","Continuous","Continuous","Randomly timed combined sequence of Seq. 1, Seq. 2 tonal blocks, continuous multi-component tonal blocks and time variant multi-component tonal blocks (Lepper et al. 2004).","No Data Available","No Data Available","No Data Available","No Data Available","2: Medium confidence","Y","3: High confidence","N","All species",">1000m",">1000m",">1000m",">1000m","http://www.snh.org.uk/pdfs/publications/commissioned_reports/517.pdf\n\nhttps://research-repository.st-andrews.ac.uk/handle/10023/848\n\nhttps://www.ncbi.nlm.nih.gov/pubmed/20400639",null,"Calibrated hydrophone recordings of active ADD systems suggested that there was considerable variability in the acoustic output of the transducers, and it is suggested that regular measurements should be made at farm sites to ensure that transducers are all operating as intended.","NA"]
[128,{"$f":"IF(D131='Device Selector'!$B$6,'Master Database - amended'!A131,\"\")","v":""},"","Pinnipeds","30d","Terecos Ltd","DSMS-4 - Programme 4 (Combined Sequence 1 and Sequence 2)","No Data Available","No manufacturers website available",null,"Aquaculture",179,182,179,"No Data Available","No Data Available","Combined Sequence 1 and Sequence 2 (See programme 1 and 3).","No Interval","No Interval","Randomly timed combined sequence of Seq. 1, Seq. 2 tonal blocks, continuous multi-component tonal blocks and time variant multi-component tonal blocks (Lepper et al. 2004).","Continuous","Continuous","Continuous","Randomly timed combined sequence of Seq. 1, Seq. 2 tonal blocks, continuous multi-component tonal blocks and time variant multi-component tonal blocks (Lepper et al. 2004).","No Data Available","No Data Available","No Data Available","No Data Available","2: Medium confidence","Y","3: High confidence","N","All species",">1000m",">1000m",">1000m",">1000m","http://www.snh.org.uk/pdfs/publications/commissioned_reports/517.pdf\n\nhttps://research-repository.st-andrews.ac.uk/handle/10023/848\n\nhttps://www.ncbi.nlm.nih.gov/pubmed/20400639",null,"Calibrated hydrophone recordings of active ADD systems suggested that there was considerable variability in the acoustic output of the transducers, and it is suggested that regular measurements should be made at farm sites to ensure that transducers are all operating as intended.","NA"]
[129,{"$f":"IF(D132='Device Selector'!$B$6,'Master Database - amended'!A132,\"\")","v":129},"","All Devices","30d","Terecos Ltd","DSMS-4 - Programme 4 (Combined Sequence 1 and Sequence 2)","No Data Available","No manufacturers website available",null,"Aquaculture",179,182,179,"No Data Available","No Data Available","Combined Sequence 1 and Sequence 2 (See programme 1 and 3).","No Interval","No Interval","Randomly timed combined sequence of Seq. 1, Seq. 2 tonal blocks, continuous multi-component tonal blocks and time variant multi-component tonal blocks (Lepper et al. 2004).","Continuous","Continuous","Continuous","Randomly timed combined sequence of Seq. 1, Seq. 2 tonal blocks, continuous multi-component tonal blocks and time variant multi-component tonal blocks (Lepper et al. 2004).","No Data Available","No Data Available","No Data Available","No Data Available","2: Medium confidence","Y","3: High confidence","N","All species",">1000m",">1000m",">1000m",">1000m","http://www.snh.org.uk/pdfs/publications/commissioned_reports/517.pdf\n\nhttps://research-repository.st-andrews.ac.uk/handle/10023/848\n\nhttps://www.ncbi.nlm.nih.gov/pubmed/20400639",null,"Calibrated hydrophone recordings of active ADD systems suggested that there was considerable variability in the acoustic output of the transducers, and it is suggested that regular measurements should be made at farm sites to ensure that transducers are all operating as intended.","NA"]
[130,{"$f":"IF(D133='Device Selector'!$B$6,'Master Database - amended'!A133,\"\")","v":130},"","All Devices",31,"Lien","L2/L3","No Data Available","No Data Available",null,"No Data Available","No Data Available","No Data Available","No Data Available","No Data Available","No Data Available","No Data Available","No Data Available","No Data Available","No Data Available","No Data Available","No Data Available","No Data Available","Intermittent with diffewrent pulse rates according to mode selected.","No Data Available","No Data Available","No Data Available","No Data Available","No Data Available","Y","1: Low confidence","No Data Available","Seals","Not known","Not known","Not known","<500m","No Evidence Available",null,"No Comments"]
[]
[]
[]
[]
[]
[null,null,null,null,null,null,null,null,null,null,null,"-","-","-"]
[null,null,null,null,null,null,null,null,null,null,null,"-","-","-"]
[null,null,null,null,null,null,null,null,null,null,null,"-","-","-"]
[null,null,null,null,null,null,null,null,null,null,null,"-","-","-"]
[null,null,null,null,null,null,null,null,null,null,null,"-","-","-"]
[null,null,null,null,null,null,null,null,null,null,null,"-","-","-"]
[null,null,null,null,null,null,null,null,null,null,null,"-","-","-"]
[null,null,null,null,null,null,null,null,null,null,null,"-","-","-"]
[null,null,null,null,null,null,null,null,null,null,null,"-","-","-"]
[null,null,null,null,null,null,null,null,null,null,null,"-","-","-"]
[null,null,null,null,null,null,null,null,null,null,null,"-","-","-"]
[null,null,null,null,null,null,null,null,null,null,null,"-","-","-"]
[null,null,null,null,null,null,null,null,null,null,null,"-","-","-"]
[null,null,null,null,null,null,null,null,null,null,null,"-","-","-"]
[null,null,null,null,null,null,null,null,null,null,null,"-","-","-"]
[null,null,null,null,null,null,null,null,null,null,null,"-","-","-"]
[null,null,null,null,null,null,null,null,null,null,null,"-","-","-"]
[null,null,null,null,null,null,null,null,null,null,null,"-","-","-"]
[null,null,null,null,null,null,null,null,null,null,null,"-","-","-"]
[null,null,null,null,null,null,null,null,null,null,null,"-","-","-"]
[null,null,null,null,null,null,null,null,null,null,null,"-","-","-"]
[null,null,null,null,null,null,null,null,null,null,null,"-","-","-"]
[null,null,null,null,null,null,null,null,null,null,null,"-","-","-"]
[null,null,null,null,null,null,null,null,null,null,null,"-","-","-"]
[null,null,null,null,null,null,null,null,null,null,null,"-","-","-"]
[null,null,null,null,null,null,null,null,null,null,null,"-","-","-"]
[null,null,null,null,null,null,null,null,null,null,null,"-","-","-"]
[null,null,null,null,null,null,null,null,null,null,null,"-","-","-"]
[null,null,null,null,null,null,null,null,null,null,null,"-","-","-"]
[null,null,null,null,null,null,null,null,null,null,null,"-","-","-"]
[null,null,null,null,null,null,null,null,null,null,null,"-","-","-"]
[null,null,null,null,null,null,null,null,null,null,null,"-","-","-"]
[null,null,null,null,null,null,null,null,null,null,null,"-","-","-"]
[null,null,null,null,null,null,null,null,null,null,null,"-","-","-"]
[null,null,null,null,null,null,null,null,null,null,null,"-","-","-"]
[null,null,null,null,null,null,null,null,null,null,null,"-","-","-"]
[null,null,null,null,null,null,null,null,null,null,null,"-","-","-"]
[null,null,null,null,null,null,null,null,null,null,null,"-","-","-"]
[null,null,null,null,null,null,null,null,null,null,null,"-","-","-"]
[null,null,null,null,null,null,null,null,null,null,null,"-","-","-"]
[null,null,null,null,null,null,null,null,null,null,null,"-","-","-"]
[null,null,null,null,null,null,null,null,null,null,null,null,null,"-"]
[null,null,null,null,null,null,null,null,null,null,null,null,null,"-"]
[null,null,null,null,null,null,null,null,null,null,null,null,null,"-"]
[null,null,null,null,null,null,null,null,null,null,null,null,null,"-"]
[null,null,null,null,null,null,null,null,null,null,null,null,null,"-"]
[null,null,null,null,null,null,null,null,null,null,null,null,null,"-"]
[null,null,null,null,null,null,null,null,null,null,null,null,null,"-"]
[null,null,null,null,null,null,null,null,null,null,null,null,null,"-"]
[null,null,null,null,null,null,null,null,null,null,null,null,null,"-"]
[null,null,null,null,null,null,null,null,null,null,null,null,null,"-"]
[null,null,null,null,null,null,null,null,null,null,null,null,null,"-"]
[null,null,null,null,null,null,null,null,null,null,null,null,null,"-"]
[null,null,null,null,null,null,null,null,null,null,null,null,null,"-"]
[null,null,null,null,null,null,null,null,null,null,null,null,null,"-"]
[null,null,null,null,null,null,null,null,null,null,null,null,null,"-"]
[null,null,null,null,null,null,null,null,null,null,null,null,null,"-"]
[null,null,null,null,null,null,null,null,null,null,null,null,null,"-"]
[null,null,null,null,null,null,null,null,null,null,null,null,null,"-"]
[null,null,null,null,null,null,null,null,null,null,null,null,null,"-"]
[null,null,null,null,null,null,null,null,null,null,null,null,null,"-"]
[null,null,null,null,null,null,null,null,null,null,null,null,null,"-"]
[null,null,null,null,null,null,null,null,null,null,null,null,null,"-"]
[null,null,null,null,null,null,null,null,null,null,null,null,null,"-"]
[null,null,null,null,null,null,null,null,null,null,null,null,null,"-"]
[null,null,null,null,null,null,null,null,null,null,null,null,null,"-"]
[null,null,null,null,null,null,null,null,null,null,null,null,null,"-"]
[null,null,null,null,null,null,null,null,null,null,null,null,null,"-"]
[null,null,null,null,null,null,null,null,null,null,null,null,null,"-"]
[null,null,null,null,null,null,null,null,null,null,null,null,null,"-"]
[null,null,null,null,null,null,null,null,null,null,null,null,null,"-"]
[null,null,null,null,null,null,null,null,null,null,null,null,null,"-"]
[null,null,null,null,null,null,null,null,null,null,null,null,null,"-"]
[null,null,null,null,null,null,null,null,null,null,null,null,null,"-"]
[null,null,null,null,null,null,null,null,null,null,null,null,null,"-"]
[null,null,null,null,null,null,null,null,null,null,null,null,null,"-"]
[null,null,null,null,null,null,null,null,null,null,null,null,null,"-"]
[null,null,null,null,null,null,null,null,null,null,null,null,null,"-"]

{"sheet":"READ ME","index":1,"n_rows":55,"n_cols":2,"rows_kept":55,"cut":false,"hidden":false,"merged":[[54,0,54,13],[21,1,22,15],[21,0,22,0],[12,1,12,15],[13,1,13,15],[14,1,14,15],[15,1,15,15],[16,1,16,15],[17,1,17,15],[18,1,18,15],[19,1,19,15],[20,1,20,15]]}
["JNCC Report No. 615: Evidence base for application of Acoustic Deterrent Devices (ADDs) as marine mammal mitigation (Version 4)"]
[]
["Acoustic Deterrent Device Selection Database - Useful Information"]
[]
["This spreadsheet is a 'live' database and the intent it for it to be updated periodically in line with additional information on the acoustic deterrents described herein, and on the basis of new technologies that become available."]
["Whilst every effort was made to ensure that the information in this database is complete, accurate and up-to-date, no guarantee is provided and JNCC shall have neither liabiloty nor responsibility to any person or entity with"]
["respect to any loss or damage arising from the use of this database. We will act on any inaccuracies that are brought to our attention and will do our best to correct them in subsequent versions of the database."]
[]
["Database Development:"]
[]
["The information gathered through the literature review and search of ADD technical specifications for the accompanying JNCC Report No:615 (McGarry et al., 2019) was used to populate the database. Below is a summary of the information within the database:"]
[]
["Field","Description"]
["Device ID","Numerical identifier for each device"]
["Manufacturer","Manufacturer"]
["Model","Mose recent name that the device is known under"]
["Control","Manual or automatic"]
["Link to website","Hyperlink to manufacturer's website or to the specific device if available"]
["Current known uses","Industry application, e.g. offshore piling mitigation, aquaculture, bycatch mitigation"]
["Acoustic characteristics","Source level, frequency, intermittency, continuous/pulsed, pulse width"]
["Evidence score","Score given to each of the ADDs based on the available literature"]
["Mitigation range","Approximate range of effectiveness broadly grouped into three categories: <500m; 500 – 1,000m; and >1,000m.  Exact ranges are not given as it is important not to place too much emphasis on effect ranges in other studies due to difference in propagation between sites."]
[]
[]
[]
[]
["How to use the Device Selector:"]
[]
["Hearing Groups"]
["- Select a hearing group via the drop down selection in cell B6. Hearing groups are based on the proposed marine mammal hearing groups as provided in Southall et al. 2019."]
["- The database will populate based on which devices are effective in deterring the selected hearing group."]
[]
["Column Filters"]
["- Once a hearing group is selected and the database has been populated, each column can be further refined via the filtered drop down selection across Row 13. "]
["- When a filter selection has been made, the database will repopulate based on the chosen selection."]
["- NOTE: In the column filter selection, the option \"(Blanks)\" is not pertinent to any device and can be ignored."]
[]
[]
["Glossary of Useful Terms and Abbreviations"]
[]
["dB","Decibels"]
["Duty Cycle","The cycle of operation of a device which operates intermittently rather than continuously."]
["Frequency","The number of times that a periodic function occurs or repeats itself in a specified time."]
["Harmonics","A wave with a frequency that is a positibe integer multiple of the frequency of the original wave, known as the fundamental frequency"]
["HF","High frequency hearing group cetacean"]
["LF","Low frequency hearing group cetacean"]
["MF","Mid frequency hearing group cetacean"]
["Pa","Pascals"]
["Pk","Peak Sound Pressure - the maximum instantaneous sound pressure during a measurement period or noise event."]
["PW","Phocid pinniped hearing group (in water)"]
["RMS","Root Mean Square - The square root of the mean value of the square of the quantity taken over a given time interval."]
["SEL","Sound Exposure Level - a measure of the total sound energy of an event normalised to one second. This allows the total acoustic energy contained in events lasting a different amount of time to be compared on a like for like basis."]
[]
["Evidence scores"]
["For each device reviewed, an evidence score is assigned to provide a level of confidence in the information available on the effects of the ADD on a certain species or species group. For example, for some devices peer-reviewed studies are available which provided a high level of confidence in the conclusions. The conclusions themselves might or might not support the effectiveness of the ADD but because the study has been published and peer-reviewed, then the supporting evidence can be assigned the highest evidence score of 3"]

{"sheet":"Device Selector","index":2,"n_rows":68,"n_cols":36,"rows_kept":68,"cut":false,"hidden":false,"merged":[[10,20,10,35],[12,33,13,33],[11,20,11,28],[12,20,12,21],[12,22,12,23],[12,24,12,25],[12,26,12,27],[12,28,13,28],[11,34,13,34],[11,35,13,35],[11,29,11,32],[5,0,6,0],[5,1,6,1],[10,7,10,19],[10,0,12,6],[11,7,12,9],[11,10,12,12],[11,13,12,19],[7,2,8,6]]}
[]
["Acoustic Deterrent Device Selection Database"]
[]
["(Select the desired hearing group from the drop down menu below)"]
[]
["Hearing Group:","All Devices",null,"Generalised Hearing Range*:",null,{"$f":"VLOOKUP(B6,'HIDDEN LISTS'!A4:B8,2,FALSE)","v":"7 Hz to 160 kHz"}]
[]
[null,null,"*Represents the generalised hearing range for the entire group as a composite (i.e. all species within the group), where individual species' hearing ranges are typically not as broad. Generalised hearing range chosen based on ~65 dB threshold from normalised composite audiogram, with the expection for lower limits for LF cetaceans (Southall et al. 2007) and PW pinniped (approximation)."]
[]
[]
["Device Details",null,null,null,null,null,null,"Device Acoustic Characteristics",null,null,null,null,null,null,null,null,null,null,null,null,"Device Efficacy"]
[null,null,null,null,null,null,null,"Source Level",null,null,"Source Frequency(s)",null,null,"Source Signal Duration & Intermittency",null,null,null,null,null,null,"Evidence Scores",null,null,null,null,null,null,null,null,"Mitigation Ranges",null,null,null,null,"Links to evidence","General comments"]
[null,null,null,null,null,null,null,null,null,null,null,null,null,null,null,null,null,null,null,null,"LF Species",null,"HF Species",null,"VHF Species",null,"Pinnipeds ",null,"List of all species for which evidence is available","LF Species","HF Species","VHF Species","Pinnipeds ","Links to evidence"]
["ID No.","Manufacturer","Model","Control (Manual / Automatic)","Manufacturers Wesbite","Manufacturers Wesbite","Current known use","rms, dB re 1 μPa re 1 m","pk, dB re 1 μPa re 1 m","SEL, dB re 1 μPa2s re 1 m (per pulse)","Lowest Frequency (kHz)","Highest Frequency (kHz)","Notes","Shortest Pulse Interval, ms","Longest Pulse Interval, ms","Notes","Continuous / Intermittent","Shortest Pulse Width, ms","Longest Pulse Width, ms","Notes","Evidence Score","Effective on Species (Y/N)","Evidence Score","Effective on Species (Y/N)","Evidence Score","Effective on species (Y/N)","Evidence Score","Effective on Species (Y/N)",null,"Range","Range","Range","Range"]
[{"$f":"IFERROR(INDEX('Master Database - amended'!$E$4:$AN$133,'Master Database - amended'!$C4,COLUMNS($A$15:$A$133)),\"\")","v":1},{"$f":"IFERROR(INDEX('Master Database - amended'!$E$4:$AN$132,'Master Database - amended'!$C4,COLUMNS($A$15:B$133)),\"\")","v":"Ace Aquatech"},{"$f":"IFERROR(INDEX('Master Database - amended'!$E$4:$AN$132,'Master Database - amended'!$C4,COLUMNS($A$15:C$133)),\"\")","v":"Ace Aquatec marine Mammal Mitigation Device (MMD) LOW (Pinnipeds and Low Frequency Cetaceans)"},{"$f":"IFERROR(INDEX('Master Database - amended'!$E$4:$AN$132,'Master Database - amended'!$C4,COLUMNS($A$15:D$133)),\"\")","v":"Automatic"},{"$f":"IFERROR(INDEX('Master Database - amended'!$E$4:$AN$132,'Master Database - amended'!$C4,COLUMNS($A$15:E$133)),\"\")","v":"http://aceaquatec.com/"},{"$f":"HYPERLINK(E15,E15)","v":"http://aceaquatec.com/"},{"$f":"IFERROR(INDEX('Master Database - amended'!$E$4:$AN$132,'Master Database - amended'!$C4,COLUMNS($A$15:G$133)),\"\")","v":"Offshore piling mitigation"},{"$f":"IFERROR(INDEX('Master Database - amended'!$E$4:$AN$132,'Master Database - amended'!$C4,COLUMNS($A$15:H$133)),\"\")","v":195},{"$f":"IFERROR(INDEX('Master Database - amended'!$E$4:$AN$132,'Master Database - amended'!$C4,COLUMNS($A$15:I$133)),\"\")","v":198},{"$f":"IFERROR(INDEX('Master Database - amended'!$E$4:$AN$132,'Master Database - amended'!$C4,COLUMNS($A$15:J$133)),\"\")","v":176},{"$f":"IFERROR(INDEX('Master Database - amended'!$E$4:$AN$132,'Master Database - amended'!$C4,COLUMNS($A$15:K$133)),\"\")","v":1},{"$f":"IFERROR(INDEX('Master Database - amended'!$E$4:$AN$132,'Master Database - amended'!$C4,COLUMNS($A$15:L$133)),\"\")","v":5},{"$f":"IFERROR(INDEX('Master Database - amended'!$E$4:$AN$132,'Master Database - amended'!$C4,COLUMNS($A$15:M$133)),\"\")","v":"1 - 5 kHz (can be restricted to 1 - 2 kHz)"},{"$f":"IFERROR(INDEX('Master Database - amended'!$E$4:$AN$132,'Master Database - amended'!$C4,COLUMNS($A$15:N$133)),\"\")","v":25000},{"$f":"IFERROR(INDEX('Master Database - amended'!$E$4:$AN$132,'Master Database - amended'!$C4,COLUMNS($A$15:O$133)),\"\")","v":300000},{"$f":"IFERROR(INDEX('Master Database - amended'!$E$4:$AN$132,'Master Database - amended'!$C4,COLUMNS($A$15:P$133)),\"\")","v":"Intermittent - duration between pulses is on a random cycle, 12 - 144 per hour selectable."},{"$f":"IFERROR(INDEX('Master Database - amended'!$E$4:$AN$132,'Master Database - amended'!$C4,COLUMNS($A$15:Q$133)),\"\")","v":"Intermittent"},{"$f":"IFERROR(INDEX('Master Database - amended'!$E$4:$AN$132,'Master Database - amended'!$C4,COLUMNS($A$15:R$133)),\"\")","v":3.3},{"$f":"IFERROR(INDEX('Master Database - amended'!$E$4:$AN$132,'Master Database - amended'!$C4,COLUMNS($A$15:S$133)),\"\")","v":14},{"$f":"IFERROR(INDEX('Master Database - amended'!$E$4:$AN$132,'Master Database - amended'!$C4,COLUMNS($A$15:T$133)),\"\")","v":"Pulse uniformly shorten from 14 ms to 3.3 ms followed by an upshift in the frequency of the tonal components and their equivalent distribution (Lepper et al. 2004)"},{"$f":"IFERROR(INDEX('Master Database - amended'!$E$4:$AN$132,'Master Database - amended'!$C4,COLUMNS($A$15:U$133)),\"\")","v":"2: Medium confidence"},{"$f":"IFERROR(INDEX('Master Database - amended'!$E$4:$AN$132,'Master Database - amended'!$C4,COLUMNS($A$15:V15)),\"\")","v":"Y"},{"$f":"IFERROR(INDEX('Master Database - amended'!$E$4:$AN$132,'Master Database - amended'!$C4,COLUMNS($A$15:W$133)),\"\")","v":"No Data Available"},{"$f":"IFERROR(INDEX('Master Database - amended'!$E$4:$AN$132,'Master Database - amended'!$C4,COLUMNS($A$15:X15)),\"\")","v":"No Data Available"},{"$f":"IFERROR(INDEX('Master Database - amended'!$E$4:$AN$132,'Master Database - amended'!$C4,COLUMNS($A$15:Y$133)),\"\")","v":"No Data Available"},{"$f":"IFERROR(INDEX('Master Database - amended'!$E$4:$AN$132,'Master Database - amended'!$C4,COLUMNS($A$15:Z15)),\"\")","v":"No Data Available"},{"$f":"IFERROR(INDEX('Master Database - amended'!$E$4:$AN$132,'Master Database - amended'!$C4,COLUMNS($A$15:AA$133)),\"\")","v":"2: Medium confidence"},{"$f":"IFERROR(INDEX('Master Database - amended'!$E$4:$AN$132,'Master Database - amended'!$C4,COLUMNS($A$15:AB15)),\"\")","v":"Y"},{"$f":"IFERROR(INDEX('Master Database - amended'!$E$4:$AN$132,'Master Database - amended'!$C4,COLUMNS($A$15:AC$133)),\"\")","v":"Pinnipeds and low frequency odontocetes"},{"$f":"IFERROR(INDEX('Master Database - amended'!$E$4:$AN$132,'Master Database - amended'!$C4,COLUMNS($A$15:AD$133)),\"\")","v":"500 - 1000m"},{"$f":"IFERROR(INDEX('Master Database - amended'!$E$4:$AN$132,'Master Database - amended'!$C4,COLUMNS($A$15:AE$133)),\"\")","v":"No Data Available"},{"$f":"IFERROR(INDEX('Master Database - amended'!$E$4:$AN$132,'Master Database - amended'!$C4,COLUMNS($A$15:AF$133)),\"\")","v":"No Data Available"},{"$f":"IFERROR(INDEX('Master Database - amended'!$E$4:$AN$132,'Master Database - amended'!$C4,COLUMNS($A$15:AG$133)),\"\")","v":"500 - 1000m"},{"$f":"IFERROR(INDEX('Master Database - amended'!$E$4:$AN$132,'Master Database - amended'!$C4,COLUMNS($A$15:AH15)),\"\")","v":"https://infrastructure.planninginspectorate.gov.uk/wp-content/ipc/uploads/projects/EN010049/EN010049-001947-Tidal%20lagoon%20(Swansea%20Bay)%20Plc%201.pdf"},"https://infrastructure.planninginspectorate.gov.uk/wp-content/ipc/uploads/projects/EN010049/EN010049-001947-Tidal%20lagoon%20(Swansea%20Bay)%20Plc%201.pdf",{"$f":"IFERROR(INDEX('Master Database - amended'!$E$4:$AN$132,'Master Database - amended'!$C4,COLUMNS($A$15:AJ$133)),\"\")","v":"ABPmer conclude that the AceAquatec MMD is recommended as an option should increased mitigation be needed at the tidal lagoon (see conclusions for use of Aquamark 100). Given the potential for wide-scale exclusion impacts on harbour porpoise, this should only be used for short periods of time when a marine mammal is recorded in a defined area in the vicinity of turbines. The use of an automated sonar system to trigger the device is a potentially useful (albeit more costly) tool. Manufacturer update: average source level within a transmission 182dB re 1uPa rms@1m; Frequency > Flex (setting 1) = 0.9-1.4kHz, Ring (setting 2) = 1-2kHz. "}]
[{"$f":"IFERROR(INDEX('Master Database - amended'!$E$4:$AN$133,'Master Database - amended'!$C5,COLUMNS($A$15:$A$133)),\"\")","v":2},{"$f":"IFERROR(INDEX('Master Database - amended'!$E$4:$AN$132,'Master Database - amended'!$C5,COLUMNS($A$15:B$133)),\"\")","v":"Ace Aquatech"},{"$f":"IFERROR(INDEX('Master Database - amended'!$E$4:$AN$132,'Master Database - amended'!$C5,COLUMNS($A$15:C$133)),\"\")","v":"Ace Aquatec marine Mammal Mitigation Device Ultra LOW frequency"},{"$f":"IFERROR(INDEX('Master Database - amended'!$E$4:$AN$132,'Master Database - amended'!$C5,COLUMNS($A$15:D$133)),\"\")","v":"Automatic"},{"$f":"IFERROR(INDEX('Master Database - amended'!$E$4:$AN$132,'Master Database - amended'!$C5,COLUMNS($A$15:E$133)),\"\")","v":"http://aceaquatec.com/"},"http://aceaquatec.com/",{"$f":"IFERROR(INDEX('Master Database - amended'!$E$4:$AN$132,'Master Database - amended'!$C5,COLUMNS($A$15:G$133)),\"\")","v":"Offshore piling mitigation"},{"$f":"IFERROR(INDEX('Master Database - amended'!$E$4:$AN$132,'Master Database - amended'!$C5,COLUMNS($A$15:H$133)),\"\")","v":184},{"$f":"IFERROR(INDEX('Master Database - amended'!$E$4:$AN$132,'Master Database - amended'!$C5,COLUMNS($A$15:I$133)),\"\")","v":187},{"$f":"IFERROR(INDEX('Master Database - amended'!$E$4:$AN$132,'Master Database - amended'!$C5,COLUMNS($A$15:J$133)),\"\")","v":"No Data Available"},{"$f":"IFERROR(INDEX('Master Database - amended'!$E$4:$AN$132,'Master Database - amended'!$C5,COLUMNS($A$15:K$133)),\"\")","v":0.02},{"$f":"IFERROR(INDEX('Master Database - amended'!$E$4:$AN$132,'Master Database - amended'!$C5,COLUMNS($A$15:L$133)),\"\")","v":0.09},{"$f":"IFERROR(INDEX('Master Database - amended'!$E$4:$AN$132,'Master Database - amended'!$C5,COLUMNS($A$15:M$133)),\"\")","v":"20 - 90 Hz"},{"$f":"IFERROR(INDEX('Master Database - amended'!$E$4:$AN$132,'Master Database - amended'!$C5,COLUMNS($A$15:N$133)),\"\")","v":"No Data Available"},{"$f":"IFERROR(INDEX('Master Database - amended'!$E$4:$AN$132,'Master Database - amended'!$C5,COLUMNS($A$15:O$133)),\"\")","v":"No Data Available"},{"$f":"IFERROR(INDEX('Master Database - amended'!$E$4:$AN$132,'Master Database - amended'!$C5,COLUMNS($A$15:P$133)),\"\")","v":"Intermittent. Duration between pulses is on a random cycle."},{"$f":"IFERROR(INDEX('Master Database - amended'!$E$4:$AN$132,'Master Database - amended'!$C5,COLUMNS($A$15:Q$133)),\"\")","v":"Intermittent"},{"$f":"IFERROR(INDEX('Master Database - amended'!$E$4:$AN$132,'Master Database - amended'!$C5,COLUMNS($A$15:R$133)),\"\")","v":3.3},{"$f":"IFERROR(INDEX('Master Database - amended'!$E$4:$AN$132,'Master Database - amended'!$C5,COLUMNS($A$15:S$133)),\"\")","v":14},{"$f":"IFERROR(INDEX('Master Database - amended'!$E$4:$AN$132,'Master Database - amended'!$C5,COLUMNS($A$15:T16)),\"\")","v":"Pulse uniformly shorten from 14 ms to 3.3 ms followed by an upshift in the frequency of the tonal components and their equivalent distribution (Lepper et al. 2004)"},{"$f":"IFERROR(INDEX('Master Database - amended'!$E$4:$AN$132,'Master Database - amended'!$C5,COLUMNS($A$15:U16)),\"\")","v":"No Data Available"},{"$f":"IFERROR(INDEX('Master Database - amended'!$E$4:$AN$132,'Master Database - amended'!$C5,COLUMNS($A$15:V16)),\"\")","v":"Y"},{"$f":"IFERROR(INDEX('Master Database - amended'!$E$4:$AN$132,'Master Database - amended'!$C5,COLUMNS($A$15:W16)),\"\")","v":"No Data Available"},{"$f":"IFERROR(INDEX('Master Database - amended'!$E$4:$AN$132,'Master Database - amended'!$C5,COLUMNS($A$15:X16)),\"\")","v":"No Data Available"},{"$f":"IFERROR(INDEX('Master Database - amended'!$E$4:$AN$132,'Master Database - amended'!$C5,COLUMNS($A$15:Y16)),\"\")","v":"No Data Available"},{"$f":"IFERROR(INDEX('Master Database - amended'!$E$4:$AN$132,'Master Database - amended'!$C5,COLUMNS($A$15:Z16)),\"\")","v":"No Data Available"},{"$f":"IFERROR(INDEX('Master Database - amended'!$E$4:$AN$132,'Master Database - amended'!$C5,COLUMNS($A$15:AA16)),\"\")","v":"No Data Available"},{"$f":"IFERROR(INDEX('Master Database - amended'!$E$4:$AN$132,'Master Database - amended'!$C5,COLUMNS($A$15:AB16)),\"\")","v":"No Data Available"},{"$f":"IFERROR(INDEX('Master Database - amended'!$E$4:$AN$132,'Master Database - amended'!$C5,COLUMNS($A$15:AC16)),\"\")","v":"Fish"},{"$f":"IFERROR(INDEX('Master Database - amended'!$E$4:$AN$132,'Master Database - amended'!$C5,COLUMNS($A$15:AD16)),\"\")","v":"<500m"},{"$f":"IFERROR(INDEX('Master Database - amended'!$E$4:$AN$132,'Master Database - amended'!$C5,COLUMNS($A$15:AE16)),\"\")","v":"No Data Available"},{"$f":"IFERROR(INDEX('Master Database - amended'!$E$4:$AN$132,'Master Database - amended'!$C5,COLUMNS($A$15:AF16)),\"\")","v":"No Data Available"},{"$f":"IFERROR(INDEX('Master Database - amended'!$E$4:$AN$132,'Master Database - amended'!$C5,COLUMNS($A$15:AG16)),\"\")","v":"No Data Available"},{"$f":"IFERROR(INDEX('Master Database - amended'!$E$4:$AN$132,'Master Database - amended'!$C5,COLUMNS($A$15:AH16)),\"\")","v":"https://infrastructure.planninginspectorate.gov.uk/wp-content/ipc/uploads/projects/EN010049/EN010049-001947-Tidal%20lagoon%20(Swansea%20Bay)%20Plc%201.pdf"},"http://www.ascobans.org/sites/default/files/document/Dawson_To-ping-or-not_ESR-2013.pdf\n\nhttps://infrastructure.planninginspectorate.gov.uk/wp-content/ipc/uploads/projects/EN010049/EN010049-001947-Tidal%20lagoon%20(Swansea%20Bay)%20Plc%201.pdf\n\nhttps://www.carbontrust.com/media/675291/orjip-add-study-final-report-stage-1-phase-2.pdf","2: Medium confidence in data for fish"]
[{"$f":"IFERROR(INDEX('Master Database - amended'!$E$4:$AN$133,'Master Database - amended'!$C6,COLUMNS($A$15:$A$133)),\"\")","v":3},{"$f":"IFERROR(INDEX('Master Database - amended'!$E$4:$AN$132,'Master Database - amended'!$C6,COLUMNS($A$15:B$133)),\"\")","v":"Ace Aquatech"},{"$f":"IFERROR(INDEX('Master Database - amended'!$E$4:$AN$132,'Master Database - amended'!$C6,COLUMNS($A$15:C$133)),\"\")","v":"Ace Aquatec marine Mammal Mitigation Device (MMD) (Mid Frequency) Pinnipeds and Cetaceans"},{"$f":"IFERROR(INDEX('Master Database - amended'!$E$4:$AN$132,'Master Database - amended'!$C6,COLUMNS($A$15:D$133)),\"\")","v":"Automatic"},{"$f":"IFERROR(INDEX('Master Database - amended'!$E$4:$AN$132,'Master Database - amended'!$C6,COLUMNS($A$15:E$133)),\"\")","v":"http://aceaquatec.com/"},"http://aceaquatec.com/",{"$f":"IFERROR(INDEX('Master Database - amended'!$E$4:$AN$132,'Master Database - amended'!$C6,COLUMNS($A$15:G$133)),\"\")","v":"Offshore piling mitigation"},{"$f":"IFERROR(INDEX('Master Database - amended'!$E$4:$AN$132,'Master Database - amended'!$C6,COLUMNS($A$15:H$133)),\"\")","v":195},{"$f":"IFERROR(INDEX('Master Database - amended'!$E$4:$AN$132,'Master Database - amended'!$C6,COLUMNS($A$15:I$133)),\"\")","v":198},{"$f":"IFERROR(INDEX('Master Database - amended'!$E$4:$AN$132,'Master Database - amended'!$C6,COLUMNS($A$15:J$133)),\"\")","v":176},{"$f":"IFERROR(INDEX('Master Database - amended'!$E$4:$AN$132,'Master Database - amended'!$C6,COLUMNS($A$15:K$133)),\"\")","v":8},{"$f":"IFERROR(INDEX('Master Database - amended'!$E$4:$AN$132,'Master Database - amended'!$C6,COLUMNS($A$15:L$133)),\"\")","v":24},{"$f":"IFERROR(INDEX('Master Database - amended'!$E$4:$AN$132,'Master Database - amended'!$C6,COLUMNS($A$15:M$133)),\"\")","v":"8 - 24 kHz"},{"$f":"IFERROR(INDEX('Master Database - amended'!$E$4:$AN$132,'Master Database - amended'!$C6,COLUMNS($A$15:N$133)),\"\")","v":"No Data Available"},{"$f":"IFERROR(INDEX('Master Database - amended'!$E$4:$AN$132,'Master Database - amended'!$C6,COLUMNS($A$15:O$133)),\"\")","v":"No Data Available"},{"$f":"IFERROR(INDEX('Master Database - amended'!$E$4:$AN$132,'Master Database - amended'!$C6,COLUMNS($A$15:P$133)),\"\")","v":"Intermittent - duration between pulses is on a random cycle."},{"$f":"IFERROR(INDEX('Master Database - amended'!$E$4:$AN$132,'Master Database - amended'!$C6,COLUMNS($A$15:Q$133)),\"\")","v":"Intermittent"},{"$f":"IFERROR(INDEX('Master Database - amended'!$E$4:$AN$132,'Master Database - amended'!$C6,COLUMNS($A$15:R$133)),\"\")","v":3.3},{"$f":"IFERROR(INDEX('Master Database - amended'!$E$4:$AN$132,'Master Database - amended'!$C6,COLUMNS($A$15:S$133)),\"\")","v":14},{"$f":"IFERROR(INDEX('Master Database - amended'!$E$4:$AN$132,'Master Database - amended'!$C6,COLUMNS($A$15:T$133)),\"\")","v":"Pulse uniformly shorten from 14 ms to 3.3 ms followed by an upshift in the frequency of the tonal components and their equivalent distribution (Lepper et al. 2004)"},{"$f":"IFERROR(INDEX('Master Database - amended'!$E$4:$AN$132,'Master Database - amended'!$C6,COLUMNS($A$15:U$133)),\"\")","v":"No Data Available"},{"$f":"IFERROR(INDEX('Master Database - amended'!$E$4:$AN$132,'Master Database - amended'!$C6,COLUMNS($A$15:V17)),\"\")","v":"No Data Available"},{"$f":"IFERROR(INDEX('Master Database - amended'!$E$4:$AN$132,'Master Database - amended'!$C6,COLUMNS($A$15:W$133)),\"\")","v":"1: Low confidence"},{"$f":"IFERROR(INDEX('Master Database - amended'!$E$4:$AN$132,'Master Database - amended'!$C6,COLUMNS($A$15:X17)),\"\")","v":"Y"},{"$f":"IFERROR(INDEX('Master Database - amended'!$E$4:$AN$132,'Master Database - amended'!$C6,COLUMNS($A$15:Y$133)),\"\")","v":"No Data Available"},{"$f":"IFERROR(INDEX('Master Database - amended'!$E$4:$AN$132,'Master Database - amended'!$C6,COLUMNS($A$15:Z17)),\"\")","v":"No Data Available"},{"$f":"IFERROR(INDEX('Master Database - amended'!$E$4:$AN$132,'Master Database - amended'!$C6,COLUMNS($A$15:AA$133)),\"\")","v":"No Data Available"},{"$f":"IFERROR(INDEX('Master Database - amended'!$E$4:$AN$132,'Master Database - amended'!$C6,COLUMNS($A$15:AB17)),\"\")","v":"No Data Available"},{"$f":"IFERROR(INDEX('Master Database - amended'!$E$4:$AN$132,'Master Database - amended'!$C6,COLUMNS($A$15:AC$133)),\"\")","v":"Pinnipeds and mid-frequency odontoces"},{"$f":"IFERROR(INDEX('Master Database - amended'!$E$4:$AN$132,'Master Database - amended'!$C6,COLUMNS($A$15:AD$133)),\"\")","v":"No Data Available"},{"$f":"IFERROR(INDEX('Master Database - amended'!$E$4:$AN$132,'Master Database - amended'!$C6,COLUMNS($A$15:AE$133)),\"\")","v":"500 - 1000m"},{"$f":"IFERROR(INDEX('Master Database - amended'!$E$4:$AN$132,'Master Database - amended'!$C6,COLUMNS($A$15:AF$133)),\"\")","v":"No Data Available"},{"$f":"IFERROR(INDEX('Master Database - amended'!$E$4:$AN$132,'Master Database - amended'!$C6,COLUMNS($A$15:AG$133)),\"\")","v":"No Data Available"},{"$f":"IFERROR(INDEX('Master Database - amended'!$E$4:$AN$132,'Master Database - amended'!$C6,COLUMNS($A$15:AH17)),\"\")","v":"https://infrastructure.planninginspectorate.gov.uk/wp-content/ipc/uploads/projects/EN010049/EN010049-001947-Tidal%20lagoon%20(Swansea%20Bay)%20Plc%201.pdf"},"https://stecf.jrc.ec.europa.eu/documents/43805/44956/Trials+pinger+spacing+DK+2007.pdf\n\nhttps://www.sciencedirect.com/science/article/pii/S0165783607003669\n\nhttp://bycatch.org/articles/can-acoustic-deterrent-devices-reduce-catch-cornish-inshore-gillnet-fishery\n\nhttps://www.researchgate.net/publication/286890618_An_investigation_of_acoustic_deterrent_devices_to_reduce_cetacean_bycatch_in_an_inshore_set_net_fishery\n\nhttp://www.ascobans.org/sites/default/files/document/Dawson_To-ping-or-not_ESR-2013.pdf\n\nhttps://infrastructure.planninginspectorate.gov.uk/wp-content/ipc/uploads/projects/EN010049/EN010049-001947-Tidal%20lagoon%20(Swansea%20Bay)%20Plc%201.pdf",{"$f":"IFERROR(INDEX('Master Database - amended'!$E$4:$AN$132,'Master Database - amended'!$C6,COLUMNS($A$15:AJ$133)),\"\")","v":"ABPmer conclude that the AceAquatec MMD is recommended as an option should increased mitigation be needed at the tidal lagoon (see conclusions for use of Aquamark 100). Given the potential for wide-scale exclusion impacts on harbour porpoise, this should only be used for short periods of time when a marine mammal is recorded in a defined area in the vicinity of turbines. The use of an automated sonar system to trigger the device is a potentially useful (albeit more costly) tool. Manufacturer update: average source level within a transmission 188dB re 1uPa rms@1m; Frequency = 8-24kHz"}]
[{"$f":"IFERROR(INDEX('Master Database - amended'!$E$4:$AN$133,'Master Database - amended'!$C7,COLUMNS($A$15:$A$133)),\"\")","v":4},{"$f":"IFERROR(INDEX('Master Database - amended'!$E$4:$AN$132,'Master Database - amended'!$C7,COLUMNS($A$15:B$133)),\"\")","v":"Ace Aquatech"},{"$f":"IFERROR(INDEX('Master Database - amended'!$E$4:$AN$132,'Master Database - amended'!$C7,COLUMNS($A$15:C$133)),\"\")","v":"Marine Mammal Mitigation (MMM) Device (HF)"},{"$f":"IFERROR(INDEX('Master Database - amended'!$E$4:$AN$132,'Master Database - amended'!$C7,COLUMNS($A$15:D$133)),\"\")","v":"Automatic"},{"$f":"IFERROR(INDEX('Master Database - amended'!$E$4:$AN$132,'Master Database - amended'!$C7,COLUMNS($A$15:E$133)),\"\")","v":"http://aceaquatec.com/"},"http://aceaquatec.com/",{"$f":"IFERROR(INDEX('Master Database - amended'!$E$4:$AN$132,'Master Database - amended'!$C7,COLUMNS($A$15:G$133)),\"\")","v":"Offshore piling mitigation"},{"$f":"IFERROR(INDEX('Master Database - amended'!$E$4:$AN$132,'Master Database - amended'!$C7,COLUMNS($A$15:H$133)),\"\")","v":184},{"$f":"IFERROR(INDEX('Master Database - amended'!$E$4:$AN$132,'Master Database - amended'!$C7,COLUMNS($A$15:I$133)),\"\")","v":187},{"$f":"IFERROR(INDEX('Master Database - amended'!$E$4:$AN$132,'Master Database - amended'!$C7,COLUMNS($A$15:J$133)),\"\")","v":165},{"$f":"IFERROR(INDEX('Master Database - amended'!$E$4:$AN$132,'Master Database - amended'!$C7,COLUMNS($A$15:K$133)),\"\")","v":20},{"$f":"IFERROR(INDEX('Master Database - amended'!$E$4:$AN$132,'Master Database - amended'!$C7,COLUMNS($A$15:L$133)),\"\")","v":40},{"$f":"IFERROR(INDEX('Master Database - amended'!$E$4:$AN$132,'Master Database - amended'!$C7,COLUMNS($A$15:M$133)),\"\")","v":"20 - 40 kHz"},{"$f":"IFERROR(INDEX('Master Database - amended'!$E$4:$AN$132,'Master Database - amended'!$C7,COLUMNS($A$15:N$133)),\"\")","v":"No Data Available"},{"$f":"IFERROR(INDEX('Master Database - amended'!$E$4:$AN$132,'Master Database - amended'!$C7,COLUMNS($A$15:O$133)),\"\")","v":"No Data Available"},{"$f":"IFERROR(INDEX('Master Database - amended'!$E$4:$AN$132,'Master Database - amended'!$C7,COLUMNS($A$15:P$133)),\"\")","v":"Intermittent - duration between pulses is on a random cycle."},{"$f":"IFERROR(INDEX('Master Database - amended'!$E$4:$AN$132,'Master Database - amended'!$C7,COLUMNS($A$15:Q$133)),\"\")","v":"Intermittent"},{"$f":"IFERROR(INDEX('Master Database - amended'!$E$4:$AN$132,'Master Database - amended'!$C7,COLUMNS($A$15:R$133)),\"\")","v":3.3},{"$f":"IFERROR(INDEX('Master Database - amended'!$E$4:$AN$132,'Master Database - amended'!$C7,COLUMNS($A$15:S$133)),\"\")","v":14},{"$f":"IFERROR(INDEX('Master Database - amended'!$E$4:$AN$132,'Master Database - amended'!$C7,COLUMNS($A$15:T$133)),\"\")","v":"Pulse uniformly shorten from 14 ms to 3.3 ms followed by an upshift in the frequency of the tonal components and their equivalent distribution (Lepper et al. 2004)"},{"$f":"IFERROR(INDEX('Master Database - amended'!$E$4:$AN$132,'Master Database - amended'!$C7,COLUMNS($A$15:U$133)),\"\")","v":"No Data Available"},{"$f":"IFERROR(INDEX('Master Database - amended'!$E$4:$AN$132,'Master Database - amended'!$C7,COLUMNS($A$15:V18)),\"\")","v":"No Data Available"},{"$f":"IFERROR(INDEX('Master Database - amended'!$E$4:$AN$132,'Master Database - amended'!$C7,COLUMNS($A$15:W$133)),\"\")","v":"No Data Available"},{"$f":"IFERROR(INDEX('Master Database - amended'!$E$4:$AN$132,'Master Database - amended'!$C7,COLUMNS($A$15:X18)),\"\")","v":"No Data Available"},{"$f":"IFERROR(INDEX('Master Database - amended'!$E$4:$AN$132,'Master Database - amended'!$C7,COLUMNS($A$15:Y$133)),\"\")","v":"2: Medium confidence"},{"$f":"IFERROR(INDEX('Master Database - amended'!$E$4:$AN$132,'Master Database - amended'!$C7,COLUMNS($A$15:Z18)),\"\")","v":"Y"},{"$f":"IFERROR(INDEX('Master Database - amended'!$E$4:$AN$132,'Master Database - amended'!$C7,COLUMNS($A$15:AA$133)),\"\")","v":"2: Medium confidence"},{"$f":"IFERROR(INDEX('Master Database - amended'!$E$4:$AN$132,'Master Database - amended'!$C7,COLUMNS($A$15:AB18)),\"\")","v":"Y"},{"$f":"IFERROR(INDEX('Master Database - amended'!$E$4:$AN$132,'Master Database - amended'!$C7,COLUMNS($A$15:AC$133)),\"\")","v":"Pinnipeds and high-frequency odontoces"},{"$f":"IFERROR(INDEX('Master Database - amended'!$E$4:$AN$132,'Master Database - amended'!$C7,COLUMNS($A$15:AD$133)),\"\")","v":"No Data Available"},{"$f":"IFERROR(INDEX('Master Database - amended'!$E$4:$AN$132,'Master Database - amended'!$C7,COLUMNS($A$15:AE$133)),\"\")","v":"No Data Available"},{"$f":"IFERROR(INDEX('Master Database - amended'!$E$4:$AN$132,'Master Database - amended'!$C7,COLUMNS($A$15:AF$133)),\"\")","v":">1000m"},{"$f":"IFERROR(INDEX('Master Database - amended'!$E$4:$AN$132,'Master Database - amended'!$C7,COLUMNS($A$15:AG$133)),\"\")","v":">1000m"},{"$f":"IFERROR(INDEX('Master Database - amended'!$E$4:$AN$132,'Master Database - amended'!$C7,COLUMNS($A$15:AH18)),\"\")","v":"https://infrastructure.planninginspectorate.gov.uk/wp-content/ipc/uploads/projects/EN010049/EN010049-001947-Tidal%20lagoon%20(Swansea%20Bay)%20Plc%201.pdf"},"http://www.ascobans.org/sites/default/files/document/Dawson_To-ping-or-not_ESR-2013.pdf",{"$f":"IFERROR(INDEX('Master Database - amended'!$E$4:$AN$132,'Master Database - amended'!$C7,COLUMNS($A$15:AJ$133)),\"\")","v":"ABPmer conclude that the AceAquatec MMD is recommended as an option should increased mitigation be needed at the tidal lagoon (see conclusions for use of Aquamark 100). Given the potential for wide-scale exclusion impacts on harbour porpoise, this should only be used for short periods of time when a marine mammal is recorded in a defined area in the vicinity of turbines. The use of an automated sonar system to trigger the device is a potentially useful (albeit more costly) tool. Manufacturer update: average source level within a transmission 180dB re 1uPa rms@1m; Frequency = 20-70kHz"}]
[{"$f":"IFERROR(INDEX('Master Database - amended'!$E$4:$AN$133,'Master Database - amended'!$C8,COLUMNS($A$15:$A$133)),\"\")","v":5},{"$f":"IFERROR(INDEX('Master Database - amended'!$E$4:$AN$132,'Master Database - amended'!$C8,COLUMNS($A$15:B$133)),\"\")","v":"Ace Aquatech"},{"$f":"IFERROR(INDEX('Master Database - amended'!$E$4:$AN$132,'Master Database - amended'!$C8,COLUMNS($A$15:C$133)),\"\")","v":"Universal Scrammer (US2)"},{"$f":"IFERROR(INDEX('Master Database - amended'!$E$4:$AN$132,'Master Database - amended'!$C8,COLUMNS($A$15:D$133)),\"\")","v":"Automatic"},{"$f":"IFERROR(INDEX('Master Database - amended'!$E$4:$AN$132,'Master Database - amended'!$C8,COLUMNS($A$15:E$133)),\"\")","v":"http://aceaquatec.com/products/predator-control/"},{"$f":"HYPERLINK(E19,E19)","v":"http://aceaquatec.com/products/predator-control/"},{"$f":"IFERROR(INDEX('Master Database - amended'!$E$4:$AN$132,'Master Database - amended'!$C8,COLUMNS($A$15:G$133)),\"\")","v":"Aquaculture"},{"$f":"IFERROR(INDEX('Master Database - amended'!$E$4:$AN$132,'Master Database - amended'!$C8,COLUMNS($A$15:H$133)),\"\")","v":194},{"$f":"IFERROR(INDEX('Master Database - amended'!$E$4:$AN$132,'Master Database - amended'!$C8,COLUMNS($A$15:I$133)),\"\")","v":197},{"$f":"IFERROR(INDEX('Master Database - amended'!$E$4:$AN$132,'Master Database - amended'!$C8,COLUMNS($A$15:J$133)),\"\")","v":"No Data Available"},{"$f":"IFERROR(INDEX('Master Database - amended'!$E$4:$AN$132,'Master Database - amended'!$C8,COLUMNS($A$15:K$133)),\"\")","v":8},{"$f":"IFERROR(INDEX('Master Database - amended'!$E$4:$AN$132,'Master Database - amended'!$C8,COLUMNS($A$15:L$133)),\"\")","v":30},{"$f":"IFERROR(INDEX('Master Database - amended'!$E$4:$AN$132,'Master Database - amended'!$C8,COLUMNS($A$15:M$133)),\"\")","v":"8 - 30 kHz"},{"$f":"IFERROR(INDEX('Master Database - amended'!$E$4:$AN$132,'Master Database - amended'!$C8,COLUMNS($A$15:N$133)),\"\")","v":20},{"$f":"IFERROR(INDEX('Master Database - amended'!$E$4:$AN$132,'Master Database - amended'!$C8,COLUMNS($A$15:O$133)),\"\")","v":20},{"$f":"IFERROR(INDEX('Master Database - amended'!$E$4:$AN$132,'Master Database - amended'!$C8,COLUMNS($A$15:P$133)),\"\")","v":"Intermittent"},{"$f":"IFERROR(INDEX('Master Database - amended'!$E$4:$AN$132,'Master Database - amended'!$C8,COLUMNS($A$15:Q$133)),\"\")","v":"Intermittent"},{"$f":"IFERROR(INDEX('Master Database - amended'!$E$4:$AN$132,'Master Database - amended'!$C8,COLUMNS($A$15:R$133)),\"\")","v":"No Data Available"},{"$f":"IFERROR(INDEX('Master Database - amended'!$E$4:$AN$132,'Master Database - amended'!$C8,COLUMNS($A$15:S$133)),\"\")","v":"No Data Available"},{"$f":"IFERROR(INDEX('Master Database - amended'!$E$4:$AN$132,'Master Database - amended'!$C8,COLUMNS($A$15:T$133)),\"\")","v":"Transmission duration of 20s (double scram of 40s and a pulse duration of 20ms)"},{"$f":"IFERROR(INDEX('Master Database - amended'!$E$4:$AN$132,'Master Database - amended'!$C8,COLUMNS($A$15:U$133)),\"\")","v":"No Data Available"},{"$f":"IFERROR(INDEX('Master Database - amended'!$E$4:$AN$132,'Master Database - amended'!$C8,COLUMNS($A$15:V68)),\"\")","v":"No Data Available"},{"$f":"IFERROR(INDEX('Master Database - amended'!$E$4:$AN$132,'Master Database - amended'!$C8,COLUMNS($A$15:W$133)),\"\")","v":"No Data Available"},{"$f":"IFERROR(INDEX('Master Database - amended'!$E$4:$AN$132,'Master Database - amended'!$C8,COLUMNS($A$15:X68)),\"\")","v":"No Data Available"},{"$f":"IFERROR(INDEX('Master Database - amended'!$E$4:$AN$132,'Master Database - amended'!$C8,COLUMNS($A$15:Y$133)),\"\")","v":"No Data Available"},{"$f":"IFERROR(INDEX('Master Database - amended'!$E$4:$AN$132,'Master Database - amended'!$C8,COLUMNS($A$15:Z68)),\"\")","v":"No Data Available"},{"$f":"IFERROR(INDEX('Master Database - amended'!$E$4:$AN$132,'Master Database - amended'!$C8,COLUMNS($A$15:AA$133)),\"\")","v":"No Data Available"},{"$f":"IFERROR(INDEX('Master Database - amended'!$E$4:$AN$132,'Master Database - amended'!$C8,COLUMNS($A$15:AB68)),\"\")","v":"No Data Available"},{"$f":"IFERROR(INDEX('Master Database - amended'!$E$4:$AN$132,'Master Database - amended'!$C8,COLUMNS($A$15:AC$133)),\"\")","v":"Seals"},{"$f":"IFERROR(INDEX('Master Database - amended'!$E$4:$AN$132,'Master Database - amended'!$C8,COLUMNS($A$15:AD$133)),\"\")","v":"No Data Available"},{"$f":"IFERROR(INDEX('Master Database - amended'!$E$4:$AN$132,'Master Database - amended'!$C8,COLUMNS($A$15:AE$133)),\"\")","v":"No Data Available"},{"$f":"IFERROR(INDEX('Master Database - amended'!$E$4:$AN$132,'Master Database - amended'!$C8,COLUMNS($A$15:AF$133)),\"\")","v":"No Data Available"},{"$f":"IFERROR(INDEX('Master Database - amended'!$E$4:$AN$132,'Master Database - amended'!$C8,COLUMNS($A$15:AG$133)),\"\")","v":"No Data Available"},{"$f":"IFERROR(INDEX('Master Database - amended'!$E$4:$AN$132,'Master Database - amended'!$C8,COLUMNS($A$15:AH68)),\"\")","v":"No Evidence Available"},"http://www.int-res.com/articles/esr2008/5/n005p301.pdf",{"$f":"IFERROR(INDEX('Master Database - amended'!$E$4:$AN$132,'Master Database - amended'!$C8,COLUMNS($A$15:AJ$133)),\"\")","v":"Manufacturer update: average source level within a transmission 181dB re 1uPa rms@1m"}]
[{"$f":"IFERROR(INDEX('Master Database - amended'!$E$4:$AN$133,'Master Database - amended'!$C9,COLUMNS($A$15:$A$133)),\"\")","v":6},{"$f":"IFERROR(INDEX('Master Database - amended'!$E$4:$AN$132,'Master Database - amended'!$C9,COLUMNS($A$15:B$133)),\"\")","v":"Ace Aquatech"},{"$f":"IFERROR(INDEX('Master Database - amended'!$E$4:$AN$132,'Master Database - amended'!$C9,COLUMNS($A$15:C$133)),\"\")","v":"Universal Scrammer (US3)"},{"$f":"IFERROR(INDEX('Master Database - amended'!$E$4:$AN$132,'Master Database - amended'!$C9,COLUMNS($A$15:D$133)),\"\")","v":"Automatic"},{"$f":"IFERROR(INDEX('Master Database - amended'!$E$4:$AN$132,'Master Database - amended'!$C9,COLUMNS($A$15:E$133)),\"\")","v":"http://aceaquatec.com/products/predator-control/"},{"$f":"HYPERLINK(E20,E20)","v":"http://aceaquatec.com/products/predator-control/"},{"$f":"IFERROR(INDEX('Master Database - amended'!$E$4:$AN$132,'Master Database - amended'!$C9,COLUMNS($A$15:G$133)),\"\")","v":"Aquaculture"},{"$f":"IFERROR(INDEX('Master Database - amended'!$E$4:$AN$132,'Master Database - amended'!$C9,COLUMNS($A$15:H$133)),\"\")","v":195},{"$f":"IFERROR(INDEX('Master Database - amended'!$E$4:$AN$132,'Master Database - amended'!$C9,COLUMNS($A$15:I$133)),\"\")","v":198},{"$f":"IFERROR(INDEX('Master Database - amended'!$E$4:$AN$132,'Master Database - amended'!$C9,COLUMNS($A$15:J$133)),\"\")","v":"No Data Available"},{"$f":"IFERROR(INDEX('Master Database - amended'!$E$4:$AN$132,'Master Database - amended'!$C9,COLUMNS($A$15:K$133)),\"\")","v":10},{"$f":"IFERROR(INDEX('Master Database - amended'!$E$4:$AN$132,'Master Database - amended'!$C9,COLUMNS($A$15:L$133)),\"\")","v":20},{"$f":"IFERROR(INDEX('Master Database - amended'!$E$4:$AN$132,'Master Database - amended'!$C9,COLUMNS($A$15:M$133)),\"\")","v":"10 - 20 kHz"},{"$f":"IFERROR(INDEX('Master Database - amended'!$E$4:$AN$132,'Master Database - amended'!$C9,COLUMNS($A$15:N$133)),\"\")","v":"No Data Available"},{"$f":"IFERROR(INDEX('Master Database - amended'!$E$4:$AN$132,'Master Database - amended'!$C9,COLUMNS($A$15:O$133)),\"\")","v":"No Data Available"},{"$f":"IFERROR(INDEX('Master Database - amended'!$E$4:$AN$132,'Master Database - amended'!$C9,COLUMNS($A$15:P$133)),\"\")","v":"Intermittent"},{"$f":"IFERROR(INDEX('Master Database - amended'!$E$4:$AN$132,'Master Database - amended'!$C9,COLUMNS($A$15:Q$133)),\"\")","v":"Intermittent"},{"$f":"IFERROR(INDEX('Master Database - amended'!$E$4:$AN$132,'Master Database - amended'!$C9,COLUMNS($A$15:R$133)),\"\")","v":"No Data Available"},{"$f":"IFERROR(INDEX('Master Database - amended'!$E$4:$AN$132,'Master Database - amended'!$C9,COLUMNS($A$15:S$133)),\"\")","v":"No Data Available"},{"$f":"IFERROR(INDEX('Master Database - amended'!$E$4:$AN$132,'Master Database - amended'!$C9,COLUMNS($A$15:T$133)),\"\")","v":"A random selection of pulses in 2 - 5 second cycles."},{"$f":"IFERROR(INDEX('Master Database - amended'!$E$4:$AN$132,'Master Database - amended'!$C9,COLUMNS($A$15:U$133)),\"\")","v":"No Data Available"},{"$f":"IFERROR(INDEX('Master Database - amended'!$E$4:$AN$132,'Master Database - amended'!$C9,COLUMNS($A$15:V25)),\"\")","v":"No Data Available"},{"$f":"IFERROR(INDEX('Master Database - amended'!$E$4:$AN$132,'Master Database - amended'!$C9,COLUMNS($A$15:W$133)),\"\")","v":"No Data Available"},{"$f":"IFERROR(INDEX('Master Database - amended'!$E$4:$AN$132,'Master Database - amended'!$C9,COLUMNS($A$15:X25)),\"\")","v":"No Data Available"},{"$f":"IFERROR(INDEX('Master Database - amended'!$E$4:$AN$132,'Master Database - amended'!$C9,COLUMNS($A$15:Y$133)),\"\")","v":"3: High confidence"},{"$f":"IFERROR(INDEX('Master Database - amended'!$E$4:$AN$132,'Master Database - amended'!$C9,COLUMNS($A$15:Z25)),\"\")","v":"Y"},{"$f":"IFERROR(INDEX('Master Database - amended'!$E$4:$AN$132,'Master Database - amended'!$C9,COLUMNS($A$15:AA$133)),\"\")","v":"2: Medium confidence"},{"$f":"IFERROR(INDEX('Master Database - amended'!$E$4:$AN$132,'Master Database - amended'!$C9,COLUMNS($A$15:AB25)),\"\")","v":"Y"},{"$f":"IFERROR(INDEX('Master Database - amended'!$E$4:$AN$132,'Master Database - amended'!$C9,COLUMNS($A$15:AC$133)),\"\")","v":"Seals"},{"$f":"IFERROR(INDEX('Master Database - amended'!$E$4:$AN$132,'Master Database - amended'!$C9,COLUMNS($A$15:AD$133)),\"\")","v":"No Data Available"},{"$f":"IFERROR(INDEX('Master Database - amended'!$E$4:$AN$132,'Master Database - amended'!$C9,COLUMNS($A$15:AE$133)),\"\")","v":"No Data Available"},{"$f":"IFERROR(INDEX('Master Database - amended'!$E$4:$AN$132,'Master Database - amended'!$C9,COLUMNS($A$15:AF$133)),\"\")","v":">1000m"},{"$f":"IFERROR(INDEX('Master Database - amended'!$E$4:$AN$132,'Master Database - amended'!$C9,COLUMNS($A$15:AG$133)),\"\")","v":">1000m"},{"$f":"IFERROR(INDEX('Master Database - amended'!$E$4:$AN$132,'Master Database - amended'!$C9,COLUMNS($A$15:AH25)),\"\")","v":"https://infrastructure.planninginspectorate.gov.uk/wp-content/ipc/uploads/projects/EN010049/EN010049-001947-Tidal%20lagoon%20(Swansea%20Bay)%20Plc%201.pdf"},"http://www.iqoe.org/library/9639\n\nhttps://www.environment.gov.au/system/files/resources/c2bdc649-02a2-49c2-9c0f-74d0c4a65b27/files/technical-review-bycatch-mitigation-devices.pdf",{"$f":"IFERROR(INDEX('Master Database - amended'!$E$4:$AN$132,'Master Database - amended'!$C9,COLUMNS($A$15:AJ$133)),\"\")","v":"Manufacturer update: average source level within a transmission 181dB re 1uPa rms@1m; Frequency 8-11kHz. Note: Propagation papers referenced prior to this update used the maximum output in modelling not the average energy level of the signal. This has been addresses in a SAIC funded project with the University of St Andrews"}]
[{"$f":"IFERROR(INDEX('Master Database - amended'!$E$4:$AN$133,'Master Database - amended'!$C10,COLUMNS($A$15:$A$133)),\"\")","v":7},{"$f":"IFERROR(INDEX('Master Database - amended'!$E$4:$AN$132,'Master Database - amended'!$C10,COLUMNS($A$15:B$133)),\"\")","v":"Ace Aquatech"},{"$f":"IFERROR(INDEX('Master Database - amended'!$E$4:$AN$132,'Master Database - amended'!$C10,COLUMNS($A$15:C$133)),\"\")","v":"RT1"},{"$f":"IFERROR(INDEX('Master Database - amended'!$E$4:$AN$132,'Master Database - amended'!$C10,COLUMNS($A$15:D$133)),\"\")","v":"Automatic"},{"$f":"IFERROR(INDEX('Master Database - amended'!$E$4:$AN$132,'Master Database - amended'!$C10,COLUMNS($A$15:E$133)),\"\")","v":"http://aceaquatec.com/products/predator-control/"},"http://aceaquatec.com/products/predator-control/",{"$f":"IFERROR(INDEX('Master Database - amended'!$E$4:$AN$132,'Master Database - amended'!$C10,COLUMNS($A$15:G$133)),\"\")","v":"Aquaculture"},{"$f":"IFERROR(INDEX('Master Database - amended'!$E$4:$AN$132,'Master Database - amended'!$C10,COLUMNS($A$15:H$133)),\"\")","v":195},{"$f":"IFERROR(INDEX('Master Database - amended'!$E$4:$AN$132,'Master Database - amended'!$C10,COLUMNS($A$15:I$133)),\"\")","v":198},{"$f":"IFERROR(INDEX('Master Database - amended'!$E$4:$AN$132,'Master Database - amended'!$C10,COLUMNS($A$15:J$133)),\"\")","v":"No Data Available"},{"$f":"IFERROR(INDEX('Master Database - amended'!$E$4:$AN$132,'Master Database - amended'!$C10,COLUMNS($A$15:K$133)),\"\")","v":1},{"$f":"IFERROR(INDEX('Master Database - amended'!$E$4:$AN$132,'Master Database - amended'!$C10,COLUMNS($A$15:L$133)),\"\")","v":5},{"$f":"IFERROR(INDEX('Master Database - amended'!$E$4:$AN$132,'Master Database - amended'!$C10,COLUMNS($A$15:M$133)),\"\")","v":"1 - 5 kHz (can be restricted to 1 - 2 kHz in applications near harbour porpoise)"},{"$f":"IFERROR(INDEX('Master Database - amended'!$E$4:$AN$132,'Master Database - amended'!$C10,COLUMNS($A$15:N$133)),\"\")","v":"No Data Available"},{"$f":"IFERROR(INDEX('Master Database - amended'!$E$4:$AN$132,'Master Database - amended'!$C10,COLUMNS($A$15:O$133)),\"\")","v":"No Data Available"},{"$f":"IFERROR(INDEX('Master Database - amended'!$E$4:$AN$132,'Master Database - amended'!$C10,COLUMNS($A$15:P$133)),\"\")","v":"Intermittent."},{"$f":"IFERROR(INDEX('Master Database - amended'!$E$4:$AN$132,'Master Database - amended'!$C10,COLUMNS($A$15:Q$133)),\"\")","v":"Intermittent"},{"$f":"IFERROR(INDEX('Master Database - amended'!$E$4:$AN$132,'Master Database - amended'!$C10,COLUMNS($A$15:R$133)),\"\")","v":"No Data Available"},{"$f":"IFERROR(INDEX('Master Database - amended'!$E$4:$AN$132,'Master Database - amended'!$C10,COLUMNS($A$15:S$133)),\"\")","v":"No Data Available"},{"$f":"IFERROR(INDEX('Master Database - amended'!$E$4:$AN$132,'Master Database - amended'!$C10,COLUMNS($A$15:T$133)),\"\")","v":"A random selection of pulses in 2 - 5 second cycles."},{"$f":"IFERROR(INDEX('Master Database - amended'!$E$4:$AN$132,'Master Database - amended'!$C10,COLUMNS($A$15:U$133)),\"\")","v":"No Data Available"},{"$f":"IFERROR(INDEX('Master Database - amended'!$E$4:$AN$132,'Master Database - amended'!$C10,COLUMNS($A$15:V21)),\"\")","v":"No Data Available"},{"$f":"IFERROR(INDEX('Master Database - amended'!$E$4:$AN$132,'Master Database - amended'!$C10,COLUMNS($A$15:W$133)),\"\")","v":"No Data Available"},{"$f":"IFERROR(INDEX('Master Database - amended'!$E$4:$AN$132,'Master Database - amended'!$C10,COLUMNS($A$15:X21)),\"\")","v":"No Data Available"},{"$f":"IFERROR(INDEX('Master Database - amended'!$E$4:$AN$132,'Master Database - amended'!$C10,COLUMNS($A$15:Y$133)),\"\")","v":"No Data Available"},{"$f":"IFERROR(INDEX('Master Database - amended'!$E$4:$AN$132,'Master Database - amended'!$C10,COLUMNS($A$15:Z21)),\"\")","v":0},{"$f":"IFERROR(INDEX('Master Database - amended'!$E$4:$AN$132,'Master Database - amended'!$C10,COLUMNS($A$15:AA$133)),\"\")","v":"No Data Available"},{"$f":"IFERROR(INDEX('Master Database - amended'!$E$4:$AN$132,'Master Database - amended'!$C10,COLUMNS($A$15:AB21)),\"\")","v":"No Data Available"},{"$f":"IFERROR(INDEX('Master Database - amended'!$E$4:$AN$132,'Master Database - amended'!$C10,COLUMNS($A$15:AC$133)),\"\")","v":"No Evidence Available"},{"$f":"IFERROR(INDEX('Master Database - amended'!$E$4:$AN$132,'Master Database - amended'!$C10,COLUMNS($A$15:AD$133)),\"\")","v":"No Data Available"},{"$f":"IFERROR(INDEX('Master Database - amended'!$E$4:$AN$132,'Master Database - amended'!$C10,COLUMNS($A$15:AE$133)),\"\")","v":"No Data Available"},{"$f":"IFERROR(INDEX('Master Database - amended'!$E$4:$AN$132,'Master Database - amended'!$C10,COLUMNS($A$15:AF$133)),\"\")","v":"No Data Available"},{"$f":"IFERROR(INDEX('Master Database - amended'!$E$4:$AN$132,'Master Database - amended'!$C10,COLUMNS($A$15:AG$133)),\"\")","v":"No Data Available"},{"$f":"IFERROR(INDEX('Master Database - amended'!$E$4:$AN$132,'Master Database - amended'!$C10,COLUMNS($A$15:AH21)),\"\")","v":"No Evidence Available"},"https://www.carbontrust.com/media/675291/orjip-add-study-final-report-stage-1-phase-2.pdf",{"$f":"IFERROR(INDEX('Master Database - amended'!$E$4:$AN$132,'Master Database - amended'!$C10,COLUMNS($A$15:AJ$133)),\"\")","v":"Manufacturer update: average source level within a transmission 180dB re 1uPa rms@1m (ring transducer) & 182dB re 1uPa rms@1m (flex transducer); Frequency 0.9-1.4kHz"}]
[{"$f":"IFERROR(INDEX('Master Database - amended'!$E$4:$AN$133,'Master Database - amended'!$C11,COLUMNS($A$15:$A$133)),\"\")","v":8},{"$f":"IFERROR(INDEX('Master Database - amended'!$E$4:$AN$132,'Master Database - amended'!$C11,COLUMNS($A$15:B$133)),\"\")","v":"Airmar"},{"$f":"IFERROR(INDEX('Master Database - amended'!$E$4:$AN$132,'Master Database - amended'!$C11,COLUMNS($A$15:C$133)),\"\")","v":"dB plus II (became Mohn Aqua MAG seal deterrent)"},{"$f":"IFERROR(INDEX('Master Database - amended'!$E$4:$AN$132,'Master Database - amended'!$C11,COLUMNS($A$15:D$133)),\"\")","v":"Manual"},{"$f":"IFERROR(INDEX('Master Database - amended'!$E$4:$AN$132,'Master Database - amended'!$C11,COLUMNS($A$15:E$133)),\"\")","v":"http://www.airmar.com/"},"http://www.airmar.com/",{"$f":"IFERROR(INDEX('Master Database - amended'!$E$4:$AN$132,'Master Database - amended'!$C11,COLUMNS($A$15:G$133)),\"\")","v":"Aquaculture"},{"$f":"IFERROR(INDEX('Master Database - amended'!$E$4:$AN$132,'Master Database - amended'!$C11,COLUMNS($A$15:H$133)),\"\")","v":198},{"$f":"IFERROR(INDEX('Master Database - amended'!$E$4:$AN$132,'Master Database - amended'!$C11,COLUMNS($A$15:I$133)),\"\")","v":201},{"$f":"IFERROR(INDEX('Master Database - amended'!$E$4:$AN$132,'Master Database - amended'!$C11,COLUMNS($A$15:J$133)),\"\")","v":169},{"$f":"IFERROR(INDEX('Master Database - amended'!$E$4:$AN$132,'Master Database - amended'!$C11,COLUMNS($A$15:K$133)),\"\")","v":1.5},{"$f":"IFERROR(INDEX('Master Database - amended'!$E$4:$AN$132,'Master Database - amended'!$C11,COLUMNS($A$15:L$133)),\"\")","v":50},{"$f":"IFERROR(INDEX('Master Database - amended'!$E$4:$AN$132,'Master Database - amended'!$C11,COLUMNS($A$15:M$133)),\"\")","v":"A broadband spectral response at the beginning of each pulse, with detectable energy levels between 1.5 kHz to 50 kHz (Lepper et al. 2014)."},{"$f":"IFERROR(INDEX('Master Database - amended'!$E$4:$AN$132,'Master Database - amended'!$C11,COLUMNS($A$15:N$133)),\"\")","v":40},{"$f":"IFERROR(INDEX('Master Database - amended'!$E$4:$AN$132,'Master Database - amended'!$C11,COLUMNS($A$15:O$133)),\"\")","v":40},{"$f":"IFERROR(INDEX('Master Database - amended'!$E$4:$AN$132,'Master Database - amended'!$C11,COLUMNS($A$15:P$133)),\"\")","v":"Sequence of pulsed sinusoidal tonal bursts (Lepper et al. 2014)."},{"$f":"IFERROR(INDEX('Master Database - amended'!$E$4:$AN$132,'Master Database - amended'!$C11,COLUMNS($A$15:Q$133)),\"\")","v":"Intermittent"},{"$f":"IFERROR(INDEX('Master Database - amended'!$E$4:$AN$132,'Master Database - amended'!$C11,COLUMNS($A$15:R$133)),\"\")","v":1.4},{"$f":"IFERROR(INDEX('Master Database - amended'!$E$4:$AN$132,'Master Database - amended'!$C11,COLUMNS($A$15:S$133)),\"\")","v":1.4},{"$f":"IFERROR(INDEX('Master Database - amended'!$E$4:$AN$132,'Master Database - amended'!$C11,COLUMNS($A$15:T$133)),\"\")","v":"Each tonal burst is ~1.4 ms in duration with 40 ms interval.  A 2.25 s long sequence is then formed from 57-58 tone bursts. The sequence is then repeated with ~50% duty cycle allowing ~2 s quiet period (Lepper et al. 2014)."},{"$f":"IFERROR(INDEX('Master Database - amended'!$E$4:$AN$132,'Master Database - amended'!$C11,COLUMNS($A$15:U$133)),\"\")","v":"No Data Available"},{"$f":"IFERROR(INDEX('Master Database - amended'!$E$4:$AN$132,'Master Database - amended'!$C11,COLUMNS($A$15:V22)),\"\")","v":"No Data Available"},{"$f":"IFERROR(INDEX('Master Database - amended'!$E$4:$AN$132,'Master Database - amended'!$C11,COLUMNS($A$15:W$133)),\"\")","v":"No Data Available"},{"$f":"IFERROR(INDEX('Master Database - amended'!$E$4:$AN$132,'Master Database - amended'!$C11,COLUMNS($A$15:X22)),\"\")","v":"No Data Available"},{"$f":"IFERROR(INDEX('Master Database - amended'!$E$4:$AN$132,'Master Database - amended'!$C11,COLUMNS($A$15:Y$133)),\"\")","v":"3: High confidence"},{"$f":"IFERROR(INDEX('Master Database - amended'!$E$4:$AN$132,'Master Database - amended'!$C11,COLUMNS($A$15:Z22)),\"\")","v":"Y"},{"$f":"IFERROR(INDEX('Master Database - amended'!$E$4:$AN$132,'Master Database - amended'!$C11,COLUMNS($A$15:AA$133)),\"\")","v":"3: High confidence"},{"$f":"IFERROR(INDEX('Master Database - amended'!$E$4:$AN$132,'Master Database - amended'!$C11,COLUMNS($A$15:AB22)),\"\")","v":"Y"},{"$f":"IFERROR(INDEX('Master Database - amended'!$E$4:$AN$132,'Master Database - amended'!$C11,COLUMNS($A$15:AC$133)),\"\")","v":"Seals"},{"$f":"IFERROR(INDEX('Master Database - amended'!$E$4:$AN$132,'Master Database - amended'!$C11,COLUMNS($A$15:AD$133)),\"\")","v":"No Data Available"},{"$f":"IFERROR(INDEX('Master Database - amended'!$E$4:$AN$132,'Master Database - amended'!$C11,COLUMNS($A$15:AE$133)),\"\")","v":"No Data Available"},{"$f":"IFERROR(INDEX('Master Database - amended'!$E$4:$AN$132,'Master Database - amended'!$C11,COLUMNS($A$15:AF$133)),\"\")","v":">1000m"},{"$f":"IFERROR(INDEX('Master Database - amended'!$E$4:$AN$132,'Master Database - amended'!$C11,COLUMNS($A$15:AG$133)),\"\")","v":"<500m"},{"$f":"IFERROR(INDEX('Master Database - amended'!$E$4:$AN$132,'Master Database - amended'!$C11,COLUMNS($A$15:AH22)),\"\")","v":"http://onlinelibrary.wiley.com/doi/10.1111/j.1748-7692.2002.tb01077.x/abstract\n\nhttps://www.sciencedirect.com/science/article/pii/S000632070200099X\n\nhttp://islandora.mlml.calstate.edu/islandora/object/ir%3A1920\n\nhttps://research-repository.st-andrews.ac.uk/handle/10023/848\n\nhttps://www.ncbi.nlm.nih.gov/pubmed/20400639\n\nhttps://www.researchgate.net/publication/273094995_Pingers_cause_temporary_habitat_displacement_of_harbour_porpoises_Phocoena_phocoena_L\n\nhttps://www.carbontrust.com/media/675291/orjip-add-study-final-report-stage-1-phase-2.pdf\n\nhttp://www.snh.org.uk/pdfs/publications/commissioned_reports/517.pdf\n\nhttp://www.gov.scot/Publications/2013/10/7618/4\n"},"https://www.carbontrust.com/media/675291/orjip-add-study-final-report-stage-1-phase-2.pdf",{"$f":"IFERROR(INDEX('Master Database - amended'!$E$4:$AN$132,'Master Database - amended'!$C11,COLUMNS($A$15:AJ$133)),\"\")","v":"The Olesiuk et al. (2002) study involved substantially greater observation effort over a much-extended period and was thus able to investigate long-term effects. In comparison the Johnston (2002) study was able to measure ranges more accurately and track movements and could scan within a smaller observation range more effectively.\n\nSummary taken from ORJIP report show the results indicate that there might be scope to reduce the ADD time below the 30 minutes applied during the construction of these OWFs."}]
[{"$f":"IFERROR(INDEX('Master Database - amended'!$E$4:$AN$133,'Master Database - amended'!$C12,COLUMNS($A$15:$A$133)),\"\")","v":9},{"$f":"IFERROR(INDEX('Master Database - amended'!$E$4:$AN$132,'Master Database - amended'!$C12,COLUMNS($A$15:B$133)),\"\")","v":"Airmar"},{"$f":"IFERROR(INDEX('Master Database - amended'!$E$4:$AN$132,'Master Database - amended'!$C12,COLUMNS($A$15:C$133)),\"\")","v":"Gillnet pinger"},{"$f":"IFERROR(INDEX('Master Database - amended'!$E$4:$AN$132,'Master Database - amended'!$C12,COLUMNS($A$15:D$133)),\"\")","v":"Automatic"},{"$f":"IFERROR(INDEX('Master Database - amended'!$E$4:$AN$132,'Master Database - amended'!$C12,COLUMNS($A$15:E$133)),\"\")","v":"http://www.airmar.com/productinfo.html?category=AD&name=Acoustic%20Deterrents"},"http://www.airmar.com/productinfo.html?category=AD&name=Acoustic%20Deterrents",{"$f":"IFERROR(INDEX('Master Database - amended'!$E$4:$AN$132,'Master Database - amended'!$C12,COLUMNS($A$15:G$133)),\"\")","v":"Bycatch (gillnets)"},{"$f":"IFERROR(INDEX('Master Database - amended'!$E$4:$AN$132,'Master Database - amended'!$C12,COLUMNS($A$15:H$133)),\"\")","v":132},{"$f":"IFERROR(INDEX('Master Database - amended'!$E$4:$AN$132,'Master Database - amended'!$C12,COLUMNS($A$15:I$133)),\"\")","v":200},{"$f":"IFERROR(INDEX('Master Database - amended'!$E$4:$AN$132,'Master Database - amended'!$C12,COLUMNS($A$15:J$133)),\"\")","v":191},{"$f":"IFERROR(INDEX('Master Database - amended'!$E$4:$AN$132,'Master Database - amended'!$C12,COLUMNS($A$15:K$133)),\"\")","v":10},{"$f":"IFERROR(INDEX('Master Database - amended'!$E$4:$AN$132,'Master Database - amended'!$C12,COLUMNS($A$15:L$133)),\"\")","v":10},{"$f":"IFERROR(INDEX('Master Database - amended'!$E$4:$AN$132,'Master Database - amended'!$C12,COLUMNS($A$15:M$133)),\"\")","v":"10 kHz"},{"$f":"IFERROR(INDEX('Master Database - amended'!$E$4:$AN$132,'Master Database - amended'!$C12,COLUMNS($A$15:N$133)),\"\")","v":4000},{"$f":"IFERROR(INDEX('Master Database - amended'!$E$4:$AN$132,'Master Database - amended'!$C12,COLUMNS($A$15:O$133)),\"\")","v":4000},{"$f":"IFERROR(INDEX('Master Database - amended'!$E$4:$AN$132,'Master Database - amended'!$C12,COLUMNS($A$15:P$133)),\"\")","v":"Pulse duration 300 ms with repeat intervals of 4 s."},{"$f":"IFERROR(INDEX('Master Database - amended'!$E$4:$AN$132,'Master Database - amended'!$C12,COLUMNS($A$15:Q$133)),\"\")","v":"Intermittent"},{"$f":"IFERROR(INDEX('Master Database - amended'!$E$4:$AN$132,'Master Database - amended'!$C12,COLUMNS($A$15:R$133)),\"\")","v":300},{"$f":"IFERROR(INDEX('Master Database - amended'!$E$4:$AN$132,'Master Database - amended'!$C12,COLUMNS($A$15:S$133)),\"\")","v":300},{"$f":"IFERROR(INDEX('Master Database - amended'!$E$4:$AN$132,'Master Database - amended'!$C12,COLUMNS($A$15:T$133)),\"\")","v":"Pulse duration 300 ms with repeat intervals of 4 s."},{"$f":"IFERROR(INDEX('Master Database - amended'!$E$4:$AN$132,'Master Database - amended'!$C12,COLUMNS($A$15:U$133)),\"\")","v":"No Data Available"},{"$f":"IFERROR(INDEX('Master Database - amended'!$E$4:$AN$132,'Master Database - amended'!$C12,COLUMNS($A$15:V23)),\"\")","v":"No Data Available"},{"$f":"IFERROR(INDEX('Master Database - amended'!$E$4:$AN$132,'Master Database - amended'!$C12,COLUMNS($A$15:W$133)),\"\")","v":"No Data Available"},{"$f":"IFERROR(INDEX('Master Database - amended'!$E$4:$AN$132,'Master Database - amended'!$C12,COLUMNS($A$15:X23)),\"\")","v":"No Data Available"},{"$f":"IFERROR(INDEX('Master Database - amended'!$E$4:$AN$132,'Master Database - amended'!$C12,COLUMNS($A$15:Y$133)),\"\")","v":"No Data Available"},{"$f":"IFERROR(INDEX('Master Database - amended'!$E$4:$AN$132,'Master Database - amended'!$C12,COLUMNS($A$15:Z23)),\"\")","v":"No Data Available"},{"$f":"IFERROR(INDEX('Master Database - amended'!$E$4:$AN$132,'Master Database - amended'!$C12,COLUMNS($A$15:AA$133)),\"\")","v":"No Data Available"},{"$f":"IFERROR(INDEX('Master Database - amended'!$E$4:$AN$132,'Master Database - amended'!$C12,COLUMNS($A$15:AB23)),\"\")","v":"No Data Available"},{"$f":"IFERROR(INDEX('Master Database - amended'!$E$4:$AN$132,'Master Database - amended'!$C12,COLUMNS($A$15:AC$133)),\"\")","v":"Harbour Porpoise"},{"$f":"IFERROR(INDEX('Master Database - amended'!$E$4:$AN$132,'Master Database - amended'!$C12,COLUMNS($A$15:AD$133)),\"\")","v":"No Data Available"},{"$f":"IFERROR(INDEX('Master Database - amended'!$E$4:$AN$132,'Master Database - amended'!$C12,COLUMNS($A$15:AE$133)),\"\")","v":"No Data Available"},{"$f":"IFERROR(INDEX('Master Database - amended'!$E$4:$AN$132,'Master Database - amended'!$C12,COLUMNS($A$15:AF$133)),\"\")","v":"No Data Available"},{"$f":"IFERROR(INDEX('Master Database - amended'!$E$4:$AN$132,'Master Database - amended'!$C12,COLUMNS($A$15:AG$133)),\"\")","v":"No Data Available"},{"$f":"IFERROR(INDEX('Master Database - amended'!$E$4:$AN$132,'Master Database - amended'!$C12,COLUMNS($A$15:AH23)),\"\")","v":"No Evidence Available"},"https://www.carbontrust.com/media/675291/orjip-add-study-final-report-stage-1-phase-2.pdf",{"$f":"IFERROR(INDEX('Master Database - amended'!$E$4:$AN$132,'Master Database - amended'!$C12,COLUMNS($A$15:AJ$133)),\"\")","v":"No Comments"}]
[{"$f":"IFERROR(INDEX('Master Database - amended'!$E$4:$AN$133,'Master Database - amended'!$C13,COLUMNS($A$15:$A$133)),\"\")","v":10},{"$f":"IFERROR(INDEX('Master Database - amended'!$E$4:$AN$132,'Master Database - amended'!$C13,COLUMNS($A$15:B$133)),\"\")","v":"Aquatech"},{"$f":"IFERROR(INDEX('Master Database - amended'!$E$4:$AN$132,'Master Database - amended'!$C13,COLUMNS($A$15:C$133)),\"\")","v":"Aquamark 848"},{"$f":"IFERROR(INDEX('Master Database - amended'!$E$4:$AN$132,'Master Database - amended'!$C13,COLUMNS($A$15:D$133)),\"\")","v":"Automatic"},{"$f":"IFERROR(INDEX('Master Database - amended'!$E$4:$AN$132,'Master Database - amended'!$C13,COLUMNS($A$15:E$133)),\"\")","v":"http://www.aquatecgroup.com/11-products/25-aquamark-840"},"http://www.aquatecgroup.com/11-products/25-aquamark-840",{"$f":"IFERROR(INDEX('Master Database - amended'!$E$4:$AN$132,'Master Database - amended'!$C13,COLUMNS($A$15:G$133)),\"\")","v":"Bycatch (gillnets)"},{"$f":"IFERROR(INDEX('Master Database - amended'!$E$4:$AN$132,'Master Database - amended'!$C13,COLUMNS($A$15:H$133)),\"\")","v":165},{"$f":"IFERROR(INDEX('Master Database - amended'!$E$4:$AN$132,'Master Database - amended'!$C13,COLUMNS($A$15:I$133)),\"\")","v":168},{"$f":"IFERROR(INDEX('Master Database - amended'!$E$4:$AN$132,'Master Database - amended'!$C13,COLUMNS($A$15:J$133)),\"\")","v":"No Data Available"},{"$f":"IFERROR(INDEX('Master Database - amended'!$E$4:$AN$132,'Master Database - amended'!$C13,COLUMNS($A$15:K$133)),\"\")","v":5},{"$f":"IFERROR(INDEX('Master Database - amended'!$E$4:$AN$132,'Master Database - amended'!$C13,COLUMNS($A$15:L$133)),\"\")","v":30},{"$f":"IFERROR(INDEX('Master Database - amended'!$E$4:$AN$132,'Master Database - amended'!$C13,COLUMNS($A$15:M$133)),\"\")","v":"5 - 30 kHz (with harmonic energy up to 120 kHz)."},{"$f":"IFERROR(INDEX('Master Database - amended'!$E$4:$AN$132,'Master Database - amended'!$C13,COLUMNS($A$15:N$133)),\"\")","v":"No Data Available"},{"$f":"IFERROR(INDEX('Master Database - amended'!$E$4:$AN$132,'Master Database - amended'!$C13,COLUMNS($A$15:O$133)),\"\")","v":"No Data Available"},{"$f":"IFERROR(INDEX('Master Database - amended'!$E$4:$AN$132,'Master Database - amended'!$C13,COLUMNS($A$15:P$133)),\"\")","v":"Four alternative signals: general deterrence 'Aquamark' chirp repertoire; pseudo-clicks for echo-location confusion; pseudo-noise for echo-location masking; random composite of all modes."},{"$f":"IFERROR(INDEX('Master Database - amended'!$E$4:$AN$132,'Master Database - amended'!$C13,COLUMNS($A$15:Q$133)),\"\")","v":"Intermittent"},{"$f":"IFERROR(INDEX('Master Database - amended'!$E$4:$AN$132,'Master Database - amended'!$C13,COLUMNS($A$15:R$133)),\"\")","v":"No Data Available"},{"$f":"IFERROR(INDEX('Master Database - amended'!$E$4:$AN$132,'Master Database - amended'!$C13,COLUMNS($A$15:S$133)),\"\")","v":"No Data Available"},{"$f":"IFERROR(INDEX('Master Database - amended'!$E$4:$AN$132,'Master Database - amended'!$C13,COLUMNS($A$15:T$133)),\"\")","v":"No Data Available"},{"$f":"IFERROR(INDEX('Master Database - amended'!$E$4:$AN$132,'Master Database - amended'!$C13,COLUMNS($A$15:U$133)),\"\")","v":"1: Low confidence"},{"$f":"IFERROR(INDEX('Master Database - amended'!$E$4:$AN$132,'Master Database - amended'!$C13,COLUMNS($A$15:V24)),\"\")","v":"Y"},{"$f":"IFERROR(INDEX('Master Database - amended'!$E$4:$AN$132,'Master Database - amended'!$C13,COLUMNS($A$15:W$133)),\"\")","v":"1: Low confidence"},{"$f":"IFERROR(INDEX('Master Database - amended'!$E$4:$AN$132,'Master Database - amended'!$C13,COLUMNS($A$15:X24)),\"\")","v":"Y"},{"$f":"IFERROR(INDEX('Master Database - amended'!$E$4:$AN$132,'Master Database - amended'!$C13,COLUMNS($A$15:Y$133)),\"\")","v":"2: Medium confidence"},{"$f":"IFERROR(INDEX('Master Database - amended'!$E$4:$AN$132,'Master Database - amended'!$C13,COLUMNS($A$15:Z24)),\"\")","v":"Y"},{"$f":"IFERROR(INDEX('Master Database - amended'!$E$4:$AN$132,'Master Database - amended'!$C13,COLUMNS($A$15:AA$133)),\"\")","v":"2: Medium confidence"},{"$f":"IFERROR(INDEX('Master Database - amended'!$E$4:$AN$132,'Master Database - amended'!$C13,COLUMNS($A$15:AB24)),\"\")","v":"Y"},{"$f":"IFERROR(INDEX('Master Database - amended'!$E$4:$AN$132,'Master Database - amended'!$C13,COLUMNS($A$15:AC$133)),\"\")","v":"Marine Mammals"},{"$f":"IFERROR(INDEX('Master Database - amended'!$E$4:$AN$132,'Master Database - amended'!$C13,COLUMNS($A$15:AD$133)),\"\")","v":">1000m"},{"$f":"IFERROR(INDEX('Master Database - amended'!$E$4:$AN$132,'Master Database - amended'!$C13,COLUMNS($A$15:AE$133)),\"\")","v":">1000m"},{"$f":"IFERROR(INDEX('Master Database - amended'!$E$4:$AN$132,'Master Database - amended'!$C13,COLUMNS($A$15:AF$133)),\"\")","v":">1000m"},{"$f":"IFERROR(INDEX('Master Database - amended'!$E$4:$AN$132,'Master Database - amended'!$C13,COLUMNS($A$15:AG$133)),\"\")","v":">1000m"},{"$f":"IFERROR(INDEX('Master Database - amended'!$E$4:$AN$132,'Master Database - amended'!$C13,COLUMNS($A$15:AH24)),\"\")","v":"http://www.ascobans.org/sites/default/files/document/Dawson_To-ping-or-not_ESR-2013.pdf\n\nhttps://infrastructure.planninginspectorate.gov.uk/wp-content/ipc/uploads/projects/EN010049/EN010049-001947-Tidal%20lagoon%20(Swansea%20Bay)%20Plc%201.pdf\n\nhttps://www.carbontrust.com/media/675291/orjip-add-study-final-report-stage-1-phase-2.pdf"},"https://www.carbontrust.com/media/675291/orjip-add-study-final-report-stage-1-phase-2.pdf",{"$f":"IFERROR(INDEX('Master Database - amended'!$E$4:$AN$132,'Master Database - amended'!$C13,COLUMNS($A$15:AJ$133)),\"\")","v":"ORJIP review concludes that, as no information available – due to lack of response this is not recommended for use during OWF construction."}]
[{"$f":"IFERROR(INDEX('Master Database - amended'!$E$4:$AN$133,'Master Database - amended'!$C14,COLUMNS($A$15:$A$133)),\"\")","v":"11a"},{"$f":"IFERROR(INDEX('Master Database - amended'!$E$4:$AN$132,'Master Database - amended'!$C14,COLUMNS($A$15:B$133)),\"\")","v":"Aquatech"},{"$f":"IFERROR(INDEX('Master Database - amended'!$E$4:$AN$132,'Master Database - amended'!$C14,COLUMNS($A$15:C$133)),\"\")","v":"Aquamark 100"},{"$f":"IFERROR(INDEX('Master Database - amended'!$E$4:$AN$132,'Master Database - amended'!$C14,COLUMNS($A$15:D$133)),\"\")","v":"Automatic"},{"$f":"IFERROR(INDEX('Master Database - amended'!$E$4:$AN$132,'Master Database - amended'!$C14,COLUMNS($A$15:E$133)),\"\")","v":"No manufacturers website available"},{"$f":"HYPERLINK(E25,E25)","v":"No manufacturers website available"},{"$f":"IFERROR(INDEX('Master Database - amended'!$E$4:$AN$132,'Master Database - amended'!$C14,COLUMNS($A$15:G$133)),\"\")","v":"Bycatch (gillnets)"},{"$f":"IFERROR(INDEX('Master Database - amended'!$E$4:$AN$132,'Master Database - amended'!$C14,COLUMNS($A$15:H$133)),\"\")","v":145},{"$f":"IFERROR(INDEX('Master Database - amended'!$E$4:$AN$132,'Master Database - amended'!$C14,COLUMNS($A$15:I$133)),\"\")","v":148},{"$f":"IFERROR(INDEX('Master Database - amended'!$E$4:$AN$132,'Master Database - amended'!$C14,COLUMNS($A$15:J$133)),\"\")","v":140},{"$f":"IFERROR(INDEX('Master Database - amended'!$E$4:$AN$132,'Master Database - amended'!$C14,COLUMNS($A$15:K$133)),\"\")","v":10},{"$f":"IFERROR(INDEX('Master Database - amended'!$E$4:$AN$132,'Master Database - amended'!$C14,COLUMNS($A$15:L$133)),\"\")","v":160},{"$f":"IFERROR(INDEX('Master Database - amended'!$E$4:$AN$132,'Master Database - amended'!$C14,COLUMNS($A$15:M$133)),\"\")","v":"10 - 160 kHz"},{"$f":"IFERROR(INDEX('Master Database - amended'!$E$4:$AN$132,'Master Database - amended'!$C14,COLUMNS($A$15:N$133)),\"\")","v":5000},{"$f":"IFERROR(INDEX('Master Database - amended'!$E$4:$AN$132,'Master Database - amended'!$C14,COLUMNS($A$15:O$133)),\"\")","v":30000},{"$f":"IFERROR(INDEX('Master Database - amended'!$E$4:$AN$132,'Master Database - amended'!$C14,COLUMNS($A$15:P$133)),\"\")","v":"Signal duration of 200 – 300 ms, with a signal interval of 5 – 30 s (Dawson et al. 2013)."},{"$f":"IFERROR(INDEX('Master Database - amended'!$E$4:$AN$132,'Master Database - amended'!$C14,COLUMNS($A$15:Q$133)),\"\")","v":"Intermittent"},{"$f":"IFERROR(INDEX('Master Database - amended'!$E$4:$AN$132,'Master Database - amended'!$C14,COLUMNS($A$15:R$133)),\"\")","v":200},{"$f":"IFERROR(INDEX('Master Database - amended'!$E$4:$AN$132,'Master Database - amended'!$C14,COLUMNS($A$15:S$133)),\"\")","v":300},{"$f":"IFERROR(INDEX('Master Database - amended'!$E$4:$AN$132,'Master Database - amended'!$C14,COLUMNS($A$15:T$133)),\"\")","v":"Signal duration of 200 – 300 ms, with a signal interval of 5 – 30 s (Dawson et al. 2013)."},{"$f":"IFERROR(INDEX('Master Database - amended'!$E$4:$AN$132,'Master Database - amended'!$C14,COLUMNS($A$15:U$133)),\"\")","v":"No Data Available"},{"$f":"IFERROR(INDEX('Master Database - amended'!$E$4:$AN$132,'Master Database - amended'!$C14,COLUMNS($A$15:V25)),\"\")","v":"No Data Available"},{"$f":"IFERROR(INDEX('Master Database - amended'!$E$4:$AN$132,'Master Database - amended'!$C14,COLUMNS($A$15:W$133)),\"\")","v":"3: High confidence"},{"$f":"IFERROR(INDEX('Master Database - amended'!$E$4:$AN$132,'Master Database - amended'!$C14,COLUMNS($A$15:X25)),\"\")","v":"Y"},{"$f":"IFERROR(INDEX('Master Database - amended'!$E$4:$AN$132,'Master Database - amended'!$C14,COLUMNS($A$15:Y$133)),\"\")","v":"3: High confidence"},{"$f":"IFERROR(INDEX('Master Database - amended'!$E$4:$AN$132,'Master Database - amended'!$C14,COLUMNS($A$15:Z25)),\"\")","v":"Y"},{"$f":"IFERROR(INDEX('Master Database - amended'!$E$4:$AN$132,'Master Database - amended'!$C14,COLUMNS($A$15:AA$133)),\"\")","v":"2: Medium confidence"},{"$f":"IFERROR(INDEX('Master Database - amended'!$E$4:$AN$132,'Master Database - amended'!$C14,COLUMNS($A$15:AB25)),\"\")","v":"Y"},{"$f":"IFERROR(INDEX('Master Database - amended'!$E$4:$AN$132,'Master Database - amended'!$C14,COLUMNS($A$15:AC$133)),\"\")","v":"Harbour Porpoise"},{"$f":"IFERROR(INDEX('Master Database - amended'!$E$4:$AN$132,'Master Database - amended'!$C14,COLUMNS($A$15:AD$133)),\"\")","v":"No Data Available"},{"$f":"IFERROR(INDEX('Master Database - amended'!$E$4:$AN$132,'Master Database - amended'!$C14,COLUMNS($A$15:AE$133)),\"\")","v":"No Data Available"},{"$f":"IFERROR(INDEX('Master Database - amended'!$E$4:$AN$132,'Master Database - amended'!$C14,COLUMNS($A$15:AF$133)),\"\")","v":"<500m"},{"$f":"IFERROR(INDEX('Master Database - amended'!$E$4:$AN$132,'Master Database - amended'!$C14,COLUMNS($A$15:AG$133)),\"\")","v":"<500m"},{"$f":"IFERROR(INDEX('Master Database - amended'!$E$4:$AN$132,'Master Database - amended'!$C14,COLUMNS($A$15:AH25)),\"\")","v":"https://stecf.jrc.ec.europa.eu/documents/43805/44956/Trials+pinger+spacing+DK+2007.pdf\n\nhttps://www.sciencedirect.com/science/article/pii/S0165783607003669\n\nhttp://bycatch.org/articles/can-acoustic-deterrent-devices-reduce-catch-cornish-inshore-gillnet-fishery\n\nhttps://www.researchgate.net/publication/286890618_An_investigation_of_acoustic_deterrent_devices_to_reduce_cetacean_bycatch_in_an_inshore_set_net_fishery\n\nhttp://www.ascobans.org/sites/default/files/document/Dawson_To-ping-or-not_ESR-2013.pdf\n\nhttps://infrastructure.planninginspectorate.gov.uk/wp-content/ipc/uploads/projects/EN010049/EN010049-001947-Tidal%20lagoon%20(Swansea%20Bay)%20Plc%201.pdf"},"No Evidence Available",{"$f":"IFERROR(INDEX('Master Database - amended'!$E$4:$AN$132,'Master Database - amended'!$C14,COLUMNS($A$15:AJ$133)),\"\")","v":"ABPmer conclude that the use of AQUAmark 100 is considered a viable mitigation option to trial during initial turbine operation at the tidal lagoon given that the device is unlikely to cause wide-scale displacement and has had proven effectiveness in harbour porpoise field trials. Given the predicted relatively small area of avoidance this could be used on a permanent basis without the need for a triggering system."}]
[{"$f":"IFERROR(INDEX('Master Database - amended'!$E$4:$AN$133,'Master Database - amended'!$C15,COLUMNS($A$15:$A$133)),\"\")","v":"11b"},{"$f":"IFERROR(INDEX('Master Database - amended'!$E$4:$AN$132,'Master Database - amended'!$C15,COLUMNS($A$15:B$133)),\"\")","v":"Aquatech"},{"$f":"IFERROR(INDEX('Master Database - amended'!$E$4:$AN$132,'Master Database - amended'!$C15,COLUMNS($A$15:C$133)),\"\")","v":"Aquamark 200"},{"$f":"IFERROR(INDEX('Master Database - amended'!$E$4:$AN$132,'Master Database - amended'!$C15,COLUMNS($A$15:D$133)),\"\")","v":"Automatic"},{"$f":"IFERROR(INDEX('Master Database - amended'!$E$4:$AN$132,'Master Database - amended'!$C15,COLUMNS($A$15:E$133)),\"\")","v":"No manufacturers website available"},{"$f":"HYPERLINK(E26,E26)","v":"No manufacturers website available"},{"$f":"IFERROR(INDEX('Master Database - amended'!$E$4:$AN$132,'Master Database - amended'!$C15,COLUMNS($A$15:G$133)),\"\")","v":"Bycatch (gillnets)"},{"$f":"IFERROR(INDEX('Master Database - amended'!$E$4:$AN$132,'Master Database - amended'!$C15,COLUMNS($A$15:H$133)),\"\")","v":145},{"$f":"IFERROR(INDEX('Master Database - amended'!$E$4:$AN$132,'Master Database - amended'!$C15,COLUMNS($A$15:I$133)),\"\")","v":148},{"$f":"IFERROR(INDEX('Master Database - amended'!$E$4:$AN$132,'Master Database - amended'!$C15,COLUMNS($A$15:J$133)),\"\")","v":140},{"$f":"IFERROR(INDEX('Master Database - amended'!$E$4:$AN$132,'Master Database - amended'!$C15,COLUMNS($A$15:K$133)),\"\")","v":5},{"$f":"IFERROR(INDEX('Master Database - amended'!$E$4:$AN$132,'Master Database - amended'!$C15,COLUMNS($A$15:L$133)),\"\")","v":160},{"$f":"IFERROR(INDEX('Master Database - amended'!$E$4:$AN$132,'Master Database - amended'!$C15,COLUMNS($A$15:M$133)),\"\")","v":"5 - 160 kHz"},{"$f":"IFERROR(INDEX('Master Database - amended'!$E$4:$AN$132,'Master Database - amended'!$C15,COLUMNS($A$15:N$133)),\"\")","v":4000},{"$f":"IFERROR(INDEX('Master Database - amended'!$E$4:$AN$132,'Master Database - amended'!$C15,COLUMNS($A$15:O$133)),\"\")","v":21000},{"$f":"IFERROR(INDEX('Master Database - amended'!$E$4:$AN$132,'Master Database - amended'!$C15,COLUMNS($A$15:P$133)),\"\")","v":"Signal duration of 200 – 300 ms, with a signal interval of 4 – 21 s (Dawson et al. 2013)."},{"$f":"IFERROR(INDEX('Master Database - amended'!$E$4:$AN$132,'Master Database - amended'!$C15,COLUMNS($A$15:Q$133)),\"\")","v":"Intermittent"},{"$f":"IFERROR(INDEX('Master Database - amended'!$E$4:$AN$132,'Master Database - amended'!$C15,COLUMNS($A$15:R$133)),\"\")","v":200},{"$f":"IFERROR(INDEX('Master Database - amended'!$E$4:$AN$132,'Master Database - amended'!$C15,COLUMNS($A$15:S$133)),\"\")","v":300},{"$f":"IFERROR(INDEX('Master Database - amended'!$E$4:$AN$132,'Master Database - amended'!$C15,COLUMNS($A$15:T$133)),\"\")","v":"Signal duration of 200 – 300 ms, with a signal interval of 4 – 21 s (Dawson et al. 2013)."},{"$f":"IFERROR(INDEX('Master Database - amended'!$E$4:$AN$132,'Master Database - amended'!$C15,COLUMNS($A$15:U$133)),\"\")","v":"No Data Available"},{"$f":"IFERROR(INDEX('Master Database - amended'!$E$4:$AN$132,'Master Database - amended'!$C15,COLUMNS($A$15:V26)),\"\")","v":"No Data Available"},{"$f":"IFERROR(INDEX('Master Database - amended'!$E$4:$AN$132,'Master Database - amended'!$C15,COLUMNS($A$15:W$133)),\"\")","v":"2: Medium confidence"},{"$f":"IFERROR(INDEX('Master Database - amended'!$E$4:$AN$132,'Master Database - amended'!$C15,COLUMNS($A$15:X26)),\"\")","v":"Y"},{"$f":"IFERROR(INDEX('Master Database - amended'!$E$4:$AN$132,'Master Database - amended'!$C15,COLUMNS($A$15:Y$133)),\"\")","v":"3: High confidence"},{"$f":"IFERROR(INDEX('Master Database - amended'!$E$4:$AN$132,'Master Database - amended'!$C15,COLUMNS($A$15:Z26)),\"\")","v":"Y"},{"$f":"IFERROR(INDEX('Master Database - amended'!$E$4:$AN$132,'Master Database - amended'!$C15,COLUMNS($A$15:AA$133)),\"\")","v":"No Data Available"},{"$f":"IFERROR(INDEX('Master Database - amended'!$E$4:$AN$132,'Master Database - amended'!$C15,COLUMNS($A$15:AB26)),\"\")","v":"No Data Available"},{"$f":"IFERROR(INDEX('Master Database - amended'!$E$4:$AN$132,'Master Database - amended'!$C15,COLUMNS($A$15:AC$133)),\"\")","v":"Harbour Porpoise [Confidence Score 3] & Hector's Dolphin [Confidence Score 2] "},{"$f":"IFERROR(INDEX('Master Database - amended'!$E$4:$AN$132,'Master Database - amended'!$C15,COLUMNS($A$15:AD$133)),\"\")","v":"No Data Available"},{"$f":"IFERROR(INDEX('Master Database - amended'!$E$4:$AN$132,'Master Database - amended'!$C15,COLUMNS($A$15:AE$133)),\"\")","v":"No Data Available"},{"$f":"IFERROR(INDEX('Master Database - amended'!$E$4:$AN$132,'Master Database - amended'!$C15,COLUMNS($A$15:AF$133)),\"\")","v":"<500m"},{"$f":"IFERROR(INDEX('Master Database - amended'!$E$4:$AN$132,'Master Database - amended'!$C15,COLUMNS($A$15:AG$133)),\"\")","v":"No Data Available"},{"$f":"IFERROR(INDEX('Master Database - amended'!$E$4:$AN$132,'Master Database - amended'!$C15,COLUMNS($A$15:AH26)),\"\")","v":"http://www.ascobans.org/sites/default/files/document/Dawson_To-ping-or-not_ESR-2013.pdf"},"https://www.nature.com/articles/41451\n\nhttp://www.ascobans.org/sites/default/files/document/Dawson_To-ping-or-not_ESR-2013.pdf\n\nhttps://swfsc.noaa.gov/uploadedFiles/Divisions/PRD/Programs/Coastal_Marine_Mammal/Barlow_Cameron_MMS19.pdf\n\nhttp://www.int-res.com/articles/esr2008/5/n005p301.pdf\n\nhttps://www.researchgate.net/publication/228419119_Will_Harbour_porpoises_Phocoena_phocoena_habituate_to_pingers\n\nhttps://www.researchgate.net/publication/222300489_Behavioral_Responses_of_Bottlenose_Dolphins_Tursiops_truncatus_to_Gillnets_and_Acoustic_Alarms\n\nhttp://www.nrcresearchpress.com/doi/pdfplus/10.1139/f98-162\n\nhttp://www.nrcresearchpress.com/doi/10.1139/F08-186#.Wplyzq5l-Ul\n\nhttps://www.researchgate.net/publication/285703537_The_effect_of_pingers_on_harbour_porpoise_Phocoena_phocoena_bycatch_and_fishing_effort_in_the_turbot_gill_net_fishery_in_the_Turkish_Black_Sea_coast\n\nhttps://www.rufford.org/files/2-20.12.08%20Detailed%20Final%20Report.pdf\n\nhttp://conservation.govt.nz/Documents/science-and-technical/CSL3071.PDF\n\nhttps://www.researchgate.net/publication/227652806_Reducing_incidental_mortality_of_Franciscana_dolphin_Pontoporia_blainvilei_with_acoustic_warning_devices_attached_to_fishing_nets\n\nhttp://www.gov.scot/Publications/2013/10/7618/4",{"$f":"IFERROR(INDEX('Master Database - amended'!$E$4:$AN$132,'Master Database - amended'!$C15,COLUMNS($A$15:AJ$133)),\"\")","v":"No Comments"}]
[{"$f":"IFERROR(INDEX('Master Database - amended'!$E$4:$AN$133,'Master Database - amended'!$C16,COLUMNS($A$15:$A$133)),\"\")","v":"11c"},{"$f":"IFERROR(INDEX('Master Database - amended'!$E$4:$AN$132,'Master Database - amended'!$C16,COLUMNS($A$15:B$133)),\"\")","v":"Aquatech"},{"$f":"IFERROR(INDEX('Master Database - amended'!$E$4:$AN$132,'Master Database - amended'!$C16,COLUMNS($A$15:C$133)),\"\")","v":"Aquamark 210"},{"$f":"IFERROR(INDEX('Master Database - amended'!$E$4:$AN$132,'Master Database - amended'!$C16,COLUMNS($A$15:D$133)),\"\")","v":"Automatic"},{"$f":"IFERROR(INDEX('Master Database - amended'!$E$4:$AN$132,'Master Database - amended'!$C16,COLUMNS($A$15:E$133)),\"\")","v":"No manufacturers website available"},{"$f":"HYPERLINK(E27,E27)","v":"No manufacturers website available"},{"$f":"IFERROR(INDEX('Master Database - amended'!$E$4:$AN$132,'Master Database - amended'!$C16,COLUMNS($A$15:G$133)),\"\")","v":"Bycatch (gillnets)"},{"$f":"IFERROR(INDEX('Master Database - amended'!$E$4:$AN$132,'Master Database - amended'!$C16,COLUMNS($A$15:H$133)),\"\")","v":150},{"$f":"IFERROR(INDEX('Master Database - amended'!$E$4:$AN$132,'Master Database - amended'!$C16,COLUMNS($A$15:I$133)),\"\")","v":153},{"$f":"IFERROR(INDEX('Master Database - amended'!$E$4:$AN$132,'Master Database - amended'!$C16,COLUMNS($A$15:J$133)),\"\")","v":145},{"$f":"IFERROR(INDEX('Master Database - amended'!$E$4:$AN$132,'Master Database - amended'!$C16,COLUMNS($A$15:K$133)),\"\")","v":5},{"$f":"IFERROR(INDEX('Master Database - amended'!$E$4:$AN$132,'Master Database - amended'!$C16,COLUMNS($A$15:L$133)),\"\")","v":160},{"$f":"IFERROR(INDEX('Master Database - amended'!$E$4:$AN$132,'Master Database - amended'!$C16,COLUMNS($A$15:M$133)),\"\")","v":"5 - 160 kHz"},{"$f":"IFERROR(INDEX('Master Database - amended'!$E$4:$AN$132,'Master Database - amended'!$C16,COLUMNS($A$15:N$133)),\"\")","v":5000},{"$f":"IFERROR(INDEX('Master Database - amended'!$E$4:$AN$132,'Master Database - amended'!$C16,COLUMNS($A$15:O$133)),\"\")","v":30000},{"$f":"IFERROR(INDEX('Master Database - amended'!$E$4:$AN$132,'Master Database - amended'!$C16,COLUMNS($A$15:P$133)),\"\")","v":"Signal duration of 50 – 300 ms, with a signal interval of 5 – 30 s (Dawson et al. 2013)."},{"$f":"IFERROR(INDEX('Master Database - amended'!$E$4:$AN$132,'Master Database - amended'!$C16,COLUMNS($A$15:Q$133)),\"\")","v":"Intermittent"},{"$f":"IFERROR(INDEX('Master Database - amended'!$E$4:$AN$132,'Master Database - amended'!$C16,COLUMNS($A$15:R$133)),\"\")","v":50},{"$f":"IFERROR(INDEX('Master Database - amended'!$E$4:$AN$132,'Master Database - amended'!$C16,COLUMNS($A$15:S$133)),\"\")","v":300},{"$f":"IFERROR(INDEX('Master Database - amended'!$E$4:$AN$132,'Master Database - amended'!$C16,COLUMNS($A$15:T$133)),\"\")","v":"Signal duration of 50 – 300 ms, with a signal interval of 5 – 30 s (Dawson et al. 2013)."},{"$f":"IFERROR(INDEX('Master Database - amended'!$E$4:$AN$132,'Master Database - amended'!$C16,COLUMNS($A$15:U$133)),\"\")","v":"No Data Available"},{"$f":"IFERROR(INDEX('Master Database - amended'!$E$4:$AN$132,'Master Database - amended'!$C16,COLUMNS($A$15:V27)),\"\")","v":"No Data Available"},{"$f":"IFERROR(INDEX('Master Database - amended'!$E$4:$AN$132,'Master Database - amended'!$C16,COLUMNS($A$15:W$133)),\"\")","v":"3: High confidence"},{"$f":"IFERROR(INDEX('Master Database - amended'!$E$4:$AN$132,'Master Database - amended'!$C16,COLUMNS($A$15:X27)),\"\")","v":"Y"},{"$f":"IFERROR(INDEX('Master Database - amended'!$E$4:$AN$132,'Master Database - amended'!$C16,COLUMNS($A$15:Y$133)),\"\")","v":"No Data Available"},{"$f":"IFERROR(INDEX('Master Database - amended'!$E$4:$AN$132,'Master Database - amended'!$C16,COLUMNS($A$15:Z27)),\"\")","v":"No Data Available"},{"$f":"IFERROR(INDEX('Master Database - amended'!$E$4:$AN$132,'Master Database - amended'!$C16,COLUMNS($A$15:AA$133)),\"\")","v":"No Data Available"},{"$f":"IFERROR(INDEX('Master Database - amended'!$E$4:$AN$132,'Master Database - amended'!$C16,COLUMNS($A$15:AB27)),\"\")","v":"No Data Available"},{"$f":"IFERROR(INDEX('Master Database - amended'!$E$4:$AN$132,'Master Database - amended'!$C16,COLUMNS($A$15:AC$133)),\"\")","v":"Dolphins"},{"$f":"IFERROR(INDEX('Master Database - amended'!$E$4:$AN$132,'Master Database - amended'!$C16,COLUMNS($A$15:AD$133)),\"\")","v":"No Data Available"},{"$f":"IFERROR(INDEX('Master Database - amended'!$E$4:$AN$132,'Master Database - amended'!$C16,COLUMNS($A$15:AE$133)),\"\")","v":"No Data Available"},{"$f":"IFERROR(INDEX('Master Database - amended'!$E$4:$AN$132,'Master Database - amended'!$C16,COLUMNS($A$15:AF$133)),\"\")","v":"No Data Available"},{"$f":"IFERROR(INDEX('Master Database - amended'!$E$4:$AN$132,'Master Database - amended'!$C16,COLUMNS($A$15:AG$133)),\"\")","v":"No Data Available"},{"$f":"IFERROR(INDEX('Master Database - amended'!$E$4:$AN$132,'Master Database - amended'!$C16,COLUMNS($A$15:AH27)),\"\")","v":"http://www.int-res.com/articles/esr2008/5/n005p301.pdf"},"http://www.ascobans.org/sites/default/files/document/Dawson_To-ping-or-not_ESR-2013.pdf",{"$f":"IFERROR(INDEX('Master Database - amended'!$E$4:$AN$132,'Master Database - amended'!$C16,COLUMNS($A$15:AJ$133)),\"\")","v":"No Comments"}]
[{"$f":"IFERROR(INDEX('Master Database - amended'!$E$4:$AN$133,'Master Database - amended'!$C17,COLUMNS($A$15:$A$133)),\"\")","v":"11d"},{"$f":"IFERROR(INDEX('Master Database - amended'!$E$4:$AN$132,'Master Database - amended'!$C17,COLUMNS($A$15:B$133)),\"\")","v":"Aquatech"},{"$f":"IFERROR(INDEX('Master Database - amended'!$E$4:$AN$132,'Master Database - amended'!$C17,COLUMNS($A$15:C$133)),\"\")","v":"Aquamark 300"},{"$f":"IFERROR(INDEX('Master Database - amended'!$E$4:$AN$132,'Master Database - amended'!$C17,COLUMNS($A$15:D$133)),\"\")","v":"Automatic"},{"$f":"IFERROR(INDEX('Master Database - amended'!$E$4:$AN$132,'Master Database - amended'!$C17,COLUMNS($A$15:E$133)),\"\")","v":"No manufacturers website available"},{"$f":"HYPERLINK(E28,E28)","v":"No manufacturers website available"},{"$f":"IFERROR(INDEX('Master Database - amended'!$E$4:$AN$132,'Master Database - amended'!$C17,COLUMNS($A$15:G$133)),\"\")","v":"Bycatch (gillnets)"},{"$f":"IFERROR(INDEX('Master Database - amended'!$E$4:$AN$132,'Master Database - amended'!$C17,COLUMNS($A$15:H$133)),\"\")","v":132},{"$f":"IFERROR(INDEX('Master Database - amended'!$E$4:$AN$132,'Master Database - amended'!$C17,COLUMNS($A$15:I$133)),\"\")","v":135},{"$f":"IFERROR(INDEX('Master Database - amended'!$E$4:$AN$132,'Master Database - amended'!$C17,COLUMNS($A$15:J$133)),\"\")","v":127},{"$f":"IFERROR(INDEX('Master Database - amended'!$E$4:$AN$132,'Master Database - amended'!$C17,COLUMNS($A$15:K$133)),\"\")","v":10},{"$f":"IFERROR(INDEX('Master Database - amended'!$E$4:$AN$132,'Master Database - amended'!$C17,COLUMNS($A$15:L$133)),\"\")","v":10},{"$f":"IFERROR(INDEX('Master Database - amended'!$E$4:$AN$132,'Master Database - amended'!$C17,COLUMNS($A$15:M$133)),\"\")","v":"10 kHz"},{"$f":"IFERROR(INDEX('Master Database - amended'!$E$4:$AN$132,'Master Database - amended'!$C17,COLUMNS($A$15:N$133)),\"\")","v":4000},{"$f":"IFERROR(INDEX('Master Database - amended'!$E$4:$AN$132,'Master Database - amended'!$C17,COLUMNS($A$15:O$133)),\"\")","v":4000},{"$f":"IFERROR(INDEX('Master Database - amended'!$E$4:$AN$132,'Master Database - amended'!$C17,COLUMNS($A$15:P$133)),\"\")","v":"Signal duration of 300 ms, with a signal interval of 4 s (Dawson et al. 2013)."},{"$f":"IFERROR(INDEX('Master Database - amended'!$E$4:$AN$132,'Master Database - amended'!$C17,COLUMNS($A$15:Q$133)),\"\")","v":"Intermittent"},{"$f":"IFERROR(INDEX('Master Database - amended'!$E$4:$AN$132,'Master Database - amended'!$C17,COLUMNS($A$15:R$133)),\"\")","v":300},{"$f":"IFERROR(INDEX('Master Database - amended'!$E$4:$AN$132,'Master Database - amended'!$C17,COLUMNS($A$15:S$133)),\"\")","v":300},{"$f":"IFERROR(INDEX('Master Database - amended'!$E$4:$AN$132,'Master Database - amended'!$C17,COLUMNS($A$15:T$133)),\"\")","v":"Signal duration of 300 ms, with a signal interval of 4 s (Dawson et al. 2013)."},{"$f":"IFERROR(INDEX('Master Database - amended'!$E$4:$AN$132,'Master Database - amended'!$C17,COLUMNS($A$15:U$133)),\"\")","v":"No Data Available"},{"$f":"IFERROR(INDEX('Master Database - amended'!$E$4:$AN$132,'Master Database - amended'!$C17,COLUMNS($A$15:V68)),\"\")","v":"No Data Available"},{"$f":"IFERROR(INDEX('Master Database - amended'!$E$4:$AN$132,'Master Database - amended'!$C17,COLUMNS($A$15:W$133)),\"\")","v":"No Data Available"},{"$f":"IFERROR(INDEX('Master Database - amended'!$E$4:$AN$132,'Master Database - amended'!$C17,COLUMNS($A$15:X68)),\"\")","v":0},{"$f":"IFERROR(INDEX('Master Database - amended'!$E$4:$AN$132,'Master Database - amended'!$C17,COLUMNS($A$15:Y$133)),\"\")","v":"3: High confidence"},{"$f":"IFERROR(INDEX('Master Database - amended'!$E$4:$AN$132,'Master Database - amended'!$C17,COLUMNS($A$15:Z68)),\"\")","v":"No Data Available"},{"$f":"IFERROR(INDEX('Master Database - amended'!$E$4:$AN$132,'Master Database - amended'!$C17,COLUMNS($A$15:AA$133)),\"\")","v":"No Data Available"},{"$f":"IFERROR(INDEX('Master Database - amended'!$E$4:$AN$132,'Master Database - amended'!$C17,COLUMNS($A$15:AB68)),\"\")","v":"No Data Available"},{"$f":"IFERROR(INDEX('Master Database - amended'!$E$4:$AN$132,'Master Database - amended'!$C17,COLUMNS($A$15:AC$133)),\"\")","v":"Harbour Porpoise"},{"$f":"IFERROR(INDEX('Master Database - amended'!$E$4:$AN$132,'Master Database - amended'!$C17,COLUMNS($A$15:AD$133)),\"\")","v":"No Data Available"},{"$f":"IFERROR(INDEX('Master Database - amended'!$E$4:$AN$132,'Master Database - amended'!$C17,COLUMNS($A$15:AE$133)),\"\")","v":"No Data Available"},{"$f":"IFERROR(INDEX('Master Database - amended'!$E$4:$AN$132,'Master Database - amended'!$C17,COLUMNS($A$15:AF$133)),\"\")","v":"No Data Available"},{"$f":"IFERROR(INDEX('Master Database - amended'!$E$4:$AN$132,'Master Database - amended'!$C17,COLUMNS($A$15:AG$133)),\"\")","v":"No Data Available"},{"$f":"IFERROR(INDEX('Master Database - amended'!$E$4:$AN$132,'Master Database - amended'!$C17,COLUMNS($A$15:AH68)),\"\")","v":"No Evidence Available"},"http://www.ascobans.org/sites/default/files/document/NSG4_Inf_4.3_BananaPinger.pdf\n\nhttps://www.fishtekmarine.com/wp-content/uploads/2017/06/FINAL-REPORT-Investigation-into-the-attraction-of-Atlantic-grey-seals-to-the-Fishteck-Banana-Pinger.pdf\n\nhttps://infrastructure.planninginspectorate.gov.uk/wp-content/ipc/uploads/projects/EN010049/EN010049-001947-Tidal%20lagoon%20(Swansea%20Bay)%20Plc%201.pdf\n\nhttps://www.fishtekmarine.com/wp-content/uploads/2017/04/ve_UK_HP_WFA-FishTek-Banana-Pinger-Commercial-Test_Woolmar_2015.pdf\n\nhttps://www.ifm.liu.se/edu/biology/master_projects/2017/louise-friis-charlotte/abstract/                                                                                                                                                                                                                                                        \n\nhttps://www.researchgate.net/publication/303365156_RESOLVING_BOTTLENOSE_DOLPHIN-FISHERIES_ASSOCIATION_PROBLEMS_IN_MALTESE_WATERS_CENTRAL_MEDITERRANEAN",{"$f":"IFERROR(INDEX('Master Database - amended'!$E$4:$AN$132,'Master Database - amended'!$C17,COLUMNS($A$15:AJ$133)),\"\")","v":"No Comments"}]
[{"$f":"IFERROR(INDEX('Master Database - amended'!$E$4:$AN$133,'Master Database - amended'!$C18,COLUMNS($A$15:$A$133)),\"\")","v":12},{"$f":"IFERROR(INDEX('Master Database - amended'!$E$4:$AN$132,'Master Database - amended'!$C18,COLUMNS($A$15:B$133)),\"\")","v":"IFREMER / IXTrawl"},{"$f":"IFERROR(INDEX('Master Database - amended'!$E$4:$AN$132,'Master Database - amended'!$C18,COLUMNS($A$15:C$133)),\"\")","v":"Cetasaver V.03"},{"$f":"IFERROR(INDEX('Master Database - amended'!$E$4:$AN$132,'Master Database - amended'!$C18,COLUMNS($A$15:D$133)),\"\")","v":"No Data Available"},{"$f":"IFERROR(INDEX('Master Database - amended'!$E$4:$AN$132,'Master Database - amended'!$C18,COLUMNS($A$15:E$133)),\"\")","v":"No manufacturers website available"},"No manufacturers website available",{"$f":"IFERROR(INDEX('Master Database - amended'!$E$4:$AN$132,'Master Database - amended'!$C18,COLUMNS($A$15:G$133)),\"\")","v":"Bycatch (gillnets)"},{"$f":"IFERROR(INDEX('Master Database - amended'!$E$4:$AN$132,'Master Database - amended'!$C18,COLUMNS($A$15:H$133)),\"\")","v":165},{"$f":"IFERROR(INDEX('Master Database - amended'!$E$4:$AN$132,'Master Database - amended'!$C18,COLUMNS($A$15:I$133)),\"\")","v":168},{"$f":"IFERROR(INDEX('Master Database - amended'!$E$4:$AN$132,'Master Database - amended'!$C18,COLUMNS($A$15:J$133)),\"\")","v":165},{"$f":"IFERROR(INDEX('Master Database - amended'!$E$4:$AN$132,'Master Database - amended'!$C18,COLUMNS($A$15:K$133)),\"\")","v":30},{"$f":"IFERROR(INDEX('Master Database - amended'!$E$4:$AN$132,'Master Database - amended'!$C18,COLUMNS($A$15:L$133)),\"\")","v":150},{"$f":"IFERROR(INDEX('Master Database - amended'!$E$4:$AN$132,'Master Database - amended'!$C18,COLUMNS($A$15:M$133)),\"\")","v":"Signal 1: Frequency modulated signal between 30 - 150 kHz. Signal 2: Click train at 90 kHz."},{"$f":"IFERROR(INDEX('Master Database - amended'!$E$4:$AN$132,'Master Database - amended'!$C18,COLUMNS($A$15:N$133)),\"\")","v":2000},{"$f":"IFERROR(INDEX('Master Database - amended'!$E$4:$AN$132,'Master Database - amended'!$C18,COLUMNS($A$15:O$133)),\"\")","v":5500},{"$f":"IFERROR(INDEX('Master Database - amended'!$E$4:$AN$132,'Master Database - amended'!$C18,COLUMNS($A$15:P$133)),\"\")","v":"Signal 1: repeated at a minimum of every 2 seconds, maximum of 5.5 seconds with an average of 4 seconds. Signal 2: Click train of 0.1 second duration, with a constant click time and repetition."},{"$f":"IFERROR(INDEX('Master Database - amended'!$E$4:$AN$132,'Master Database - amended'!$C18,COLUMNS($A$15:Q$133)),\"\")","v":"Intermittent"},{"$f":"IFERROR(INDEX('Master Database - amended'!$E$4:$AN$132,'Master Database - amended'!$C18,COLUMNS($A$15:R$133)),\"\")","v":100},{"$f":"IFERROR(INDEX('Master Database - amended'!$E$4:$AN$132,'Master Database - amended'!$C18,COLUMNS($A$15:S$133)),\"\")","v":1000},{"$f":"IFERROR(INDEX('Master Database - amended'!$E$4:$AN$132,'Master Database - amended'!$C18,COLUMNS($A$15:T$133)),\"\")","v":"Signal 1: 1 second duration (random time and frequency organised sweeps of base square wave). Signal 2: Click train of 0.1 second duration, with a constant click time and repetition."},{"$f":"IFERROR(INDEX('Master Database - amended'!$E$4:$AN$132,'Master Database - amended'!$C18,COLUMNS($A$15:U$133)),\"\")","v":"No Data Available"},{"$f":"IFERROR(INDEX('Master Database - amended'!$E$4:$AN$132,'Master Database - amended'!$C18,COLUMNS($A$15:V29)),\"\")","v":"No Data Available"},{"$f":"IFERROR(INDEX('Master Database - amended'!$E$4:$AN$132,'Master Database - amended'!$C18,COLUMNS($A$15:W$133)),\"\")","v":"3: High confidence"},{"$f":"IFERROR(INDEX('Master Database - amended'!$E$4:$AN$132,'Master Database - amended'!$C18,COLUMNS($A$15:X29)),\"\")","v":"Y"},{"$f":"IFERROR(INDEX('Master Database - amended'!$E$4:$AN$132,'Master Database - amended'!$C18,COLUMNS($A$15:Y$133)),\"\")","v":"No Data Available"},{"$f":"IFERROR(INDEX('Master Database - amended'!$E$4:$AN$132,'Master Database - amended'!$C18,COLUMNS($A$15:Z29)),\"\")","v":"No Data Available"},{"$f":"IFERROR(INDEX('Master Database - amended'!$E$4:$AN$132,'Master Database - amended'!$C18,COLUMNS($A$15:AA$133)),\"\")","v":"No Data Available"},{"$f":"IFERROR(INDEX('Master Database - amended'!$E$4:$AN$132,'Master Database - amended'!$C18,COLUMNS($A$15:AB29)),\"\")","v":"No Data Available"},{"$f":"IFERROR(INDEX('Master Database - amended'!$E$4:$AN$132,'Master Database - amended'!$C18,COLUMNS($A$15:AC$133)),\"\")","v":"Harbour Porpoise and Dolphins"},{"$f":"IFERROR(INDEX('Master Database - amended'!$E$4:$AN$132,'Master Database - amended'!$C18,COLUMNS($A$15:AD$133)),\"\")","v":"No Data Available"},{"$f":"IFERROR(INDEX('Master Database - amended'!$E$4:$AN$132,'Master Database - amended'!$C18,COLUMNS($A$15:AE$133)),\"\")","v":"No Data Available"},{"$f":"IFERROR(INDEX('Master Database - amended'!$E$4:$AN$132,'Master Database - amended'!$C18,COLUMNS($A$15:AF$133)),\"\")","v":"No Data Available"},{"$f":"IFERROR(INDEX('Master Database - amended'!$E$4:$AN$132,'Master Database - amended'!$C18,COLUMNS($A$15:AG$133)),\"\")","v":"No Data Available"},{"$f":"IFERROR(INDEX('Master Database - amended'!$E$4:$AN$132,'Master Database - amended'!$C18,COLUMNS($A$15:AH29)),\"\")","v":"http://www.iqoe.org/library/9639\n\nhttps://www.environment.gov.au/system/files/resources/c2bdc649-02a2-49c2-9c0f-74d0c4a65b27/files/technical-review-bycatch-mitigation-devices.pdf"},"https://www.fishtekmarine.com/wp-content/uploads/2018/07/ECS_2018.pdf",{"$f":"IFERROR(INDEX('Master Database - amended'!$E$4:$AN$132,'Master Database - amended'!$C18,COLUMNS($A$15:AJ$133)),\"\")","v":"No Comments"}]
[{"$f":"IFERROR(INDEX('Master Database - amended'!$E$4:$AN$133,'Master Database - amended'!$C19,COLUMNS($A$15:$A$133)),\"\")","v":"13a"},{"$f":"IFERROR(INDEX('Master Database - amended'!$E$4:$AN$132,'Master Database - amended'!$C19,COLUMNS($A$15:B$133)),\"\")","v":"STM products"},{"$f":"IFERROR(INDEX('Master Database - amended'!$E$4:$AN$132,'Master Database - amended'!$C19,COLUMNS($A$15:C$133)),\"\")","v":"Dolphin Deterrent Device (DDD) 03L"},{"$f":"IFERROR(INDEX('Master Database - amended'!$E$4:$AN$132,'Master Database - amended'!$C19,COLUMNS($A$15:D$133)),\"\")","v":"Automatic"},{"$f":"IFERROR(INDEX('Master Database - amended'!$E$4:$AN$132,'Master Database - amended'!$C19,COLUMNS($A$15:E$133)),\"\")","v":"http://www.stm-products.com/en/products/fishing-technology/"},{"$f":"HYPERLINK(E30,E30)","v":"http://www.stm-products.com/en/products/fishing-technology/"},{"$f":"IFERROR(INDEX('Master Database - amended'!$E$4:$AN$132,'Master Database - amended'!$C19,COLUMNS($A$15:G$133)),\"\")","v":"Bycatch (gillnets)"},{"$f":"IFERROR(INDEX('Master Database - amended'!$E$4:$AN$132,'Master Database - amended'!$C19,COLUMNS($A$15:H$133)),\"\")","v":165},{"$f":"IFERROR(INDEX('Master Database - amended'!$E$4:$AN$132,'Master Database - amended'!$C19,COLUMNS($A$15:I$133)),\"\")","v":168},{"$f":"IFERROR(INDEX('Master Database - amended'!$E$4:$AN$132,'Master Database - amended'!$C19,COLUMNS($A$15:J$133)),\"\")","v":165},{"$f":"IFERROR(INDEX('Master Database - amended'!$E$4:$AN$132,'Master Database - amended'!$C19,COLUMNS($A$15:K$133)),\"\")","v":5.0000000000000001E-3},{"$f":"IFERROR(INDEX('Master Database - amended'!$E$4:$AN$132,'Master Database - amended'!$C19,COLUMNS($A$15:L$133)),\"\")","v":0.5},{"$f":"IFERROR(INDEX('Master Database - amended'!$E$4:$AN$132,'Master Database - amended'!$C19,COLUMNS($A$15:M$133)),\"\")","v":"5 - 500 kHz (random)."},{"$f":"IFERROR(INDEX('Master Database - amended'!$E$4:$AN$132,'Master Database - amended'!$C19,COLUMNS($A$15:N$133)),\"\")","v":150000},{"$f":"IFERROR(INDEX('Master Database - amended'!$E$4:$AN$132,'Master Database - amended'!$C19,COLUMNS($A$15:O$133)),\"\")","v":150000},{"$f":"IFERROR(INDEX('Master Database - amended'!$E$4:$AN$132,'Master Database - amended'!$C19,COLUMNS($A$15:P$133)),\"\")","v":"Average duration between each pulse is 150 s."},{"$f":"IFERROR(INDEX('Master Database - amended'!$E$4:$AN$132,'Master Database - amended'!$C19,COLUMNS($A$15:Q$133)),\"\")","v":"Intermittent"},{"$f":"IFERROR(INDEX('Master Database - amended'!$E$4:$AN$132,'Master Database - amended'!$C19,COLUMNS($A$15:R$133)),\"\")","v":500},{"$f":"IFERROR(INDEX('Master Database - amended'!$E$4:$AN$132,'Master Database - amended'!$C19,COLUMNS($A$15:S$133)),\"\")","v":9000},{"$f":"IFERROR(INDEX('Master Database - amended'!$E$4:$AN$132,'Master Database - amended'!$C19,COLUMNS($A$15:T$133)),\"\")","v":"Pulse duration can be random or vary between 500 ms and 9000 ms."},{"$f":"IFERROR(INDEX('Master Database - amended'!$E$4:$AN$132,'Master Database - amended'!$C19,COLUMNS($A$15:U$133)),\"\")","v":"No Data Available"},{"$f":"IFERROR(INDEX('Master Database - amended'!$E$4:$AN$132,'Master Database - amended'!$C19,COLUMNS($A$15:V30)),\"\")","v":"No Data Available"},{"$f":"IFERROR(INDEX('Master Database - amended'!$E$4:$AN$132,'Master Database - amended'!$C19,COLUMNS($A$15:W$133)),\"\")","v":"3: High confidence"},{"$f":"IFERROR(INDEX('Master Database - amended'!$E$4:$AN$132,'Master Database - amended'!$C19,COLUMNS($A$15:X30)),\"\")","v":"N"},{"$f":"IFERROR(INDEX('Master Database - amended'!$E$4:$AN$132,'Master Database - amended'!$C19,COLUMNS($A$15:Y$133)),\"\")","v":"2: Medium confidence"},{"$f":"IFERROR(INDEX('Master Database - amended'!$E$4:$AN$132,'Master Database - amended'!$C19,COLUMNS($A$15:Z30)),\"\")","v":"Y"},{"$f":"IFERROR(INDEX('Master Database - amended'!$E$4:$AN$132,'Master Database - amended'!$C19,COLUMNS($A$15:AA$133)),\"\")","v":"No Data Available"},{"$f":"IFERROR(INDEX('Master Database - amended'!$E$4:$AN$132,'Master Database - amended'!$C19,COLUMNS($A$15:AB30)),\"\")","v":"No Data Available"},{"$f":"IFERROR(INDEX('Master Database - amended'!$E$4:$AN$132,'Master Database - amended'!$C19,COLUMNS($A$15:AC$133)),\"\")","v":"Dolphins"},{"$f":"IFERROR(INDEX('Master Database - amended'!$E$4:$AN$132,'Master Database - amended'!$C19,COLUMNS($A$15:AD$133)),\"\")","v":"No Data Available"},{"$f":"IFERROR(INDEX('Master Database - amended'!$E$4:$AN$132,'Master Database - amended'!$C19,COLUMNS($A$15:AE$133)),\"\")","v":">1000m"},{"$f":"IFERROR(INDEX('Master Database - amended'!$E$4:$AN$132,'Master Database - amended'!$C19,COLUMNS($A$15:AF$133)),\"\")","v":">1000m"},{"$f":"IFERROR(INDEX('Master Database - amended'!$E$4:$AN$132,'Master Database - amended'!$C19,COLUMNS($A$15:AG$133)),\"\")","v":"No Data Available"},{"$f":"IFERROR(INDEX('Master Database - amended'!$E$4:$AN$132,'Master Database - amended'!$C19,COLUMNS($A$15:AH30)),\"\")","v":"https://www.carbontrust.com/media/675291/orjip-add-study-final-report-stage-1-phase-2.pdf"},"No Evidence Available",{"$f":"IFERROR(INDEX('Master Database - amended'!$E$4:$AN$132,'Master Database - amended'!$C19,COLUMNS($A$15:AJ$133)),\"\")","v":"ORJIP review  concludes that the DDD and DDD03 are not designed to have the control functions necessary for OWF applications."}]
[{"$f":"IFERROR(INDEX('Master Database - amended'!$E$4:$AN$133,'Master Database - amended'!$C20,COLUMNS($A$15:$A$133)),\"\")","v":"13b"},{"$f":"IFERROR(INDEX('Master Database - amended'!$E$4:$AN$132,'Master Database - amended'!$C20,COLUMNS($A$15:B$133)),\"\")","v":"STM products"},{"$f":"IFERROR(INDEX('Master Database - amended'!$E$4:$AN$132,'Master Database - amended'!$C20,COLUMNS($A$15:C$133)),\"\")","v":"DDD 03N"},{"$f":"IFERROR(INDEX('Master Database - amended'!$E$4:$AN$132,'Master Database - amended'!$C20,COLUMNS($A$15:D$133)),\"\")","v":"Automatic"},{"$f":"IFERROR(INDEX('Master Database - amended'!$E$4:$AN$132,'Master Database - amended'!$C20,COLUMNS($A$15:E$133)),\"\")","v":"http://www.stm-products.com/en/products/fishing-technology/"},{"$f":"HYPERLINK(E31,E31)","v":"http://www.stm-products.com/en/products/fishing-technology/"},{"$f":"IFERROR(INDEX('Master Database - amended'!$E$4:$AN$132,'Master Database - amended'!$C20,COLUMNS($A$15:G$133)),\"\")","v":"Bycatch (gillnets)"},{"$f":"IFERROR(INDEX('Master Database - amended'!$E$4:$AN$132,'Master Database - amended'!$C20,COLUMNS($A$15:H$133)),\"\")","v":165},{"$f":"IFERROR(INDEX('Master Database - amended'!$E$4:$AN$132,'Master Database - amended'!$C20,COLUMNS($A$15:I$133)),\"\")","v":168},{"$f":"IFERROR(INDEX('Master Database - amended'!$E$4:$AN$132,'Master Database - amended'!$C20,COLUMNS($A$15:J$133)),\"\")","v":165},{"$f":"IFERROR(INDEX('Master Database - amended'!$E$4:$AN$132,'Master Database - amended'!$C20,COLUMNS($A$15:K$133)),\"\")","v":5.0000000000000001E-3},{"$f":"IFERROR(INDEX('Master Database - amended'!$E$4:$AN$132,'Master Database - amended'!$C20,COLUMNS($A$15:L$133)),\"\")","v":0.5},{"$f":"IFERROR(INDEX('Master Database - amended'!$E$4:$AN$132,'Master Database - amended'!$C20,COLUMNS($A$15:M$133)),\"\")","v":"5 - 500 kHz (random)."},{"$f":"IFERROR(INDEX('Master Database - amended'!$E$4:$AN$132,'Master Database - amended'!$C20,COLUMNS($A$15:N$133)),\"\")","v":90000},{"$f":"IFERROR(INDEX('Master Database - amended'!$E$4:$AN$132,'Master Database - amended'!$C20,COLUMNS($A$15:O$133)),\"\")","v":90000},{"$f":"IFERROR(INDEX('Master Database - amended'!$E$4:$AN$132,'Master Database - amended'!$C20,COLUMNS($A$15:P$133)),\"\")","v":"Average duration between each pulse is 90 s."},{"$f":"IFERROR(INDEX('Master Database - amended'!$E$4:$AN$132,'Master Database - amended'!$C20,COLUMNS($A$15:Q$133)),\"\")","v":"Intermittent"},{"$f":"IFERROR(INDEX('Master Database - amended'!$E$4:$AN$132,'Master Database - amended'!$C20,COLUMNS($A$15:R$133)),\"\")","v":500},{"$f":"IFERROR(INDEX('Master Database - amended'!$E$4:$AN$132,'Master Database - amended'!$C20,COLUMNS($A$15:S$133)),\"\")","v":9000},{"$f":"IFERROR(INDEX('Master Database - amended'!$E$4:$AN$132,'Master Database - amended'!$C20,COLUMNS($A$15:T$133)),\"\")","v":"Pulse duration can be random or vary between 500 ms and 9000 ms."},{"$f":"IFERROR(INDEX('Master Database - amended'!$E$4:$AN$132,'Master Database - amended'!$C20,COLUMNS($A$15:U$133)),\"\")","v":"No Data Available"},{"$f":"IFERROR(INDEX('Master Database - amended'!$E$4:$AN$132,'Master Database - amended'!$C20,COLUMNS($A$15:V31)),\"\")","v":"No Data Available"},{"$f":"IFERROR(INDEX('Master Database - amended'!$E$4:$AN$132,'Master Database - amended'!$C20,COLUMNS($A$15:W$133)),\"\")","v":"3: High confidence"},{"$f":"IFERROR(INDEX('Master Database - amended'!$E$4:$AN$132,'Master Database - amended'!$C20,COLUMNS($A$15:X31)),\"\")","v":"N"},{"$f":"IFERROR(INDEX('Master Database - amended'!$E$4:$AN$132,'Master Database - amended'!$C20,COLUMNS($A$15:Y$133)),\"\")","v":"2: Medium confidence"},{"$f":"IFERROR(INDEX('Master Database - amended'!$E$4:$AN$132,'Master Database - amended'!$C20,COLUMNS($A$15:Z31)),\"\")","v":"Y"},{"$f":"IFERROR(INDEX('Master Database - amended'!$E$4:$AN$132,'Master Database - amended'!$C20,COLUMNS($A$15:AA$133)),\"\")","v":"No Data Available"},{"$f":"IFERROR(INDEX('Master Database - amended'!$E$4:$AN$132,'Master Database - amended'!$C20,COLUMNS($A$15:AB31)),\"\")","v":"No Data Available"},{"$f":"IFERROR(INDEX('Master Database - amended'!$E$4:$AN$132,'Master Database - amended'!$C20,COLUMNS($A$15:AC$133)),\"\")","v":"Dolphins"},{"$f":"IFERROR(INDEX('Master Database - amended'!$E$4:$AN$132,'Master Database - amended'!$C20,COLUMNS($A$15:AD$133)),\"\")","v":"No Data Available"},{"$f":"IFERROR(INDEX('Master Database - amended'!$E$4:$AN$132,'Master Database - amended'!$C20,COLUMNS($A$15:AE$133)),\"\")","v":">1000m"},{"$f":"IFERROR(INDEX('Master Database - amended'!$E$4:$AN$132,'Master Database - amended'!$C20,COLUMNS($A$15:AF$133)),\"\")","v":">1000m"},{"$f":"IFERROR(INDEX('Master Database - amended'!$E$4:$AN$132,'Master Database - amended'!$C20,COLUMNS($A$15:AG$133)),\"\")","v":"No Data Available"},{"$f":"IFERROR(INDEX('Master Database - amended'!$E$4:$AN$132,'Master Database - amended'!$C20,COLUMNS($A$15:AH31)),\"\")","v":"https://www.carbontrust.com/media/675291/orjip-add-study-final-report-stage-1-phase-2.pdf"},"https://www.researchgate.net/profile/Bruno_Diaz_Lopez/publication/317033696_Trial_of_acoustics_deterrents_for_prevention_of_bottlenose_dolphin_depredation_on_gillnets/links/59206858458515e3d402f65f/Trial-of-acoustics-deterrents-for-prevention-of-bottlenose-dolphin-depredation-on-gillnets.pdf",{"$f":"IFERROR(INDEX('Master Database - amended'!$E$4:$AN$132,'Master Database - amended'!$C20,COLUMNS($A$15:AJ$133)),\"\")","v":"ORJIP review  concludes that the DDD and DDD03 are not designed to have the control functions necessary for OWF applications."}]
[{"$f":"IFERROR(INDEX('Master Database - amended'!$E$4:$AN$133,'Master Database - amended'!$C21,COLUMNS($A$15:$A$133)),\"\")","v":"13c"},{"$f":"IFERROR(INDEX('Master Database - amended'!$E$4:$AN$132,'Master Database - amended'!$C21,COLUMNS($A$15:B$133)),\"\")","v":"STM products"},{"$f":"IFERROR(INDEX('Master Database - amended'!$E$4:$AN$132,'Master Database - amended'!$C21,COLUMNS($A$15:C$133)),\"\")","v":"DDD 03H"},{"$f":"IFERROR(INDEX('Master Database - amended'!$E$4:$AN$132,'Master Database - amended'!$C21,COLUMNS($A$15:D$133)),\"\")","v":"Automatic"},{"$f":"IFERROR(INDEX('Master Database - amended'!$E$4:$AN$132,'Master Database - amended'!$C21,COLUMNS($A$15:E$133)),\"\")","v":"http://www.stm-products.com/en/products/fishing-technology/"},{"$f":"HYPERLINK(E32,E32)","v":"http://www.stm-products.com/en/products/fishing-technology/"},{"$f":"IFERROR(INDEX('Master Database - amended'!$E$4:$AN$132,'Master Database - amended'!$C21,COLUMNS($A$15:G$133)),\"\")","v":"Bycatch (gillnets)"},{"$f":"IFERROR(INDEX('Master Database - amended'!$E$4:$AN$132,'Master Database - amended'!$C21,COLUMNS($A$15:H$133)),\"\")","v":165},{"$f":"IFERROR(INDEX('Master Database - amended'!$E$4:$AN$132,'Master Database - amended'!$C21,COLUMNS($A$15:I$133)),\"\")","v":168},{"$f":"IFERROR(INDEX('Master Database - amended'!$E$4:$AN$132,'Master Database - amended'!$C21,COLUMNS($A$15:J$133)),\"\")","v":165},{"$f":"IFERROR(INDEX('Master Database - amended'!$E$4:$AN$132,'Master Database - amended'!$C21,COLUMNS($A$15:K$133)),\"\")","v":5.0000000000000001E-3},{"$f":"IFERROR(INDEX('Master Database - amended'!$E$4:$AN$132,'Master Database - amended'!$C21,COLUMNS($A$15:L$133)),\"\")","v":0.5},{"$f":"IFERROR(INDEX('Master Database - amended'!$E$4:$AN$132,'Master Database - amended'!$C21,COLUMNS($A$15:M$133)),\"\")","v":"5 - 500 kHz (random)."},{"$f":"IFERROR(INDEX('Master Database - amended'!$E$4:$AN$132,'Master Database - amended'!$C21,COLUMNS($A$15:N$133)),\"\")","v":40000},{"$f":"IFERROR(INDEX('Master Database - amended'!$E$4:$AN$132,'Master Database - amended'!$C21,COLUMNS($A$15:O$133)),\"\")","v":40000},{"$f":"IFERROR(INDEX('Master Database - amended'!$E$4:$AN$132,'Master Database - amended'!$C21,COLUMNS($A$15:P$133)),\"\")","v":"Average duration between each pulse is 40 s."},{"$f":"IFERROR(INDEX('Master Database - amended'!$E$4:$AN$132,'Master Database - amended'!$C21,COLUMNS($A$15:Q$133)),\"\")","v":"Intermittent"},{"$f":"IFERROR(INDEX('Master Database - amended'!$E$4:$AN$132,'Master Database - amended'!$C21,COLUMNS($A$15:R$133)),\"\")","v":500},{"$f":"IFERROR(INDEX('Master Database - amended'!$E$4:$AN$132,'Master Database - amended'!$C21,COLUMNS($A$15:S$133)),\"\")","v":9000},{"$f":"IFERROR(INDEX('Master Database - amended'!$E$4:$AN$132,'Master Database - amended'!$C21,COLUMNS($A$15:T$133)),\"\")","v":"Pulse duration can be random or vary between 500 ms and 9000 ms."},{"$f":"IFERROR(INDEX('Master Database - amended'!$E$4:$AN$132,'Master Database - amended'!$C21,COLUMNS($A$15:U$133)),\"\")","v":"No Data Available"},{"$f":"IFERROR(INDEX('Master Database - amended'!$E$4:$AN$132,'Master Database - amended'!$C21,COLUMNS($A$15:V32)),\"\")","v":"No Data Available"},{"$f":"IFERROR(INDEX('Master Database - amended'!$E$4:$AN$132,'Master Database - amended'!$C21,COLUMNS($A$15:W$133)),\"\")","v":"3: High confidence"},{"$f":"IFERROR(INDEX('Master Database - amended'!$E$4:$AN$132,'Master Database - amended'!$C21,COLUMNS($A$15:X32)),\"\")","v":"N"},{"$f":"IFERROR(INDEX('Master Database - amended'!$E$4:$AN$132,'Master Database - amended'!$C21,COLUMNS($A$15:Y$133)),\"\")","v":"2: Medium confidence"},{"$f":"IFERROR(INDEX('Master Database - amended'!$E$4:$AN$132,'Master Database - amended'!$C21,COLUMNS($A$15:Z32)),\"\")","v":"Y"},{"$f":"IFERROR(INDEX('Master Database - amended'!$E$4:$AN$132,'Master Database - amended'!$C21,COLUMNS($A$15:AA$133)),\"\")","v":"No Data Available"},{"$f":"IFERROR(INDEX('Master Database - amended'!$E$4:$AN$132,'Master Database - amended'!$C21,COLUMNS($A$15:AB32)),\"\")","v":"No Data Available"},{"$f":"IFERROR(INDEX('Master Database - amended'!$E$4:$AN$132,'Master Database - amended'!$C21,COLUMNS($A$15:AC$133)),\"\")","v":"Dolphins"},{"$f":"IFERROR(INDEX('Master Database - amended'!$E$4:$AN$132,'Master Database - amended'!$C21,COLUMNS($A$15:AD$133)),\"\")","v":"No Data Available"},{"$f":"IFERROR(INDEX('Master Database - amended'!$E$4:$AN$132,'Master Database - amended'!$C21,COLUMNS($A$15:AE$133)),\"\")","v":">1000m"},{"$f":"IFERROR(INDEX('Master Database - amended'!$E$4:$AN$132,'Master Database - amended'!$C21,COLUMNS($A$15:AF$133)),\"\")","v":">1000m"},{"$f":"IFERROR(INDEX('Master Database - amended'!$E$4:$AN$132,'Master Database - amended'!$C21,COLUMNS($A$15:AG$133)),\"\")","v":"No Data Available"},{"$f":"IFERROR(INDEX('Master Database - amended'!$E$4:$AN$132,'Master Database - amended'!$C21,COLUMNS($A$15:AH32)),\"\")","v":"https://www.carbontrust.com/media/675291/orjip-add-study-final-report-stage-1-phase-2.pdf"},"http://www.gov.scot/Resource/0043/00438860.pdf\n\nhttp://onlinelibrary.wiley.com/doi/10.1111/acv.12141/abstract\n\nhttps://www.carbontrust.com/media/675291/orjip-add-study-final-report-stage-1-phase-2.pdf",{"$f":"IFERROR(INDEX('Master Database - amended'!$E$4:$AN$132,'Master Database - amended'!$C21,COLUMNS($A$15:AJ$133)),\"\")","v":"ORJIP review  concludes that the DDD and DDD03 are not designed to have the control functions necessary for OWF applications."}]
[{"$f":"IFERROR(INDEX('Master Database - amended'!$E$4:$AN$133,'Master Database - amended'!$C22,COLUMNS($A$15:$A$133)),\"\")","v":"13d"},{"$f":"IFERROR(INDEX('Master Database - amended'!$E$4:$AN$132,'Master Database - amended'!$C22,COLUMNS($A$15:B$133)),\"\")","v":"STM products"},{"$f":"IFERROR(INDEX('Master Database - amended'!$E$4:$AN$132,'Master Database - amended'!$C22,COLUMNS($A$15:C$133)),\"\")","v":"DDD 03U"},{"$f":"IFERROR(INDEX('Master Database - amended'!$E$4:$AN$132,'Master Database - amended'!$C22,COLUMNS($A$15:D$133)),\"\")","v":"Automatic"},{"$f":"IFERROR(INDEX('Master Database - amended'!$E$4:$AN$132,'Master Database - amended'!$C22,COLUMNS($A$15:E$133)),\"\")","v":"http://www.stm-products.com/en/products/fishing-technology/"},{"$f":"HYPERLINK(E33,E33)","v":"http://www.stm-products.com/en/products/fishing-technology/"},{"$f":"IFERROR(INDEX('Master Database - amended'!$E$4:$AN$132,'Master Database - amended'!$C22,COLUMNS($A$15:G$133)),\"\")","v":"Bycatch (gillnets)"},{"$f":"IFERROR(INDEX('Master Database - amended'!$E$4:$AN$132,'Master Database - amended'!$C22,COLUMNS($A$15:H$133)),\"\")","v":165},{"$f":"IFERROR(INDEX('Master Database - amended'!$E$4:$AN$132,'Master Database - amended'!$C22,COLUMNS($A$15:I$133)),\"\")","v":168},{"$f":"IFERROR(INDEX('Master Database - amended'!$E$4:$AN$132,'Master Database - amended'!$C22,COLUMNS($A$15:J$133)),\"\")","v":165},{"$f":"IFERROR(INDEX('Master Database - amended'!$E$4:$AN$132,'Master Database - amended'!$C22,COLUMNS($A$15:K$133)),\"\")","v":5.0000000000000001E-3},{"$f":"IFERROR(INDEX('Master Database - amended'!$E$4:$AN$132,'Master Database - amended'!$C22,COLUMNS($A$15:L$133)),\"\")","v":0.5},{"$f":"IFERROR(INDEX('Master Database - amended'!$E$4:$AN$132,'Master Database - amended'!$C22,COLUMNS($A$15:M$133)),\"\")","v":"5 - 500 kHz (random)."},{"$f":"IFERROR(INDEX('Master Database - amended'!$E$4:$AN$132,'Master Database - amended'!$C22,COLUMNS($A$15:N$133)),\"\")","v":25000},{"$f":"IFERROR(INDEX('Master Database - amended'!$E$4:$AN$132,'Master Database - amended'!$C22,COLUMNS($A$15:O$133)),\"\")","v":25000},{"$f":"IFERROR(INDEX('Master Database - amended'!$E$4:$AN$132,'Master Database - amended'!$C22,COLUMNS($A$15:P$133)),\"\")","v":"Average duration between each pulse is 25 s."},{"$f":"IFERROR(INDEX('Master Database - amended'!$E$4:$AN$132,'Master Database - amended'!$C22,COLUMNS($A$15:Q$133)),\"\")","v":"Intermittent"},{"$f":"IFERROR(INDEX('Master Database - amended'!$E$4:$AN$132,'Master Database - amended'!$C22,COLUMNS($A$15:R$133)),\"\")","v":500},{"$f":"IFERROR(INDEX('Master Database - amended'!$E$4:$AN$132,'Master Database - amended'!$C22,COLUMNS($A$15:S$133)),\"\")","v":9000},{"$f":"IFERROR(INDEX('Master Database - amended'!$E$4:$AN$132,'Master Database - amended'!$C22,COLUMNS($A$15:T$133)),\"\")","v":"Pulse duration can be random or vary between 500 ms and 9000 ms."},{"$f":"IFERROR(INDEX('Master Database - amended'!$E$4:$AN$132,'Master Database - amended'!$C22,COLUMNS($A$15:U$133)),\"\")","v":"No Data Available"},{"$f":"IFERROR(INDEX('Master Database - amended'!$E$4:$AN$132,'Master Database - amended'!$C22,COLUMNS($A$15:V33)),\"\")","v":"No Data Available"},{"$f":"IFERROR(INDEX('Master Database - amended'!$E$4:$AN$132,'Master Database - amended'!$C22,COLUMNS($A$15:W$133)),\"\")","v":"3: High confidence"},{"$f":"IFERROR(INDEX('Master Database - amended'!$E$4:$AN$132,'Master Database - amended'!$C22,COLUMNS($A$15:X33)),\"\")","v":"N"},{"$f":"IFERROR(INDEX('Master Database - amended'!$E$4:$AN$132,'Master Database - amended'!$C22,COLUMNS($A$15:Y$133)),\"\")","v":"2: Medium confidence"},{"$f":"IFERROR(INDEX('Master Database - amended'!$E$4:$AN$132,'Master Database - amended'!$C22,COLUMNS($A$15:Z33)),\"\")","v":"Y"},{"$f":"IFERROR(INDEX('Master Database - amended'!$E$4:$AN$132,'Master Database - amended'!$C22,COLUMNS($A$15:AA$133)),\"\")","v":"No Data Available"},{"$f":"IFERROR(INDEX('Master Database - amended'!$E$4:$AN$132,'Master Database - amended'!$C22,COLUMNS($A$15:AB33)),\"\")","v":"No Data Available"},{"$f":"IFERROR(INDEX('Master Database - amended'!$E$4:$AN$132,'Master Database - amended'!$C22,COLUMNS($A$15:AC$133)),\"\")","v":"Dolphins"},{"$f":"IFERROR(INDEX('Master Database - amended'!$E$4:$AN$132,'Master Database - amended'!$C22,COLUMNS($A$15:AD$133)),\"\")","v":"No Data Available"},{"$f":"IFERROR(INDEX('Master Database - amended'!$E$4:$AN$132,'Master Database - amended'!$C22,COLUMNS($A$15:AE$133)),\"\")","v":">1000m"},{"$f":"IFERROR(INDEX('Master Database - amended'!$E$4:$AN$132,'Master Database - amended'!$C22,COLUMNS($A$15:AF$133)),\"\")","v":">1000m"},{"$f":"IFERROR(INDEX('Master Database - amended'!$E$4:$AN$132,'Master Database - amended'!$C22,COLUMNS($A$15:AG$133)),\"\")","v":"No Data Available"},{"$f":"IFERROR(INDEX('Master Database - amended'!$E$4:$AN$132,'Master Database - amended'!$C22,COLUMNS($A$15:AH33)),\"\")","v":"https://www.carbontrust.com/media/675291/orjip-add-study-final-report-stage-1-phase-2.pdf"},"No Evidence Available",{"$f":"IFERROR(INDEX('Master Database - amended'!$E$4:$AN$132,'Master Database - amended'!$C22,COLUMNS($A$15:AJ$133)),\"\")","v":"ORJIP review  concludes that the DDD and DDD03 are not designed to have the control functions necessary for OWF applications."}]
[{"$f":"IFERROR(INDEX('Master Database - amended'!$E$4:$AN$133,'Master Database - amended'!$C23,COLUMNS($A$15:$A$133)),\"\")","v":"13e"},{"$f":"IFERROR(INDEX('Master Database - amended'!$E$4:$AN$132,'Master Database - amended'!$C23,COLUMNS($A$15:B$133)),\"\")","v":"STM products"},{"$f":"IFERROR(INDEX('Master Database - amended'!$E$4:$AN$132,'Master Database - amended'!$C23,COLUMNS($A$15:C$133)),\"\")","v":"Dolphin interactive deterrent (DiD) 01"},{"$f":"IFERROR(INDEX('Master Database - amended'!$E$4:$AN$132,'Master Database - amended'!$C23,COLUMNS($A$15:D$133)),\"\")","v":"Automatic"},{"$f":"IFERROR(INDEX('Master Database - amended'!$E$4:$AN$132,'Master Database - amended'!$C23,COLUMNS($A$15:E$133)),\"\")","v":"http://www.stm-products.com/en/products/fishing-technology/"},{"$f":"HYPERLINK(E34,E34)","v":"http://www.stm-products.com/en/products/fishing-technology/"},{"$f":"IFERROR(INDEX('Master Database - amended'!$E$4:$AN$132,'Master Database - amended'!$C23,COLUMNS($A$15:G$133)),\"\")","v":"Bycatch (gillnets)"},{"$f":"IFERROR(INDEX('Master Database - amended'!$E$4:$AN$132,'Master Database - amended'!$C23,COLUMNS($A$15:H$133)),\"\")","v":165},{"$f":"IFERROR(INDEX('Master Database - amended'!$E$4:$AN$132,'Master Database - amended'!$C23,COLUMNS($A$15:I$133)),\"\")","v":168},{"$f":"IFERROR(INDEX('Master Database - amended'!$E$4:$AN$132,'Master Database - amended'!$C23,COLUMNS($A$15:J$133)),\"\")","v":"No Data Available"},{"$f":"IFERROR(INDEX('Master Database - amended'!$E$4:$AN$132,'Master Database - amended'!$C23,COLUMNS($A$15:K$133)),\"\")","v":5.0000000000000001E-3},{"$f":"IFERROR(INDEX('Master Database - amended'!$E$4:$AN$132,'Master Database - amended'!$C23,COLUMNS($A$15:L$133)),\"\")","v":0.5},{"$f":"IFERROR(INDEX('Master Database - amended'!$E$4:$AN$132,'Master Database - amended'!$C23,COLUMNS($A$15:M$133)),\"\")","v":"5 - 500 kHz (random)."},{"$f":"IFERROR(INDEX('Master Database - amended'!$E$4:$AN$132,'Master Database - amended'!$C23,COLUMNS($A$15:N$133)),\"\")","v":"No Data Available"},{"$f":"IFERROR(INDEX('Master Database - amended'!$E$4:$AN$132,'Master Database - amended'!$C23,COLUMNS($A$15:O$133)),\"\")","v":"No Data Available"},{"$f":"IFERROR(INDEX('Master Database - amended'!$E$4:$AN$132,'Master Database - amended'!$C23,COLUMNS($A$15:P$133)),\"\")","v":"Interactive depending on the presence of mammals in it's vicinity."},{"$f":"IFERROR(INDEX('Master Database - amended'!$E$4:$AN$132,'Master Database - amended'!$C23,COLUMNS($A$15:Q$133)),\"\")","v":"Intermittent"},{"$f":"IFERROR(INDEX('Master Database - amended'!$E$4:$AN$132,'Master Database - amended'!$C23,COLUMNS($A$15:R$133)),\"\")","v":"No Data Available"},{"$f":"IFERROR(INDEX('Master Database - amended'!$E$4:$AN$132,'Master Database - amended'!$C23,COLUMNS($A$15:S$133)),\"\")","v":"No Data Available"},{"$f":"IFERROR(INDEX('Master Database - amended'!$E$4:$AN$132,'Master Database - amended'!$C23,COLUMNS($A$15:T$133)),\"\")","v":"Interactive depending on the presence of mammals in it's vicinity."},{"$f":"IFERROR(INDEX('Master Database - amended'!$E$4:$AN$132,'Master Database - amended'!$C23,COLUMNS($A$15:U$133)),\"\")","v":"No Data Available"},{"$f":"IFERROR(INDEX('Master Database - amended'!$E$4:$AN$132,'Master Database - amended'!$C23,COLUMNS($A$15:V68)),\"\")","v":"No Data Available"},{"$f":"IFERROR(INDEX('Master Database - amended'!$E$4:$AN$132,'Master Database - amended'!$C23,COLUMNS($A$15:W$133)),\"\")","v":"3: High confidence"},{"$f":"IFERROR(INDEX('Master Database - amended'!$E$4:$AN$132,'Master Database - amended'!$C23,COLUMNS($A$15:X68)),\"\")","v":"N"},{"$f":"IFERROR(INDEX('Master Database - amended'!$E$4:$AN$132,'Master Database - amended'!$C23,COLUMNS($A$15:Y$133)),\"\")","v":"2: Medium confidence"},{"$f":"IFERROR(INDEX('Master Database - amended'!$E$4:$AN$132,'Master Database - amended'!$C23,COLUMNS($A$15:Z68)),\"\")","v":"Y"},{"$f":"IFERROR(INDEX('Master Database - amended'!$E$4:$AN$132,'Master Database - amended'!$C23,COLUMNS($A$15:AA$133)),\"\")","v":"No Data Available"},{"$f":"IFERROR(INDEX('Master Database - amended'!$E$4:$AN$132,'Master Database - amended'!$C23,COLUMNS($A$15:AB68)),\"\")","v":"No Data Available"},{"$f":"IFERROR(INDEX('Master Database - amended'!$E$4:$AN$132,'Master Database - amended'!$C23,COLUMNS($A$15:AC$133)),\"\")","v":"Dolphins"},{"$f":"IFERROR(INDEX('Master Database - amended'!$E$4:$AN$132,'Master Database - amended'!$C23,COLUMNS($A$15:AD$133)),\"\")","v":"No Data Available"},{"$f":"IFERROR(INDEX('Master Database - amended'!$E$4:$AN$132,'Master Database - amended'!$C23,COLUMNS($A$15:AE$133)),\"\")","v":">1000m"},{"$f":"IFERROR(INDEX('Master Database - amended'!$E$4:$AN$132,'Master Database - amended'!$C23,COLUMNS($A$15:AF$133)),\"\")","v":">1000m"},{"$f":"IFERROR(INDEX('Master Database - amended'!$E$4:$AN$132,'Master Database - amended'!$C23,COLUMNS($A$15:AG$133)),\"\")","v":"No Data Available"},{"$f":"IFERROR(INDEX('Master Database - amended'!$E$4:$AN$132,'Master Database - amended'!$C23,COLUMNS($A$15:AH68)),\"\")","v":"No Evidence Available"},"No Evidence Available",{"$f":"IFERROR(INDEX('Master Database - amended'!$E$4:$AN$132,'Master Database - amended'!$C23,COLUMNS($A$15:AJ$133)),\"\")","v":"No Comments"}]
[{"$f":"IFERROR(INDEX('Master Database - amended'!$E$4:$AN$133,'Master Database - amended'!$C24,COLUMNS($A$15:$A$133)),\"\")","v":14},{"$f":"IFERROR(INDEX('Master Database - amended'!$E$4:$AN$132,'Master Database - amended'!$C24,COLUMNS($A$15:B$133)),\"\")","v":"Dukane"},{"$f":"IFERROR(INDEX('Master Database - amended'!$E$4:$AN$132,'Master Database - amended'!$C24,COLUMNS($A$15:C$133)),\"\")","v":"NetMark 1000 alarm"},{"$f":"IFERROR(INDEX('Master Database - amended'!$E$4:$AN$132,'Master Database - amended'!$C24,COLUMNS($A$15:D$133)),\"\")","v":"No Data Available"},{"$f":"IFERROR(INDEX('Master Database - amended'!$E$4:$AN$132,'Master Database - amended'!$C24,COLUMNS($A$15:E$133)),\"\")","v":"https://spinoff.nasa.gov/spinoff1997/er1.html"},"https://spinoff.nasa.gov/spinoff1997/er1.html",{"$f":"IFERROR(INDEX('Master Database - amended'!$E$4:$AN$132,'Master Database - amended'!$C24,COLUMNS($A$15:G$133)),\"\")","v":"Bycatch (gillnets)"},{"$f":"IFERROR(INDEX('Master Database - amended'!$E$4:$AN$132,'Master Database - amended'!$C24,COLUMNS($A$15:H$133)),\"\")","v":132},{"$f":"IFERROR(INDEX('Master Database - amended'!$E$4:$AN$132,'Master Database - amended'!$C24,COLUMNS($A$15:I$133)),\"\")","v":135},{"$f":"IFERROR(INDEX('Master Database - amended'!$E$4:$AN$132,'Master Database - amended'!$C24,COLUMNS($A$15:J$133)),\"\")","v":127},{"$f":"IFERROR(INDEX('Master Database - amended'!$E$4:$AN$132,'Master Database - amended'!$C24,COLUMNS($A$15:K$133)),\"\")","v":10},{"$f":"IFERROR(INDEX('Master Database - amended'!$E$4:$AN$132,'Master Database - amended'!$C24,COLUMNS($A$15:L$133)),\"\")","v":10},{"$f":"IFERROR(INDEX('Master Database - amended'!$E$4:$AN$132,'Master Database - amended'!$C24,COLUMNS($A$15:M$133)),\"\")","v":"10 kHz"},{"$f":"IFERROR(INDEX('Master Database - amended'!$E$4:$AN$132,'Master Database - amended'!$C24,COLUMNS($A$15:N$133)),\"\")","v":4000},{"$f":"IFERROR(INDEX('Master Database - amended'!$E$4:$AN$132,'Master Database - amended'!$C24,COLUMNS($A$15:O$133)),\"\")","v":4000},{"$f":"IFERROR(INDEX('Master Database - amended'!$E$4:$AN$132,'Master Database - amended'!$C24,COLUMNS($A$15:P$133)),\"\")","v":"Pulse interval of 4 s."},{"$f":"IFERROR(INDEX('Master Database - amended'!$E$4:$AN$132,'Master Database - amended'!$C24,COLUMNS($A$15:Q$133)),\"\")","v":"Intermittent"},{"$f":"IFERROR(INDEX('Master Database - amended'!$E$4:$AN$132,'Master Database - amended'!$C24,COLUMNS($A$15:R$133)),\"\")","v":300},{"$f":"IFERROR(INDEX('Master Database - amended'!$E$4:$AN$132,'Master Database - amended'!$C24,COLUMNS($A$15:S$133)),\"\")","v":300},{"$f":"IFERROR(INDEX('Master Database - amended'!$E$4:$AN$132,'Master Database - amended'!$C24,COLUMNS($A$15:T$133)),\"\")","v":"300 ms"},{"$f":"IFERROR(INDEX('Master Database - amended'!$E$4:$AN$132,'Master Database - amended'!$C24,COLUMNS($A$15:U$133)),\"\")","v":"No Data Available"},{"$f":"IFERROR(INDEX('Master Database - amended'!$E$4:$AN$132,'Master Database - amended'!$C24,COLUMNS($A$15:V35)),\"\")","v":"No Data Available"},{"$f":"IFERROR(INDEX('Master Database - amended'!$E$4:$AN$132,'Master Database - amended'!$C24,COLUMNS($A$15:W$133)),\"\")","v":"2: Medium confidence"},{"$f":"IFERROR(INDEX('Master Database - amended'!$E$4:$AN$132,'Master Database - amended'!$C24,COLUMNS($A$15:X35)),\"\")","v":"Y"},{"$f":"IFERROR(INDEX('Master Database - amended'!$E$4:$AN$132,'Master Database - amended'!$C24,COLUMNS($A$15:Y$133)),\"\")","v":"3: High confidence"},{"$f":"IFERROR(INDEX('Master Database - amended'!$E$4:$AN$132,'Master Database - amended'!$C24,COLUMNS($A$15:Z35)),\"\")","v":"Y"},{"$f":"IFERROR(INDEX('Master Database - amended'!$E$4:$AN$132,'Master Database - amended'!$C24,COLUMNS($A$15:AA$133)),\"\")","v":"No Data Available"},{"$f":"IFERROR(INDEX('Master Database - amended'!$E$4:$AN$132,'Master Database - amended'!$C24,COLUMNS($A$15:AB35)),\"\")","v":"No Data Available"},{"$f":"IFERROR(INDEX('Master Database - amended'!$E$4:$AN$132,'Master Database - amended'!$C24,COLUMNS($A$15:AC$133)),\"\")","v":"Harbour Porpoise [Confidence Score 3] & Hector's Dolphin [Confidence Score 2] "},{"$f":"IFERROR(INDEX('Master Database - amended'!$E$4:$AN$132,'Master Database - amended'!$C24,COLUMNS($A$15:AD$133)),\"\")","v":"No Data Available"},{"$f":"IFERROR(INDEX('Master Database - amended'!$E$4:$AN$132,'Master Database - amended'!$C24,COLUMNS($A$15:AE$133)),\"\")","v":"No Data Available"},{"$f":"IFERROR(INDEX('Master Database - amended'!$E$4:$AN$132,'Master Database - amended'!$C24,COLUMNS($A$15:AF35)),\"\")","v":"<500m"},{"$f":"IFERROR(INDEX('Master Database - amended'!$E$4:$AN$132,'Master Database - amended'!$C24,COLUMNS($A$15:AG35)),\"\")","v":"No Data Available"},{"$f":"IFERROR(INDEX('Master Database - amended'!$E$4:$AN$132,'Master Database - amended'!$C24,COLUMNS($A$15:AH35)),\"\")","v":"https://www.nature.com/articles/41451\n\nhttp://www.ascobans.org/sites/default/files/document/Dawson_To-ping-or-not_ESR-2013.pdf\n\nhttps://swfsc.noaa.gov/uploadedFiles/Divisions/PRD/Programs/Coastal_Marine_Mammal/Barlow_Cameron_MMS19.pdf\n\nhttp://www.int-res.com/articles/esr2008/5/n005p301.pdf\n\nhttps://www.researchgate.net/publication/228419119_Will_Harbour_porpoises_Phocoena_phocoena_habituate_to_pingers\n\nhttps://www.researchgate.net/publication/222300489_Behavioral_Responses_of_Bottlenose_Dolphins_Tursiops_truncatus_to_Gillnets_and_Acoustic_Alarms\n\nhttp://www.nrcresearchpress.com/doi/pdfplus/10.1139/f98-162\n\nhttp://www.nrcresearchpress.com/doi/10.1139/F08-186#.Wplyzq5l-Ul\n\nhttps://www.researchgate.net/publication/285703537_The_effect_of_pingers_on_harbour_porpoise_Phocoena_phocoena_bycatch_and_fishing_effort_in_the_turbot_gill_net_fishery_in_the_Turkish_Black_Sea_coast\n\nhttps://www.rufford.org/files/2-20.12.08%20Detailed%20Final%20Report.pdf\n\nhttp://conservation.govt.nz/Documents/science-and-technical/CSL3071.PDF\n\nhttps://www.researchgate.net/publication/227652806_Reducing_incidental_mortality_of_Franciscana_dolphin_Pontoporia_blainvilei_with_acoustic_warning_devices_attached_to_fishing_nets\n\nhttp://www.gov.scot/Publications/2013/10/7618/4"},null,{"$f":"IFERROR(INDEX('Master Database - amended'!$E$4:$AN$132,'Master Database - amended'!$C24,COLUMNS($A$15:AJ35)),\"\")","v":"In Bordino et al. 2002, although pingers show promise as a management tool for this species, pinniped depredation suggests that higher pinger frequencies will be needed to avoid a “dinner bell” effect.\n\nIn Wilson and Carter 2013, deployment of off-the-shelf acoustic devices developed for other applications, is shown to be unlikely to be appropriate for a particular tidal-stream site. An AHD is likely to be detectable at ranges far greater than the sphere of influence of an individual turbine or even an entire array.\n"}]
[{"$f":"IFERROR(INDEX('Master Database - amended'!$E$4:$AN$133,'Master Database - amended'!$C25,COLUMNS($A$15:$A$133)),\"\")","v":"15a"},{"$f":"IFERROR(INDEX('Master Database - amended'!$E$4:$AN$133,'Master Database - amended'!$C25,COLUMNS($A$15:B$133)),\"\")","v":"Future Oceans"},{"$f":"IFERROR(INDEX('Master Database - amended'!$E$4:$AN$133,'Master Database - amended'!$C25,COLUMNS($A$15:C$133)),\"\")","v":"10KHz Porpoise pinger"},{"$f":"IFERROR(INDEX('Master Database - amended'!$E$4:$AN$133,'Master Database - amended'!$C25,COLUMNS($A$15:D$133)),\"\")","v":"Automatic"},{"$f":"IFERROR(INDEX('Master Database - amended'!$E$4:$AN$133,'Master Database - amended'!$C25,COLUMNS($A$15:E$133)),\"\")","v":"https://futureoceans.com/pingers/porpoise-pinger/"},{"$f":"HYPERLINK(E36,E36)","v":"https://futureoceans.com/pingers/porpoise-pinger/"},{"$f":"IFERROR(INDEX('Master Database - amended'!$E$4:$AN$133,'Master Database - amended'!$C25,COLUMNS($A$15:G$133)),\"\")","v":"Bycatch (gillnets)"},{"$f":"IFERROR(INDEX('Master Database - amended'!$E$4:$AN$133,'Master Database - amended'!$C25,COLUMNS($A$15:H$133)),\"\")","v":132},{"$f":"IFERROR(INDEX('Master Database - amended'!$E$4:$AN$133,'Master Database - amended'!$C25,COLUMNS($A$15:I$133)),\"\")","v":135},{"$f":"IFERROR(INDEX('Master Database - amended'!$E$4:$AN$133,'Master Database - amended'!$C25,COLUMNS($A$15:J$133)),\"\")","v":127},{"$f":"IFERROR(INDEX('Master Database - amended'!$E$4:$AN$133,'Master Database - amended'!$C25,COLUMNS($A$15:K$133)),\"\")","v":10},{"$f":"IFERROR(INDEX('Master Database - amended'!$E$4:$AN$133,'Master Database - amended'!$C25,COLUMNS($A$15:L$133)),\"\")","v":10},{"$f":"IFERROR(INDEX('Master Database - amended'!$E$4:$AN$133,'Master Database - amended'!$C25,COLUMNS($A$15:M$133)),\"\")","v":"10 kHz (includes multiple ultrasonic harmonics)."},{"$f":"IFERROR(INDEX('Master Database - amended'!$E$4:$AN$133,'Master Database - amended'!$C25,COLUMNS($A$15:N$133)),\"\")","v":4000},{"$f":"IFERROR(INDEX('Master Database - amended'!$E$4:$AN$133,'Master Database - amended'!$C25,COLUMNS($A$15:O$133)),\"\")","v":4000},{"$f":"IFERROR(INDEX('Master Database - amended'!$E$4:$AN$133,'Master Database - amended'!$C25,COLUMNS($A$15:P$133)),\"\")","v":"Pulse interval 4 s."},{"$f":"IFERROR(INDEX('Master Database - amended'!$E$4:$AN$133,'Master Database - amended'!$C25,COLUMNS($A$15:Q$133)),\"\")","v":"Intermittent"},{"$f":"IFERROR(INDEX('Master Database - amended'!$E$4:$AN$133,'Master Database - amended'!$C25,COLUMNS($A$15:R$133)),\"\")","v":300},{"$f":"IFERROR(INDEX('Master Database - amended'!$E$4:$AN$133,'Master Database - amended'!$C25,COLUMNS($A$15:S$133)),\"\")","v":300},{"$f":"IFERROR(INDEX('Master Database - amended'!$E$4:$AN$133,'Master Database - amended'!$C25,COLUMNS($A$15:T$133)),\"\")","v":"300 ms"},{"$f":"IFERROR(INDEX('Master Database - amended'!$E$4:$AN$133,'Master Database - amended'!$C25,COLUMNS($A$15:U$133)),\"\")","v":"No Data Available"},{"$f":"IFERROR(INDEX('Master Database - amended'!$E$4:$AN$132,'Master Database - amended'!$C27,COLUMNS($A$15:V68)),\"\")","v":"N"},{"$f":"IFERROR(INDEX('Master Database - amended'!$E$4:$AN$133,'Master Database - amended'!$C25,COLUMNS($A$15:W$133)),\"\")","v":"3: High confidence"},{"$f":"IFERROR(INDEX('Master Database - amended'!$E$4:$AN$132,'Master Database - amended'!$C27,COLUMNS($A$15:X68)),\"\")","v":"No Data Available"},{"$f":"IFERROR(INDEX('Master Database - amended'!$E$4:$AN$133,'Master Database - amended'!$C25,COLUMNS($A$15:Y$133)),\"\")","v":"No Data Available"},{"$f":"IFERROR(INDEX('Master Database - amended'!$E$4:$AN$132,'Master Database - amended'!$C27,COLUMNS($A$15:Z68)),\"\")","v":"No Data Available"},{"$f":"IFERROR(INDEX('Master Database - amended'!$E$4:$AN$133,'Master Database - amended'!$C25,COLUMNS($A$15:AA$133)),\"\")","v":"No Data Available"},{"$f":"IFERROR(INDEX('Master Database - amended'!$E$4:$AN$132,'Master Database - amended'!$C27,COLUMNS($A$15:AB68)),\"\")","v":"No Data Available"},{"$f":"IFERROR(INDEX('Master Database - amended'!$E$4:$AN$133,'Master Database - amended'!$C25,COLUMNS($A$15:AC$133)),\"\")","v":"Harbour Porpoise"},{"$f":"IFERROR(INDEX('Master Database - amended'!$E$4:$AN$133,'Master Database - amended'!$C25,COLUMNS($A$15:AD$133)),\"\")","v":"No Data Available"},{"$f":"IFERROR(INDEX('Master Database - amended'!$E$4:$AN$133,'Master Database - amended'!$C25,COLUMNS($A$15:AE$133)),\"\")","v":"No Data Available"},{"$f":"IFERROR(INDEX('Master Database - amended'!$E$4:$AN$133,'Master Database - amended'!$C25,COLUMNS($A$15:AF$133)),\"\")","v":"<500m"},{"$f":"IFERROR(INDEX('Master Database - amended'!$E$4:$AN$133,'Master Database - amended'!$C25,COLUMNS($A$15:AG$133)),\"\")","v":"No Data Available"},{"$f":"IFERROR(INDEX('Master Database - amended'!$E$4:$AN$132,'Master Database - amended'!$C27,COLUMNS($A$15:AH68)),\"\")","v":"http://www.int-res.com/articles/esr_oa/n025p035.pdf"},null,{"$f":"IFERROR(INDEX('Master Database - amended'!$E$4:$AN$133,'Master Database - amended'!$C25,COLUMNS($A$15:AJ$133)),\"\")","v":"This device is unlikely to be effective for the mitigation of impacts from wind farm piling (for humpback and snubfin dolphins at least)."}]
[{"$f":"IFERROR(INDEX('Master Database - amended'!$E$4:$AN$133,'Master Database - amended'!$C26,COLUMNS($A$15:$A$133)),\"\")","v":"15b"},{"$f":"IFERROR(INDEX('Master Database - amended'!$E$4:$AN$133,'Master Database - amended'!$C26,COLUMNS($A$15:B$133)),\"\")","v":"Future Oceans"},{"$f":"IFERROR(INDEX('Master Database - amended'!$E$4:$AN$133,'Master Database - amended'!$C26,COLUMNS($A$15:C$133)),\"\")","v":"70 KHz Dolphin pinger"},{"$f":"IFERROR(INDEX('Master Database - amended'!$E$4:$AN$133,'Master Database - amended'!$C26,COLUMNS($A$15:D$133)),\"\")","v":"Automatic"},{"$f":"IFERROR(INDEX('Master Database - amended'!$E$4:$AN$133,'Master Database - amended'!$C26,COLUMNS($A$15:E$133)),\"\")","v":"https://futureoceans.com/pingers/dolphin-pinger/"},"https://futureoceans.com/pingers/dolphin-pinger/",{"$f":"IFERROR(INDEX('Master Database - amended'!$E$4:$AN$133,'Master Database - amended'!$C26,COLUMNS($A$15:G$133)),\"\")","v":"Bycatch (gillnets)"},{"$f":"IFERROR(INDEX('Master Database - amended'!$E$4:$AN$133,'Master Database - amended'!$C26,COLUMNS($A$15:H$133)),\"\")","v":145},{"$f":"IFERROR(INDEX('Master Database - amended'!$E$4:$AN$133,'Master Database - amended'!$C26,COLUMNS($A$15:I$133)),\"\")","v":148},{"$f":"IFERROR(INDEX('Master Database - amended'!$E$4:$AN$133,'Master Database - amended'!$C26,COLUMNS($A$15:J$133)),\"\")","v":140},{"$f":"IFERROR(INDEX('Master Database - amended'!$E$4:$AN$133,'Master Database - amended'!$C26,COLUMNS($A$15:K$133)),\"\")","v":70},{"$f":"IFERROR(INDEX('Master Database - amended'!$E$4:$AN$133,'Master Database - amended'!$C26,COLUMNS($A$15:L$133)),\"\")","v":70},{"$f":"IFERROR(INDEX('Master Database - amended'!$E$4:$AN$133,'Master Database - amended'!$C26,COLUMNS($A$15:M$133)),\"\")","v":"70 kHz"},{"$f":"IFERROR(INDEX('Master Database - amended'!$E$4:$AN$133,'Master Database - amended'!$C26,COLUMNS($A$15:N$133)),\"\")","v":4000},{"$f":"IFERROR(INDEX('Master Database - amended'!$E$4:$AN$133,'Master Database - amended'!$C26,COLUMNS($A$15:O$133)),\"\")","v":4000},{"$f":"IFERROR(INDEX('Master Database - amended'!$E$4:$AN$133,'Master Database - amended'!$C26,COLUMNS($A$15:P$133)),\"\")","v":"Pulse interval 4 s."},{"$f":"IFERROR(INDEX('Master Database - amended'!$E$4:$AN$133,'Master Database - amended'!$C26,COLUMNS($A$15:Q$133)),\"\")","v":"Intermittent"},{"$f":"IFERROR(INDEX('Master Database - amended'!$E$4:$AN$133,'Master Database - amended'!$C26,COLUMNS($A$15:R$133)),\"\")","v":300},{"$f":"IFERROR(INDEX('Master Database - amended'!$E$4:$AN$133,'Master Database - amended'!$C26,COLUMNS($A$15:S$133)),\"\")","v":300},{"$f":"IFERROR(INDEX('Master Database - amended'!$E$4:$AN$133,'Master Database - amended'!$C26,COLUMNS($A$15:T$133)),\"\")","v":"300 ms"},{"$f":"IFERROR(INDEX('Master Database - amended'!$E$4:$AN$133,'Master Database - amended'!$C26,COLUMNS($A$15:U$133)),\"\")","v":"No Data Available"},{"$f":"IFERROR(INDEX('Master Database - amended'!$E$4:$AN$132,'Master Database - amended'!$C25,COLUMNS($A$15:V37)),\"\")","v":0},{"$f":"IFERROR(INDEX('Master Database - amended'!$E$4:$AN$133,'Master Database - amended'!$C26,COLUMNS($A$15:W$133)),\"\")","v":"2: Medium confidence"},{"$f":"IFERROR(INDEX('Master Database - amended'!$E$4:$AN$132,'Master Database - amended'!$C25,COLUMNS($A$15:X37)),\"\")","v":0},{"$f":"IFERROR(INDEX('Master Database - amended'!$E$4:$AN$133,'Master Database - amended'!$C26,COLUMNS($A$15:Y$133)),\"\")","v":"No Data Available"},{"$f":"IFERROR(INDEX('Master Database - amended'!$E$4:$AN$132,'Master Database - amended'!$C25,COLUMNS($A$15:Z37)),\"\")","v":0},{"$f":"IFERROR(INDEX('Master Database - amended'!$E$4:$AN$133,'Master Database - amended'!$C26,COLUMNS($A$15:AA$133)),\"\")","v":"No Data Available"},{"$f":"IFERROR(INDEX('Master Database - amended'!$E$4:$AN$132,'Master Database - amended'!$C25,COLUMNS($A$15:AB37)),\"\")","v":0},{"$f":"IFERROR(INDEX('Master Database - amended'!$E$4:$AN$133,'Master Database - amended'!$C26,COLUMNS($A$15:AC$133)),\"\")","v":"Humpback dolphin & snubfin dolphin [Confidence Score 3 and Y], Bottlenose Dolphin [Confidence Score 2 and N]."},{"$f":"IFERROR(INDEX('Master Database - amended'!$E$4:$AN$133,'Master Database - amended'!$C26,COLUMNS($A$15:AD$133)),\"\")","v":"No Data Available"},{"$f":"IFERROR(INDEX('Master Database - amended'!$E$4:$AN$133,'Master Database - amended'!$C26,COLUMNS($A$15:AE$133)),\"\")","v":"<500m"},{"$f":"IFERROR(INDEX('Master Database - amended'!$E$4:$AN$133,'Master Database - amended'!$C26,COLUMNS($A$15:AF$133)),\"\")","v":"No Data Available"},{"$f":"IFERROR(INDEX('Master Database - amended'!$E$4:$AN$133,'Master Database - amended'!$C26,COLUMNS($A$15:AG$133)),\"\")","v":"No Data Available"},{"$f":"IFERROR(INDEX('Master Database - amended'!$E$4:$AN$132,'Master Database - amended'!$C25,COLUMNS($A$15:AH37)),\"\")","v":"http://www.int-res.com/articles/esr_oa/n020p271.pdf"},null,{"$f":"IFERROR(INDEX('Master Database - amended'!$E$4:$AN$133,'Master Database - amended'!$C26,COLUMNS($A$15:AJ$133)),\"\")","v":"No Comments"}]
[{"$f":"IFERROR(INDEX('Master Database - amended'!$E$4:$AN$133,'Master Database - amended'!$C27,COLUMNS($A$15:$A$133)),\"\")","v":"15c"},{"$f":"IFERROR(INDEX('Master Database - amended'!$E$4:$AN$132,'Master Database - amended'!$C27,COLUMNS($A$15:B133)),\"\")","v":"Future Oceans"},{"$f":"IFERROR(INDEX('Master Database - amended'!$E$4:$AN$132,'Master Database - amended'!$C27,COLUMNS($A$15:C133)),\"\")","v":"3 kHz Whale pinger"},{"$f":"IFERROR(INDEX('Master Database - amended'!$E$4:$AN$132,'Master Database - amended'!$C27,COLUMNS($A$15:D133)),\"\")","v":"Automatic"},{"$f":"IFERROR(INDEX('Master Database - amended'!$E$4:$AN$132,'Master Database - amended'!$C27,COLUMNS($A$15:E133)),\"\")","v":"https://futureoceans.com/pingers/whale-pinger/"},"https://futureoceans.com/pingers/whale-pinger/",{"$f":"IFERROR(INDEX('Master Database - amended'!$E$4:$AN$132,'Master Database - amended'!$C27,COLUMNS($A$15:G133)),\"\")","v":"Bycatch (gillnets)"},{"$f":"IFERROR(INDEX('Master Database - amended'!$E$4:$AN$132,'Master Database - amended'!$C27,COLUMNS($A$15:H133)),\"\")","v":135},{"$f":"IFERROR(INDEX('Master Database - amended'!$E$4:$AN$132,'Master Database - amended'!$C27,COLUMNS($A$15:I133)),\"\")","v":138},{"$f":"IFERROR(INDEX('Master Database - amended'!$E$4:$AN$132,'Master Database - amended'!$C27,COLUMNS($A$15:J133)),\"\")","v":130},{"$f":"IFERROR(INDEX('Master Database - amended'!$E$4:$AN$132,'Master Database - amended'!$C27,COLUMNS($A$15:K133)),\"\")","v":3},{"$f":"IFERROR(INDEX('Master Database - amended'!$E$4:$AN$132,'Master Database - amended'!$C27,COLUMNS($A$15:L133)),\"\")","v":3},{"$f":"IFERROR(INDEX('Master Database - amended'!$E$4:$AN$132,'Master Database - amended'!$C27,COLUMNS($A$15:M133)),\"\")","v":"3 kHz (± .5 kHz)"},{"$f":"IFERROR(INDEX('Master Database - amended'!$E$4:$AN$132,'Master Database - amended'!$C27,COLUMNS($A$15:N133)),\"\")","v":4000},{"$f":"IFERROR(INDEX('Master Database - amended'!$E$4:$AN$132,'Master Database - amended'!$C27,COLUMNS($A$15:O133)),\"\")","v":4000},{"$f":"IFERROR(INDEX('Master Database - amended'!$E$4:$AN$132,'Master Database - amended'!$C27,COLUMNS($A$15:P133)),\"\")","v":"Pulse interval 4 s."},{"$f":"IFERROR(INDEX('Master Database - amended'!$E$4:$AN$132,'Master Database - amended'!$C27,COLUMNS($A$15:Q133)),\"\")","v":"Intermittent"},{"$f":"IFERROR(INDEX('Master Database - amended'!$E$4:$AN$132,'Master Database - amended'!$C27,COLUMNS($A$15:R133)),\"\")","v":300},{"$f":"IFERROR(INDEX('Master Database - amended'!$E$4:$AN$132,'Master Database - amended'!$C27,COLUMNS($A$15:S133)),\"\")","v":300},{"$f":"IFERROR(INDEX('Master Database - amended'!$E$4:$AN$132,'Master Database - amended'!$C27,COLUMNS($A$15:T133)),\"\")","v":"300 ms"},{"$f":"IFERROR(INDEX('Master Database - amended'!$E$4:$AN$132,'Master Database - amended'!$C27,COLUMNS($A$15:U133)),\"\")","v":"3: High confidence"},{"$f":"IFERROR(INDEX('Master Database - amended'!$E$4:$AN$132,'Master Database - amended'!$C26,COLUMNS($A$15:V68)),\"\")","v":"No Data Available"},{"$f":"IFERROR(INDEX('Master Database - amended'!$E$4:$AN$132,'Master Database - amended'!$C27,COLUMNS($A$15:W133)),\"\")","v":"No Data Available"},{"$f":"IFERROR(INDEX('Master Database - amended'!$E$4:$AN$132,'Master Database - amended'!$C26,COLUMNS($A$15:X68)),\"\")","v":"Y"},{"$f":"IFERROR(INDEX('Master Database - amended'!$E$4:$AN$132,'Master Database - amended'!$C27,COLUMNS($A$15:Y133)),\"\")","v":"No Data Available"},{"$f":"IFERROR(INDEX('Master Database - amended'!$E$4:$AN$132,'Master Database - amended'!$C26,COLUMNS($A$15:Z68)),\"\")","v":"No Data Available"},{"$f":"IFERROR(INDEX('Master Database - amended'!$E$4:$AN$132,'Master Database - amended'!$C27,COLUMNS($A$15:AA133)),\"\")","v":"No Data Available"},{"$f":"IFERROR(INDEX('Master Database - amended'!$E$4:$AN$132,'Master Database - amended'!$C26,COLUMNS($A$15:AB68)),\"\")","v":"No Data Available"},{"$f":"IFERROR(INDEX('Master Database - amended'!$E$4:$AN$132,'Master Database - amended'!$C27,COLUMNS($A$15:AC133)),\"\")","v":"Whales"},{"$f":"IFERROR(INDEX('Master Database - amended'!$E$4:$AN$132,'Master Database - amended'!$C27,COLUMNS($A$15:AD133)),\"\")","v":"<500m"},{"$f":"IFERROR(INDEX('Master Database - amended'!$E$4:$AN$132,'Master Database - amended'!$C27,COLUMNS($A$15:AE133)),\"\")","v":"No Data Available"},{"$f":"IFERROR(INDEX('Master Database - amended'!$E$4:$AN$132,'Master Database - amended'!$C27,COLUMNS($A$15:AF133)),\"\")","v":"No Data Available"},{"$f":"IFERROR(INDEX('Master Database - amended'!$E$4:$AN$132,'Master Database - amended'!$C27,COLUMNS($A$15:AG133)),\"\")","v":"No Data Available"},{"$f":"IFERROR(INDEX('Master Database - amended'!$E$4:$AN$132,'Master Database - amended'!$C26,COLUMNS($A$15:AH68)),\"\")","v":"http://www.ascobans.org/sites/default/files/document/Dawson_To-ping-or-not_ESR-2013.pdf"},null,{"$f":"IFERROR(INDEX('Master Database - amended'!$E$4:$AN$132,'Master Database - amended'!$C27,COLUMNS($A$15:AJ133)),\"\")","v":"No Comments"}]
[{"$f":"IFERROR(INDEX('Master Database - amended'!$E$4:$AN$133,'Master Database - amended'!$C28,COLUMNS($A$15:$A$133)),\"\")","v":"16a"},{"$f":"IFERROR(INDEX('Master Database - amended'!$E$4:$AN$133,'Master Database - amended'!$C28,COLUMNS($A$15:B133)),\"\")","v":"Fishtek Marine"},{"$f":"IFERROR(INDEX('Master Database - amended'!$E$4:$AN$133,'Master Database - amended'!$C28,COLUMNS($A$15:C133)),\"\")","v":"Banana Pinger (50-120)"},{"$f":"IFERROR(INDEX('Master Database - amended'!$E$4:$AN$133,'Master Database - amended'!$C28,COLUMNS($A$15:D133)),\"\")","v":"Automatic"},{"$f":"IFERROR(INDEX('Master Database - amended'!$E$4:$AN$133,'Master Database - amended'!$C28,COLUMNS($A$15:E133)),\"\")","v":"https://www.fishtekmarine.com/product/deterrent-pinger-50-120/"},"https://www.fishtekmarine.com/product/deterrent-pinger-50-120/",{"$f":"IFERROR(INDEX('Master Database - amended'!$E$4:$AN$133,'Master Database - amended'!$C28,COLUMNS($A$15:G133)),\"\")","v":"Bycatch (gillnets)"},{"$f":"IFERROR(INDEX('Master Database - amended'!$E$4:$AN$133,'Master Database - amended'!$C28,COLUMNS($A$15:H133)),\"\")","v":"145 (±3)"},{"$f":"IFERROR(INDEX('Master Database - amended'!$E$4:$AN$133,'Master Database - amended'!$C28,COLUMNS($A$15:I133)),\"\")","v":148},{"$f":"IFERROR(INDEX('Master Database - amended'!$E$4:$AN$133,'Master Database - amended'!$C28,COLUMNS($A$15:J133)),\"\")","v":140},{"$f":"IFERROR(INDEX('Master Database - amended'!$E$4:$AN$133,'Master Database - amended'!$C28,COLUMNS($A$15:K133)),\"\")","v":50},{"$f":"IFERROR(INDEX('Master Database - amended'!$E$4:$AN$133,'Master Database - amended'!$C28,COLUMNS($A$15:L133)),\"\")","v":120},{"$f":"IFERROR(INDEX('Master Database - amended'!$E$4:$AN$133,'Master Database - amended'!$C28,COLUMNS($A$15:M133)),\"\")","v":"50 - 120 kHz (±2 kHz)"},{"$f":"IFERROR(INDEX('Master Database - amended'!$E$4:$AN$133,'Master Database - amended'!$C28,COLUMNS($A$15:N133)),\"\")","v":4000},{"$f":"IFERROR(INDEX('Master Database - amended'!$E$4:$AN$133,'Master Database - amended'!$C28,COLUMNS($A$15:O133)),\"\")","v":12000},{"$f":"IFERROR(INDEX('Master Database - amended'!$E$4:$AN$133,'Master Database - amended'!$C28,COLUMNS($A$15:P133)),\"\")","v":"Signal interval of 4 - 12 s. Randomised signal interval and structure."},{"$f":"IFERROR(INDEX('Master Database - amended'!$E$4:$AN$133,'Master Database - amended'!$C28,COLUMNS($A$15:Q133)),\"\")","v":"Intermittent"},{"$f":"IFERROR(INDEX('Master Database - amended'!$E$4:$AN$133,'Master Database - amended'!$C28,COLUMNS($A$15:R133)),\"\")","v":300},{"$f":"IFERROR(INDEX('Master Database - amended'!$E$4:$AN$133,'Master Database - amended'!$C28,COLUMNS($A$15:S133)),\"\")","v":300},{"$f":"IFERROR(INDEX('Master Database - amended'!$E$4:$AN$133,'Master Database - amended'!$C28,COLUMNS($A$15:T133)),\"\")","v":"300 ms"},{"$f":"IFERROR(INDEX('Master Database - amended'!$E$4:$AN$133,'Master Database - amended'!$C28,COLUMNS($A$15:U133)),\"\")","v":"No Data Available"},{"$f":"IFERROR(INDEX('Master Database - amended'!$E$4:$AN$132,'Master Database - amended'!$C28,COLUMNS($A$15:V39)),\"\")","v":"No Data Available"},{"$f":"IFERROR(INDEX('Master Database - amended'!$E$4:$AN$133,'Master Database - amended'!$C28,COLUMNS($A$15:W133)),\"\")","v":"2: Medium confidence"},{"$f":"IFERROR(INDEX('Master Database - amended'!$E$4:$AN$132,'Master Database - amended'!$C28,COLUMNS($A$15:X39)),\"\")","v":"Y"},{"$f":"IFERROR(INDEX('Master Database - amended'!$E$4:$AN$133,'Master Database - amended'!$C28,COLUMNS($A$15:Y133)),\"\")","v":"3: High confidence"},{"$f":"IFERROR(INDEX('Master Database - amended'!$E$4:$AN$132,'Master Database - amended'!$C28,COLUMNS($A$15:Z39)),\"\")","v":"Y"},{"$f":"IFERROR(INDEX('Master Database - amended'!$E$4:$AN$133,'Master Database - amended'!$C28,COLUMNS($A$15:AA133)),\"\")","v":"No Data Available"},{"$f":"IFERROR(INDEX('Master Database - amended'!$E$4:$AN$132,'Master Database - amended'!$C28,COLUMNS($A$15:AB39)),\"\")","v":"No Data Available"},{"$f":"IFERROR(INDEX('Master Database - amended'!$E$4:$AN$133,'Master Database - amended'!$C28,COLUMNS($A$15:AC133)),\"\")","v":"Porpoise and Dolphin species"},{"$f":"IFERROR(INDEX('Master Database - amended'!$E$4:$AN$133,'Master Database - amended'!$C28,COLUMNS($A$15:AD133)),\"\")","v":"No Data Available"},{"$f":"IFERROR(INDEX('Master Database - amended'!$E$4:$AN$133,'Master Database - amended'!$C28,COLUMNS($A$15:AE133)),\"\")","v":"<500m"},{"$f":"IFERROR(INDEX('Master Database - amended'!$E$4:$AN$133,'Master Database - amended'!$C28,COLUMNS($A$15:AF133)),\"\")","v":"<500m"},{"$f":"IFERROR(INDEX('Master Database - amended'!$E$4:$AN$133,'Master Database - amended'!$C28,COLUMNS($A$15:AG133)),\"\")","v":"No Data Available"},{"$f":"IFERROR(INDEX('Master Database - amended'!$E$4:$AN$132,'Master Database - amended'!$C28,COLUMNS($A$15:AH39)),\"\")","v":"http://www.ascobans.org/sites/default/files/document/NSG4_Inf_4.3_BananaPinger.pdf\n\nhttps://infrastructure.planninginspectorate.gov.uk/wp-content/ipc/uploads/projects/EN010049/EN010049-001947-Tidal%20lagoon%20(Swansea%20Bay)%20Plc%201.pdf\n\nhttps://www.fishtekmarine.com/wp-content/uploads/2017/04/ve_UK_HP_WFA-FishTek-Banana-Pinger-Commercial-Test_Woolmar_2015.pdf\n\nhttps://www.ifm.liu.se/edu/biology/master_projects/2017/louise-friis-charlotte/\n\nhttps://www.researchgate.net/publication/303365156_RESOLVING_BOTTLENOSE_DOLPHIN-FISHERIES_ASSOCIATION_PROBLEMS_IN_MALTESE_WATERS_CENTRAL_MEDITERRANEAN"},null,{"$f":"IFERROR(INDEX('Master Database - amended'!$E$4:$AN$133,'Master Database - amended'!$C28,COLUMNS($A$15:AJ133)),\"\")","v":"No Comments"}]
[{"$f":"IFERROR(INDEX('Master Database - amended'!$E$4:$AN$133,'Master Database - amended'!$C29,COLUMNS($A$15:$A$133)),\"\")","v":"16b"},{"$f":"IFERROR(INDEX('Master Database - amended'!$E$4:$AN$133,'Master Database - amended'!$C29,COLUMNS($A$15:B133)),\"\")","v":"Fishtek Marine"},{"$f":"IFERROR(INDEX('Master Database - amended'!$E$4:$AN$133,'Master Database - amended'!$C29,COLUMNS($A$15:C133)),\"\")","v":"Banana Pinger whale (3-20)"},{"$f":"IFERROR(INDEX('Master Database - amended'!$E$4:$AN$133,'Master Database - amended'!$C29,COLUMNS($A$15:D133)),\"\")","v":"Automatic"},{"$f":"IFERROR(INDEX('Master Database - amended'!$E$4:$AN$133,'Master Database - amended'!$C29,COLUMNS($A$15:E133)),\"\")","v":"https://www.fishtekmarine.com/deterrent-pingers/"},"https://www.fishtekmarine.com/deterrent-pingers/",{"$f":"IFERROR(INDEX('Master Database - amended'!$E$4:$AN$133,'Master Database - amended'!$C29,COLUMNS($A$15:G133)),\"\")","v":"Bycatch (gillnets)"},{"$f":"IFERROR(INDEX('Master Database - amended'!$E$4:$AN$133,'Master Database - amended'!$C29,COLUMNS($A$15:H133)),\"\")","v":"135 (±3)"},{"$f":"IFERROR(INDEX('Master Database - amended'!$E$4:$AN$133,'Master Database - amended'!$C29,COLUMNS($A$15:I133)),\"\")","v":138},{"$f":"IFERROR(INDEX('Master Database - amended'!$E$4:$AN$133,'Master Database - amended'!$C29,COLUMNS($A$15:J133)),\"\")","v":130},{"$f":"IFERROR(INDEX('Master Database - amended'!$E$4:$AN$133,'Master Database - amended'!$C29,COLUMNS($A$15:K133)),\"\")","v":3},{"$f":"IFERROR(INDEX('Master Database - amended'!$E$4:$AN$133,'Master Database - amended'!$C29,COLUMNS($A$15:L133)),\"\")","v":20},{"$f":"IFERROR(INDEX('Master Database - amended'!$E$4:$AN$133,'Master Database - amended'!$C29,COLUMNS($A$15:M133)),\"\")","v":"3 - 20 kHz (±2 kHz)"},{"$f":"IFERROR(INDEX('Master Database - amended'!$E$4:$AN$133,'Master Database - amended'!$C29,COLUMNS($A$15:N133)),\"\")","v":4000},{"$f":"IFERROR(INDEX('Master Database - amended'!$E$4:$AN$133,'Master Database - amended'!$C29,COLUMNS($A$15:O133)),\"\")","v":4000},{"$f":"IFERROR(INDEX('Master Database - amended'!$E$4:$AN$133,'Master Database - amended'!$C29,COLUMNS($A$15:P133)),\"\")","v":"Signal interval of 4 s."},{"$f":"IFERROR(INDEX('Master Database - amended'!$E$4:$AN$133,'Master Database - amended'!$C29,COLUMNS($A$15:Q133)),\"\")","v":"Intermittent"},{"$f":"IFERROR(INDEX('Master Database - amended'!$E$4:$AN$133,'Master Database - amended'!$C29,COLUMNS($A$15:R133)),\"\")","v":300},{"$f":"IFERROR(INDEX('Master Database - amended'!$E$4:$AN$133,'Master Database - amended'!$C29,COLUMNS($A$15:S133)),\"\")","v":300},{"$f":"IFERROR(INDEX('Master Database - amended'!$E$4:$AN$133,'Master Database - amended'!$C29,COLUMNS($A$15:T133)),\"\")","v":"300 ms"},{"$f":"IFERROR(INDEX('Master Database - amended'!$E$4:$AN$133,'Master Database - amended'!$C29,COLUMNS($A$15:U133)),\"\")","v":"1: Low confidence"},{"$f":"IFERROR(INDEX('Master Database - amended'!$E$4:$AN$132,'Master Database - amended'!$C29,COLUMNS($A$15:V40)),\"\")","v":"Y"},{"$f":"IFERROR(INDEX('Master Database - amended'!$E$4:$AN$133,'Master Database - amended'!$C29,COLUMNS($A$15:W133)),\"\")","v":"No Data Available"},{"$f":"IFERROR(INDEX('Master Database - amended'!$E$4:$AN$132,'Master Database - amended'!$C29,COLUMNS($A$15:X40)),\"\")","v":"No Data Available"},{"$f":"IFERROR(INDEX('Master Database - amended'!$E$4:$AN$133,'Master Database - amended'!$C29,COLUMNS($A$15:Y133)),\"\")","v":"No Data Available"},{"$f":"IFERROR(INDEX('Master Database - amended'!$E$4:$AN$132,'Master Database - amended'!$C29,COLUMNS($A$15:Z40)),\"\")","v":"No Data Available"},{"$f":"IFERROR(INDEX('Master Database - amended'!$E$4:$AN$133,'Master Database - amended'!$C29,COLUMNS($A$15:AA133)),\"\")","v":"No Data Available"},{"$f":"IFERROR(INDEX('Master Database - amended'!$E$4:$AN$132,'Master Database - amended'!$C29,COLUMNS($A$15:AB40)),\"\")","v":"No Data Available"},{"$f":"IFERROR(INDEX('Master Database - amended'!$E$4:$AN$133,'Master Database - amended'!$C29,COLUMNS($A$15:AC133)),\"\")","v":"Baleen and Beaked Whales"},{"$f":"IFERROR(INDEX('Master Database - amended'!$E$4:$AN$133,'Master Database - amended'!$C29,COLUMNS($A$15:AD133)),\"\")","v":"<500m"},{"$f":"IFERROR(INDEX('Master Database - amended'!$E$4:$AN$133,'Master Database - amended'!$C29,COLUMNS($A$15:AE133)),\"\")","v":"No Data Available"},{"$f":"IFERROR(INDEX('Master Database - amended'!$E$4:$AN$133,'Master Database - amended'!$C29,COLUMNS($A$15:AF133)),\"\")","v":"No Data Available"},{"$f":"IFERROR(INDEX('Master Database - amended'!$E$4:$AN$133,'Master Database - amended'!$C29,COLUMNS($A$15:AG133)),\"\")","v":"No Data Available"},{"$f":"IFERROR(INDEX('Master Database - amended'!$E$4:$AN$132,'Master Database - amended'!$C29,COLUMNS($A$15:AH40)),\"\")","v":"No Evidence Available"},null,{"$f":"IFERROR(INDEX('Master Database - amended'!$E$4:$AN$133,'Master Database - amended'!$C29,COLUMNS($A$15:AJ133)),\"\")","v":"No Comments"}]
[{"$f":"IFERROR(INDEX('Master Database - amended'!$E$4:$AN$133,'Master Database - amended'!$C30,COLUMNS($A$15:$A$133)),\"\")","v":"16c"},{"$f":"IFERROR(INDEX('Master Database - amended'!$E$4:$AN$133,'Master Database - amended'!$C30,COLUMNS($A$15:B133)),\"\")","v":"Fishtek Marine"},{"$f":"IFERROR(INDEX('Master Database - amended'!$E$4:$AN$133,'Master Database - amended'!$C30,COLUMNS($A$15:C133)),\"\")","v":"Banana Pinger porpoise (10)"},{"$f":"IFERROR(INDEX('Master Database - amended'!$E$4:$AN$133,'Master Database - amended'!$C30,COLUMNS($A$15:D133)),\"\")","v":"Automatic"},{"$f":"IFERROR(INDEX('Master Database - amended'!$E$4:$AN$133,'Master Database - amended'!$C30,COLUMNS($A$15:E133)),\"\")","v":"https://www.fishtekmarine.com/product/deterrent-pinger-10/"},"https://www.fishtekmarine.com/product/deterrent-pinger-10/",{"$f":"IFERROR(INDEX('Master Database - amended'!$E$4:$AN$133,'Master Database - amended'!$C30,COLUMNS($A$15:G133)),\"\")","v":"Bycatch (gillnets)"},{"$f":"IFERROR(INDEX('Master Database - amended'!$E$4:$AN$133,'Master Database - amended'!$C30,COLUMNS($A$15:H133)),\"\")","v":"132 (±3)"},{"$f":"IFERROR(INDEX('Master Database - amended'!$E$4:$AN$133,'Master Database - amended'!$C30,COLUMNS($A$15:I133)),\"\")","v":135},{"$f":"IFERROR(INDEX('Master Database - amended'!$E$4:$AN$133,'Master Database - amended'!$C30,COLUMNS($A$15:J133)),\"\")","v":127},{"$f":"IFERROR(INDEX('Master Database - amended'!$E$4:$AN$133,'Master Database - amended'!$C30,COLUMNS($A$15:K133)),\"\")","v":10},{"$f":"IFERROR(INDEX('Master Database - amended'!$E$4:$AN$133,'Master Database - amended'!$C30,COLUMNS($A$15:L133)),\"\")","v":10},{"$f":"IFERROR(INDEX('Master Database - amended'!$E$4:$AN$133,'Master Database - amended'!$C30,COLUMNS($A$15:M133)),\"\")","v":"10 kHz (± 2kHz)"},{"$f":"IFERROR(INDEX('Master Database - amended'!$E$4:$AN$133,'Master Database - amended'!$C30,COLUMNS($A$15:N133)),\"\")","v":4000},{"$f":"IFERROR(INDEX('Master Database - amended'!$E$4:$AN$133,'Master Database - amended'!$C30,COLUMNS($A$15:O133)),\"\")","v":4000},{"$f":"IFERROR(INDEX('Master Database - amended'!$E$4:$AN$133,'Master Database - amended'!$C30,COLUMNS($A$15:P133)),\"\")","v":"Signal interval of 4 s."},{"$f":"IFERROR(INDEX('Master Database - amended'!$E$4:$AN$133,'Master Database - amended'!$C30,COLUMNS($A$15:Q133)),\"\")","v":"Intermittent"},{"$f":"IFERROR(INDEX('Master Database - amended'!$E$4:$AN$133,'Master Database - amended'!$C30,COLUMNS($A$15:R133)),\"\")","v":300},{"$f":"IFERROR(INDEX('Master Database - amended'!$E$4:$AN$133,'Master Database - amended'!$C30,COLUMNS($A$15:S133)),\"\")","v":300},{"$f":"IFERROR(INDEX('Master Database - amended'!$E$4:$AN$133,'Master Database - amended'!$C30,COLUMNS($A$15:T133)),\"\")","v":"300 ms"},{"$f":"IFERROR(INDEX('Master Database - amended'!$E$4:$AN$133,'Master Database - amended'!$C30,COLUMNS($A$15:U133)),\"\")","v":"No Data Available"},{"$f":"IFERROR(INDEX('Master Database - amended'!$E$4:$AN$132,'Master Database - amended'!$C30,COLUMNS($A$15:V41)),\"\")","v":"No Data Available"},{"$f":"IFERROR(INDEX('Master Database - amended'!$E$4:$AN$132,'Master Database - amended'!$C30,COLUMNS($A$15:W41)),\"\")","v":"No Data Available"},{"$f":"IFERROR(INDEX('Master Database - amended'!$E$4:$AN$132,'Master Database - amended'!$C30,COLUMNS($A$15:X41)),\"\")","v":"1: Intended for use but no evidence"},{"$f":"IFERROR(INDEX('Master Database - amended'!$E$4:$AN$132,'Master Database - amended'!$C30,COLUMNS($A$15:Y41)),\"\")","v":"3: High confidence"},{"$f":"IFERROR(INDEX('Master Database - amended'!$E$4:$AN$132,'Master Database - amended'!$C30,COLUMNS($A$15:Z41)),\"\")","v":"Y"},{"$f":"IFERROR(INDEX('Master Database - amended'!$E$4:$AN$132,'Master Database - amended'!$C30,COLUMNS($A$15:AA41)),\"\")","v":"No Data Available"},{"$f":"IFERROR(INDEX('Master Database - amended'!$E$4:$AN$132,'Master Database - amended'!$C30,COLUMNS($A$15:AB41)),\"\")","v":"No Data Available"},{"$f":"IFERROR(INDEX('Master Database - amended'!$E$4:$AN$132,'Master Database - amended'!$C30,COLUMNS($A$15:AC41)),\"\")","v":"Porpoise"},{"$f":"IFERROR(INDEX('Master Database - amended'!$E$4:$AN$132,'Master Database - amended'!$C30,COLUMNS($A$15:AD41)),\"\")","v":"No Data Available"},{"$f":"IFERROR(INDEX('Master Database - amended'!$E$4:$AN$132,'Master Database - amended'!$C30,COLUMNS($A$15:AE41)),\"\")","v":"No Data Available"},{"$f":"IFERROR(INDEX('Master Database - amended'!$E$4:$AN$132,'Master Database - amended'!$C30,COLUMNS($A$15:AF41)),\"\")","v":"<500m"},{"$f":"IFERROR(INDEX('Master Database - amended'!$E$4:$AN$132,'Master Database - amended'!$C30,COLUMNS($A$15:AG41)),\"\")","v":"No Data Available"},{"$f":"IFERROR(INDEX('Master Database - amended'!$E$4:$AN$132,'Master Database - amended'!$C30,COLUMNS($A$15:AH41)),\"\")","v":"https://swfsc.noaa.gov/uploadedFiles/Divisions/PRD/Programs/Coastal_Marine_Mammal/Barlow_Cameron_MMS19.pdf"},null,{"$f":"IFERROR(INDEX('Master Database - amended'!$E$4:$AN$132,'Master Database - amended'!$C30,COLUMNS($A$15:AJ41)),\"\")","v":"Meets acoustic characteristics as set out under US Federal Register etc."}]
[{"$f":"IFERROR(INDEX('Master Database - amended'!$E$4:$AN$133,'Master Database - amended'!$C31,COLUMNS($A$15:$A$133)),\"\")","v":"16d"},{"$f":"IFERROR(INDEX('Master Database - amended'!$E$4:$AN$133,'Master Database - amended'!$C31,COLUMNS($A$15:B133)),\"\")","v":"Fishtek Marine"},{"$f":"IFERROR(INDEX('Master Database - amended'!$E$4:$AN$133,'Master Database - amended'!$C31,COLUMNS($A$15:C133)),\"\")","v":"Dolphin Anti-depredation pinger"},{"$f":"IFERROR(INDEX('Master Database - amended'!$E$4:$AN$133,'Master Database - amended'!$C31,COLUMNS($A$15:D133)),\"\")","v":"Automatic"},{"$f":"IFERROR(INDEX('Master Database - amended'!$E$4:$AN$133,'Master Database - amended'!$C31,COLUMNS($A$15:E133)),\"\")","v":"https://www.fishtekmarine.com/anti-depredation-pinger/ "},"https://www.fishtekmarine.com/anti-depredation-pinger/ ",{"$f":"IFERROR(INDEX('Master Database - amended'!$E$4:$AN$133,'Master Database - amended'!$C31,COLUMNS($A$15:G133)),\"\")","v":"Bycatch ‚fisheries depredation ‚mitigation for construction"},{"$f":"IFERROR(INDEX('Master Database - amended'!$E$4:$AN$133,'Master Database - amended'!$C31,COLUMNS($A$15:H133)),\"\")","v":"175 (±3)"},{"$f":"IFERROR(INDEX('Master Database - amended'!$E$4:$AN$133,'Master Database - amended'!$C31,COLUMNS($A$15:I133)),\"\")","v":178},{"$f":"IFERROR(INDEX('Master Database - amended'!$E$4:$AN$133,'Master Database - amended'!$C31,COLUMNS($A$15:J133)),\"\")","v":170},{"$f":"IFERROR(INDEX('Master Database - amended'!$E$4:$AN$133,'Master Database - amended'!$C31,COLUMNS($A$15:K133)),\"\")","v":40},{"$f":"IFERROR(INDEX('Master Database - amended'!$E$4:$AN$133,'Master Database - amended'!$C31,COLUMNS($A$15:L133)),\"\")","v":40},{"$f":"IFERROR(INDEX('Master Database - amended'!$E$4:$AN$133,'Master Database - amended'!$C31,COLUMNS($A$15:M133)),\"\")","v":"40 kHz (± 2kHz)"},{"$f":"IFERROR(INDEX('Master Database - amended'!$E$4:$AN$133,'Master Database - amended'!$C31,COLUMNS($A$15:N133)),\"\")","v":4000},{"$f":"IFERROR(INDEX('Master Database - amended'!$E$4:$AN$133,'Master Database - amended'!$C31,COLUMNS($A$15:O133)),\"\")","v":12000},{"$f":"IFERROR(INDEX('Master Database - amended'!$E$4:$AN$133,'Master Database - amended'!$C31,COLUMNS($A$15:P133)),\"\")","v":"Signal interval of 4 - 12 s. Randomised signal interval and structure."},{"$f":"IFERROR(INDEX('Master Database - amended'!$E$4:$AN$133,'Master Database - amended'!$C31,COLUMNS($A$15:Q133)),\"\")","v":"Intermittent"},{"$f":"IFERROR(INDEX('Master Database - amended'!$E$4:$AN$133,'Master Database - amended'!$C31,COLUMNS($A$15:R133)),\"\")","v":30},{"$f":"IFERROR(INDEX('Master Database - amended'!$E$4:$AN$133,'Master Database - amended'!$C31,COLUMNS($A$15:S133)),\"\")","v":30},{"$f":"IFERROR(INDEX('Master Database - amended'!$E$4:$AN$133,'Master Database - amended'!$C31,COLUMNS($A$15:T133)),\"\")","v":"30 ms"},{"$f":"IFERROR(INDEX('Master Database - amended'!$E$4:$AN$133,'Master Database - amended'!$C31,COLUMNS($A$15:U133)),\"\")","v":"No Data Available"},{"$f":"IFERROR(INDEX('Master Database - amended'!$E$4:$AN$132,'Master Database - amended'!$C31,COLUMNS($A$15:V68)),\"\")","v":"No Data Available"},{"$f":"IFERROR(INDEX('Master Database - amended'!$E$4:$AN$133,'Master Database - amended'!$C31,COLUMNS($A$15:W133)),\"\")","v":"2: Medium confidence"},{"$f":"IFERROR(INDEX('Master Database - amended'!$E$4:$AN$132,'Master Database - amended'!$C31,COLUMNS($A$15:X68)),\"\")","v":"Y"},{"$f":"IFERROR(INDEX('Master Database - amended'!$E$4:$AN$133,'Master Database - amended'!$C31,COLUMNS($A$15:Y133)),\"\")","v":"No Data Available"},{"$f":"IFERROR(INDEX('Master Database - amended'!$E$4:$AN$132,'Master Database - amended'!$C31,COLUMNS($A$15:Z68)),\"\")","v":"No Data Available"},{"$f":"IFERROR(INDEX('Master Database - amended'!$E$4:$AN$133,'Master Database - amended'!$C31,COLUMNS($A$15:AA133)),\"\")","v":"No Data Available"},{"$f":"IFERROR(INDEX('Master Database - amended'!$E$4:$AN$132,'Master Database - amended'!$C31,COLUMNS($A$15:AB68)),\"\")","v":"No Data Available"},{"$f":"IFERROR(INDEX('Master Database - amended'!$E$4:$AN$133,'Master Database - amended'!$C31,COLUMNS($A$15:AC133)),\"\")","v":"Dolphin and Porpoise species"},{"$f":"IFERROR(INDEX('Master Database - amended'!$E$4:$AN$133,'Master Database - amended'!$C31,COLUMNS($A$15:AD133)),\"\")","v":"No Data Available"},{"$f":"IFERROR(INDEX('Master Database - amended'!$E$4:$AN$133,'Master Database - amended'!$C31,COLUMNS($A$15:AE133)),\"\")","v":"<500m"},{"$f":"IFERROR(INDEX('Master Database - amended'!$E$4:$AN$133,'Master Database - amended'!$C31,COLUMNS($A$15:AF133)),\"\")","v":"No Data Available"},{"$f":"IFERROR(INDEX('Master Database - amended'!$E$4:$AN$133,'Master Database - amended'!$C31,COLUMNS($A$15:AG133)),\"\")","v":"No Data Available"},{"$f":"IFERROR(INDEX('Master Database - amended'!$E$4:$AN$132,'Master Database - amended'!$C31,COLUMNS($A$15:AH68)),\"\")","v":"https://www.fishtekmarine.com/wp-content/uploads/2018/07/ECS_2018.pdf"},null,{"$f":"IFERROR(INDEX('Master Database - amended'!$E$4:$AN$133,'Master Database - amended'!$C31,COLUMNS($A$15:AJ133)),\"\")","v":"No Comments"}]
[{"$f":"IFERROR(INDEX('Master Database - amended'!$E$4:$AN$133,'Master Database - amended'!$C32,COLUMNS($A$15:$A$133)),\"\")","v":"17a"},{"$f":"IFERROR(INDEX('Master Database - amended'!$E$4:$AN$132,'Master Database - amended'!$C32,COLUMNS($A$15:B133)),\"\")","v":"F3 Maritime Technology UG Ltd (Life Systems)"},{"$f":"IFERROR(INDEX('Master Database - amended'!$E$4:$AN$132,'Master Database - amended'!$C32,COLUMNS($A$15:C133)),\"\")","v":"Porpoise PAL"},{"$f":"IFERROR(INDEX('Master Database - amended'!$E$4:$AN$132,'Master Database - amended'!$C32,COLUMNS($A$15:D133)),\"\")","v":"Automatic"},{"$f":"IFERROR(INDEX('Master Database - amended'!$E$4:$AN$132,'Master Database - amended'!$C32,COLUMNS($A$15:E133)),\"\")","v":"No manufacturers website available"},{"$f":"HYPERLINK(E43,E43)","v":"No manufacturers website available"},{"$f":"IFERROR(INDEX('Master Database - amended'!$E$4:$AN$132,'Master Database - amended'!$C32,COLUMNS($A$15:G133)),\"\")","v":"Bycatch (gillnets)"},{"$f":"IFERROR(INDEX('Master Database - amended'!$E$4:$AN$132,'Master Database - amended'!$C32,COLUMNS($A$15:H133)),\"\")","v":145},{"$f":"IFERROR(INDEX('Master Database - amended'!$E$4:$AN$132,'Master Database - amended'!$C32,COLUMNS($A$15:I133)),\"\")","v":148},{"$f":"IFERROR(INDEX('Master Database - amended'!$E$4:$AN$132,'Master Database - amended'!$C32,COLUMNS($A$15:J133)),\"\")","v":145},{"$f":"IFERROR(INDEX('Master Database - amended'!$E$4:$AN$132,'Master Database - amended'!$C32,COLUMNS($A$15:K133)),\"\")","v":133},{"$f":"IFERROR(INDEX('Master Database - amended'!$E$4:$AN$132,'Master Database - amended'!$C32,COLUMNS($A$15:L133)),\"\")","v":133},{"$f":"IFERROR(INDEX('Master Database - amended'!$E$4:$AN$132,'Master Database - amended'!$C32,COLUMNS($A$15:M133)),\"\")","v":"133 kHz Porpoise clicks. Narrow band porpoise click train. "},{"$f":"IFERROR(INDEX('Master Database - amended'!$E$4:$AN$132,'Master Database - amended'!$C32,COLUMNS($A$15:N133)),\"\")","v":8000},{"$f":"IFERROR(INDEX('Master Database - amended'!$E$4:$AN$132,'Master Database - amended'!$C32,COLUMNS($A$15:O133)),\"\")","v":24000},{"$f":"IFERROR(INDEX('Master Database - amended'!$E$4:$AN$132,'Master Database - amended'!$C32,COLUMNS($A$15:P133)),\"\")","v":"Random pulse interval between 8 - 24 s."},{"$f":"IFERROR(INDEX('Master Database - amended'!$E$4:$AN$132,'Master Database - amended'!$C32,COLUMNS($A$15:Q133)),\"\")","v":"Intermittent"},{"$f":"IFERROR(INDEX('Master Database - amended'!$E$4:$AN$132,'Master Database - amended'!$C32,COLUMNS($A$15:R133)),\"\")","v":1000},{"$f":"IFERROR(INDEX('Master Database - amended'!$E$4:$AN$132,'Master Database - amended'!$C32,COLUMNS($A$15:S133)),\"\")","v":1000},{"$f":"IFERROR(INDEX('Master Database - amended'!$E$4:$AN$132,'Master Database - amended'!$C32,COLUMNS($A$15:T133)),\"\")","v":"1 s"},{"$f":"IFERROR(INDEX('Master Database - amended'!$E$4:$AN$132,'Master Database - amended'!$C32,COLUMNS($A$15:U133)),\"\")","v":"No Data Available"},{"$f":"IFERROR(INDEX('Master Database - amended'!$E$4:$AN$132,'Master Database - amended'!$C32,COLUMNS($A$15:V43)),\"\")","v":"No Data Available"},{"$f":"IFERROR(INDEX('Master Database - amended'!$E$4:$AN$132,'Master Database - amended'!$C32,COLUMNS($A$15:W133)),\"\")","v":"No Data Available"},{"$f":"IFERROR(INDEX('Master Database - amended'!$E$4:$AN$132,'Master Database - amended'!$C32,COLUMNS($A$15:X43)),\"\")","v":"No Data Available"},{"$f":"IFERROR(INDEX('Master Database - amended'!$E$4:$AN$132,'Master Database - amended'!$C32,COLUMNS($A$15:Y133)),\"\")","v":"3: High confidence"},{"$f":"IFERROR(INDEX('Master Database - amended'!$E$4:$AN$132,'Master Database - amended'!$C32,COLUMNS($A$15:Z43)),\"\")","v":"Y"},{"$f":"IFERROR(INDEX('Master Database - amended'!$E$4:$AN$132,'Master Database - amended'!$C32,COLUMNS($A$15:AA133)),\"\")","v":"No Data Available"},{"$f":"IFERROR(INDEX('Master Database - amended'!$E$4:$AN$132,'Master Database - amended'!$C32,COLUMNS($A$15:AB43)),\"\")","v":"No Data Available"},{"$f":"IFERROR(INDEX('Master Database - amended'!$E$4:$AN$132,'Master Database - amended'!$C32,COLUMNS($A$15:AC133)),\"\")","v":"Porpoise species"},{"$f":"IFERROR(INDEX('Master Database - amended'!$E$4:$AN$132,'Master Database - amended'!$C32,COLUMNS($A$15:AD133)),\"\")","v":"No Data Available"},{"$f":"IFERROR(INDEX('Master Database - amended'!$E$4:$AN$132,'Master Database - amended'!$C32,COLUMNS($A$15:AE133)),\"\")","v":"No Data Available"},{"$f":"IFERROR(INDEX('Master Database - amended'!$E$4:$AN$132,'Master Database - amended'!$C32,COLUMNS($A$15:AF133)),\"\")","v":"<500m"},{"$f":"IFERROR(INDEX('Master Database - amended'!$E$4:$AN$132,'Master Database - amended'!$C32,COLUMNS($A$15:AG133)),\"\")","v":"No Data Available"},{"$f":"IFERROR(INDEX('Master Database - amended'!$E$4:$AN$132,'Master Database - amended'!$C32,COLUMNS($A$15:AH43)),\"\")","v":"http://lifeplatform.eu/wp-content/uploads/2017/05/Flensburg_ENG.pd"},null,{"$f":"IFERROR(INDEX('Master Database - amended'!$E$4:$AN$132,'Master Database - amended'!$C32,COLUMNS($A$15:AJ133)),\"\")","v":"No Comments"}]
[{"$f":"IFERROR(INDEX('Master Database - amended'!$E$4:$AN$133,'Master Database - amended'!$C33,COLUMNS($A$15:$A$133)),\"\")","v":"17b"},{"$f":"IFERROR(INDEX('Master Database - amended'!$E$4:$AN$132,'Master Database - amended'!$C33,COLUMNS($A$15:B133)),\"\")","v":"F3 Maritime Technology UG Ltd"},{"$f":"IFERROR(INDEX('Master Database - amended'!$E$4:$AN$132,'Master Database - amended'!$C33,COLUMNS($A$15:C133)),\"\")","v":"10 kHz PAL"},{"$f":"IFERROR(INDEX('Master Database - amended'!$E$4:$AN$132,'Master Database - amended'!$C33,COLUMNS($A$15:D133)),\"\")","v":"Automatic"},{"$f":"IFERROR(INDEX('Master Database - amended'!$E$4:$AN$132,'Master Database - amended'!$C33,COLUMNS($A$15:E133)),\"\")","v":"No manufacturers website available"},"No manufacturers website available",{"$f":"IFERROR(INDEX('Master Database - amended'!$E$4:$AN$132,'Master Database - amended'!$C33,COLUMNS($A$15:G133)),\"\")","v":"Bycatch (gillnets)"},{"$f":"IFERROR(INDEX('Master Database - amended'!$E$4:$AN$132,'Master Database - amended'!$C33,COLUMNS($A$15:H133)),\"\")","v":132},{"$f":"IFERROR(INDEX('Master Database - amended'!$E$4:$AN$132,'Master Database - amended'!$C33,COLUMNS($A$15:I133)),\"\")","v":135},{"$f":"IFERROR(INDEX('Master Database - amended'!$E$4:$AN$132,'Master Database - amended'!$C33,COLUMNS($A$15:J133)),\"\")","v":127},{"$f":"IFERROR(INDEX('Master Database - amended'!$E$4:$AN$132,'Master Database - amended'!$C33,COLUMNS($A$15:K133)),\"\")","v":10},{"$f":"IFERROR(INDEX('Master Database - amended'!$E$4:$AN$132,'Master Database - amended'!$C33,COLUMNS($A$15:L133)),\"\")","v":10},{"$f":"IFERROR(INDEX('Master Database - amended'!$E$4:$AN$132,'Master Database - amended'!$C33,COLUMNS($A$15:M133)),\"\")","v":"10 kHz narrow band."},{"$f":"IFERROR(INDEX('Master Database - amended'!$E$4:$AN$132,'Master Database - amended'!$C33,COLUMNS($A$15:N133)),\"\")","v":4000},{"$f":"IFERROR(INDEX('Master Database - amended'!$E$4:$AN$132,'Master Database - amended'!$C33,COLUMNS($A$15:O133)),\"\")","v":4000},{"$f":"IFERROR(INDEX('Master Database - amended'!$E$4:$AN$132,'Master Database - amended'!$C33,COLUMNS($A$15:P133)),\"\")","v":"Pulse interval of 4 s."},{"$f":"IFERROR(INDEX('Master Database - amended'!$E$4:$AN$132,'Master Database - amended'!$C33,COLUMNS($A$15:Q133)),\"\")","v":"Intermittent"},{"$f":"IFERROR(INDEX('Master Database - amended'!$E$4:$AN$132,'Master Database - amended'!$C33,COLUMNS($A$15:R133)),\"\")","v":300},{"$f":"IFERROR(INDEX('Master Database - amended'!$E$4:$AN$132,'Master Database - amended'!$C33,COLUMNS($A$15:S133)),\"\")","v":300},{"$f":"IFERROR(INDEX('Master Database - amended'!$E$4:$AN$132,'Master Database - amended'!$C33,COLUMNS($A$15:T133)),\"\")","v":"300 ms"},{"$f":"IFERROR(INDEX('Master Database - amended'!$E$4:$AN$132,'Master Database - amended'!$C33,COLUMNS($A$15:U133)),\"\")","v":"No Data Available"},{"$f":"IFERROR(INDEX('Master Database - amended'!$E$4:$AN$132,'Master Database - amended'!$C33,COLUMNS($A$15:V44)),\"\")","v":"No Data Available"},{"$f":"IFERROR(INDEX('Master Database - amended'!$E$4:$AN$132,'Master Database - amended'!$C33,COLUMNS($A$15:W133)),\"\")","v":"No Data Available"},{"$f":"IFERROR(INDEX('Master Database - amended'!$E$4:$AN$132,'Master Database - amended'!$C33,COLUMNS($A$15:X44)),\"\")","v":"No Data Available"},{"$f":"IFERROR(INDEX('Master Database - amended'!$E$4:$AN$132,'Master Database - amended'!$C33,COLUMNS($A$15:Y133)),\"\")","v":"No Data Available"},{"$f":"IFERROR(INDEX('Master Database - amended'!$E$4:$AN$132,'Master Database - amended'!$C33,COLUMNS($A$15:Z44)),\"\")","v":"No Data Available"},{"$f":"IFERROR(INDEX('Master Database - amended'!$E$4:$AN$132,'Master Database - amended'!$C33,COLUMNS($A$15:AA133)),\"\")","v":"No Data Available"},{"$f":"IFERROR(INDEX('Master Database - amended'!$E$4:$AN$132,'Master Database - amended'!$C33,COLUMNS($A$15:AB44)),\"\")","v":"No Data Available"},{"$f":"IFERROR(INDEX('Master Database - amended'!$E$4:$AN$132,'Master Database - amended'!$C33,COLUMNS($A$15:AC133)),\"\")","v":"Marine Mammals"},{"$f":"IFERROR(INDEX('Master Database - amended'!$E$4:$AN$132,'Master Database - amended'!$C33,COLUMNS($A$15:AD133)),\"\")","v":"No Data Available"},{"$f":"IFERROR(INDEX('Master Database - amended'!$E$4:$AN$132,'Master Database - amended'!$C33,COLUMNS($A$15:AE133)),\"\")","v":"No Data Available"},{"$f":"IFERROR(INDEX('Master Database - amended'!$E$4:$AN$132,'Master Database - amended'!$C33,COLUMNS($A$15:AF133)),\"\")","v":"No Data Available"},{"$f":"IFERROR(INDEX('Master Database - amended'!$E$4:$AN$132,'Master Database - amended'!$C33,COLUMNS($A$15:AG133)),\"\")","v":"No Data Available"},{"$f":"IFERROR(INDEX('Master Database - amended'!$E$4:$AN$132,'Master Database - amended'!$C33,COLUMNS($A$15:AH44)),\"\")","v":"No Evidence Available"},null,{"$f":"IFERROR(INDEX('Master Database - amended'!$E$4:$AN$132,'Master Database - amended'!$C33,COLUMNS($A$15:AJ133)),\"\")","v":"No Comments"}]
[{"$f":"IFERROR(INDEX('Master Database - amended'!$E$4:$AN$133,'Master Database - amended'!$C34,COLUMNS($A$15:$A$133)),\"\")","v":"17c"},{"$f":"IFERROR(INDEX('Master Database - amended'!$E$4:$AN$132,'Master Database - amended'!$C34,COLUMNS($A$15:B133)),\"\")","v":"F3 Maritime Technology UG Ltd"},{"$f":"IFERROR(INDEX('Master Database - amended'!$E$4:$AN$132,'Master Database - amended'!$C34,COLUMNS($A$15:C133)),\"\")","v":"Wideband PAL"},{"$f":"IFERROR(INDEX('Master Database - amended'!$E$4:$AN$132,'Master Database - amended'!$C34,COLUMNS($A$15:D133)),\"\")","v":"Automatic"},{"$f":"IFERROR(INDEX('Master Database - amended'!$E$4:$AN$132,'Master Database - amended'!$C34,COLUMNS($A$15:E133)),\"\")","v":"No manufacturers website available"},"No manufacturers website available",{"$f":"IFERROR(INDEX('Master Database - amended'!$E$4:$AN$132,'Master Database - amended'!$C34,COLUMNS($A$15:G133)),\"\")","v":"Bycatch (gillnets)"},{"$f":"IFERROR(INDEX('Master Database - amended'!$E$4:$AN$132,'Master Database - amended'!$C34,COLUMNS($A$15:H133)),\"\")","v":145},{"$f":"IFERROR(INDEX('Master Database - amended'!$E$4:$AN$132,'Master Database - amended'!$C34,COLUMNS($A$15:I133)),\"\")","v":148},{"$f":"IFERROR(INDEX('Master Database - amended'!$E$4:$AN$132,'Master Database - amended'!$C34,COLUMNS($A$15:J133)),\"\")","v":140},{"$f":"IFERROR(INDEX('Master Database - amended'!$E$4:$AN$132,'Master Database - amended'!$C34,COLUMNS($A$15:K133)),\"\")","v":20},{"$f":"IFERROR(INDEX('Master Database - amended'!$E$4:$AN$132,'Master Database - amended'!$C34,COLUMNS($A$15:L133)),\"\")","v":160},{"$f":"IFERROR(INDEX('Master Database - amended'!$E$4:$AN$132,'Master Database - amended'!$C34,COLUMNS($A$15:M133)),\"\")","v":"20 - 160 kHz"},{"$f":"IFERROR(INDEX('Master Database - amended'!$E$4:$AN$132,'Master Database - amended'!$C34,COLUMNS($A$15:N133)),\"\")","v":4000},{"$f":"IFERROR(INDEX('Master Database - amended'!$E$4:$AN$132,'Master Database - amended'!$C34,COLUMNS($A$15:O133)),\"\")","v":30000},{"$f":"IFERROR(INDEX('Master Database - amended'!$E$4:$AN$132,'Master Database - amended'!$C34,COLUMNS($A$15:P133)),\"\")","v":"Random pulse interval between 4 - 30 s."},{"$f":"IFERROR(INDEX('Master Database - amended'!$E$4:$AN$132,'Master Database - amended'!$C34,COLUMNS($A$15:Q133)),\"\")","v":"Intermittent"},{"$f":"IFERROR(INDEX('Master Database - amended'!$E$4:$AN$132,'Master Database - amended'!$C34,COLUMNS($A$15:R133)),\"\")","v":300},{"$f":"IFERROR(INDEX('Master Database - amended'!$E$4:$AN$132,'Master Database - amended'!$C34,COLUMNS($A$15:S133)),\"\")","v":300},{"$f":"IFERROR(INDEX('Master Database - amended'!$E$4:$AN$132,'Master Database - amended'!$C34,COLUMNS($A$15:T133)),\"\")","v":"300 ms"},{"$f":"IFERROR(INDEX('Master Database - amended'!$E$4:$AN$132,'Master Database - amended'!$C34,COLUMNS($A$15:U133)),\"\")","v":"No Data Available"},{"$f":"IFERROR(INDEX('Master Database - amended'!$E$4:$AN$132,'Master Database - amended'!$C34,COLUMNS($A$15:V45)),\"\")","v":"No Data Available"},{"$f":"IFERROR(INDEX('Master Database - amended'!$E$4:$AN$132,'Master Database - amended'!$C34,COLUMNS($A$15:W133)),\"\")","v":"No Data Available"},{"$f":"IFERROR(INDEX('Master Database - amended'!$E$4:$AN$132,'Master Database - amended'!$C34,COLUMNS($A$15:X45)),\"\")","v":"No Data Available"},{"$f":"IFERROR(INDEX('Master Database - amended'!$E$4:$AN$132,'Master Database - amended'!$C34,COLUMNS($A$15:Y133)),\"\")","v":"No Data Available"},{"$f":"IFERROR(INDEX('Master Database - amended'!$E$4:$AN$132,'Master Database - amended'!$C34,COLUMNS($A$15:Z45)),\"\")","v":"No Data Available"},{"$f":"IFERROR(INDEX('Master Database - amended'!$E$4:$AN$132,'Master Database - amended'!$C34,COLUMNS($A$15:AA133)),\"\")","v":"No Data Available"},{"$f":"IFERROR(INDEX('Master Database - amended'!$E$4:$AN$132,'Master Database - amended'!$C34,COLUMNS($A$15:AB45)),\"\")","v":"No Data Available"},{"$f":"IFERROR(INDEX('Master Database - amended'!$E$4:$AN$132,'Master Database - amended'!$C34,COLUMNS($A$15:AC133)),\"\")","v":"Marine Mammals"},{"$f":"IFERROR(INDEX('Master Database - amended'!$E$4:$AN$132,'Master Database - amended'!$C34,COLUMNS($A$15:AD133)),\"\")","v":"No Data Available"},{"$f":"IFERROR(INDEX('Master Database - amended'!$E$4:$AN$132,'Master Database - amended'!$C34,COLUMNS($A$15:AE133)),\"\")","v":"No Data Available"},{"$f":"IFERROR(INDEX('Master Database - amended'!$E$4:$AN$132,'Master Database - amended'!$C34,COLUMNS($A$15:AF133)),\"\")","v":"No Data Available"},{"$f":"IFERROR(INDEX('Master Database - amended'!$E$4:$AN$132,'Master Database - amended'!$C34,COLUMNS($A$15:AG133)),\"\")","v":"No Data Available"},{"$f":"IFERROR(INDEX('Master Database - amended'!$E$4:$AN$132,'Master Database - amended'!$C34,COLUMNS($A$15:AH45)),\"\")","v":"No Evidence Available"},null,{"$f":"IFERROR(INDEX('Master Database - amended'!$E$4:$AN$132,'Master Database - amended'!$C34,COLUMNS($A$15:AJ133)),\"\")","v":"No Comments"}]
[{"$f":"IFERROR(INDEX('Master Database - amended'!$E$4:$AN$133,'Master Database - amended'!$C35,COLUMNS($A$15:$A$133)),\"\")","v":"17d"},{"$f":"IFERROR(INDEX('Master Database - amended'!$E$4:$AN$132,'Master Database - amended'!$C35,COLUMNS($A$15:B133)),\"\")","v":"F3 Maritime Technology UG Ltd"},{"$f":"IFERROR(INDEX('Master Database - amended'!$E$4:$AN$132,'Master Database - amended'!$C35,COLUMNS($A$15:C133)),\"\")","v":"Whale PAL"},{"$f":"IFERROR(INDEX('Master Database - amended'!$E$4:$AN$132,'Master Database - amended'!$C35,COLUMNS($A$15:D133)),\"\")","v":"Automatic"},{"$f":"IFERROR(INDEX('Master Database - amended'!$E$4:$AN$132,'Master Database - amended'!$C35,COLUMNS($A$15:E133)),\"\")","v":"http://lifeplatform.eu/wp-content/uploads/2017/05/Flensburg_ENG.pdf"},"http://lifeplatform.eu/wp-content/uploads/2017/05/Flensburg_ENG.pdf",{"$f":"IFERROR(INDEX('Master Database - amended'!$E$4:$AN$132,'Master Database - amended'!$C35,COLUMNS($A$15:G133)),\"\")","v":"Bycatch (gillnets)"},{"$f":"IFERROR(INDEX('Master Database - amended'!$E$4:$AN$132,'Master Database - amended'!$C35,COLUMNS($A$15:H133)),\"\")","v":145},{"$f":"IFERROR(INDEX('Master Database - amended'!$E$4:$AN$132,'Master Database - amended'!$C35,COLUMNS($A$15:I133)),\"\")","v":148},{"$f":"IFERROR(INDEX('Master Database - amended'!$E$4:$AN$132,'Master Database - amended'!$C35,COLUMNS($A$15:J133)),\"\")","v":140},{"$f":"IFERROR(INDEX('Master Database - amended'!$E$4:$AN$132,'Master Database - amended'!$C35,COLUMNS($A$15:K133)),\"\")","v":3},{"$f":"IFERROR(INDEX('Master Database - amended'!$E$4:$AN$132,'Master Database - amended'!$C35,COLUMNS($A$15:L133)),\"\")","v":3},{"$f":"IFERROR(INDEX('Master Database - amended'!$E$4:$AN$132,'Master Database - amended'!$C35,COLUMNS($A$15:M133)),\"\")","v":"3 kHz narrow band."},{"$f":"IFERROR(INDEX('Master Database - amended'!$E$4:$AN$132,'Master Database - amended'!$C35,COLUMNS($A$15:N133)),\"\")","v":4000},{"$f":"IFERROR(INDEX('Master Database - amended'!$E$4:$AN$132,'Master Database - amended'!$C35,COLUMNS($A$15:O133)),\"\")","v":4000},{"$f":"IFERROR(INDEX('Master Database - amended'!$E$4:$AN$132,'Master Database - amended'!$C35,COLUMNS($A$15:P133)),\"\")","v":"Pulse interval of 4 s."},{"$f":"IFERROR(INDEX('Master Database - amended'!$E$4:$AN$132,'Master Database - amended'!$C35,COLUMNS($A$15:Q133)),\"\")","v":"Intermittent"},{"$f":"IFERROR(INDEX('Master Database - amended'!$E$4:$AN$132,'Master Database - amended'!$C35,COLUMNS($A$15:R133)),\"\")","v":300},{"$f":"IFERROR(INDEX('Master Database - amended'!$E$4:$AN$132,'Master Database - amended'!$C35,COLUMNS($A$15:S133)),\"\")","v":300},{"$f":"IFERROR(INDEX('Master Database - amended'!$E$4:$AN$132,'Master Database - amended'!$C35,COLUMNS($A$15:T133)),\"\")","v":"300 ms"},{"$f":"IFERROR(INDEX('Master Database - amended'!$E$4:$AN$132,'Master Database - amended'!$C35,COLUMNS($A$15:U133)),\"\")","v":"No Data Available"},{"$f":"IFERROR(INDEX('Master Database - amended'!$E$4:$AN$132,'Master Database - amended'!$C35,COLUMNS($A$15:V68)),\"\")","v":"No Data Available"},{"$f":"IFERROR(INDEX('Master Database - amended'!$E$4:$AN$132,'Master Database - amended'!$C35,COLUMNS($A$15:W133)),\"\")","v":"No Data Available"},{"$f":"IFERROR(INDEX('Master Database - amended'!$E$4:$AN$132,'Master Database - amended'!$C35,COLUMNS($A$15:X68)),\"\")","v":"No Data Available"},{"$f":"IFERROR(INDEX('Master Database - amended'!$E$4:$AN$132,'Master Database - amended'!$C35,COLUMNS($A$15:Y133)),\"\")","v":"No Data Available"},{"$f":"IFERROR(INDEX('Master Database - amended'!$E$4:$AN$132,'Master Database - amended'!$C35,COLUMNS($A$15:Z68)),\"\")","v":"No Data Available"},{"$f":"IFERROR(INDEX('Master Database - amended'!$E$4:$AN$132,'Master Database - amended'!$C35,COLUMNS($A$15:AA133)),\"\")","v":"No Data Available"},{"$f":"IFERROR(INDEX('Master Database - amended'!$E$4:$AN$132,'Master Database - amended'!$C35,COLUMNS($A$15:AB68)),\"\")","v":"No Data Available"},{"$f":"IFERROR(INDEX('Master Database - amended'!$E$4:$AN$132,'Master Database - amended'!$C35,COLUMNS($A$15:AC133)),\"\")","v":"Whales"},{"$f":"IFERROR(INDEX('Master Database - amended'!$E$4:$AN$132,'Master Database - amended'!$C35,COLUMNS($A$15:AD133)),\"\")","v":"No Data Available"},{"$f":"IFERROR(INDEX('Master Database - amended'!$E$4:$AN$132,'Master Database - amended'!$C35,COLUMNS($A$15:AE133)),\"\")","v":"No Data Available"},{"$f":"IFERROR(INDEX('Master Database - amended'!$E$4:$AN$132,'Master Database - amended'!$C35,COLUMNS($A$15:AF133)),\"\")","v":"No Data Available"},{"$f":"IFERROR(INDEX('Master Database - amended'!$E$4:$AN$132,'Master Database - amended'!$C35,COLUMNS($A$15:AG133)),\"\")","v":"No Data Available"},{"$f":"IFERROR(INDEX('Master Database - amended'!$E$4:$AN$132,'Master Database - amended'!$C35,COLUMNS($A$15:AH68)),\"\")","v":"No Evidence Available"},null,{"$f":"IFERROR(INDEX('Master Database - amended'!$E$4:$AN$132,'Master Database - amended'!$C35,COLUMNS($A$15:AJ133)),\"\")","v":"No Comments"}]
[{"$f":"IFERROR(INDEX('Master Database - amended'!$E$4:$AN$133,'Master Database - amended'!$C36,COLUMNS($A$15:$A$133)),\"\")","v":18},{"$f":"IFERROR(INDEX('Master Database - amended'!$E$4:$AN$132,'Master Database - amended'!$C36,COLUMNS($A$15:B133)),\"\")","v":"Loughborough University"},{"$f":"IFERROR(INDEX('Master Database - amended'!$E$4:$AN$132,'Master Database - amended'!$C36,COLUMNS($A$15:C133)),\"\")","v":"LU - 1"},{"$f":"IFERROR(INDEX('Master Database - amended'!$E$4:$AN$132,'Master Database - amended'!$C36,COLUMNS($A$15:D133)),\"\")","v":"No Data Available"},{"$f":"IFERROR(INDEX('Master Database - amended'!$E$4:$AN$132,'Master Database - amended'!$C36,COLUMNS($A$15:E133)),\"\")","v":"No manufacturers website available"},"No manufacturers website available",{"$f":"IFERROR(INDEX('Master Database - amended'!$E$4:$AN$132,'Master Database - amended'!$C36,COLUMNS($A$15:G133)),\"\")","v":"Bycatch (gillnets)"},{"$f":"IFERROR(INDEX('Master Database - amended'!$E$4:$AN$132,'Master Database - amended'!$C36,COLUMNS($A$15:H133)),\"\")","v":145},{"$f":"IFERROR(INDEX('Master Database - amended'!$E$4:$AN$132,'Master Database - amended'!$C36,COLUMNS($A$15:I133)),\"\")","v":148},{"$f":"IFERROR(INDEX('Master Database - amended'!$E$4:$AN$132,'Master Database - amended'!$C36,COLUMNS($A$15:J133)),\"\")","v":140},{"$f":"IFERROR(INDEX('Master Database - amended'!$E$4:$AN$132,'Master Database - amended'!$C36,COLUMNS($A$15:K133)),\"\")","v":40},{"$f":"IFERROR(INDEX('Master Database - amended'!$E$4:$AN$132,'Master Database - amended'!$C36,COLUMNS($A$15:L133)),\"\")","v":120},{"$f":"IFERROR(INDEX('Master Database - amended'!$E$4:$AN$132,'Master Database - amended'!$C36,COLUMNS($A$15:M133)),\"\")","v":"40 - 120 kHz"},{"$f":"IFERROR(INDEX('Master Database - amended'!$E$4:$AN$132,'Master Database - amended'!$C36,COLUMNS($A$15:N133)),\"\")","v":5000},{"$f":"IFERROR(INDEX('Master Database - amended'!$E$4:$AN$132,'Master Database - amended'!$C36,COLUMNS($A$15:O133)),\"\")","v":30000},{"$f":"IFERROR(INDEX('Master Database - amended'!$E$4:$AN$132,'Master Database - amended'!$C36,COLUMNS($A$15:P133)),\"\")","v":"Random pulse interval between 5 and 30 s."},{"$f":"IFERROR(INDEX('Master Database - amended'!$E$4:$AN$132,'Master Database - amended'!$C36,COLUMNS($A$15:Q133)),\"\")","v":"Intermittent"},{"$f":"IFERROR(INDEX('Master Database - amended'!$E$4:$AN$132,'Master Database - amended'!$C36,COLUMNS($A$15:R133)),\"\")","v":300},{"$f":"IFERROR(INDEX('Master Database - amended'!$E$4:$AN$132,'Master Database - amended'!$C36,COLUMNS($A$15:S133)),\"\")","v":300},{"$f":"IFERROR(INDEX('Master Database - amended'!$E$4:$AN$132,'Master Database - amended'!$C36,COLUMNS($A$15:T133)),\"\")","v":"300 ms"},{"$f":"IFERROR(INDEX('Master Database - amended'!$E$4:$AN$132,'Master Database - amended'!$C36,COLUMNS($A$15:U133)),\"\")","v":"No Data Available"},{"$f":"IFERROR(INDEX('Master Database - amended'!$E$4:$AN$132,'Master Database - amended'!$C36,COLUMNS($A$15:V47)),\"\")","v":"No Data Available"},{"$f":"IFERROR(INDEX('Master Database - amended'!$E$4:$AN$132,'Master Database - amended'!$C36,COLUMNS($A$15:W133)),\"\")","v":"No Data Available"},{"$f":"IFERROR(INDEX('Master Database - amended'!$E$4:$AN$132,'Master Database - amended'!$C36,COLUMNS($A$15:X47)),\"\")","v":"No Data Available"},{"$f":"IFERROR(INDEX('Master Database - amended'!$E$4:$AN$132,'Master Database - amended'!$C36,COLUMNS($A$15:Y133)),\"\")","v":"3: High confidence"},{"$f":"IFERROR(INDEX('Master Database - amended'!$E$4:$AN$132,'Master Database - amended'!$C36,COLUMNS($A$15:Z47)),\"\")","v":"Y"},{"$f":"IFERROR(INDEX('Master Database - amended'!$E$4:$AN$132,'Master Database - amended'!$C36,COLUMNS($A$15:AA133)),\"\")","v":"No Data Available"},{"$f":"IFERROR(INDEX('Master Database - amended'!$E$4:$AN$132,'Master Database - amended'!$C36,COLUMNS($A$15:AB47)),\"\")","v":"No Data Available"},{"$f":"IFERROR(INDEX('Master Database - amended'!$E$4:$AN$132,'Master Database - amended'!$C36,COLUMNS($A$15:AC133)),\"\")","v":"No Evidence Available"},{"$f":"IFERROR(INDEX('Master Database - amended'!$E$4:$AN$132,'Master Database - amended'!$C36,COLUMNS($A$15:AD133)),\"\")","v":"No Data Available"},{"$f":"IFERROR(INDEX('Master Database - amended'!$E$4:$AN$132,'Master Database - amended'!$C36,COLUMNS($A$15:AE133)),\"\")","v":"No Data Available"},{"$f":"IFERROR(INDEX('Master Database - amended'!$E$4:$AN$132,'Master Database - amended'!$C36,COLUMNS($A$15:AF133)),\"\")","v":"No Data Available"},{"$f":"IFERROR(INDEX('Master Database - amended'!$E$4:$AN$132,'Master Database - amended'!$C36,COLUMNS($A$15:AG133)),\"\")","v":"No Data Available"},{"$f":"IFERROR(INDEX('Master Database - amended'!$E$4:$AN$132,'Master Database - amended'!$C36,COLUMNS($A$15:AH47)),\"\")","v":"https://www.researchgate.net/publication/266214228_The_effect_of_acoustic_alarms_on_the_by-catch_of_harbour_porpoises_in_the_Danish_North_Sea_gill_net_fishery\n\nhttps://www.researchgate.net/profile/Ronald_Kastelein/publication/40188899_The_effects_of_various_sounds_on_a_harbour_porpoise_Phocoena_phocoena/links/00b7d52b47fc7f19c1000000.pdf\n"},null,{"$f":"IFERROR(INDEX('Master Database - amended'!$E$4:$AN$132,'Master Database - amended'!$C36,COLUMNS($A$15:AJ133)),\"\")","v":"No Comments"}]
[{"$f":"IFERROR(INDEX('Master Database - amended'!$E$4:$AN$133,'Master Database - amended'!$C37,COLUMNS($A$15:$A$133)),\"\")","v":19},{"$f":"IFERROR(INDEX('Master Database - amended'!$E$4:$AN$132,'Master Database - amended'!$C37,COLUMNS($A$15:B133)),\"\")","v":"Lofitech"},{"$f":"IFERROR(INDEX('Master Database - amended'!$E$4:$AN$132,'Master Database - amended'!$C37,COLUMNS($A$15:C133)),\"\")","v":"Seal Scarer"},{"$f":"IFERROR(INDEX('Master Database - amended'!$E$4:$AN$132,'Master Database - amended'!$C37,COLUMNS($A$15:D133)),\"\")","v":"Manual"},{"$f":"IFERROR(INDEX('Master Database - amended'!$E$4:$AN$132,'Master Database - amended'!$C37,COLUMNS($A$15:E133)),\"\")","v":"http://www.google.co.uk/url?sa=t&rct=j&q=&esrc=s&source=web&cd=1&ved=0ahUKEwj81O2HxP_YAhXCC8AKHVEfCAIQFggqMAA&url=http%3A%2F%2Fwww.lofitech.no%2Fen%2Fseal-scarer.html&usg=AOvVaw3j2knhMqLfNBjF9g5v2oWS"},"http://www.google.co.uk/url?sa=t&rct=j&q=&esrc=s&source=web&cd=1&ved=0ahUKEwj81O2HxP_YAhXCC8AKHVEfCAIQFggqMAA&url=http%3A%2F%2Fwww.lofitech.no%2Fen%2Fseal-scarer.html&usg=AOvVaw3j2knhMqLfNBjF9g5v2oWS",{"$f":"IFERROR(INDEX('Master Database - amended'!$E$4:$AN$132,'Master Database - amended'!$C37,COLUMNS($A$15:G133)),\"\")","v":"Offshore piling mitigation"},{"$f":"IFERROR(INDEX('Master Database - amended'!$E$4:$AN$132,'Master Database - amended'!$C37,COLUMNS($A$15:H133)),\"\")","v":191},{"$f":"IFERROR(INDEX('Master Database - amended'!$E$4:$AN$132,'Master Database - amended'!$C37,COLUMNS($A$15:I133)),\"\")","v":194},{"$f":"IFERROR(INDEX('Master Database - amended'!$E$4:$AN$132,'Master Database - amended'!$C37,COLUMNS($A$15:J133)),\"\")","v":190},{"$f":"IFERROR(INDEX('Master Database - amended'!$E$4:$AN$132,'Master Database - amended'!$C37,COLUMNS($A$15:K133)),\"\")","v":10},{"$f":"IFERROR(INDEX('Master Database - amended'!$E$4:$AN$132,'Master Database - amended'!$C37,COLUMNS($A$15:L133)),\"\")","v":20},{"$f":"IFERROR(INDEX('Master Database - amended'!$E$4:$AN$132,'Master Database - amended'!$C37,COLUMNS($A$15:M133)),\"\")","v":"10 - 20 kHz. With measured fundamental frequency at 14.6 kHz with harmonics at 29.2 kHz, 43.6 kHz and 72.8 kHz (McGarry et al. 2017)."},{"$f":"IFERROR(INDEX('Master Database - amended'!$E$4:$AN$132,'Master Database - amended'!$C37,COLUMNS($A$15:N133)),\"\")","v":"No Data Available"},{"$f":"IFERROR(INDEX('Master Database - amended'!$E$4:$AN$132,'Master Database - amended'!$C37,COLUMNS($A$15:O133)),\"\")","v":"No Data Available"},{"$f":"IFERROR(INDEX('Master Database - amended'!$E$4:$AN$132,'Master Database - amended'!$C37,COLUMNS($A$15:P133)),\"\")","v":"Intermittent - duration between pulses is on a random cycle."},{"$f":"IFERROR(INDEX('Master Database - amended'!$E$4:$AN$132,'Master Database - amended'!$C37,COLUMNS($A$15:Q133)),\"\")","v":"Intermittent"},{"$f":"IFERROR(INDEX('Master Database - amended'!$E$4:$AN$132,'Master Database - amended'!$C37,COLUMNS($A$15:R133)),\"\")","v":500},{"$f":"IFERROR(INDEX('Master Database - amended'!$E$4:$AN$132,'Master Database - amended'!$C37,COLUMNS($A$15:S133)),\"\")","v":752},{"$f":"IFERROR(INDEX('Master Database - amended'!$E$4:$AN$132,'Master Database - amended'!$C37,COLUMNS($A$15:T133)),\"\")","v":"Manufacturer states the pulse length is 500 ms. However the measured pulse length is 752 ms."},{"$f":"IFERROR(INDEX('Master Database - amended'!$E$4:$AN$132,'Master Database - amended'!$C37,COLUMNS($A$15:U133)),\"\")","v":"2: Medium confidence"},{"$f":"IFERROR(INDEX('Master Database - amended'!$E$4:$AN$132,'Master Database - amended'!$C37,COLUMNS($A$15:V48)),\"\")","v":"Y"},{"$f":"IFERROR(INDEX('Master Database - amended'!$E$4:$AN$132,'Master Database - amended'!$C37,COLUMNS($A$15:W133)),\"\")","v":"No Data Available"},{"$f":"IFERROR(INDEX('Master Database - amended'!$E$4:$AN$132,'Master Database - amended'!$C37,COLUMNS($A$15:X48)),\"\")","v":"No Data Available"},{"$f":"IFERROR(INDEX('Master Database - amended'!$E$4:$AN$132,'Master Database - amended'!$C37,COLUMNS($A$15:Y133)),\"\")","v":"3: High confidence"},{"$f":"IFERROR(INDEX('Master Database - amended'!$E$4:$AN$132,'Master Database - amended'!$C37,COLUMNS($A$15:Z48)),\"\")","v":"Y"},{"$f":"IFERROR(INDEX('Master Database - amended'!$E$4:$AN$132,'Master Database - amended'!$C37,COLUMNS($A$15:AA133)),\"\")","v":"3: High confidence"},{"$f":"IFERROR(INDEX('Master Database - amended'!$E$4:$AN$132,'Master Database - amended'!$C37,COLUMNS($A$15:AB48)),\"\")","v":"Y"},{"$f":"IFERROR(INDEX('Master Database - amended'!$E$4:$AN$132,'Master Database - amended'!$C37,COLUMNS($A$15:AC133)),\"\")","v":"Seals and odonocetes"},{"$f":"IFERROR(INDEX('Master Database - amended'!$E$4:$AN$132,'Master Database - amended'!$C37,COLUMNS($A$15:AD133)),\"\")","v":"500 - 1000m"},{"$f":"IFERROR(INDEX('Master Database - amended'!$E$4:$AN$132,'Master Database - amended'!$C37,COLUMNS($A$15:AE133)),\"\")","v":"No Data Available"},{"$f":"IFERROR(INDEX('Master Database - amended'!$E$4:$AN$132,'Master Database - amended'!$C37,COLUMNS($A$15:AF133)),\"\")","v":">1000m"},{"$f":"IFERROR(INDEX('Master Database - amended'!$E$4:$AN$132,'Master Database - amended'!$C37,COLUMNS($A$15:AG133)),\"\")","v":"<500m"},{"$f":"IFERROR(INDEX('Master Database - amended'!$E$4:$AN$132,'Master Database - amended'!$C37,COLUMNS($A$15:AH48)),\"\")","v":"https://www.carbontrust.com/resources/reports/technology/acoustic-deterrent-devices/\n\nhttp://www.int-res.com/articles/meps_oa/m580p221.pdf\n\nhttps://www.carbontrust.com/media/675291/orjip-add-study-final-report-stage-1-phase-2.pdf\n\nhttps://www.ncbi.nlm.nih.gov/pmc/articles/PMC5541550/\n\nhttps://corporate.vattenfall.co.uk/globalassets/uk/projects/norfolk-vanguard/consultation-peir-oct-2017/peir/volume-3-appendices/chapter-12-marine-mammals/appendix-12.2-add-mitigation.pdf\n\nhttps://www.researchgate.net/publication/258246312_Far-reaching_effects_of_a_seal_scarer_on_harbour_porpoises_Phocoena_phocoena\n\nhttps://www.researchgate.net/publication/258246447_Seal_scarers_as_a_tool_to_deter_harbour_porpoises_from_offshore_construction_sites\n\nhttps://www.carbontrust.com/media/675291/orjip-add-study-final-report-stage-1-phase-2.pdf\n\nhttps://www.researchgate.net/publication/236149619_Acoustic_harassment_devices_reduce_seal_interaction_in_the_Baltic_salmon-trap_net_fishery\n\nhttps://research-repository.st-andrews.ac.uk/handle/10023/848\n\nhttps://www.ncbi.nlm.nih.gov/pubmed/20400639\n\nhttps://link.springer.com/article/10.1007/s10750-014-2035-x\n\nhttps://link.springer.com/article/10.1007/s10750-014-2152-6\n\nhttp://www.smru.st-andrews.ac.uk/documents/scotgov/MR8-1_ADD_mitigation_report_summary.pdf\n\nhttps://academic.oup.com/icesjms/article/66/5/860/664210"},null,{"$f":"IFERROR(INDEX('Master Database - amended'!$E$4:$AN$132,'Master Database - amended'!$C37,COLUMNS($A$15:AJ133)),\"\")","v":"Recommended that duration of deployment should be tailored to each project requirements. \n\nThe strong reaction to the seal scarer noted in Dahne et al. 2017 raises concern that it may surpass the reactions to the pile-driving noise itself, when operating with bubble curtains, and calls for a re-evaluation of the specifications of seal scarer sounds.\n\nORJIP review concludes that the Lofitec provides the most consistent effective deterrence ranges for both harbour seals and harbour porpoise in environments similar to those at offshore wind farm construction sites.  Recommended as is usable in current form during OWF construction but note that improvements could be made and an OWF specific model developed. The results indicate that there might be scope to reduce the ADD time below the 30 minutes applied during the construction of these OWFs.\n\nIn Brandt et al. 2012 the use of seal scarers as a mitigation tool during offshore construction seems promising.\nNevertheless, these results also highlight that its\napplication will not guarantee the safety of all\nanimals, as not all individuals will react with\navoidance reactions.\n\nIn Brandt et al. 2013, porpoises seem to be startled when the seal scarer is activated at close range, a soft start to this device should be considered so as not to cause panic reactions in harbour porpoises, which could potentially\nlead to the separation of mother−calf pairs.\n\nThe use of this ADD should result in low probabilities of animals remaining within exclusion zones of ~1 km.\n\nWhen used for mitigation there should be no delay between the end of the mitigation broadcast and the start of pile driving."}]
[{"$f":"IFERROR(INDEX('Master Database - amended'!$E$4:$AN$133,'Master Database - amended'!$C38,COLUMNS($A$15:$A$133)),\"\")","v":20},{"$f":"IFERROR(INDEX('Master Database - amended'!$E$4:$AN$132,'Master Database - amended'!$C38,COLUMNS($A$15:B133)),\"\")","v":"Marexi Marine Technology"},{"$f":"IFERROR(INDEX('Master Database - amended'!$E$4:$AN$132,'Master Database - amended'!$C38,COLUMNS($A$15:C133)),\"\")","v":"Acoustic Pinger V2.2"},{"$f":"IFERROR(INDEX('Master Database - amended'!$E$4:$AN$132,'Master Database - amended'!$C38,COLUMNS($A$15:D133)),\"\")","v":"No Data Available"},{"$f":"IFERROR(INDEX('Master Database - amended'!$E$4:$AN$132,'Master Database - amended'!$C38,COLUMNS($A$15:E133)),\"\")","v":"http://www.marexi.com/PDF/Pinger_V22_english.v2_P.pdf"},"http://www.marexi.com/PDF/Pinger_V22_english.v2_P.pdf",{"$f":"IFERROR(INDEX('Master Database - amended'!$E$4:$AN$132,'Master Database - amended'!$C38,COLUMNS($A$15:G133)),\"\")","v":"Bycatch (gillnets)"},{"$f":"IFERROR(INDEX('Master Database - amended'!$E$4:$AN$132,'Master Database - amended'!$C38,COLUMNS($A$15:H133)),\"\")","v":132},{"$f":"IFERROR(INDEX('Master Database - amended'!$E$4:$AN$132,'Master Database - amended'!$C38,COLUMNS($A$15:I133)),\"\")","v":135},{"$f":"IFERROR(INDEX('Master Database - amended'!$E$4:$AN$132,'Master Database - amended'!$C38,COLUMNS($A$15:J133)),\"\")","v":127},{"$f":"IFERROR(INDEX('Master Database - amended'!$E$4:$AN$132,'Master Database - amended'!$C38,COLUMNS($A$15:K133)),\"\")","v":30},{"$f":"IFERROR(INDEX('Master Database - amended'!$E$4:$AN$132,'Master Database - amended'!$C38,COLUMNS($A$15:L133)),\"\")","v":150},{"$f":"IFERROR(INDEX('Master Database - amended'!$E$4:$AN$132,'Master Database - amended'!$C38,COLUMNS($A$15:M133)),\"\")","v":"Signal 1: Frequency modulated signal between 30 - 150 kHz. Signal 2: Click train at 90 kHz."},{"$f":"IFERROR(INDEX('Master Database - amended'!$E$4:$AN$132,'Master Database - amended'!$C38,COLUMNS($A$15:N133)),\"\")","v":3800},{"$f":"IFERROR(INDEX('Master Database - amended'!$E$4:$AN$132,'Master Database - amended'!$C38,COLUMNS($A$15:O133)),\"\")","v":4200},{"$f":"IFERROR(INDEX('Master Database - amended'!$E$4:$AN$132,'Master Database - amended'!$C38,COLUMNS($A$15:P133)),\"\")","v":"Pulse interval 4 s  (± 0.2 s)."},{"$f":"IFERROR(INDEX('Master Database - amended'!$E$4:$AN$132,'Master Database - amended'!$C38,COLUMNS($A$15:Q133)),\"\")","v":"Intermittent"},{"$f":"IFERROR(INDEX('Master Database - amended'!$E$4:$AN$132,'Master Database - amended'!$C38,COLUMNS($A$15:R133)),\"\")","v":285},{"$f":"IFERROR(INDEX('Master Database - amended'!$E$4:$AN$132,'Master Database - amended'!$C38,COLUMNS($A$15:S133)),\"\")","v":315},{"$f":"IFERROR(INDEX('Master Database - amended'!$E$4:$AN$132,'Master Database - amended'!$C38,COLUMNS($A$15:T133)),\"\")","v":"300 ms  (± 15 ms)"},{"$f":"IFERROR(INDEX('Master Database - amended'!$E$4:$AN$132,'Master Database - amended'!$C38,COLUMNS($A$15:U133)),\"\")","v":"No Data Available"},{"$f":"IFERROR(INDEX('Master Database - amended'!$E$4:$AN$132,'Master Database - amended'!$C38,COLUMNS($A$15:V49)),\"\")","v":"No Data Available"},{"$f":"IFERROR(INDEX('Master Database - amended'!$E$4:$AN$132,'Master Database - amended'!$C38,COLUMNS($A$15:W133)),\"\")","v":"2: Medium confidence"},{"$f":"IFERROR(INDEX('Master Database - amended'!$E$4:$AN$132,'Master Database - amended'!$C38,COLUMNS($A$15:X49)),\"\")","v":"Y"},{"$f":"IFERROR(INDEX('Master Database - amended'!$E$4:$AN$132,'Master Database - amended'!$C38,COLUMNS($A$15:Y133)),\"\")","v":"2: Medium confidence"},{"$f":"IFERROR(INDEX('Master Database - amended'!$E$4:$AN$132,'Master Database - amended'!$C38,COLUMNS($A$15:Z49)),\"\")","v":"N"},{"$f":"IFERROR(INDEX('Master Database - amended'!$E$4:$AN$132,'Master Database - amended'!$C38,COLUMNS($A$15:AA133)),\"\")","v":"No Data Available"},{"$f":"IFERROR(INDEX('Master Database - amended'!$E$4:$AN$132,'Master Database - amended'!$C38,COLUMNS($A$15:AB49)),\"\")","v":0},{"$f":"IFERROR(INDEX('Master Database - amended'!$E$4:$AN$132,'Master Database - amended'!$C38,COLUMNS($A$15:AC133)),\"\")","v":"No Evidence Available"},{"$f":"IFERROR(INDEX('Master Database - amended'!$E$4:$AN$132,'Master Database - amended'!$C38,COLUMNS($A$15:AD133)),\"\")","v":"No Data Available"},{"$f":"IFERROR(INDEX('Master Database - amended'!$E$4:$AN$132,'Master Database - amended'!$C38,COLUMNS($A$15:AE133)),\"\")","v":"No Data Available"},{"$f":"IFERROR(INDEX('Master Database - amended'!$E$4:$AN$132,'Master Database - amended'!$C38,COLUMNS($A$15:AF133)),\"\")","v":"No Data Available"},{"$f":"IFERROR(INDEX('Master Database - amended'!$E$4:$AN$132,'Master Database - amended'!$C38,COLUMNS($A$15:AG133)),\"\")","v":"No Data Available"},{"$f":"IFERROR(INDEX('Master Database - amended'!$E$4:$AN$132,'Master Database - amended'!$C38,COLUMNS($A$15:AH49)),\"\")","v":"https://www.researchgate.net/profile/Bruno_Diaz_Lopez/publication/317033696_Trial_of_acoustics_deterrents_for_prevention_of_bottlenose_dolphin_depredation_on_gillnets/links/59206858458515e3d402f65f/Trial-of-acoustics-deterrents-for-prevention-of-bottlenose-dolphin-depredation-on-gillnets.pdf"},null,{"$f":"IFERROR(INDEX('Master Database - amended'!$E$4:$AN$132,'Master Database - amended'!$C38,COLUMNS($A$15:AJ133)),\"\")","v":"No Comments"}]
[{"$f":"IFERROR(INDEX('Master Database - amended'!$E$4:$AN$133,'Master Database - amended'!$C39,COLUMNS($A$15:$A$133)),\"\")","v":"21a"},{"$f":"IFERROR(INDEX('Master Database - amended'!$E$4:$AN$132,'Master Database - amended'!$C39,COLUMNS($A$15:B133)),\"\")","v":"GenusWave Ltd"},{"$f":"IFERROR(INDEX('Master Database - amended'!$E$4:$AN$132,'Master Database - amended'!$C39,COLUMNS($A$15:C133)),\"\")","v":"SalmonSafe"},{"$f":"IFERROR(INDEX('Master Database - amended'!$E$4:$AN$132,'Master Database - amended'!$C39,COLUMNS($A$15:D133)),\"\")","v":"No Data Available"},{"$f":"IFERROR(INDEX('Master Database - amended'!$E$4:$AN$132,'Master Database - amended'!$C39,COLUMNS($A$15:E133)),\"\")","v":"http://www.salmonsafe.co.uk/"},"http://www.genuswave.com/",{"$f":"IFERROR(INDEX('Master Database - amended'!$E$4:$AN$132,'Master Database - amended'!$C39,COLUMNS($A$15:G133)),\"\")","v":"Aquaculture"},{"$f":"IFERROR(INDEX('Master Database - amended'!$E$4:$AN$132,'Master Database - amended'!$C39,COLUMNS($A$15:H133)),\"\")","v":182},{"$f":"IFERROR(INDEX('Master Database - amended'!$E$4:$AN$132,'Master Database - amended'!$C39,COLUMNS($A$15:I133)),\"\")","v":185},{"$f":"IFERROR(INDEX('Master Database - amended'!$E$4:$AN$132,'Master Database - amended'!$C39,COLUMNS($A$15:J133)),\"\")","v":175},{"$f":"IFERROR(INDEX('Master Database - amended'!$E$4:$AN$132,'Master Database - amended'!$C39,COLUMNS($A$15:K133)),\"\")","v":0.5},{"$f":"IFERROR(INDEX('Master Database - amended'!$E$4:$AN$132,'Master Database - amended'!$C39,COLUMNS($A$15:L133)),\"\")","v":22},{"$f":"IFERROR(INDEX('Master Database - amended'!$E$4:$AN$132,'Master Database - amended'!$C39,COLUMNS($A$15:M133)),\"\")","v":"500 Hz - 22 kHz. The measured sound pressure level output is 180 - 182 dB re 1µPa at 1m (RMS) for signals centred at 10 kHz (Gotz & Janik 2015)."},{"$f":"IFERROR(INDEX('Master Database - amended'!$E$4:$AN$132,'Master Database - amended'!$C39,COLUMNS($A$15:N133)),\"\")","v":"No Data Available"},{"$f":"IFERROR(INDEX('Master Database - amended'!$E$4:$AN$132,'Master Database - amended'!$C39,COLUMNS($A$15:O133)),\"\")","v":"No Data Available"},{"$f":"IFERROR(INDEX('Master Database - amended'!$E$4:$AN$132,'Master Database - amended'!$C39,COLUMNS($A$15:P133)),\"\")","v":"A noise pulse centred at ~1 kHz is used for deterrence of seals only (this noise pulse was within 10 dB of its maximum output between 700 Hz and 1500 Hz), while a similar pulse centred at ~10 kHz would be recommended for deterrence of both seals and odontocetes (McGarry et al. 2017)."},{"$f":"IFERROR(INDEX('Master Database - amended'!$E$4:$AN$132,'Master Database - amended'!$C39,COLUMNS($A$15:Q133)),\"\")","v":"Intermittent"},{"$f":"IFERROR(INDEX('Master Database - amended'!$E$4:$AN$132,'Master Database - amended'!$C39,COLUMNS($A$15:R133)),\"\")","v":200},{"$f":"IFERROR(INDEX('Master Database - amended'!$E$4:$AN$132,'Master Database - amended'!$C39,COLUMNS($A$15:S133)),\"\")","v":200},{"$f":"IFERROR(INDEX('Master Database - amended'!$E$4:$AN$132,'Master Database - amended'!$C39,COLUMNS($A$15:T133)),\"\")","v":"200 ms long, 2–3 octave-band noise pulses. "},{"$f":"IFERROR(INDEX('Master Database - amended'!$E$4:$AN$132,'Master Database - amended'!$C39,COLUMNS($A$15:U133)),\"\")","v":"3: High confidence"},{"$f":"IFERROR(INDEX('Master Database - amended'!$E$4:$AN$132,'Master Database - amended'!$C39,COLUMNS($A$15:V50)),\"\")","v":"No Data Available"},{"$f":"IFERROR(INDEX('Master Database - amended'!$E$4:$AN$132,'Master Database - amended'!$C39,COLUMNS($A$15:W133)),\"\")","v":"No Data Available"},{"$f":"IFERROR(INDEX('Master Database - amended'!$E$4:$AN$132,'Master Database - amended'!$C39,COLUMNS($A$15:X50)),\"\")","v":"Y"},{"$f":"IFERROR(INDEX('Master Database - amended'!$E$4:$AN$132,'Master Database - amended'!$C39,COLUMNS($A$15:Y133)),\"\")","v":"3: High confidence"},{"$f":"IFERROR(INDEX('Master Database - amended'!$E$4:$AN$132,'Master Database - amended'!$C39,COLUMNS($A$15:Z50)),\"\")","v":"N"},{"$f":"IFERROR(INDEX('Master Database - amended'!$E$4:$AN$132,'Master Database - amended'!$C39,COLUMNS($A$15:AA133)),\"\")","v":"3: High confidence"},{"$f":"IFERROR(INDEX('Master Database - amended'!$E$4:$AN$132,'Master Database - amended'!$C39,COLUMNS($A$15:AB50)),\"\")","v":"Y"},{"$f":"IFERROR(INDEX('Master Database - amended'!$E$4:$AN$132,'Master Database - amended'!$C39,COLUMNS($A$15:AC133)),\"\")","v":"Seals and odonocetes"},{"$f":"IFERROR(INDEX('Master Database - amended'!$E$4:$AN$132,'Master Database - amended'!$C39,COLUMNS($A$15:AD133)),\"\")","v":"No Data Available"},{"$f":"IFERROR(INDEX('Master Database - amended'!$E$4:$AN$132,'Master Database - amended'!$C39,COLUMNS($A$15:AE133)),\"\")","v":"<500m"},{"$f":"IFERROR(INDEX('Master Database - amended'!$E$4:$AN$132,'Master Database - amended'!$C39,COLUMNS($A$15:AF133)),\"\")","v":"No Data Available"},{"$f":"IFERROR(INDEX('Master Database - amended'!$E$4:$AN$132,'Master Database - amended'!$C39,COLUMNS($A$15:AG133)),\"\")","v":"<500m"},{"$f":"IFERROR(INDEX('Master Database - amended'!$E$4:$AN$132,'Master Database - amended'!$C39,COLUMNS($A$15:AH50)),\"\")","v":"http://www.gov.scot/Resource/0043/00438860.pdf\n\nhttp://onlinelibrary.wiley.com/doi/10.1111/acv.12141/abstract\n\nhttps://www.carbontrust.com/media/675291/orjip-add-study-final-report-stage-1-phase-2.pdf"},null,{"$f":"IFERROR(INDEX('Master Database - amended'!$E$4:$AN$132,'Master Database - amended'!$C39,COLUMNS($A$15:AJ133)),\"\")","v":"Startle method can selectively deter seals without affecting porpoise.\n\nORJIP review concludes that this device has promising potential deterrence ranges although remains to be demonstrated. Needs commercial  development but one to watch."}]
[{"$f":"IFERROR(INDEX('Master Database - amended'!$E$4:$AN$133,'Master Database - amended'!$C40,COLUMNS($A$15:$A$133)),\"\")","v":"21b"},{"$f":"IFERROR(INDEX('Master Database - amended'!$E$4:$AN$132,'Master Database - amended'!$C40,COLUMNS($A$15:B133)),\"\")","v":"GenusWave Ltd"},{"$f":"IFERROR(INDEX('Master Database - amended'!$E$4:$AN$132,'Master Database - amended'!$C40,COLUMNS($A$15:C133)),\"\")","v":"FisherySafe"},{"$f":"IFERROR(INDEX('Master Database - amended'!$E$4:$AN$132,'Master Database - amended'!$C40,COLUMNS($A$15:D133)),\"\")","v":"No Data Available"},{"$f":"IFERROR(INDEX('Master Database - amended'!$E$4:$AN$132,'Master Database - amended'!$C40,COLUMNS($A$15:E133)),\"\")","v":"http://www.genuswave.com/"},"http://www.genuswave.com/",{"$f":"IFERROR(INDEX('Master Database - amended'!$E$4:$AN$132,'Master Database - amended'!$C40,COLUMNS($A$15:G133)),\"\")","v":0},{"$f":"IFERROR(INDEX('Master Database - amended'!$E$4:$AN$132,'Master Database - amended'!$C40,COLUMNS($A$15:H133)),\"\")","v":182},{"$f":"IFERROR(INDEX('Master Database - amended'!$E$4:$AN$132,'Master Database - amended'!$C40,COLUMNS($A$15:I133)),\"\")","v":"-"},{"$f":"IFERROR(INDEX('Master Database - amended'!$E$4:$AN$132,'Master Database - amended'!$C40,COLUMNS($A$15:J133)),\"\")","v":"-"},{"$f":"IFERROR(INDEX('Master Database - amended'!$E$4:$AN$132,'Master Database - amended'!$C40,COLUMNS($A$15:K133)),\"\")","v":0.5},{"$f":"IFERROR(INDEX('Master Database - amended'!$E$4:$AN$132,'Master Database - amended'!$C40,COLUMNS($A$15:L133)),\"\")","v":1.5},{"$f":"IFERROR(INDEX('Master Database - amended'!$E$4:$AN$132,'Master Database - amended'!$C40,COLUMNS($A$15:M133)),\"\")","v":"Seal signal: 0.5 - 1.5 kHz; Odontocete signal: 0.7 - 1.5 kHz"},{"$f":"IFERROR(INDEX('Master Database - amended'!$E$4:$AN$132,'Master Database - amended'!$C40,COLUMNS($A$15:N133)),\"\")","v":"No Data Available"},{"$f":"IFERROR(INDEX('Master Database - amended'!$E$4:$AN$132,'Master Database - amended'!$C40,COLUMNS($A$15:O133)),\"\")","v":"No Data Available"},{"$f":"IFERROR(INDEX('Master Database - amended'!$E$4:$AN$132,'Master Database - amended'!$C40,COLUMNS($A$15:P133)),\"\")","v":0},{"$f":"IFERROR(INDEX('Master Database - amended'!$E$4:$AN$132,'Master Database - amended'!$C40,COLUMNS($A$15:Q133)),\"\")","v":"Intermittent"},{"$f":"IFERROR(INDEX('Master Database - amended'!$E$4:$AN$132,'Master Database - amended'!$C40,COLUMNS($A$15:R133)),\"\")","v":"No Data Available"},{"$f":"IFERROR(INDEX('Master Database - amended'!$E$4:$AN$132,'Master Database - amended'!$C40,COLUMNS($A$15:S133)),\"\")","v":"No Data Available"},{"$f":"IFERROR(INDEX('Master Database - amended'!$E$4:$AN$132,'Master Database - amended'!$C40,COLUMNS($A$15:T133)),\"\")","v":"No Data Available"},{"$f":"IFERROR(INDEX('Master Database - amended'!$E$4:$AN$132,'Master Database - amended'!$C40,COLUMNS($A$15:U133)),\"\")","v":"3: High confidence"},"No Data Available",{"$f":"IFERROR(INDEX('Master Database - amended'!$E$4:$AN$132,'Master Database - amended'!$C40,COLUMNS($A$15:W133)),\"\")","v":"No Data Available"},"Y",{"$f":"IFERROR(INDEX('Master Database - amended'!$E$4:$AN$132,'Master Database - amended'!$C40,COLUMNS($A$15:Y133)),\"\")","v":"3: High confidence"},"N",{"$f":"IFERROR(INDEX('Master Database - amended'!$E$4:$AN$132,'Master Database - amended'!$C40,COLUMNS($A$15:AA133)),\"\")","v":"3: High confidence"},"Y",{"$f":"IFERROR(INDEX('Master Database - amended'!$E$4:$AN$132,'Master Database - amended'!$C40,COLUMNS($A$15:AC133)),\"\")","v":"Seals and odonocetes"},{"$f":"IFERROR(INDEX('Master Database - amended'!$E$4:$AN$132,'Master Database - amended'!$C40,COLUMNS($A$15:AD133)),\"\")","v":"No Data Available"},{"$f":"IFERROR(INDEX('Master Database - amended'!$E$4:$AN$132,'Master Database - amended'!$C40,COLUMNS($A$15:AE133)),\"\")","v":"<500m"},{"$f":"IFERROR(INDEX('Master Database - amended'!$E$4:$AN$132,'Master Database - amended'!$C40,COLUMNS($A$15:AF133)),\"\")","v":"No Data Available"},{"$f":"IFERROR(INDEX('Master Database - amended'!$E$4:$AN$132,'Master Database - amended'!$C40,COLUMNS($A$15:AG133)),\"\")","v":"<500m"},"http://www.gov.scot/Resource/0043/00438860.pdf\n\nhttp://onlinelibrary.wiley.com/doi/10.1111/acv.12141/abstract\n\nhttps://www.carbontrust.com/media/675291/orjip-add-study-final-report-stage-1-phase-2.pdf","http://www.gov.scot/Resource/0043/00438860.pdf\n\nhttp://onlinelibrary.wiley.com/doi/10.1111/acv.12141/abstract\n\nhttps://www.carbontrust.com/media/675291/orjip-add-study-final-report-stage-1-phase-2.pdf",{"$f":"IFERROR(INDEX('Master Database - amended'!$E$4:$AN$132,'Master Database - amended'!$C40,COLUMNS($A$15:AJ133)),\"\")","v":0}]
[{"$f":"IFERROR(INDEX('Master Database - amended'!$E$4:$AN$133,'Master Database - amended'!$C41,COLUMNS($A$15:$A$133)),\"\")","v":"21c"},{"$f":"IFERROR(INDEX('Master Database - amended'!$E$4:$AN$132,'Master Database - amended'!$C41,COLUMNS($A$15:B133)),\"\")","v":"GenusWave Ltd"},{"$f":"IFERROR(INDEX('Master Database - amended'!$E$4:$AN$132,'Master Database - amended'!$C41,COLUMNS($A$15:C133)),\"\")","v":"Mitigation device, TurbineSafe, ConstructionSafe"},{"$f":"IFERROR(INDEX('Master Database - amended'!$E$4:$AN$132,'Master Database - amended'!$C41,COLUMNS($A$15:D133)),\"\")","v":"No Data Available"},{"$f":"IFERROR(INDEX('Master Database - amended'!$E$4:$AN$132,'Master Database - amended'!$C41,COLUMNS($A$15:E133)),\"\")","v":"http://www.genuswave.com/"},"http://www.genuswave.com/",{"$f":"IFERROR(INDEX('Master Database - amended'!$E$4:$AN$132,'Master Database - amended'!$C41,COLUMNS($A$15:G133)),\"\")","v":0},{"$f":"IFERROR(INDEX('Master Database - amended'!$E$4:$AN$132,'Master Database - amended'!$C41,COLUMNS($A$15:H133)),\"\")","v":185},{"$f":"IFERROR(INDEX('Master Database - amended'!$E$4:$AN$132,'Master Database - amended'!$C41,COLUMNS($A$15:I133)),\"\")","v":"-"},{"$f":"IFERROR(INDEX('Master Database - amended'!$E$4:$AN$132,'Master Database - amended'!$C41,COLUMNS($A$15:J133)),\"\")","v":"-"},{"$f":"IFERROR(INDEX('Master Database - amended'!$E$4:$AN$132,'Master Database - amended'!$C41,COLUMNS($A$15:K133)),\"\")","v":0.5},{"$f":"IFERROR(INDEX('Master Database - amended'!$E$4:$AN$132,'Master Database - amended'!$C41,COLUMNS($A$15:L133)),\"\")","v":20},{"$f":"IFERROR(INDEX('Master Database - amended'!$E$4:$AN$132,'Master Database - amended'!$C41,COLUMNS($A$15:M133)),\"\")","v":"Seal signal: 0.5 - 1.5 kHz; Odontocete signal: 5 - 20 kHz"},{"$f":"IFERROR(INDEX('Master Database - amended'!$E$4:$AN$132,'Master Database - amended'!$C41,COLUMNS($A$15:N133)),\"\")","v":"No Data Available"},{"$f":"IFERROR(INDEX('Master Database - amended'!$E$4:$AN$132,'Master Database - amended'!$C41,COLUMNS($A$15:O133)),\"\")","v":"No Data Available"},{"$f":"IFERROR(INDEX('Master Database - amended'!$E$4:$AN$132,'Master Database - amended'!$C41,COLUMNS($A$15:P133)),\"\")","v":0},{"$f":"IFERROR(INDEX('Master Database - amended'!$E$4:$AN$132,'Master Database - amended'!$C41,COLUMNS($A$15:Q133)),\"\")","v":"Intermittent"},{"$f":"IFERROR(INDEX('Master Database - amended'!$E$4:$AN$132,'Master Database - amended'!$C41,COLUMNS($A$15:R133)),\"\")","v":"No Data Available"},{"$f":"IFERROR(INDEX('Master Database - amended'!$E$4:$AN$132,'Master Database - amended'!$C41,COLUMNS($A$15:S133)),\"\")","v":"No Data Available"},{"$f":"IFERROR(INDEX('Master Database - amended'!$E$4:$AN$132,'Master Database - amended'!$C41,COLUMNS($A$15:T133)),\"\")","v":"No Data Available"},{"$f":"IFERROR(INDEX('Master Database - amended'!$E$4:$AN$132,'Master Database - amended'!$C41,COLUMNS($A$15:U133)),\"\")","v":"1: Low confidence"},"No Data Available",{"$f":"IFERROR(INDEX('Master Database - amended'!$E$4:$AN$132,'Master Database - amended'!$C41,COLUMNS($A$15:W133)),\"\")","v":"2: Medium confidence"},"Y",{"$f":"IFERROR(INDEX('Master Database - amended'!$E$4:$AN$132,'Master Database - amended'!$C41,COLUMNS($A$15:Y133)),\"\")","v":"3: High confidence"},"N",{"$f":"IFERROR(INDEX('Master Database - amended'!$E$4:$AN$132,'Master Database - amended'!$C41,COLUMNS($A$15:AA133)),\"\")","v":"1: Low confidence"},"Y",{"$f":"IFERROR(INDEX('Master Database - amended'!$E$4:$AN$132,'Master Database - amended'!$C41,COLUMNS($A$15:AC133)),\"\")","v":"Seals and odonocetes"},{"$f":"IFERROR(INDEX('Master Database - amended'!$E$4:$AN$132,'Master Database - amended'!$C41,COLUMNS($A$15:AD133)),\"\")","v":"No Data Available"},{"$f":"IFERROR(INDEX('Master Database - amended'!$E$4:$AN$132,'Master Database - amended'!$C41,COLUMNS($A$15:AE133)),\"\")","v":"<500m"},{"$f":"IFERROR(INDEX('Master Database - amended'!$E$4:$AN$132,'Master Database - amended'!$C41,COLUMNS($A$15:AF133)),\"\")","v":">1000m"},{"$f":"IFERROR(INDEX('Master Database - amended'!$E$4:$AN$132,'Master Database - amended'!$C41,COLUMNS($A$15:AG133)),\"\")","v":"<500m"},"http://www.gov.scot/Resource/0043/00438860.pdf\n\nhttp://onlinelibrary.wiley.com/doi/10.1111/acv.12141/abstract\n\nhttps://www.carbontrust.com/media/675291/orjip-add-study-final-report-stage-1-phase-2.pdf","http://www.gov.scot/Resource/0043/00438860.pdf\n\nhttp://onlinelibrary.wiley.com/doi/10.1111/acv.12141/abstract\n\nhttps://www.carbontrust.com/media/675291/orjip-add-study-final-report-stage-1-phase-2.pdf",{"$f":"IFERROR(INDEX('Master Database - amended'!$E$4:$AN$132,'Master Database - amended'!$C41,COLUMNS($A$15:AJ133)),\"\")","v":0}]
[{"$f":"IFERROR(INDEX('Master Database - amended'!$E$4:$AN$133,'Master Database - amended'!$C42,COLUMNS($A$15:$A$133)),\"\")","v":"22a"},{"$f":"IFERROR(INDEX('Master Database - amended'!$E$4:$AN$132,'Master Database - amended'!$C42,COLUMNS($A$15:B133)),\"\")","v":"Savewave"},{"$f":"IFERROR(INDEX('Master Database - amended'!$E$4:$AN$132,'Master Database - amended'!$C42,COLUMNS($A$15:C133)),\"\")","v":"High Impact Saver"},{"$f":"IFERROR(INDEX('Master Database - amended'!$E$4:$AN$132,'Master Database - amended'!$C42,COLUMNS($A$15:D133)),\"\")","v":"No Data Available"},{"$f":"IFERROR(INDEX('Master Database - amended'!$E$4:$AN$132,'Master Database - amended'!$C42,COLUMNS($A$15:E133)),\"\")","v":"No manufacturers website available"},{"$f":"HYPERLINK(E53,E53)","v":"No manufacturers website available"},{"$f":"IFERROR(INDEX('Master Database - amended'!$E$4:$AN$132,'Master Database - amended'!$C42,COLUMNS($A$15:G133)),\"\")","v":"Bycatch (gillnets)"},{"$f":"IFERROR(INDEX('Master Database - amended'!$E$4:$AN$132,'Master Database - amended'!$C42,COLUMNS($A$15:H133)),\"\")","v":155},{"$f":"IFERROR(INDEX('Master Database - amended'!$E$4:$AN$132,'Master Database - amended'!$C42,COLUMNS($A$15:I133)),\"\")","v":158},{"$f":"IFERROR(INDEX('Master Database - amended'!$E$4:$AN$132,'Master Database - amended'!$C42,COLUMNS($A$15:J133)),\"\")","v":155},{"$f":"IFERROR(INDEX('Master Database - amended'!$E$4:$AN$132,'Master Database - amended'!$C42,COLUMNS($A$15:K133)),\"\")","v":5},{"$f":"IFERROR(INDEX('Master Database - amended'!$E$4:$AN$132,'Master Database - amended'!$C42,COLUMNS($A$15:L133)),\"\")","v":160},{"$f":"IFERROR(INDEX('Master Database - amended'!$E$4:$AN$132,'Master Database - amended'!$C42,COLUMNS($A$15:M133)),\"\")","v":"5 - 30 kHz and 30 - 160 kHz wide band sweeps."},{"$f":"IFERROR(INDEX('Master Database - amended'!$E$4:$AN$132,'Master Database - amended'!$C42,COLUMNS($A$15:N133)),\"\")","v":4000},{"$f":"IFERROR(INDEX('Master Database - amended'!$E$4:$AN$132,'Master Database - amended'!$C42,COLUMNS($A$15:O133)),\"\")","v":16000},{"$f":"IFERROR(INDEX('Master Database - amended'!$E$4:$AN$132,'Master Database - amended'!$C42,COLUMNS($A$15:P133)),\"\")","v":"Pulse interval of 4 - 16 s randomised."},{"$f":"IFERROR(INDEX('Master Database - amended'!$E$4:$AN$132,'Master Database - amended'!$C42,COLUMNS($A$15:Q133)),\"\")","v":"Intermittent"},{"$f":"IFERROR(INDEX('Master Database - amended'!$E$4:$AN$132,'Master Database - amended'!$C42,COLUMNS($A$15:R133)),\"\")","v":200},{"$f":"IFERROR(INDEX('Master Database - amended'!$E$4:$AN$132,'Master Database - amended'!$C42,COLUMNS($A$15:S133)),\"\")","v":900},{"$f":"IFERROR(INDEX('Master Database - amended'!$E$4:$AN$132,'Master Database - amended'!$C42,COLUMNS($A$15:T133)),\"\")","v":"Pulse duration 200 - 900 ms."},{"$f":"IFERROR(INDEX('Master Database - amended'!$E$4:$AN$132,'Master Database - amended'!$C42,COLUMNS($A$15:U133)),\"\")","v":"No Data Available"},{"$f":"IFERROR(INDEX('Master Database - amended'!$E$4:$AN$132,'Master Database - amended'!$C40,COLUMNS($A$15:V53)),\"\")","v":0},{"$f":"IFERROR(INDEX('Master Database - amended'!$E$4:$AN$132,'Master Database - amended'!$C42,COLUMNS($A$15:W133)),\"\")","v":"3: High confidence"},{"$f":"IFERROR(INDEX('Master Database - amended'!$E$4:$AN$132,'Master Database - amended'!$C40,COLUMNS($A$15:X53)),\"\")","v":0},{"$f":"IFERROR(INDEX('Master Database - amended'!$E$4:$AN$132,'Master Database - amended'!$C42,COLUMNS($A$15:Y133)),\"\")","v":"3: High confidence"},{"$f":"IFERROR(INDEX('Master Database - amended'!$E$4:$AN$132,'Master Database - amended'!$C40,COLUMNS($A$15:Z53)),\"\")","v":0},{"$f":"IFERROR(INDEX('Master Database - amended'!$E$4:$AN$132,'Master Database - amended'!$C42,COLUMNS($A$15:AA133)),\"\")","v":"No Data Available"},{"$f":"IFERROR(INDEX('Master Database - amended'!$E$4:$AN$132,'Master Database - amended'!$C40,COLUMNS($A$15:AB53)),\"\")","v":0},{"$f":"IFERROR(INDEX('Master Database - amended'!$E$4:$AN$132,'Master Database - amended'!$C42,COLUMNS($A$15:AC133)),\"\")","v":"Dolphins and Seals"},{"$f":"IFERROR(INDEX('Master Database - amended'!$E$4:$AN$132,'Master Database - amended'!$C42,COLUMNS($A$15:AD133)),\"\")","v":"No Data Available"},{"$f":"IFERROR(INDEX('Master Database - amended'!$E$4:$AN$132,'Master Database - amended'!$C42,COLUMNS($A$15:AE133)),\"\")","v":"No Data Available"},{"$f":"IFERROR(INDEX('Master Database - amended'!$E$4:$AN$132,'Master Database - amended'!$C42,COLUMNS($A$15:AF133)),\"\")","v":"No Data Available"},{"$f":"IFERROR(INDEX('Master Database - amended'!$E$4:$AN$132,'Master Database - amended'!$C42,COLUMNS($A$15:AG133)),\"\")","v":"No Data Available"},{"$f":"IFERROR(INDEX('Master Database - amended'!$E$4:$AN$132,'Master Database - amended'!$C40,COLUMNS($A$15:AH53)),\"\")","v":"http://www.gov.scot/Resource/0043/00438860.pdf"},null,{"$f":"IFERROR(INDEX('Master Database - amended'!$E$4:$AN$132,'Master Database - amended'!$C42,COLUMNS($A$15:AJ133)),\"\")","v":"While this is good for avoiding entanglement no change in dolphin swimming direction or movement of the dolphins away from the area was detected and so it is unlikely to be of use for the mitigation of impacts from wind farm piling for bottlenose dolphins."}]
[{"$f":"IFERROR(INDEX('Master Database - amended'!$E$4:$AN$133,'Master Database - amended'!$C43,COLUMNS($A$15:$A$133)),\"\")","v":"22d"},{"$f":"IFERROR(INDEX('Master Database - amended'!$E$4:$AN$132,'Master Database - amended'!$C43,COLUMNS($A$15:B133)),\"\")","v":"SaveWave"},{"$f":"IFERROR(INDEX('Master Database - amended'!$E$4:$AN$132,'Master Database - amended'!$C43,COLUMNS($A$15:C133)),\"\")","v":"OrcaSaver"},{"$f":"IFERROR(INDEX('Master Database - amended'!$E$4:$AN$132,'Master Database - amended'!$C43,COLUMNS($A$15:D133)),\"\")","v":"No Data Available"},{"$f":"IFERROR(INDEX('Master Database - amended'!$E$4:$AN$132,'Master Database - amended'!$C43,COLUMNS($A$15:E133)),\"\")","v":"No manufacturers website available"},{"$f":"HYPERLINK(E54,E54)","v":"No manufacturers website available"},{"$f":"IFERROR(INDEX('Master Database - amended'!$E$4:$AN$132,'Master Database - amended'!$C43,COLUMNS($A$15:G133)),\"\")","v":"Bycatch (gillnets)"},{"$f":"IFERROR(INDEX('Master Database - amended'!$E$4:$AN$132,'Master Database - amended'!$C43,COLUMNS($A$15:H133)),\"\")","v":196},{"$f":"IFERROR(INDEX('Master Database - amended'!$E$4:$AN$132,'Master Database - amended'!$C43,COLUMNS($A$15:I133)),\"\")","v":199},{"$f":"IFERROR(INDEX('Master Database - amended'!$E$4:$AN$132,'Master Database - amended'!$C43,COLUMNS($A$15:J133)),\"\")","v":196},{"$f":"IFERROR(INDEX('Master Database - amended'!$E$4:$AN$132,'Master Database - amended'!$C43,COLUMNS($A$15:K133)),\"\")","v":6.5},{"$f":"IFERROR(INDEX('Master Database - amended'!$E$4:$AN$132,'Master Database - amended'!$C43,COLUMNS($A$15:L133)),\"\")","v":6.5},{"$f":"IFERROR(INDEX('Master Database - amended'!$E$4:$AN$132,'Master Database - amended'!$C43,COLUMNS($A$15:M133)),\"\")","v":"6.5 kHz"},{"$f":"IFERROR(INDEX('Master Database - amended'!$E$4:$AN$132,'Master Database - amended'!$C43,COLUMNS($A$15:N133)),\"\")","v":"No Data Available"},{"$f":"IFERROR(INDEX('Master Database - amended'!$E$4:$AN$132,'Master Database - amended'!$C43,COLUMNS($A$15:O133)),\"\")","v":"No Data Available"},{"$f":"IFERROR(INDEX('Master Database - amended'!$E$4:$AN$132,'Master Database - amended'!$C43,COLUMNS($A$15:P133)),\"\")","v":"Intermittent"},{"$f":"IFERROR(INDEX('Master Database - amended'!$E$4:$AN$132,'Master Database - amended'!$C43,COLUMNS($A$15:Q133)),\"\")","v":"Intermittent"},{"$f":"IFERROR(INDEX('Master Database - amended'!$E$4:$AN$132,'Master Database - amended'!$C43,COLUMNS($A$15:R133)),\"\")","v":200},{"$f":"IFERROR(INDEX('Master Database - amended'!$E$4:$AN$132,'Master Database - amended'!$C43,COLUMNS($A$15:S133)),\"\")","v":1000},{"$f":"IFERROR(INDEX('Master Database - amended'!$E$4:$AN$132,'Master Database - amended'!$C43,COLUMNS($A$15:T133)),\"\")","v":"200ms - 1 s"},{"$f":"IFERROR(INDEX('Master Database - amended'!$E$4:$AN$132,'Master Database - amended'!$C43,COLUMNS($A$15:U133)),\"\")","v":"No Data Available"},{"$f":"IFERROR(INDEX('Master Database - amended'!$E$4:$AN$132,'Master Database - amended'!$C42,COLUMNS($A$15:V54)),\"\")","v":"No Data Available"},{"$f":"IFERROR(INDEX('Master Database - amended'!$E$4:$AN$132,'Master Database - amended'!$C43,COLUMNS($A$15:W133)),\"\")","v":"No Data Available"},{"$f":"IFERROR(INDEX('Master Database - amended'!$E$4:$AN$132,'Master Database - amended'!$C42,COLUMNS($A$15:X54)),\"\")","v":"Y"},{"$f":"IFERROR(INDEX('Master Database - amended'!$E$4:$AN$132,'Master Database - amended'!$C43,COLUMNS($A$15:Y133)),\"\")","v":"No Data Available"},{"$f":"IFERROR(INDEX('Master Database - amended'!$E$4:$AN$132,'Master Database - amended'!$C42,COLUMNS($A$15:Z54)),\"\")","v":"Y"},{"$f":"IFERROR(INDEX('Master Database - amended'!$E$4:$AN$132,'Master Database - amended'!$C43,COLUMNS($A$15:AA133)),\"\")","v":"No Data Available"},{"$f":"IFERROR(INDEX('Master Database - amended'!$E$4:$AN$132,'Master Database - amended'!$C42,COLUMNS($A$15:AB54)),\"\")","v":"No Data Available"},{"$f":"IFERROR(INDEX('Master Database - amended'!$E$4:$AN$132,'Master Database - amended'!$C43,COLUMNS($A$15:AC133)),\"\")","v":"Orcas"},{"$f":"IFERROR(INDEX('Master Database - amended'!$E$4:$AN$132,'Master Database - amended'!$C43,COLUMNS($A$15:AD133)),\"\")","v":"No Data Available"},{"$f":"IFERROR(INDEX('Master Database - amended'!$E$4:$AN$132,'Master Database - amended'!$C43,COLUMNS($A$15:AE133)),\"\")","v":"No Data Available"},{"$f":"IFERROR(INDEX('Master Database - amended'!$E$4:$AN$132,'Master Database - amended'!$C43,COLUMNS($A$15:AF133)),\"\")","v":"No Data Available"},{"$f":"IFERROR(INDEX('Master Database - amended'!$E$4:$AN$132,'Master Database - amended'!$C43,COLUMNS($A$15:AG133)),\"\")","v":"No Data Available"},{"$f":"IFERROR(INDEX('Master Database - amended'!$E$4:$AN$132,'Master Database - amended'!$C42,COLUMNS($A$15:AH54)),\"\")","v":"No Evidence Available"},null,{"$f":"IFERROR(INDEX('Master Database - amended'!$E$4:$AN$132,'Master Database - amended'!$C43,COLUMNS($A$15:AJ133)),\"\")","v":"No Comments"}]
[{"$f":"IFERROR(INDEX('Master Database - amended'!$E$4:$AN$133,'Master Database - amended'!$C44,COLUMNS($A$15:$A$133)),\"\")","v":"22b"},{"$f":"IFERROR(INDEX('Master Database - amended'!$E$4:$AN$132,'Master Database - amended'!$C44,COLUMNS($A$15:B133)),\"\")","v":"Savewave"},{"$f":"IFERROR(INDEX('Master Database - amended'!$E$4:$AN$132,'Master Database - amended'!$C44,COLUMNS($A$15:C133)),\"\")","v":"Long Live Saver"},{"$f":"IFERROR(INDEX('Master Database - amended'!$E$4:$AN$132,'Master Database - amended'!$C44,COLUMNS($A$15:D133)),\"\")","v":"No Data Available"},{"$f":"IFERROR(INDEX('Master Database - amended'!$E$4:$AN$132,'Master Database - amended'!$C44,COLUMNS($A$15:E133)),\"\")","v":"No manufacturers website available"},{"$f":"HYPERLINK(E55,E55)","v":"No manufacturers website available"},{"$f":"IFERROR(INDEX('Master Database - amended'!$E$4:$AN$132,'Master Database - amended'!$C44,COLUMNS($A$15:G133)),\"\")","v":"Bycatch (gillnets)"},{"$f":"IFERROR(INDEX('Master Database - amended'!$E$4:$AN$132,'Master Database - amended'!$C44,COLUMNS($A$15:H133)),\"\")","v":155},{"$f":"IFERROR(INDEX('Master Database - amended'!$E$4:$AN$132,'Master Database - amended'!$C44,COLUMNS($A$15:I133)),\"\")","v":158},{"$f":"IFERROR(INDEX('Master Database - amended'!$E$4:$AN$132,'Master Database - amended'!$C44,COLUMNS($A$15:J133)),\"\")","v":151},{"$f":"IFERROR(INDEX('Master Database - amended'!$E$4:$AN$132,'Master Database - amended'!$C44,COLUMNS($A$15:K133)),\"\")","v":5},{"$f":"IFERROR(INDEX('Master Database - amended'!$E$4:$AN$132,'Master Database - amended'!$C44,COLUMNS($A$15:L133)),\"\")","v":60},{"$f":"IFERROR(INDEX('Master Database - amended'!$E$4:$AN$132,'Master Database - amended'!$C44,COLUMNS($A$15:M133)),\"\")","v":"5 - 60 kHz wide band sweeps."},{"$f":"IFERROR(INDEX('Master Database - amended'!$E$4:$AN$132,'Master Database - amended'!$C44,COLUMNS($A$15:N133)),\"\")","v":4000},{"$f":"IFERROR(INDEX('Master Database - amended'!$E$4:$AN$132,'Master Database - amended'!$C44,COLUMNS($A$15:O133)),\"\")","v":16000},{"$f":"IFERROR(INDEX('Master Database - amended'!$E$4:$AN$132,'Master Database - amended'!$C44,COLUMNS($A$15:P133)),\"\")","v":"Pulse interval of 4 - 16 s randomised."},{"$f":"IFERROR(INDEX('Master Database - amended'!$E$4:$AN$132,'Master Database - amended'!$C44,COLUMNS($A$15:Q133)),\"\")","v":"Intermittent"},{"$f":"IFERROR(INDEX('Master Database - amended'!$E$4:$AN$132,'Master Database - amended'!$C44,COLUMNS($A$15:R133)),\"\")","v":200},{"$f":"IFERROR(INDEX('Master Database - amended'!$E$4:$AN$132,'Master Database - amended'!$C44,COLUMNS($A$15:S133)),\"\")","v":400},{"$f":"IFERROR(INDEX('Master Database - amended'!$E$4:$AN$132,'Master Database - amended'!$C44,COLUMNS($A$15:T133)),\"\")","v":"Pulse duration 200 - 400 ms."},{"$f":"IFERROR(INDEX('Master Database - amended'!$E$4:$AN$132,'Master Database - amended'!$C44,COLUMNS($A$15:U133)),\"\")","v":"No Data Available"},{"$f":"IFERROR(INDEX('Master Database - amended'!$E$4:$AN$132,'Master Database - amended'!$C43,COLUMNS($A$15:V55)),\"\")","v":"No Data Available"},{"$f":"IFERROR(INDEX('Master Database - amended'!$E$4:$AN$132,'Master Database - amended'!$C44,COLUMNS($A$15:W133)),\"\")","v":"No Data Available"},{"$f":"IFERROR(INDEX('Master Database - amended'!$E$4:$AN$132,'Master Database - amended'!$C43,COLUMNS($A$15:X55)),\"\")","v":"No Data Available"},{"$f":"IFERROR(INDEX('Master Database - amended'!$E$4:$AN$132,'Master Database - amended'!$C44,COLUMNS($A$15:Y133)),\"\")","v":"No Data Available"},{"$f":"IFERROR(INDEX('Master Database - amended'!$E$4:$AN$132,'Master Database - amended'!$C43,COLUMNS($A$15:Z55)),\"\")","v":"No Data Available"},{"$f":"IFERROR(INDEX('Master Database - amended'!$E$4:$AN$132,'Master Database - amended'!$C44,COLUMNS($A$15:AA133)),\"\")","v":"No Data Available"},{"$f":"IFERROR(INDEX('Master Database - amended'!$E$4:$AN$132,'Master Database - amended'!$C43,COLUMNS($A$15:AB55)),\"\")","v":"No Data Available"},{"$f":"IFERROR(INDEX('Master Database - amended'!$E$4:$AN$132,'Master Database - amended'!$C44,COLUMNS($A$15:AC133)),\"\")","v":"No Evidence Available"},{"$f":"IFERROR(INDEX('Master Database - amended'!$E$4:$AN$132,'Master Database - amended'!$C44,COLUMNS($A$15:AD133)),\"\")","v":"No Data Available"},{"$f":"IFERROR(INDEX('Master Database - amended'!$E$4:$AN$132,'Master Database - amended'!$C44,COLUMNS($A$15:AE133)),\"\")","v":"No Data Available"},{"$f":"IFERROR(INDEX('Master Database - amended'!$E$4:$AN$132,'Master Database - amended'!$C44,COLUMNS($A$15:AF133)),\"\")","v":"No Data Available"},{"$f":"IFERROR(INDEX('Master Database - amended'!$E$4:$AN$132,'Master Database - amended'!$C44,COLUMNS($A$15:AG133)),\"\")","v":"No Data Available"},{"$f":"IFERROR(INDEX('Master Database - amended'!$E$4:$AN$132,'Master Database - amended'!$C43,COLUMNS($A$15:AH55)),\"\")","v":"No Evidence Available"},null,{"$f":"IFERROR(INDEX('Master Database - amended'!$E$4:$AN$132,'Master Database - amended'!$C44,COLUMNS($A$15:AJ133)),\"\")","v":"No Comments"}]
[{"$f":"IFERROR(INDEX('Master Database - amended'!$E$4:$AN$133,'Master Database - amended'!$C45,COLUMNS($A$15:$A$133)),\"\")","v":"22c"},{"$f":"IFERROR(INDEX('Master Database - amended'!$E$4:$AN$132,'Master Database - amended'!$C45,COLUMNS($A$15:B133)),\"\")","v":"SaveWave"},{"$f":"IFERROR(INDEX('Master Database - amended'!$E$4:$AN$132,'Master Database - amended'!$C45,COLUMNS($A$15:C133)),\"\")","v":"Endurance Saver"},{"$f":"IFERROR(INDEX('Master Database - amended'!$E$4:$AN$132,'Master Database - amended'!$C45,COLUMNS($A$15:D133)),\"\")","v":"No Data Available"},{"$f":"IFERROR(INDEX('Master Database - amended'!$E$4:$AN$132,'Master Database - amended'!$C45,COLUMNS($A$15:E133)),\"\")","v":"No manufacturers website available"},{"$f":"HYPERLINK(E56,E56)","v":"No manufacturers website available"},{"$f":"IFERROR(INDEX('Master Database - amended'!$E$4:$AN$132,'Master Database - amended'!$C45,COLUMNS($A$15:G133)),\"\")","v":"Bycatch (gillnets)"},{"$f":"IFERROR(INDEX('Master Database - amended'!$E$4:$AN$132,'Master Database - amended'!$C45,COLUMNS($A$15:H133)),\"\")","v":140},{"$f":"IFERROR(INDEX('Master Database - amended'!$E$4:$AN$132,'Master Database - amended'!$C45,COLUMNS($A$15:I133)),\"\")","v":143},{"$f":"IFERROR(INDEX('Master Database - amended'!$E$4:$AN$132,'Master Database - amended'!$C45,COLUMNS($A$15:J133)),\"\")","v":136},{"$f":"IFERROR(INDEX('Master Database - amended'!$E$4:$AN$132,'Master Database - amended'!$C45,COLUMNS($A$15:K133)),\"\")","v":5},{"$f":"IFERROR(INDEX('Master Database - amended'!$E$4:$AN$132,'Master Database - amended'!$C45,COLUMNS($A$15:L133)),\"\")","v":90},{"$f":"IFERROR(INDEX('Master Database - amended'!$E$4:$AN$132,'Master Database - amended'!$C45,COLUMNS($A$15:M133)),\"\")","v":"5 - 90 kHz wide band sweeps."},{"$f":"IFERROR(INDEX('Master Database - amended'!$E$4:$AN$132,'Master Database - amended'!$C45,COLUMNS($A$15:N133)),\"\")","v":4000},{"$f":"IFERROR(INDEX('Master Database - amended'!$E$4:$AN$132,'Master Database - amended'!$C45,COLUMNS($A$15:O133)),\"\")","v":16000},{"$f":"IFERROR(INDEX('Master Database - amended'!$E$4:$AN$132,'Master Database - amended'!$C45,COLUMNS($A$15:P133)),\"\")","v":"Pulse interval of 4 - 30 s randomised."},{"$f":"IFERROR(INDEX('Master Database - amended'!$E$4:$AN$132,'Master Database - amended'!$C45,COLUMNS($A$15:Q133)),\"\")","v":"Intermittent"},{"$f":"IFERROR(INDEX('Master Database - amended'!$E$4:$AN$132,'Master Database - amended'!$C45,COLUMNS($A$15:R133)),\"\")","v":200},{"$f":"IFERROR(INDEX('Master Database - amended'!$E$4:$AN$132,'Master Database - amended'!$C45,COLUMNS($A$15:S133)),\"\")","v":400},{"$f":"IFERROR(INDEX('Master Database - amended'!$E$4:$AN$132,'Master Database - amended'!$C45,COLUMNS($A$15:T133)),\"\")","v":"Pulse duration 200 - 400 ms."},{"$f":"IFERROR(INDEX('Master Database - amended'!$E$4:$AN$132,'Master Database - amended'!$C45,COLUMNS($A$15:U133)),\"\")","v":"No Data Available"},{"$f":"IFERROR(INDEX('Master Database - amended'!$E$4:$AN$132,'Master Database - amended'!$C41,COLUMNS($A$15:V68)),\"\")","v":0},{"$f":"IFERROR(INDEX('Master Database - amended'!$E$4:$AN$132,'Master Database - amended'!$C45,COLUMNS($A$15:W133)),\"\")","v":"No Data Available"},{"$f":"IFERROR(INDEX('Master Database - amended'!$E$4:$AN$132,'Master Database - amended'!$C41,COLUMNS($A$15:X68)),\"\")","v":0},{"$f":"IFERROR(INDEX('Master Database - amended'!$E$4:$AN$132,'Master Database - amended'!$C45,COLUMNS($A$15:Y133)),\"\")","v":"No Data Available"},{"$f":"IFERROR(INDEX('Master Database - amended'!$E$4:$AN$132,'Master Database - amended'!$C41,COLUMNS($A$15:Z68)),\"\")","v":0},{"$f":"IFERROR(INDEX('Master Database - amended'!$E$4:$AN$132,'Master Database - amended'!$C45,COLUMNS($A$15:AA133)),\"\")","v":"No Data Available"},{"$f":"IFERROR(INDEX('Master Database - amended'!$E$4:$AN$132,'Master Database - amended'!$C41,COLUMNS($A$15:AB68)),\"\")","v":0},{"$f":"IFERROR(INDEX('Master Database - amended'!$E$4:$AN$132,'Master Database - amended'!$C45,COLUMNS($A$15:AC133)),\"\")","v":"No Evidence Available"},{"$f":"IFERROR(INDEX('Master Database - amended'!$E$4:$AN$132,'Master Database - amended'!$C45,COLUMNS($A$15:AD133)),\"\")","v":"No Data Available"},{"$f":"IFERROR(INDEX('Master Database - amended'!$E$4:$AN$132,'Master Database - amended'!$C45,COLUMNS($A$15:AE133)),\"\")","v":"No Data Available"},{"$f":"IFERROR(INDEX('Master Database - amended'!$E$4:$AN$132,'Master Database - amended'!$C45,COLUMNS($A$15:AF133)),\"\")","v":"No Data Available"},{"$f":"IFERROR(INDEX('Master Database - amended'!$E$4:$AN$132,'Master Database - amended'!$C45,COLUMNS($A$15:AG133)),\"\")","v":"No Data Available"},{"$f":"IFERROR(INDEX('Master Database - amended'!$E$4:$AN$132,'Master Database - amended'!$C41,COLUMNS($A$15:AH68)),\"\")","v":"http://www.gov.scot/Resource/0043/00438860.pdf"},null,{"$f":"IFERROR(INDEX('Master Database - amended'!$E$4:$AN$132,'Master Database - amended'!$C45,COLUMNS($A$15:AJ133)),\"\")","v":"No Comments"}]
[{"$f":"IFERROR(INDEX('Master Database - amended'!$E$4:$AN$133,'Master Database - amended'!$C46,COLUMNS($A$15:$A$133)),\"\")","v":23},{"$f":"IFERROR(INDEX('Master Database - amended'!$E$4:$AN$132,'Master Database - amended'!$C46,COLUMNS($A$15:B133)),\"\")","v":"Gael Force"},{"$f":"IFERROR(INDEX('Master Database - amended'!$E$4:$AN$132,'Master Database - amended'!$C46,COLUMNS($A$15:C133)),\"\")","v":"SeaGuard Seal deterrent"},{"$f":"IFERROR(INDEX('Master Database - amended'!$E$4:$AN$132,'Master Database - amended'!$C46,COLUMNS($A$15:D133)),\"\")","v":"Manual"},{"$f":"IFERROR(INDEX('Master Database - amended'!$E$4:$AN$132,'Master Database - amended'!$C46,COLUMNS($A$15:E133)),\"\")","v":"http://www.gaelforcemarinetechnology.com/Aquaculture-Sea/Seal-Deterrents/SeaGuard-Seal-Deterrent.aspx?lang=nb-no"},"http://www.gaelforcemarinetechnology.com/Aquaculture-Sea/Seal-Deterrents/SeaGuard-Seal-Deterrent.aspx?lang=nb-no",{"$f":"IFERROR(INDEX('Master Database - amended'!$E$4:$AN$132,'Master Database - amended'!$C46,COLUMNS($A$15:G133)),\"\")","v":"Aquaculture"},{"$f":"IFERROR(INDEX('Master Database - amended'!$E$4:$AN$132,'Master Database - amended'!$C46,COLUMNS($A$15:H133)),\"\")","v":198},{"$f":"IFERROR(INDEX('Master Database - amended'!$E$4:$AN$132,'Master Database - amended'!$C46,COLUMNS($A$15:I133)),\"\")","v":201},{"$f":"IFERROR(INDEX('Master Database - amended'!$E$4:$AN$132,'Master Database - amended'!$C46,COLUMNS($A$15:J133)),\"\")","v":"No Data Available"},{"$f":"IFERROR(INDEX('Master Database - amended'!$E$4:$AN$132,'Master Database - amended'!$C46,COLUMNS($A$15:K133)),\"\")","v":1.5},{"$f":"IFERROR(INDEX('Master Database - amended'!$E$4:$AN$132,'Master Database - amended'!$C46,COLUMNS($A$15:L133)),\"\")","v":50},{"$f":"IFERROR(INDEX('Master Database - amended'!$E$4:$AN$132,'Master Database - amended'!$C46,COLUMNS($A$15:M133)),\"\")","v":"A broadband spectral response at the beginning of each pulse, with detectable energy levels between 1.5 kHz to 50 kHz (Lepper et al. 2014)."},{"$f":"IFERROR(INDEX('Master Database - amended'!$E$4:$AN$132,'Master Database - amended'!$C46,COLUMNS($A$15:N133)),\"\")","v":"No Data Available"},{"$f":"IFERROR(INDEX('Master Database - amended'!$E$4:$AN$132,'Master Database - amended'!$C46,COLUMNS($A$15:O133)),\"\")","v":"No Data Available"},{"$f":"IFERROR(INDEX('Master Database - amended'!$E$4:$AN$132,'Master Database - amended'!$C46,COLUMNS($A$15:P133)),\"\")","v":"Multiple and random firing patterns, where lentgh and breaks of the siring pulses can be varied."},{"$f":"IFERROR(INDEX('Master Database - amended'!$E$4:$AN$132,'Master Database - amended'!$C46,COLUMNS($A$15:Q133)),\"\")","v":"Intermittent"},{"$f":"IFERROR(INDEX('Master Database - amended'!$E$4:$AN$132,'Master Database - amended'!$C46,COLUMNS($A$15:R133)),\"\")","v":"No Data Available"},{"$f":"IFERROR(INDEX('Master Database - amended'!$E$4:$AN$132,'Master Database - amended'!$C46,COLUMNS($A$15:S133)),\"\")","v":"No Data Available"},{"$f":"IFERROR(INDEX('Master Database - amended'!$E$4:$AN$132,'Master Database - amended'!$C46,COLUMNS($A$15:T133)),\"\")","v":"Varied length and breaks of firing pulses can be varied."},{"$f":"IFERROR(INDEX('Master Database - amended'!$E$4:$AN$132,'Master Database - amended'!$C46,COLUMNS($A$15:U133)),\"\")","v":"No Data Available"},{"$f":"IFERROR(INDEX('Master Database - amended'!$E$4:$AN$132,'Master Database - amended'!$C44,COLUMNS($A$15:V57)),\"\")","v":"No Data Available"},{"$f":"IFERROR(INDEX('Master Database - amended'!$E$4:$AN$132,'Master Database - amended'!$C46,COLUMNS($A$15:W133)),\"\")","v":"No Data Available"},{"$f":"IFERROR(INDEX('Master Database - amended'!$E$4:$AN$132,'Master Database - amended'!$C44,COLUMNS($A$15:X57)),\"\")","v":"No Data Available"},{"$f":"IFERROR(INDEX('Master Database - amended'!$E$4:$AN$132,'Master Database - amended'!$C46,COLUMNS($A$15:Y133)),\"\")","v":"No Data Available"},{"$f":"IFERROR(INDEX('Master Database - amended'!$E$4:$AN$132,'Master Database - amended'!$C44,COLUMNS($A$15:Z57)),\"\")","v":"No Data Available"},{"$f":"IFERROR(INDEX('Master Database - amended'!$E$4:$AN$132,'Master Database - amended'!$C46,COLUMNS($A$15:AA133)),\"\")","v":"1: Low confidence"},{"$f":"IFERROR(INDEX('Master Database - amended'!$E$4:$AN$132,'Master Database - amended'!$C44,COLUMNS($A$15:AB57)),\"\")","v":"No Data Available"},{"$f":"IFERROR(INDEX('Master Database - amended'!$E$4:$AN$132,'Master Database - amended'!$C46,COLUMNS($A$15:AC133)),\"\")","v":"Seals"},{"$f":"IFERROR(INDEX('Master Database - amended'!$E$4:$AN$132,'Master Database - amended'!$C46,COLUMNS($A$15:AD133)),\"\")","v":"No Data Available"},{"$f":"IFERROR(INDEX('Master Database - amended'!$E$4:$AN$132,'Master Database - amended'!$C46,COLUMNS($A$15:AE133)),\"\")","v":"No Data Available"},{"$f":"IFERROR(INDEX('Master Database - amended'!$E$4:$AN$132,'Master Database - amended'!$C46,COLUMNS($A$15:AF133)),\"\")","v":"No Data Available"},{"$f":"IFERROR(INDEX('Master Database - amended'!$E$4:$AN$132,'Master Database - amended'!$C46,COLUMNS($A$15:AG133)),\"\")","v":"<500m"},{"$f":"IFERROR(INDEX('Master Database - amended'!$E$4:$AN$132,'Master Database - amended'!$C44,COLUMNS($A$15:AH57)),\"\")","v":"No Evidence Available"},null,{"$f":"IFERROR(INDEX('Master Database - amended'!$E$4:$AN$132,'Master Database - amended'!$C46,COLUMNS($A$15:AJ133)),\"\")","v":"Note: The literature review was based on the dB Plus II as provided by Mohn Aqua. This was then superceeded by the Gael Force SeaGuard Seal Deterrent which we understand to be the same device.\n\nIn the St Andrews report, the unit measured was a 24v model which had twice the voltage of that tested by Lepper et al., (2004), which would explain the 3dB higher source level (Lepper et al., (2004) measured a sourced level of 192dB RMS for a standard 12v Airmar.). The responses observed did not suggest panic leading to a straightforward flight response; rather the seals’ behaviour appeared to represent controlled responses which often seemed to be adapted to location and circumstances allowing seals to avoid sound sources while continuing with their existing behaviour with minimal disruption.\n\nORJIP review concludes that this device is not suitable in current configuration for use during OWF construction due to limited stated range by manufacturer (40m) and therefore practicalities of deploying a suitable system to achieve adequate deterrence - however recommendation is to take forward further discussion and provide the opportunity for Mohn Aqua to provide potential alternative solutions.\n\n"}]
[{"$f":"IFERROR(INDEX('Master Database - amended'!$E$4:$AN$133,'Master Database - amended'!$C47,COLUMNS($A$15:$A$133)),\"\")","v":24},{"$f":"IFERROR(INDEX('Master Database - amended'!$E$4:$AN$132,'Master Database - amended'!$C47,COLUMNS($A$15:B133)),\"\")","v":"Van Oord / SEAMARCO"},{"$f":"IFERROR(INDEX('Master Database - amended'!$E$4:$AN$132,'Master Database - amended'!$C47,COLUMNS($A$15:C58)),\"\")","v":"Faunaguard - Porpoise Module"},{"$f":"IFERROR(INDEX('Master Database - amended'!$E$4:$AN$132,'Master Database - amended'!$C47,COLUMNS($A$15:D58)),\"\")","v":"Manual"},{"$f":"IFERROR(INDEX('Master Database - amended'!$E$4:$AN$132,'Master Database - amended'!$C47,COLUMNS($A$15:E58)),\"\")","v":"https://www.vanoord.com/sites/default/files/leaflet_faunaguard_0.pdf"},{"$f":"HYPERLINK(E58,E58)","v":"https://www.vanoord.com/sites/default/files/leaflet_faunaguard_0.pdf"},{"$f":"IFERROR(INDEX('Master Database - amended'!$E$4:$AN$132,'Master Database - amended'!$C47,COLUMNS($A$15:G58)),\"\")","v":"Offshore piling mitigation"},{"$f":"IFERROR(INDEX('Master Database - amended'!$E$4:$AN$132,'Master Database - amended'!$C47,COLUMNS($A$15:H58)),\"\")","v":172},{"$f":"IFERROR(INDEX('Master Database - amended'!$E$4:$AN$132,'Master Database - amended'!$C47,COLUMNS($A$15:I58)),\"\")","v":175},{"$f":"IFERROR(INDEX('Master Database - amended'!$E$4:$AN$132,'Master Database - amended'!$C47,COLUMNS($A$15:J58)),\"\")","v":172},{"$f":"IFERROR(INDEX('Master Database - amended'!$E$4:$AN$132,'Master Database - amended'!$C47,COLUMNS($A$15:K58)),\"\")","v":60},{"$f":"IFERROR(INDEX('Master Database - amended'!$E$4:$AN$132,'Master Database - amended'!$C47,COLUMNS($A$15:L58)),\"\")","v":150},{"$f":"IFERROR(INDEX('Master Database - amended'!$E$4:$AN$132,'Master Database - amended'!$C47,COLUMNS($A$15:M58)),\"\")","v":"60 - 150 kHz"},{"$f":"IFERROR(INDEX('Master Database - amended'!$E$4:$AN$132,'Master Database - amended'!$C47,COLUMNS($A$15:N58)),\"\")","v":3000},{"$f":"IFERROR(INDEX('Master Database - amended'!$E$4:$AN$132,'Master Database - amended'!$C47,COLUMNS($A$15:O58)),\"\")","v":10000},{"$f":"IFERROR(INDEX('Master Database - amended'!$E$4:$AN$132,'Master Database - amended'!$C47,COLUMNS($A$15:P58)),\"\")","v":"Intermittent - randomised intervals varying between 3 and 10 seconds."},{"$f":"IFERROR(INDEX('Master Database - amended'!$E$4:$AN$132,'Master Database - amended'!$C47,COLUMNS($A$15:Q58)),\"\")","v":"Intermittent"},{"$f":"IFERROR(INDEX('Master Database - amended'!$E$4:$AN$132,'Master Database - amended'!$C47,COLUMNS($A$15:R58)),\"\")","v":9000},{"$f":"IFERROR(INDEX('Master Database - amended'!$E$4:$AN$132,'Master Database - amended'!$C47,COLUMNS($A$15:S58)),\"\")","v":18000},{"$f":"IFERROR(INDEX('Master Database - amended'!$E$4:$AN$132,'Master Database - amended'!$C47,COLUMNS($A$15:T58)),\"\")","v":"The signals vary in duration between 9 and 18 s and sound at random intervals, varying between 3 and 10 s. The average duty cycle of the device is 65% (Kastelein et al. 2017)."},{"$f":"IFERROR(INDEX('Master Database - amended'!$E$4:$AN$132,'Master Database - amended'!$C47,COLUMNS($A$15:U58)),\"\")","v":"No Data Available"},{"$f":"IFERROR(INDEX('Master Database - amended'!$E$4:$AN$132,'Master Database - amended'!$C45,COLUMNS($A$15:V58)),\"\")","v":"No Data Available"},{"$f":"IFERROR(INDEX('Master Database - amended'!$E$4:$AN$132,'Master Database - amended'!$C47,COLUMNS($A$15:W58)),\"\")","v":"No Data Available"},{"$f":"IFERROR(INDEX('Master Database - amended'!$E$4:$AN$132,'Master Database - amended'!$C45,COLUMNS($A$15:X58)),\"\")","v":"No Data Available"},{"$f":"IFERROR(INDEX('Master Database - amended'!$E$4:$AN$132,'Master Database - amended'!$C47,COLUMNS($A$15:Y58)),\"\")","v":"3: High confidence"},{"$f":"IFERROR(INDEX('Master Database - amended'!$E$4:$AN$132,'Master Database - amended'!$C45,COLUMNS($A$15:Z58)),\"\")","v":"No Data Available"},{"$f":"IFERROR(INDEX('Master Database - amended'!$E$4:$AN$132,'Master Database - amended'!$C47,COLUMNS($A$15:AA58)),\"\")","v":"No Data Available"},{"$f":"IFERROR(INDEX('Master Database - amended'!$E$4:$AN$132,'Master Database - amended'!$C45,COLUMNS($A$15:AB58)),\"\")","v":"No Data Available"},{"$f":"IFERROR(INDEX('Master Database - amended'!$E$4:$AN$132,'Master Database - amended'!$C47,COLUMNS($A$15:AC58)),\"\")","v":"Porpoise species"},{"$f":"IFERROR(INDEX('Master Database - amended'!$E$4:$AN$132,'Master Database - amended'!$C47,COLUMNS($A$15:AD58)),\"\")","v":"No Data Available"},{"$f":"IFERROR(INDEX('Master Database - amended'!$E$4:$AN$132,'Master Database - amended'!$C47,COLUMNS($A$15:AE58)),\"\")","v":"No Data Available"},{"$f":"IFERROR(INDEX('Master Database - amended'!$E$4:$AN$132,'Master Database - amended'!$C47,COLUMNS($A$15:AF58)),\"\")","v":">1000m"},{"$f":"IFERROR(INDEX('Master Database - amended'!$E$4:$AN$132,'Master Database - amended'!$C47,COLUMNS($A$15:AG58)),\"\")","v":"No Data Available"},{"$f":"IFERROR(INDEX('Master Database - amended'!$E$4:$AN$132,'Master Database - amended'!$C45,COLUMNS($A$15:AH58)),\"\")","v":"No Evidence Available"},null,{"$f":"IFERROR(INDEX('Master Database - amended'!$E$4:$AN$132,'Master Database - amended'!$C47,COLUMNS($A$15:AJ58)),\"\")","v":"ORJIP review concludes that the Faunaguard is suitable and is recommended for use during OWF construction."}]
[{"$f":"IFERROR(INDEX('Master Database - amended'!$E$4:$AN$133,'Master Database - amended'!$C48,COLUMNS($A$15:$A$133)),\"\")","v":25},{"$f":"IFERROR(INDEX('Master Database - amended'!$E$4:$AN$132,'Master Database - amended'!$C48,COLUMNS($A$15:B59)),\"\")","v":"Van Oord / SEAMARCO"},{"$f":"IFERROR(INDEX('Master Database - amended'!$E$4:$AN$132,'Master Database - amended'!$C48,COLUMNS($A$15:C59)),\"\")","v":"Faunaguard - Seal Module"},{"$f":"IFERROR(INDEX('Master Database - amended'!$E$4:$AN$132,'Master Database - amended'!$C48,COLUMNS($A$15:D59)),\"\")","v":"Manual"},{"$f":"IFERROR(INDEX('Master Database - amended'!$E$4:$AN$132,'Master Database - amended'!$C48,COLUMNS($A$15:E59)),\"\")","v":"https://www.vanoord.com/sites/default/files/leaflet_faunaguard_0.pdf"},{"$f":"HYPERLINK(E59,E59)","v":"https://www.vanoord.com/sites/default/files/leaflet_faunaguard_0.pdf"},{"$f":"IFERROR(INDEX('Master Database - amended'!$E$4:$AN$132,'Master Database - amended'!$C48,COLUMNS($A$15:G59)),\"\")","v":"Offshore piling mitigation"},{"$f":"IFERROR(INDEX('Master Database - amended'!$E$4:$AN$132,'Master Database - amended'!$C48,COLUMNS($A$15:H59)),\"\")","v":182},{"$f":"IFERROR(INDEX('Master Database - amended'!$E$4:$AN$132,'Master Database - amended'!$C48,COLUMNS($A$15:I59)),\"\")","v":185},{"$f":"IFERROR(INDEX('Master Database - amended'!$E$4:$AN$132,'Master Database - amended'!$C48,COLUMNS($A$15:J59)),\"\")","v":182},{"$f":"IFERROR(INDEX('Master Database - amended'!$E$4:$AN$132,'Master Database - amended'!$C48,COLUMNS($A$15:K59)),\"\")","v":0.2},{"$f":"IFERROR(INDEX('Master Database - amended'!$E$4:$AN$132,'Master Database - amended'!$C48,COLUMNS($A$15:L59)),\"\")","v":20},{"$f":"IFERROR(INDEX('Master Database - amended'!$E$4:$AN$132,'Master Database - amended'!$C48,COLUMNS($A$15:M59)),\"\")","v":"200 Hz - 20 kHz"},{"$f":"IFERROR(INDEX('Master Database - amended'!$E$4:$AN$132,'Master Database - amended'!$C48,COLUMNS($A$15:N59)),\"\")","v":3000},{"$f":"IFERROR(INDEX('Master Database - amended'!$E$4:$AN$132,'Master Database - amended'!$C48,COLUMNS($A$15:O59)),\"\")","v":10000},{"$f":"IFERROR(INDEX('Master Database - amended'!$E$4:$AN$132,'Master Database - amended'!$C48,COLUMNS($A$15:P59)),\"\")","v":"Intermittent - randomised intervals varying between 3 and 10 seconds."},{"$f":"IFERROR(INDEX('Master Database - amended'!$E$4:$AN$132,'Master Database - amended'!$C48,COLUMNS($A$15:Q59)),\"\")","v":"Intermittent"},{"$f":"IFERROR(INDEX('Master Database - amended'!$E$4:$AN$132,'Master Database - amended'!$C48,COLUMNS($A$15:R59)),\"\")","v":10000},{"$f":"IFERROR(INDEX('Master Database - amended'!$E$4:$AN$132,'Master Database - amended'!$C48,COLUMNS($A$15:S59)),\"\")","v":10000},{"$f":"IFERROR(INDEX('Master Database - amended'!$E$4:$AN$132,'Master Database - amended'!$C48,COLUMNS($A$15:T59)),\"\")","v":"Sequence of 16 selected signals (square, triangle, saw tooth, sweep) at 10 seconds per signal. The average duty cycle of the device is ~60% (Kastelein et al. 2017)."},{"$f":"IFERROR(INDEX('Master Database - amended'!$E$4:$AN$132,'Master Database - amended'!$C48,COLUMNS($A$15:U59)),\"\")","v":"No Data Available"},{"$f":"IFERROR(INDEX('Master Database - amended'!$E$4:$AN$132,'Master Database - amended'!$C46,COLUMNS($A$15:V59)),\"\")","v":"No Data Available"},{"$f":"IFERROR(INDEX('Master Database - amended'!$E$4:$AN$132,'Master Database - amended'!$C48,COLUMNS($A$15:W59)),\"\")","v":"No Data Available"},{"$f":"IFERROR(INDEX('Master Database - amended'!$E$4:$AN$132,'Master Database - amended'!$C46,COLUMNS($A$15:X59)),\"\")","v":"No Data Available"},{"$f":"IFERROR(INDEX('Master Database - amended'!$E$4:$AN$132,'Master Database - amended'!$C48,COLUMNS($A$15:Y59)),\"\")","v":"No Data Available"},{"$f":"IFERROR(INDEX('Master Database - amended'!$E$4:$AN$132,'Master Database - amended'!$C46,COLUMNS($A$15:Z59)),\"\")","v":"No Data Available"},{"$f":"IFERROR(INDEX('Master Database - amended'!$E$4:$AN$132,'Master Database - amended'!$C48,COLUMNS($A$15:AA59)),\"\")","v":"3: High confidence"},{"$f":"IFERROR(INDEX('Master Database - amended'!$E$4:$AN$132,'Master Database - amended'!$C46,COLUMNS($A$15:AB59)),\"\")","v":"Y"},{"$f":"IFERROR(INDEX('Master Database - amended'!$E$4:$AN$132,'Master Database - amended'!$C48,COLUMNS($A$15:AC59)),\"\")","v":"Seals"},{"$f":"IFERROR(INDEX('Master Database - amended'!$E$4:$AN$132,'Master Database - amended'!$C48,COLUMNS($A$15:AD59)),\"\")","v":"No Data Available"},{"$f":"IFERROR(INDEX('Master Database - amended'!$E$4:$AN$132,'Master Database - amended'!$C48,COLUMNS($A$15:AE59)),\"\")","v":"No Data Available"},{"$f":"IFERROR(INDEX('Master Database - amended'!$E$4:$AN$132,'Master Database - amended'!$C48,COLUMNS($A$15:AF59)),\"\")","v":"No Data Available"},{"$f":"IFERROR(INDEX('Master Database - amended'!$E$4:$AN$132,'Master Database - amended'!$C48,COLUMNS($A$15:AG59)),\"\")","v":"<500m"},{"$f":"IFERROR(INDEX('Master Database - amended'!$E$4:$AN$132,'Master Database - amended'!$C46,COLUMNS($A$15:AH59)),\"\")","v":"http://www.smru.st-andrews.ac.uk/documents/scotgov/MR8-1_ADD_mitigation_report_summary.pdf\n\nhttps://www.carbontrust.com/media/675291/orjip-add-study-final-report-stage-1-phase-2.pdf"},null,{"$f":"IFERROR(INDEX('Master Database - amended'!$E$4:$AN$132,'Master Database - amended'!$C48,COLUMNS($A$15:AJ59)),\"\")","v":" In most cases in the shallow North Sea, PTS in harbour seals would be prevented if they moved 100 to 200 m away from the source of pile driving sounds, and, thus, the FG-SM is considered a good mitigation device."}]
[{"$f":"IFERROR(INDEX('Master Database - amended'!$E$4:$AN$133,'Master Database - amended'!$C49,COLUMNS($A$15:$A$133)),\"\")","v":26},{"$f":"IFERROR(INDEX('Master Database - amended'!$E$4:$AN$132,'Master Database - amended'!$C49,COLUMNS($A$15:B133)),\"\")","v":"Van Oord / SEAMARCO"},{"$f":"IFERROR(INDEX('Master Database - amended'!$E$4:$AN$132,'Master Database - amended'!$C49,COLUMNS($A$15:C133)),\"\")","v":"Faunaguard - Turtle Module"},{"$f":"IFERROR(INDEX('Master Database - amended'!$E$4:$AN$132,'Master Database - amended'!$C49,COLUMNS($A$15:D133)),\"\")","v":"Manual"},{"$f":"IFERROR(INDEX('Master Database - amended'!$E$4:$AN$132,'Master Database - amended'!$C49,COLUMNS($A$15:E133)),\"\")","v":"https://www.vanoord.com/sites/default/files/leaflet_faunaguard_0.pdf"},{"$f":"HYPERLINK(E60,E60)","v":"https://www.vanoord.com/sites/default/files/leaflet_faunaguard_0.pdf"},{"$f":"IFERROR(INDEX('Master Database - amended'!$E$4:$AN$132,'Master Database - amended'!$C49,COLUMNS($A$15:G133)),\"\")","v":"Offshore piling mitigation"},{"$f":"IFERROR(INDEX('Master Database - amended'!$E$4:$AN$132,'Master Database - amended'!$C49,COLUMNS($A$15:H133)),\"\")","v":197},{"$f":"IFERROR(INDEX('Master Database - amended'!$E$4:$AN$132,'Master Database - amended'!$C49,COLUMNS($A$15:I133)),\"\")","v":200},{"$f":"IFERROR(INDEX('Master Database - amended'!$E$4:$AN$132,'Master Database - amended'!$C49,COLUMNS($A$15:J133)),\"\")","v":197},{"$f":"IFERROR(INDEX('Master Database - amended'!$E$4:$AN$132,'Master Database - amended'!$C49,COLUMNS($A$15:K133)),\"\")","v":0.2},{"$f":"IFERROR(INDEX('Master Database - amended'!$E$4:$AN$132,'Master Database - amended'!$C49,COLUMNS($A$15:L133)),\"\")","v":1},{"$f":"IFERROR(INDEX('Master Database - amended'!$E$4:$AN$132,'Master Database - amended'!$C49,COLUMNS($A$15:M133)),\"\")","v":"200 - 1 kHz"},{"$f":"IFERROR(INDEX('Master Database - amended'!$E$4:$AN$132,'Master Database - amended'!$C49,COLUMNS($A$15:N133)),\"\")","v":3000},{"$f":"IFERROR(INDEX('Master Database - amended'!$E$4:$AN$132,'Master Database - amended'!$C49,COLUMNS($A$15:O133)),\"\")","v":10000},{"$f":"IFERROR(INDEX('Master Database - amended'!$E$4:$AN$132,'Master Database - amended'!$C49,COLUMNS($A$15:P133)),\"\")","v":"Intermittent - randomised intervals varying between 3 and 10 seconds."},{"$f":"IFERROR(INDEX('Master Database - amended'!$E$4:$AN$132,'Master Database - amended'!$C49,COLUMNS($A$15:Q133)),\"\")","v":"Intermittent"},{"$f":"IFERROR(INDEX('Master Database - amended'!$E$4:$AN$132,'Master Database - amended'!$C49,COLUMNS($A$15:R133)),\"\")","v":10000},{"$f":"IFERROR(INDEX('Master Database - amended'!$E$4:$AN$132,'Master Database - amended'!$C49,COLUMNS($A$15:S133)),\"\")","v":10000},{"$f":"IFERROR(INDEX('Master Database - amended'!$E$4:$AN$132,'Master Database - amended'!$C49,COLUMNS($A$15:T133)),\"\")","v":"Sequence of 7 selected signals (square, triangle, saw tooth, sweep) at 10 seconds per signal. The average duty cycle of the device is ~60% (Kastelein et al. 2017)."},{"$f":"IFERROR(INDEX('Master Database - amended'!$E$4:$AN$132,'Master Database - amended'!$C49,COLUMNS($A$15:U133)),\"\")","v":"No Data Available"},{"$f":"IFERROR(INDEX('Master Database - amended'!$E$4:$AN$132,'Master Database - amended'!$C47,COLUMNS($A$15:V60)),\"\")","v":"No Data Available"},{"$f":"IFERROR(INDEX('Master Database - amended'!$E$4:$AN$132,'Master Database - amended'!$C49,COLUMNS($A$15:W133)),\"\")","v":"No Data Available"},{"$f":"IFERROR(INDEX('Master Database - amended'!$E$4:$AN$132,'Master Database - amended'!$C47,COLUMNS($A$15:X60)),\"\")","v":"No Data Available"},{"$f":"IFERROR(INDEX('Master Database - amended'!$E$4:$AN$132,'Master Database - amended'!$C49,COLUMNS($A$15:Y133)),\"\")","v":"No Data Available"},{"$f":"IFERROR(INDEX('Master Database - amended'!$E$4:$AN$132,'Master Database - amended'!$C47,COLUMNS($A$15:Z60)),\"\")","v":"Y"},{"$f":"IFERROR(INDEX('Master Database - amended'!$E$4:$AN$132,'Master Database - amended'!$C49,COLUMNS($A$15:AA133)),\"\")","v":"No Data Available"},{"$f":"IFERROR(INDEX('Master Database - amended'!$E$4:$AN$132,'Master Database - amended'!$C47,COLUMNS($A$15:AB60)),\"\")","v":"No Data Available"},{"$f":"IFERROR(INDEX('Master Database - amended'!$E$4:$AN$132,'Master Database - amended'!$C49,COLUMNS($A$15:AC133)),\"\")","v":"Turtles"},{"$f":"IFERROR(INDEX('Master Database - amended'!$E$4:$AN$132,'Master Database - amended'!$C49,COLUMNS($A$15:AD133)),\"\")","v":"No Data Available"},{"$f":"IFERROR(INDEX('Master Database - amended'!$E$4:$AN$132,'Master Database - amended'!$C49,COLUMNS($A$15:AE133)),\"\")","v":"No Data Available"},{"$f":"IFERROR(INDEX('Master Database - amended'!$E$4:$AN$132,'Master Database - amended'!$C49,COLUMNS($A$15:AF133)),\"\")","v":"No Data Available"},{"$f":"IFERROR(INDEX('Master Database - amended'!$E$4:$AN$132,'Master Database - amended'!$C49,COLUMNS($A$15:AG133)),\"\")","v":"No Data Available"},{"$f":"IFERROR(INDEX('Master Database - amended'!$E$4:$AN$132,'Master Database - amended'!$C47,COLUMNS($A$15:AH60)),\"\")","v":"https://www.iadc-dredging.com/ul/cms/terraetaqua/document/4/3/5/435/435/1/article-faunaguard-a-scientific-method-for-deterring-marine-fauna-terra-et-aqua-138-2.pdf\n\nhttps://www.researchgate.net/publication/316937682_Behavioral_Responses_of_a_Harbor_Porpoise_Phocoena_phocoena_to_Sounds_from_an_Acoustic_Porpoise_Deterrent"},null,{"$f":"IFERROR(INDEX('Master Database - amended'!$E$4:$AN$132,'Master Database - amended'!$C49,COLUMNS($A$15:AJ133)),\"\")","v":"No Comments"}]
[{"$f":"IFERROR(INDEX('Master Database - amended'!$E$4:$AN$133,'Master Database - amended'!$C50,COLUMNS($A$15:$A$133)),\"\")","v":27},{"$f":"IFERROR(INDEX('Master Database - amended'!$E$4:$AN$132,'Master Database - amended'!$C50,COLUMNS($A$15:B68)),\"\")","v":"Van Oord / SEAMARCO"},{"$f":"IFERROR(INDEX('Master Database - amended'!$E$4:$AN$132,'Master Database - amended'!$C50,COLUMNS($A$15:C68)),\"\")","v":"Faunaguard - Fish Module"},{"$f":"IFERROR(INDEX('Master Database - amended'!$E$4:$AN$132,'Master Database - amended'!$C50,COLUMNS($A$15:D68)),\"\")","v":"Manual"},{"$f":"IFERROR(INDEX('Master Database - amended'!$E$4:$AN$132,'Master Database - amended'!$C50,COLUMNS($A$15:E68)),\"\")","v":"https://www.vanoord.com/sites/default/files/leaflet_faunaguard_0.pdf"},{"$f":"HYPERLINK(E61,E61)","v":"https://www.vanoord.com/sites/default/files/leaflet_faunaguard_0.pdf"},{"$f":"IFERROR(INDEX('Master Database - amended'!$E$4:$AN$132,'Master Database - amended'!$C50,COLUMNS($A$15:G68)),\"\")","v":"Offshore piling mitigation"},{"$f":"IFERROR(INDEX('Master Database - amended'!$E$4:$AN$132,'Master Database - amended'!$C50,COLUMNS($A$15:H68)),\"\")","v":197},{"$f":"IFERROR(INDEX('Master Database - amended'!$E$4:$AN$132,'Master Database - amended'!$C50,COLUMNS($A$15:I68)),\"\")","v":200},{"$f":"IFERROR(INDEX('Master Database - amended'!$E$4:$AN$132,'Master Database - amended'!$C50,COLUMNS($A$15:J68)),\"\")","v":197},{"$f":"IFERROR(INDEX('Master Database - amended'!$E$4:$AN$132,'Master Database - amended'!$C50,COLUMNS($A$15:K68)),\"\")","v":0.2},{"$f":"IFERROR(INDEX('Master Database - amended'!$E$4:$AN$132,'Master Database - amended'!$C50,COLUMNS($A$15:L68)),\"\")","v":1},{"$f":"IFERROR(INDEX('Master Database - amended'!$E$4:$AN$132,'Master Database - amended'!$C50,COLUMNS($A$15:M68)),\"\")","v":"200 Hz - 1 kHz"},{"$f":"IFERROR(INDEX('Master Database - amended'!$E$4:$AN$132,'Master Database - amended'!$C50,COLUMNS($A$15:N68)),\"\")","v":3000},{"$f":"IFERROR(INDEX('Master Database - amended'!$E$4:$AN$132,'Master Database - amended'!$C50,COLUMNS($A$15:O68)),\"\")","v":10000},{"$f":"IFERROR(INDEX('Master Database - amended'!$E$4:$AN$132,'Master Database - amended'!$C50,COLUMNS($A$15:P68)),\"\")","v":"Intermittent - randomised intervals varying between 3 and 10 seconds."},{"$f":"IFERROR(INDEX('Master Database - amended'!$E$4:$AN$132,'Master Database - amended'!$C50,COLUMNS($A$15:Q68)),\"\")","v":"Intermittent"},{"$f":"IFERROR(INDEX('Master Database - amended'!$E$4:$AN$132,'Master Database - amended'!$C50,COLUMNS($A$15:R68)),\"\")","v":10000},{"$f":"IFERROR(INDEX('Master Database - amended'!$E$4:$AN$132,'Master Database - amended'!$C50,COLUMNS($A$15:S68)),\"\")","v":10000},{"$f":"IFERROR(INDEX('Master Database - amended'!$E$4:$AN$132,'Master Database - amended'!$C50,COLUMNS($A$15:T68)),\"\")","v":"Sequence of 20 selected signals (square, triangle, saw tooth, sweep) at 10 seconds per signal. The average duty cycle of the device is ~60% (Kastelein et al. 2017)."},{"$f":"IFERROR(INDEX('Master Database - amended'!$E$4:$AN$132,'Master Database - amended'!$C50,COLUMNS($A$15:U68)),\"\")","v":"No Data Available"},{"$f":"IFERROR(INDEX('Master Database - amended'!$E$4:$AN$132,'Master Database - amended'!$C48,COLUMNS($A$15:V68)),\"\")","v":"No Data Available"},{"$f":"IFERROR(INDEX('Master Database - amended'!$E$4:$AN$132,'Master Database - amended'!$C50,COLUMNS($A$15:W68)),\"\")","v":"No Data Available"},{"$f":"IFERROR(INDEX('Master Database - amended'!$E$4:$AN$132,'Master Database - amended'!$C48,COLUMNS($A$15:X68)),\"\")","v":"No Data Available"},{"$f":"IFERROR(INDEX('Master Database - amended'!$E$4:$AN$132,'Master Database - amended'!$C50,COLUMNS($A$15:Y68)),\"\")","v":"No Data Available"},{"$f":"IFERROR(INDEX('Master Database - amended'!$E$4:$AN$132,'Master Database - amended'!$C48,COLUMNS($A$15:Z68)),\"\")","v":"No Data Available"},{"$f":"IFERROR(INDEX('Master Database - amended'!$E$4:$AN$132,'Master Database - amended'!$C50,COLUMNS($A$15:AA68)),\"\")","v":"No Data Available"},{"$f":"IFERROR(INDEX('Master Database - amended'!$E$4:$AN$132,'Master Database - amended'!$C48,COLUMNS($A$15:AB68)),\"\")","v":"Y"},{"$f":"IFERROR(INDEX('Master Database - amended'!$E$4:$AN$132,'Master Database - amended'!$C50,COLUMNS($A$15:AC68)),\"\")","v":"Fish"},{"$f":"IFERROR(INDEX('Master Database - amended'!$E$4:$AN$132,'Master Database - amended'!$C50,COLUMNS($A$15:AD68)),\"\")","v":"No Data Available"},{"$f":"IFERROR(INDEX('Master Database - amended'!$E$4:$AN$132,'Master Database - amended'!$C50,COLUMNS($A$15:AE68)),\"\")","v":"No Data Available"},{"$f":"IFERROR(INDEX('Master Database - amended'!$E$4:$AN$132,'Master Database - amended'!$C50,COLUMNS($A$15:AF68)),\"\")","v":"No Data Available"},{"$f":"IFERROR(INDEX('Master Database - amended'!$E$4:$AN$132,'Master Database - amended'!$C50,COLUMNS($A$15:AG68)),\"\")","v":"No Data Available"},{"$f":"IFERROR(INDEX('Master Database - amended'!$E$4:$AN$132,'Master Database - amended'!$C48,COLUMNS($A$15:AH68)),\"\")","v":"https://search.proquest.com/openview/c35771a2b798d0e65e04546f9680480d/1?pq-origsite=gscholar&cbl=38594"},null,{"$f":"IFERROR(INDEX('Master Database - amended'!$E$4:$AN$132,'Master Database - amended'!$C50,COLUMNS($A$15:AJ68)),\"\")","v":"No Comments"}]
[{"$f":"IFERROR(INDEX('Master Database - amended'!$E$4:$AN$133,'Master Database - amended'!$C51,COLUMNS($A$15:$A$133)),\"\")","v":"2/"},{"$f":"IFERROR(INDEX('Master Database - amended'!$E$4:$AN$132,'Master Database - amended'!$C51,COLUMNS($A$15:B133)),\"\")","v":"Seamaster"},{"$f":"IFERROR(INDEX('Master Database - amended'!$E$4:$AN$132,'Master Database - amended'!$C51,COLUMNS($A$15:C133)),\"\")","v":"Seamaster Fish Protector"},{"$f":"IFERROR(INDEX('Master Database - amended'!$E$4:$AN$132,'Master Database - amended'!$C51,COLUMNS($A$15:D133)),\"\")","v":"No Data Available"},{"$f":"IFERROR(INDEX('Master Database - amended'!$E$4:$AN$132,'Master Database - amended'!$C51,COLUMNS($A$15:E133)),\"\")","v":"http://www.seamaster.com.tw/sea-master-protector.htm"},"http://www.seamaster.com.tw/sea-master-protector.htm",{"$f":"IFERROR(INDEX('Master Database - amended'!$E$4:$AN$132,'Master Database - amended'!$C51,COLUMNS($A$15:G133)),\"\")","v":"Bycatch (gillnets)"},{"$f":"IFERROR(INDEX('Master Database - amended'!$E$4:$AN$132,'Master Database - amended'!$C51,COLUMNS($A$15:H133)),\"\")","v":165},{"$f":"IFERROR(INDEX('Master Database - amended'!$E$4:$AN$132,'Master Database - amended'!$C51,COLUMNS($A$15:I133)),\"\")","v":168},{"$f":"IFERROR(INDEX('Master Database - amended'!$E$4:$AN$132,'Master Database - amended'!$C51,COLUMNS($A$15:J133)),\"\")","v":165},{"$f":"IFERROR(INDEX('Master Database - amended'!$E$4:$AN$132,'Master Database - amended'!$C51,COLUMNS($A$15:K133)),\"\")","v":10},{"$f":"IFERROR(INDEX('Master Database - amended'!$E$4:$AN$132,'Master Database - amended'!$C51,COLUMNS($A$15:L133)),\"\")","v":90},{"$f":"IFERROR(INDEX('Master Database - amended'!$E$4:$AN$132,'Master Database - amended'!$C51,COLUMNS($A$15:M133)),\"\")","v":"Frequency sweep tones and harmonics 10 - 90 kHz."},{"$f":"IFERROR(INDEX('Master Database - amended'!$E$4:$AN$132,'Master Database - amended'!$C51,COLUMNS($A$15:N133)),\"\")","v":15000},{"$f":"IFERROR(INDEX('Master Database - amended'!$E$4:$AN$132,'Master Database - amended'!$C51,COLUMNS($A$15:O133)),\"\")","v":15000},{"$f":"IFERROR(INDEX('Master Database - amended'!$E$4:$AN$132,'Master Database - amended'!$C51,COLUMNS($A$15:P133)),\"\")","v":"15 s"},{"$f":"IFERROR(INDEX('Master Database - amended'!$E$4:$AN$132,'Master Database - amended'!$C51,COLUMNS($A$15:Q133)),\"\")","v":"Intermittent"},{"$f":"IFERROR(INDEX('Master Database - amended'!$E$4:$AN$132,'Master Database - amended'!$C51,COLUMNS($A$15:R133)),\"\")","v":1900},{"$f":"IFERROR(INDEX('Master Database - amended'!$E$4:$AN$132,'Master Database - amended'!$C51,COLUMNS($A$15:S133)),\"\")","v":1900},{"$f":"IFERROR(INDEX('Master Database - amended'!$E$4:$AN$132,'Master Database - amended'!$C51,COLUMNS($A$15:T133)),\"\")","v":"1.9 s"},{"$f":"IFERROR(INDEX('Master Database - amended'!$E$4:$AN$132,'Master Database - amended'!$C51,COLUMNS($A$15:U133)),\"\")","v":"No Data Available"},{"$f":"IFERROR(INDEX('Master Database - amended'!$E$4:$AN$132,'Master Database - amended'!$C49,COLUMNS($A$15:V62)),\"\")","v":"No Data Available"},{"$f":"IFERROR(INDEX('Master Database - amended'!$E$4:$AN$132,'Master Database - amended'!$C51,COLUMNS($A$15:W133)),\"\")","v":"1: Low confidence"},{"$f":"IFERROR(INDEX('Master Database - amended'!$E$4:$AN$132,'Master Database - amended'!$C49,COLUMNS($A$15:X62)),\"\")","v":"No Data Available"},{"$f":"IFERROR(INDEX('Master Database - amended'!$E$4:$AN$132,'Master Database - amended'!$C51,COLUMNS($A$15:Y133)),\"\")","v":"No Data Available"},{"$f":"IFERROR(INDEX('Master Database - amended'!$E$4:$AN$132,'Master Database - amended'!$C49,COLUMNS($A$15:Z62)),\"\")","v":"No Data Available"},{"$f":"IFERROR(INDEX('Master Database - amended'!$E$4:$AN$132,'Master Database - amended'!$C51,COLUMNS($A$15:AA133)),\"\")","v":"No Data Available"},{"$f":"IFERROR(INDEX('Master Database - amended'!$E$4:$AN$132,'Master Database - amended'!$C49,COLUMNS($A$15:AB62)),\"\")","v":"No Data Available"},{"$f":"IFERROR(INDEX('Master Database - amended'!$E$4:$AN$132,'Master Database - amended'!$C51,COLUMNS($A$15:AC133)),\"\")","v":"Dolphins"},{"$f":"IFERROR(INDEX('Master Database - amended'!$E$4:$AN$132,'Master Database - amended'!$C51,COLUMNS($A$15:AD133)),\"\")","v":"No Data Available"},{"$f":"IFERROR(INDEX('Master Database - amended'!$E$4:$AN$132,'Master Database - amended'!$C51,COLUMNS($A$15:AE133)),\"\")","v":"500 - 1000m"},{"$f":"IFERROR(INDEX('Master Database - amended'!$E$4:$AN$132,'Master Database - amended'!$C51,COLUMNS($A$15:AF133)),\"\")","v":"No Data Available"},{"$f":"IFERROR(INDEX('Master Database - amended'!$E$4:$AN$132,'Master Database - amended'!$C51,COLUMNS($A$15:AG133)),\"\")","v":"No Data Available"},{"$f":"IFERROR(INDEX('Master Database - amended'!$E$4:$AN$132,'Master Database - amended'!$C49,COLUMNS($A$15:AH62)),\"\")","v":"No Evidence Available"},null,{"$f":"IFERROR(INDEX('Master Database - amended'!$E$4:$AN$132,'Master Database - amended'!$C51,COLUMNS($A$15:AJ133)),\"\")","v":"No Comments"}]
[{"$f":"IFERROR(INDEX('Master Database - amended'!$E$4:$AN$133,'Master Database - amended'!$C52,COLUMNS($A$15:$A$133)),\"\")","v":29},{"$f":"IFERROR(INDEX('Master Database - amended'!$E$4:$AN$132,'Master Database - amended'!$C52,COLUMNS($A$15:B133)),\"\")","v":"OTAQ"},{"$f":"IFERROR(INDEX('Master Database - amended'!$E$4:$AN$132,'Master Database - amended'!$C52,COLUMNS($A$15:C133)),\"\")","v":"SealFENCE 3/4"},{"$f":"IFERROR(INDEX('Master Database - amended'!$E$4:$AN$132,'Master Database - amended'!$C52,COLUMNS($A$15:D133)),\"\")","v":"Automatic"},{"$f":"IFERROR(INDEX('Master Database - amended'!$E$4:$AN$132,'Master Database - amended'!$C52,COLUMNS($A$15:E133)),\"\")","v":"https://aquaculture.otaq.com/sealfence/"},"https://aquaculture.otaq.com/sealfence/",{"$f":"IFERROR(INDEX('Master Database - amended'!$E$4:$AN$132,'Master Database - amended'!$C52,COLUMNS($A$15:G133)),\"\")","v":"Aquaculture"},{"$f":"IFERROR(INDEX('Master Database - amended'!$E$4:$AN$132,'Master Database - amended'!$C52,COLUMNS($A$15:H133)),\"\")","v":"169 (Patrol Mode) / 189 (Protect Mode)"},{"$f":"IFERROR(INDEX('Master Database - amended'!$E$4:$AN$132,'Master Database - amended'!$C52,COLUMNS($A$15:I133)),\"\")","v":"No Data Available"},{"$f":"IFERROR(INDEX('Master Database - amended'!$E$4:$AN$132,'Master Database - amended'!$C52,COLUMNS($A$15:J133)),\"\")","v":"No Data Available"},{"$f":"IFERROR(INDEX('Master Database - amended'!$E$4:$AN$132,'Master Database - amended'!$C52,COLUMNS($A$15:K133)),\"\")","v":10},{"$f":"IFERROR(INDEX('Master Database - amended'!$E$4:$AN$132,'Master Database - amended'!$C52,COLUMNS($A$15:L133)),\"\")","v":10},{"$f":"IFERROR(INDEX('Master Database - amended'!$E$4:$AN$132,'Master Database - amended'!$C52,COLUMNS($A$15:M133)),\"\")","v":"10 kHz"},{"$f":"IFERROR(INDEX('Master Database - amended'!$E$4:$AN$132,'Master Database - amended'!$C52,COLUMNS($A$15:N133)),\"\")","v":"10000 (patrol mode) / 3000 (protect mode)"},{"$f":"IFERROR(INDEX('Master Database - amended'!$E$4:$AN$132,'Master Database - amended'!$C52,COLUMNS($A$15:O133)),\"\")","v":"10000 (patrol mode) / 9000 (protect mode)"},{"$f":"IFERROR(INDEX('Master Database - amended'!$E$4:$AN$132,'Master Database - amended'!$C52,COLUMNS($A$15:P133)),\"\")","v":"Patrol mode: 2s transmission with a fixed 10s gap between pulses. Protect mode: 3s transmission with random pulse gaps of between 3s to 9s"},{"$f":"IFERROR(INDEX('Master Database - amended'!$E$4:$AN$132,'Master Database - amended'!$C52,COLUMNS($A$15:Q133)),\"\")","v":"Intermittent"},{"$f":"IFERROR(INDEX('Master Database - amended'!$E$4:$AN$132,'Master Database - amended'!$C52,COLUMNS($A$15:R133)),\"\")","v":"No Data Available"},{"$f":"IFERROR(INDEX('Master Database - amended'!$E$4:$AN$132,'Master Database - amended'!$C52,COLUMNS($A$15:S133)),\"\")","v":"No Data Available"},{"$f":"IFERROR(INDEX('Master Database - amended'!$E$4:$AN$132,'Master Database - amended'!$C52,COLUMNS($A$15:T133)),\"\")","v":"Transmission period form from a sequence of tone bursts, so overall duty cycle is 0.7% (patrol mode) / 1.3% (protect mode)"},{"$f":"IFERROR(INDEX('Master Database - amended'!$E$4:$AN$132,'Master Database - amended'!$C52,COLUMNS($A$15:U133)),\"\")","v":"No Data Available"},{"$f":"IFERROR(INDEX('Master Database - amended'!$E$4:$AN$132,'Master Database - amended'!$C54,COLUMNS($A$15:V25)),\"\")","v":"No Data Available"},{"$f":"IFERROR(INDEX('Master Database - amended'!$E$4:$AN$132,'Master Database - amended'!$C52,COLUMNS($A$15:W133)),\"\")","v":"No Data Available"},{"$f":"IFERROR(INDEX('Master Database - amended'!$E$4:$AN$132,'Master Database - amended'!$C54,COLUMNS($A$15:X25)),\"\")","v":"No Data Available"},{"$f":"IFERROR(INDEX('Master Database - amended'!$E$4:$AN$132,'Master Database - amended'!$C52,COLUMNS($A$15:Y133)),\"\")","v":"No Data Available"},{"$f":"IFERROR(INDEX('Master Database - amended'!$E$4:$AN$132,'Master Database - amended'!$C54,COLUMNS($A$15:Z25)),\"\")","v":"Y"},{"$f":"IFERROR(INDEX('Master Database - amended'!$E$4:$AN$132,'Master Database - amended'!$C52,COLUMNS($A$15:AA133)),\"\")","v":"1: Low confidence"},{"$f":"IFERROR(INDEX('Master Database - amended'!$E$4:$AN$132,'Master Database - amended'!$C54,COLUMNS($A$15:AB25)),\"\")","v":"N"},{"$f":"IFERROR(INDEX('Master Database - amended'!$E$4:$AN$132,'Master Database - amended'!$C52,COLUMNS($A$15:AC133)),\"\")","v":"Seals"},{"$f":"IFERROR(INDEX('Master Database - amended'!$E$4:$AN$132,'Master Database - amended'!$C52,COLUMNS($A$15:AD133)),\"\")","v":"Not known"},{"$f":"IFERROR(INDEX('Master Database - amended'!$E$4:$AN$132,'Master Database - amended'!$C52,COLUMNS($A$15:AE133)),\"\")","v":"Not known"},{"$f":"IFERROR(INDEX('Master Database - amended'!$E$4:$AN$132,'Master Database - amended'!$C52,COLUMNS($A$15:AF133)),\"\")","v":"Not known"},{"$f":"IFERROR(INDEX('Master Database - amended'!$E$4:$AN$132,'Master Database - amended'!$C52,COLUMNS($A$15:AG133)),\"\")","v":"Not known"},{"$f":"IFERROR(INDEX('Master Database - amended'!$E$4:$AN$132,'Master Database - amended'!$C54,COLUMNS($A$15:AH25)),\"\")","v":"http://www.snh.org.uk/pdfs/publications/commissioned_reports/517.pdf\n\nhttps://research-repository.st-andrews.ac.uk/handle/10023/848\n\nhttps://www.ncbi.nlm.nih.gov/pubmed/20400639"},null,{"$f":"IFERROR(INDEX('Master Database - amended'!$E$4:$AN$132,'Master Database - amended'!$C52,COLUMNS($A$15:AJ133)),\"\")","v":"No Comments"}]
[{"$f":"IFERROR(INDEX('Master Database - amended'!$E$4:$AN$133,'Master Database - amended'!$C53,COLUMNS($A$15:$A$133)),\"\")","v":"30a"},{"$f":"IFERROR(INDEX('Master Database - amended'!$E$4:$AN$132,'Master Database - amended'!$C53,COLUMNS($A$15:B133)),\"\")","v":"Terecos Ltd"},{"$f":"IFERROR(INDEX('Master Database - amended'!$E$4:$AN$132,'Master Database - amended'!$C53,COLUMNS($A$15:C133)),\"\")","v":"DSMS-4 - Programme 1 (Sequence 1)"},{"$f":"IFERROR(INDEX('Master Database - amended'!$E$4:$AN$132,'Master Database - amended'!$C53,COLUMNS($A$15:D133)),\"\")","v":"No Data Available"},{"$f":"IFERROR(INDEX('Master Database - amended'!$E$4:$AN$132,'Master Database - amended'!$C53,COLUMNS($A$15:E133)),\"\")","v":"No manufacturers website available"},{"$f":"HYPERLINK(E64,E64)","v":"No manufacturers website available"},{"$f":"IFERROR(INDEX('Master Database - amended'!$E$4:$AN$132,'Master Database - amended'!$C53,COLUMNS($A$15:G133)),\"\")","v":"Aquaculture"},{"$f":"IFERROR(INDEX('Master Database - amended'!$E$4:$AN$132,'Master Database - amended'!$C53,COLUMNS($A$15:H133)),\"\")","v":177},{"$f":"IFERROR(INDEX('Master Database - amended'!$E$4:$AN$132,'Master Database - amended'!$C53,COLUMNS($A$15:I133)),\"\")","v":180},{"$f":"IFERROR(INDEX('Master Database - amended'!$E$4:$AN$132,'Master Database - amended'!$C53,COLUMNS($A$15:J133)),\"\")","v":177},{"$f":"IFERROR(INDEX('Master Database - amended'!$E$4:$AN$132,'Master Database - amended'!$C53,COLUMNS($A$15:K133)),\"\")","v":6.6},{"$f":"IFERROR(INDEX('Master Database - amended'!$E$4:$AN$132,'Master Database - amended'!$C53,COLUMNS($A$15:L133)),\"\")","v":27},{"$f":"IFERROR(INDEX('Master Database - amended'!$E$4:$AN$132,'Master Database - amended'!$C53,COLUMNS($A$15:M133)),\"\")","v":"Measured sound pressure level output = 177 dB re 1µPa at 1m (RMS) (± 1 dB) at 6.6 kHz (Lepper et al. 2004). No equivalent source levels of greater than 146 dB re 1µPa at 1m (RMS) at frequencies above 27 kHz (Lepper et al. 2014)."},{"$f":"IFERROR(INDEX('Master Database - amended'!$E$4:$AN$132,'Master Database - amended'!$C53,COLUMNS($A$15:N133)),\"\")","v":"No Interval"},{"$f":"IFERROR(INDEX('Master Database - amended'!$E$4:$AN$132,'Master Database - amended'!$C53,COLUMNS($A$15:O133)),\"\")","v":"No Interval"},{"$f":"IFERROR(INDEX('Master Database - amended'!$E$4:$AN$132,'Master Database - amended'!$C53,COLUMNS($A$15:P133)),\"\")","v":"Repetitive five segment (16 ms duration) continuous tonal blocks forming an up and down frequency sweep (Lepper et al. 2004)."},{"$f":"IFERROR(INDEX('Master Database - amended'!$E$4:$AN$132,'Master Database - amended'!$C53,COLUMNS($A$15:Q133)),\"\")","v":"Continuous"},{"$f":"IFERROR(INDEX('Master Database - amended'!$E$4:$AN$132,'Master Database - amended'!$C53,COLUMNS($A$15:R133)),\"\")","v":"Continuous"},{"$f":"IFERROR(INDEX('Master Database - amended'!$E$4:$AN$132,'Master Database - amended'!$C53,COLUMNS($A$15:S133)),\"\")","v":"Continuous"},{"$f":"IFERROR(INDEX('Master Database - amended'!$E$4:$AN$132,'Master Database - amended'!$C53,COLUMNS($A$15:T133)),\"\")","v":"Repetitive five segment (16 ms duration) continuous tonal blocks forming an up and down frequency sweep (Lepper et al. 2004)."},{"$f":"IFERROR(INDEX('Master Database - amended'!$E$4:$AN$132,'Master Database - amended'!$C53,COLUMNS($A$15:U133)),\"\")","v":"No Data Available"},{"$f":"IFERROR(INDEX('Master Database - amended'!$E$4:$AN$132,'Master Database - amended'!$C50,COLUMNS($A$15:V64)),\"\")","v":"No Data Available"},{"$f":"IFERROR(INDEX('Master Database - amended'!$E$4:$AN$132,'Master Database - amended'!$C53,COLUMNS($A$15:W133)),\"\")","v":"No Data Available"},{"$f":"IFERROR(INDEX('Master Database - amended'!$E$4:$AN$132,'Master Database - amended'!$C50,COLUMNS($A$15:X64)),\"\")","v":"No Data Available"},{"$f":"IFERROR(INDEX('Master Database - amended'!$E$4:$AN$132,'Master Database - amended'!$C53,COLUMNS($A$15:Y133)),\"\")","v":"2: Medium confidence"},{"$f":"IFERROR(INDEX('Master Database - amended'!$E$4:$AN$132,'Master Database - amended'!$C50,COLUMNS($A$15:Z64)),\"\")","v":"No Data Available"},{"$f":"IFERROR(INDEX('Master Database - amended'!$E$4:$AN$132,'Master Database - amended'!$C53,COLUMNS($A$15:AA133)),\"\")","v":"3: High confidence"},{"$f":"IFERROR(INDEX('Master Database - amended'!$E$4:$AN$132,'Master Database - amended'!$C50,COLUMNS($A$15:AB64)),\"\")","v":"No Data Available"},{"$f":"IFERROR(INDEX('Master Database - amended'!$E$4:$AN$132,'Master Database - amended'!$C53,COLUMNS($A$15:AC133)),\"\")","v":"All species"},{"$f":"IFERROR(INDEX('Master Database - amended'!$E$4:$AN$132,'Master Database - amended'!$C53,COLUMNS($A$15:AD133)),\"\")","v":">1000m"},{"$f":"IFERROR(INDEX('Master Database - amended'!$E$4:$AN$132,'Master Database - amended'!$C53,COLUMNS($A$15:AE133)),\"\")","v":">1000m"},{"$f":"IFERROR(INDEX('Master Database - amended'!$E$4:$AN$132,'Master Database - amended'!$C53,COLUMNS($A$15:AF133)),\"\")","v":">1000m"},{"$f":"IFERROR(INDEX('Master Database - amended'!$E$4:$AN$132,'Master Database - amended'!$C53,COLUMNS($A$15:AG133)),\"\")","v":">1000m"},{"$f":"IFERROR(INDEX('Master Database - amended'!$E$4:$AN$132,'Master Database - amended'!$C50,COLUMNS($A$15:AH64)),\"\")","v":"No Evidence Available"},null,{"$f":"IFERROR(INDEX('Master Database - amended'!$E$4:$AN$132,'Master Database - amended'!$C53,COLUMNS($A$15:AJ133)),\"\")","v":"Calibrated hydrophone recordings of active ADD systems suggested that there was considerable variability in the acoustic output of the transducers, and it is suggested that regular measurements should be made at farm sites to ensure that transducers are all operating as intended."}]
[{"$f":"IFERROR(INDEX('Master Database - amended'!$E$4:$AN$133,'Master Database - amended'!$C54,COLUMNS($A$15:$A$133)),\"\")","v":"27b"},{"$f":"IFERROR(INDEX('Master Database - amended'!$E$4:$AN$132,'Master Database - amended'!$C54,COLUMNS($A$15:B1335)),\"\")","v":"Terecos Ltd"},{"$f":"IFERROR(INDEX('Master Database - amended'!$E$4:$AN$132,'Master Database - amended'!$C54,COLUMNS($A$15:C1335)),\"\")","v":"DSMS-4 - Programme 2"},{"$f":"IFERROR(INDEX('Master Database - amended'!$E$4:$AN$132,'Master Database - amended'!$C54,COLUMNS($A$15:D1335)),\"\")","v":"No Data Available"},{"$f":"IFERROR(INDEX('Master Database - amended'!$E$4:$AN$132,'Master Database - amended'!$C54,COLUMNS($A$15:E1335)),\"\")","v":"No manufacturers website available"},"No manufacturers website available",{"$f":"IFERROR(INDEX('Master Database - amended'!$E$4:$AN$132,'Master Database - amended'!$C54,COLUMNS($A$15:G1335)),\"\")","v":"Aquaculture"},{"$f":"IFERROR(INDEX('Master Database - amended'!$E$4:$AN$132,'Master Database - amended'!$C54,COLUMNS($A$15:H1335)),\"\")","v":179},{"$f":"IFERROR(INDEX('Master Database - amended'!$E$4:$AN$132,'Master Database - amended'!$C54,COLUMNS($A$15:I1335)),\"\")","v":182},{"$f":"IFERROR(INDEX('Master Database - amended'!$E$4:$AN$132,'Master Database - amended'!$C54,COLUMNS($A$15:J1335)),\"\")","v":179},{"$f":"IFERROR(INDEX('Master Database - amended'!$E$4:$AN$132,'Master Database - amended'!$C54,COLUMNS($A$15:K1335)),\"\")","v":4.7},{"$f":"IFERROR(INDEX('Master Database - amended'!$E$4:$AN$132,'Master Database - amended'!$C54,COLUMNS($A$15:L1335)),\"\")","v":27},{"$f":"IFERROR(INDEX('Master Database - amended'!$E$4:$AN$132,'Master Database - amended'!$C54,COLUMNS($A$15:M1335)),\"\")","v":"Measured sound pressure level output = 179 dB re 1µPa at 1m (RMS) (± 1 dB) and 178 dB re 1µPa at 1m (RMS) (± 1 dB) at 4.7 kHz and 6.8 kHz respectively (Lepper et al. 2014). No equivalent source levels of greater than 145 dB re 1µPa at 1m (RMS) at frequencies above 27 kHz (Lepper et al. 2014)."},{"$f":"IFERROR(INDEX('Master Database - amended'!$E$4:$AN$132,'Master Database - amended'!$C54,COLUMNS($A$15:N1335)),\"\")","v":"No Interval"},{"$f":"IFERROR(INDEX('Master Database - amended'!$E$4:$AN$132,'Master Database - amended'!$C54,COLUMNS($A$15:O1335)),\"\")","v":"No Interval"},{"$f":"IFERROR(INDEX('Master Database - amended'!$E$4:$AN$132,'Master Database - amended'!$C54,COLUMNS($A$15:P1335)),\"\")","v":"Multi-component continuous tones with observed peak level frequencies of 4.7 kHz and 6.8 kHz. Both contain complex multiple frequency components with a broad energy distribution away from the peak level tonal component."},{"$f":"IFERROR(INDEX('Master Database - amended'!$E$4:$AN$132,'Master Database - amended'!$C54,COLUMNS($A$15:Q1335)),\"\")","v":"Continuous"},{"$f":"IFERROR(INDEX('Master Database - amended'!$E$4:$AN$132,'Master Database - amended'!$C54,COLUMNS($A$15:R1335)),\"\")","v":"Continuous"},{"$f":"IFERROR(INDEX('Master Database - amended'!$E$4:$AN$132,'Master Database - amended'!$C54,COLUMNS($A$15:S1335)),\"\")","v":"Continuous"},{"$f":"IFERROR(INDEX('Master Database - amended'!$E$4:$AN$132,'Master Database - amended'!$C54,COLUMNS($A$15:T1335)),\"\")","v":"Randomly timed sequence of continuous and time variant multi-component tonal blocks (Lepper et al. 2004)."},{"$f":"IFERROR(INDEX('Master Database - amended'!$E$4:$AN$132,'Master Database - amended'!$C54,COLUMNS($A$15:U1335)),\"\")","v":"No Data Available"},{"$f":"IFERROR(INDEX('Master Database - amended'!$E$4:$AN$132,'Master Database - amended'!$C51,COLUMNS($A$15:V65)),\"\")","v":"No Data Available"},{"$f":"IFERROR(INDEX('Master Database - amended'!$E$4:$AN$132,'Master Database - amended'!$C54,COLUMNS($A$15:W1335)),\"\")","v":"No Data Available"},{"$f":"IFERROR(INDEX('Master Database - amended'!$E$4:$AN$132,'Master Database - amended'!$C51,COLUMNS($A$15:X65)),\"\")","v":"Y"},{"$f":"IFERROR(INDEX('Master Database - amended'!$E$4:$AN$132,'Master Database - amended'!$C54,COLUMNS($A$15:Y1335)),\"\")","v":"2: Medium confidence"},{"$f":"IFERROR(INDEX('Master Database - amended'!$E$4:$AN$132,'Master Database - amended'!$C51,COLUMNS($A$15:Z65)),\"\")","v":"No Data Available"},{"$f":"IFERROR(INDEX('Master Database - amended'!$E$4:$AN$132,'Master Database - amended'!$C54,COLUMNS($A$15:AA1335)),\"\")","v":"3: High confidence"},{"$f":"IFERROR(INDEX('Master Database - amended'!$E$4:$AN$132,'Master Database - amended'!$C51,COLUMNS($A$15:AB65)),\"\")","v":"No Data Available"},{"$f":"IFERROR(INDEX('Master Database - amended'!$E$4:$AN$132,'Master Database - amended'!$C54,COLUMNS($A$15:AC1335)),\"\")","v":"All species"},{"$f":"IFERROR(INDEX('Master Database - amended'!$E$4:$AN$132,'Master Database - amended'!$C54,COLUMNS($A$15:AD1335)),\"\")","v":">1000m"},{"$f":"IFERROR(INDEX('Master Database - amended'!$E$4:$AN$132,'Master Database - amended'!$C54,COLUMNS($A$15:AE1335)),\"\")","v":">1000m"},{"$f":"IFERROR(INDEX('Master Database - amended'!$E$4:$AN$132,'Master Database - amended'!$C54,COLUMNS($A$15:AF1335)),\"\")","v":">1000m"},{"$f":"IFERROR(INDEX('Master Database - amended'!$E$4:$AN$132,'Master Database - amended'!$C54,COLUMNS($A$15:AG1335)),\"\")","v":">1000m"},{"$f":"IFERROR(INDEX('Master Database - amended'!$E$4:$AN$132,'Master Database - amended'!$C51,COLUMNS($A$15:AH65)),\"\")","v":"No Evidence Available"},null,{"$f":"IFERROR(INDEX('Master Database - amended'!$E$4:$AN$132,'Master Database - amended'!$C54,COLUMNS($A$15:AJ1335)),\"\")","v":"Calibrated hydrophone recordings of active ADD systems suggested that there was considerable variability in the acoustic output of the transducers, and it is suggested that regular measurements should be made at farm sites to ensure that transducers are all operating as intended."}]
[{"$f":"IFERROR(INDEX('Master Database - amended'!$E$4:$AN$133,'Master Database - amended'!$C55,COLUMNS($A$15:$A$133)),\"\")","v":"30c"},{"$f":"IFERROR(INDEX('Master Database - amended'!$E$4:$AN$132,'Master Database - amended'!$C55,COLUMNS($A$15:B133)),\"\")","v":"Terecos Ltd"},{"$f":"IFERROR(INDEX('Master Database - amended'!$E$4:$AN$132,'Master Database - amended'!$C55,COLUMNS($A$15:C133)),\"\")","v":"DSMS-4 - Programme 3 (Sequence 2)"},{"$f":"IFERROR(INDEX('Master Database - amended'!$E$4:$AN$132,'Master Database - amended'!$C55,COLUMNS($A$15:D133)),\"\")","v":"No Data Available"},{"$f":"IFERROR(INDEX('Master Database - amended'!$E$4:$AN$132,'Master Database - amended'!$C55,COLUMNS($A$15:E133)),\"\")","v":"No manufacturers website available"},"No manufacturers website available",{"$f":"IFERROR(INDEX('Master Database - amended'!$E$4:$AN$132,'Master Database - amended'!$C55,COLUMNS($A$15:G133)),\"\")","v":"Aquaculture"},{"$f":"IFERROR(INDEX('Master Database - amended'!$E$4:$AN$132,'Master Database - amended'!$C55,COLUMNS($A$15:H133)),\"\")","v":178},{"$f":"IFERROR(INDEX('Master Database - amended'!$E$4:$AN$132,'Master Database - amended'!$C55,COLUMNS($A$15:I133)),\"\")","v":181},{"$f":"IFERROR(INDEX('Master Database - amended'!$E$4:$AN$132,'Master Database - amended'!$C55,COLUMNS($A$15:J133)),\"\")","v":178},{"$f":"IFERROR(INDEX('Master Database - amended'!$E$4:$AN$132,'Master Database - amended'!$C55,COLUMNS($A$15:K133)),\"\")","v":"No Data Available"},{"$f":"IFERROR(INDEX('Master Database - amended'!$E$4:$AN$132,'Master Database - amended'!$C55,COLUMNS($A$15:L133)),\"\")","v":"No Data Available"},{"$f":"IFERROR(INDEX('Master Database - amended'!$E$4:$AN$132,'Master Database - amended'!$C55,COLUMNS($A$15:M133)),\"\")","v":"Measured sound pressure level output = 178 dB re 1µPa at 1m (RMS) (± 1 dB) at 4.9 kHz (Lepper et al. 2004)."},{"$f":"IFERROR(INDEX('Master Database - amended'!$E$4:$AN$132,'Master Database - amended'!$C55,COLUMNS($A$15:N133)),\"\")","v":"No Interval"},{"$f":"IFERROR(INDEX('Master Database - amended'!$E$4:$AN$132,'Master Database - amended'!$C55,COLUMNS($A$15:O133)),\"\")","v":"No Interval"},{"$f":"IFERROR(INDEX('Master Database - amended'!$E$4:$AN$132,'Master Database - amended'!$C55,COLUMNS($A$15:P133)),\"\")","v":"Sequence of eight segments (8 ms duration) continuous tonal blocks forming an up and down frequency sweep combined with variable continuous multi-component tonal blocks (Lepper et al. 2004)."},{"$f":"IFERROR(INDEX('Master Database - amended'!$E$4:$AN$132,'Master Database - amended'!$C55,COLUMNS($A$15:Q133)),\"\")","v":"Continuous"},{"$f":"IFERROR(INDEX('Master Database - amended'!$E$4:$AN$132,'Master Database - amended'!$C55,COLUMNS($A$15:R133)),\"\")","v":"Continuous"},{"$f":"IFERROR(INDEX('Master Database - amended'!$E$4:$AN$132,'Master Database - amended'!$C55,COLUMNS($A$15:S133)),\"\")","v":"Continuous"},{"$f":"IFERROR(INDEX('Master Database - amended'!$E$4:$AN$132,'Master Database - amended'!$C55,COLUMNS($A$15:T133)),\"\")","v":"Sequence of eight segments (8 ms duration) continuous tonal blocks forming an up and down frequency sweep combined with variable continuous multi-component tonal blocks (Lepper et al. 2004)."},{"$f":"IFERROR(INDEX('Master Database - amended'!$E$4:$AN$132,'Master Database - amended'!$C55,COLUMNS($A$15:U133)),\"\")","v":"No Data Available"},{"$f":"IFERROR(INDEX('Master Database - amended'!$E$4:$AN$132,'Master Database - amended'!$C52,COLUMNS($A$15:V66)),\"\")","v":"No Data Available"},{"$f":"IFERROR(INDEX('Master Database - amended'!$E$4:$AN$132,'Master Database - amended'!$C55,COLUMNS($A$15:W133)),\"\")","v":"No Data Available"},{"$f":"IFERROR(INDEX('Master Database - amended'!$E$4:$AN$132,'Master Database - amended'!$C52,COLUMNS($A$15:X66)),\"\")","v":"No Data Available"},{"$f":"IFERROR(INDEX('Master Database - amended'!$E$4:$AN$132,'Master Database - amended'!$C55,COLUMNS($A$15:Y133)),\"\")","v":"2: Medium confidence"},{"$f":"IFERROR(INDEX('Master Database - amended'!$E$4:$AN$132,'Master Database - amended'!$C52,COLUMNS($A$15:Z66)),\"\")","v":"Y"},{"$f":"IFERROR(INDEX('Master Database - amended'!$E$4:$AN$132,'Master Database - amended'!$C55,COLUMNS($A$15:AA133)),\"\")","v":"3: High confidence"},{"$f":"IFERROR(INDEX('Master Database - amended'!$E$4:$AN$132,'Master Database - amended'!$C52,COLUMNS($A$15:AB66)),\"\")","v":"No Data Available"},{"$f":"IFERROR(INDEX('Master Database - amended'!$E$4:$AN$132,'Master Database - amended'!$C55,COLUMNS($A$15:AC133)),\"\")","v":"All species"},{"$f":"IFERROR(INDEX('Master Database - amended'!$E$4:$AN$132,'Master Database - amended'!$C55,COLUMNS($A$15:AD133)),\"\")","v":">1000m"},{"$f":"IFERROR(INDEX('Master Database - amended'!$E$4:$AN$132,'Master Database - amended'!$C55,COLUMNS($A$15:AE133)),\"\")","v":">1000m"},{"$f":"IFERROR(INDEX('Master Database - amended'!$E$4:$AN$132,'Master Database - amended'!$C55,COLUMNS($A$15:AF133)),\"\")","v":">1000m"},{"$f":"IFERROR(INDEX('Master Database - amended'!$E$4:$AN$132,'Master Database - amended'!$C55,COLUMNS($A$15:AG133)),\"\")","v":">1000m"},{"$f":"IFERROR(INDEX('Master Database - amended'!$E$4:$AN$132,'Master Database - amended'!$C52,COLUMNS($A$15:AH66)),\"\")","v":"No Evidence Available"},null,{"$f":"IFERROR(INDEX('Master Database - amended'!$E$4:$AN$132,'Master Database - amended'!$C55,COLUMNS($A$15:AJ133)),\"\")","v":"Calibrated hydrophone recordings of active ADD systems suggested that there was considerable variability in the acoustic output of the transducers, and it is suggested that regular measurements should be made at farm sites to ensure that transducers are all operating as intended."}]
[{"$f":"IFERROR(INDEX('Master Database - amended'!$E$4:$AN$133,'Master Database - amended'!$C56,COLUMNS($A$15:$A$133)),\"\")","v":"30d"},{"$f":"IFERROR(INDEX('Master Database - amended'!$E$4:$AN$132,'Master Database - amended'!$C56,COLUMNS($A$15:B133)),\"\")","v":"Terecos Ltd"},{"$f":"IFERROR(INDEX('Master Database - amended'!$E$4:$AN$132,'Master Database - amended'!$C56,COLUMNS($A$15:C133)),\"\")","v":"DSMS-4 - Programme 4 (Combined Sequence 1 and Sequence 2)"},{"$f":"IFERROR(INDEX('Master Database - amended'!$E$4:$AN$132,'Master Database - amended'!$C56,COLUMNS($A$15:D133)),\"\")","v":"No Data Available"},{"$f":"IFERROR(INDEX('Master Database - amended'!$E$4:$AN$132,'Master Database - amended'!$C56,COLUMNS($A$15:E133)),\"\")","v":"No manufacturers website available"},"No manufacturers website available",{"$f":"IFERROR(INDEX('Master Database - amended'!$E$4:$AN$132,'Master Database - amended'!$C56,COLUMNS($A$15:G133)),\"\")","v":"Aquaculture"},{"$f":"IFERROR(INDEX('Master Database - amended'!$E$4:$AN$132,'Master Database - amended'!$C56,COLUMNS($A$15:H133)),\"\")","v":179},{"$f":"IFERROR(INDEX('Master Database - amended'!$E$4:$AN$132,'Master Database - amended'!$C56,COLUMNS($A$15:I133)),\"\")","v":182},{"$f":"IFERROR(INDEX('Master Database - amended'!$E$4:$AN$132,'Master Database - amended'!$C56,COLUMNS($A$15:J133)),\"\")","v":179},{"$f":"IFERROR(INDEX('Master Database - amended'!$E$4:$AN$132,'Master Database - amended'!$C56,COLUMNS($A$15:K133)),\"\")","v":"No Data Available"},{"$f":"IFERROR(INDEX('Master Database - amended'!$E$4:$AN$132,'Master Database - amended'!$C56,COLUMNS($A$15:L133)),\"\")","v":"No Data Available"},{"$f":"IFERROR(INDEX('Master Database - amended'!$E$4:$AN$132,'Master Database - amended'!$C56,COLUMNS($A$15:M133)),\"\")","v":"Combined Sequence 1 and Sequence 2 (See programme 1 and 3)."},{"$f":"IFERROR(INDEX('Master Database - amended'!$E$4:$AN$132,'Master Database - amended'!$C56,COLUMNS($A$15:N133)),\"\")","v":"No Interval"},{"$f":"IFERROR(INDEX('Master Database - amended'!$E$4:$AN$132,'Master Database - amended'!$C56,COLUMNS($A$15:O133)),\"\")","v":"No Interval"},{"$f":"IFERROR(INDEX('Master Database - amended'!$E$4:$AN$132,'Master Database - amended'!$C56,COLUMNS($A$15:P133)),\"\")","v":"Randomly timed combined sequence of Seq. 1, Seq. 2 tonal blocks, continuous multi-component tonal blocks and time variant multi-component tonal blocks (Lepper et al. 2004)."},{"$f":"IFERROR(INDEX('Master Database - amended'!$E$4:$AN$132,'Master Database - amended'!$C56,COLUMNS($A$15:Q133)),\"\")","v":"Continuous"},{"$f":"IFERROR(INDEX('Master Database - amended'!$E$4:$AN$132,'Master Database - amended'!$C56,COLUMNS($A$15:R133)),\"\")","v":"Continuous"},{"$f":"IFERROR(INDEX('Master Database - amended'!$E$4:$AN$132,'Master Database - amended'!$C56,COLUMNS($A$15:S133)),\"\")","v":"Continuous"},{"$f":"IFERROR(INDEX('Master Database - amended'!$E$4:$AN$132,'Master Database - amended'!$C56,COLUMNS($A$15:T133)),\"\")","v":"Randomly timed combined sequence of Seq. 1, Seq. 2 tonal blocks, continuous multi-component tonal blocks and time variant multi-component tonal blocks (Lepper et al. 2004)."},{"$f":"IFERROR(INDEX('Master Database - amended'!$E$4:$AN$132,'Master Database - amended'!$C56,COLUMNS($A$15:U133)),\"\")","v":"No Data Available"},{"$f":"IFERROR(INDEX('Master Database - amended'!$E$4:$AN$132,'Master Database - amended'!$C53,COLUMNS($A$15:V68)),\"\")","v":"No Data Available"},{"$f":"IFERROR(INDEX('Master Database - amended'!$E$4:$AN$132,'Master Database - amended'!$C56,COLUMNS($A$15:W133)),\"\")","v":"No Data Available"},{"$f":"IFERROR(INDEX('Master Database - amended'!$E$4:$AN$132,'Master Database - amended'!$C53,COLUMNS($A$15:X68)),\"\")","v":"No Data Available"},{"$f":"IFERROR(INDEX('Master Database - amended'!$E$4:$AN$132,'Master Database - amended'!$C56,COLUMNS($A$15:Y133)),\"\")","v":"2: Medium confidence"},{"$f":"IFERROR(INDEX('Master Database - amended'!$E$4:$AN$132,'Master Database - amended'!$C53,COLUMNS($A$15:Z68)),\"\")","v":"Y"},{"$f":"IFERROR(INDEX('Master Database - amended'!$E$4:$AN$132,'Master Database - amended'!$C56,COLUMNS($A$15:AA133)),\"\")","v":"3: High confidence"},{"$f":"IFERROR(INDEX('Master Database - amended'!$E$4:$AN$132,'Master Database - amended'!$C53,COLUMNS($A$15:AB68)),\"\")","v":"N"},{"$f":"IFERROR(INDEX('Master Database - amended'!$E$4:$AN$132,'Master Database - amended'!$C56,COLUMNS($A$15:AC133)),\"\")","v":"All species"},{"$f":"IFERROR(INDEX('Master Database - amended'!$E$4:$AN$132,'Master Database - amended'!$C56,COLUMNS($A$15:AD133)),\"\")","v":">1000m"},{"$f":"IFERROR(INDEX('Master Database - amended'!$E$4:$AN$132,'Master Database - amended'!$C56,COLUMNS($A$15:AE133)),\"\")","v":">1000m"},{"$f":"IFERROR(INDEX('Master Database - amended'!$E$4:$AN$132,'Master Database - amended'!$C56,COLUMNS($A$15:AF133)),\"\")","v":">1000m"},{"$f":"IFERROR(INDEX('Master Database - amended'!$E$4:$AN$132,'Master Database - amended'!$C56,COLUMNS($A$15:AG133)),\"\")","v":">1000m"},{"$f":"IFERROR(INDEX('Master Database - amended'!$E$4:$AN$132,'Master Database - amended'!$C53,COLUMNS($A$15:AH68)),\"\")","v":"http://www.snh.org.uk/pdfs/publications/commissioned_reports/517.pdf\n\nhttps://research-repository.st-andrews.ac.uk/handle/10023/848\n\nhttps://www.ncbi.nlm.nih.gov/pubmed/20400639"},null,{"$f":"IFERROR(INDEX('Master Database - amended'!$E$4:$AN$132,'Master Database - amended'!$C56,COLUMNS($A$15:AJ133)),\"\")","v":"Calibrated hydrophone recordings of active ADD systems suggested that there was considerable variability in the acoustic output of the transducers, and it is suggested that regular measurements should be made at farm sites to ensure that transducers are all operating as intended."}]
[{"$f":"IFERROR(INDEX('Master Database - amended'!$E$4:$AN$133,'Master Database - amended'!$C57,COLUMNS($A$15:$A$133)),\"\")","v":31},{"$f":"IFERROR(INDEX('Master Database - amended'!$E$4:$AN$133,'Master Database - amended'!$C57,COLUMNS($A$15:B133)),\"\")","v":"Lien"},{"$f":"IFERROR(INDEX('Master Database - amended'!$E$4:$AN$133,'Master Database - amended'!$C57,COLUMNS($A$15:C133)),\"\")","v":"L2/L3"},{"$f":"IFERROR(INDEX('Master Database - amended'!$E$4:$AN$133,'Master Database - amended'!$C57,COLUMNS($A$15:D133)),\"\")","v":"No Data Available"},{"$f":"IFERROR(INDEX('Master Database - amended'!$E$4:$AN$133,'Master Database - amended'!$C57,COLUMNS($A$15:E133)),\"\")","v":"No Data Available"},{"$f":"IFERROR(INDEX('Master Database - amended'!$E$4:$AN$133,'Master Database - amended'!$C57,COLUMNS($A$15:F133)),\"\")","v":0},{"$f":"IFERROR(INDEX('Master Database - amended'!$E$4:$AN$133,'Master Database - amended'!$C57,COLUMNS($A$15:G133)),\"\")","v":"No Data Available"},{"$f":"IFERROR(INDEX('Master Database - amended'!$E$4:$AN$133,'Master Database - amended'!$C57,COLUMNS($A$15:H133)),\"\")","v":"No Data Available"},{"$f":"IFERROR(INDEX('Master Database - amended'!$E$4:$AN$133,'Master Database - amended'!$C57,COLUMNS($A$15:I133)),\"\")","v":"No Data Available"},{"$f":"IFERROR(INDEX('Master Database - amended'!$E$4:$AN$133,'Master Database - amended'!$C57,COLUMNS($A$15:J133)),\"\")","v":"No Data Available"},{"$f":"IFERROR(INDEX('Master Database - amended'!$E$4:$AN$133,'Master Database - amended'!$C57,COLUMNS($A$15:K133)),\"\")","v":"No Data Available"},{"$f":"IFERROR(INDEX('Master Database - amended'!$E$4:$AN$133,'Master Database - amended'!$C57,COLUMNS($A$15:L133)),\"\")","v":"No Data Available"},{"$f":"IFERROR(INDEX('Master Database - amended'!$E$4:$AN$133,'Master Database - amended'!$C57,COLUMNS($A$15:M133)),\"\")","v":"No Data Available"},{"$f":"IFERROR(INDEX('Master Database - amended'!$E$4:$AN$133,'Master Database - amended'!$C57,COLUMNS($A$15:N133)),\"\")","v":"No Data Available"},{"$f":"IFERROR(INDEX('Master Database - amended'!$E$4:$AN$133,'Master Database - amended'!$C57,COLUMNS($A$15:O133)),\"\")","v":"No Data Available"},{"$f":"IFERROR(INDEX('Master Database - amended'!$E$4:$AN$133,'Master Database - amended'!$C57,COLUMNS($A$15:P133)),\"\")","v":"No Data Available"},{"$f":"IFERROR(INDEX('Master Database - amended'!$E$4:$AN$133,'Master Database - amended'!$C57,COLUMNS($A$15:Q133)),\"\")","v":"No Data Available"},{"$f":"IFERROR(INDEX('Master Database - amended'!$E$4:$AN$133,'Master Database - amended'!$C57,COLUMNS($A$15:R133)),\"\")","v":"No Data Available"},{"$f":"IFERROR(INDEX('Master Database - amended'!$E$4:$AN$133,'Master Database - amended'!$C57,COLUMNS($A$15:S133)),\"\")","v":"No Data Available"},{"$f":"IFERROR(INDEX('Master Database - amended'!$E$4:$AN$133,'Master Database - amended'!$C57,COLUMNS($A$15:T133)),\"\")","v":"Intermittent with diffewrent pulse rates according to mode selected."},{"$f":"IFERROR(INDEX('Master Database - amended'!$E$4:$AN$133,'Master Database - amended'!$C57,COLUMNS($A$15:U133)),\"\")","v":"No Data Available"},{"$f":"IFERROR(INDEX('Master Database - amended'!$E$4:$AN$132,'Master Database - amended'!$C55,COLUMNS($A$15:V68)),\"\")","v":"No Data Available"},{"$f":"IFERROR(INDEX('Master Database - amended'!$E$4:$AN$133,'Master Database - amended'!$C57,COLUMNS($A$15:W133)),\"\")","v":"No Data Available"},{"$f":"IFERROR(INDEX('Master Database - amended'!$E$4:$AN$132,'Master Database - amended'!$C55,COLUMNS($A$15:X68)),\"\")","v":"No Data Available"},{"$f":"IFERROR(INDEX('Master Database - amended'!$E$4:$AN$133,'Master Database - amended'!$C57,COLUMNS($A$15:Y133)),\"\")","v":"No Data Available"},{"$f":"IFERROR(INDEX('Master Database - amended'!$E$4:$AN$132,'Master Database - amended'!$C55,COLUMNS($A$15:Z68)),\"\")","v":"Y"},{"$f":"IFERROR(INDEX('Master Database - amended'!$E$4:$AN$133,'Master Database - amended'!$C57,COLUMNS($A$15:AA133)),\"\")","v":"1: Low confidence"},{"$f":"IFERROR(INDEX('Master Database - amended'!$E$4:$AN$132,'Master Database - amended'!$C55,COLUMNS($A$15:AB68)),\"\")","v":"N"},{"$f":"IFERROR(INDEX('Master Database - amended'!$E$4:$AN$133,'Master Database - amended'!$C57,COLUMNS($A$15:AC133)),\"\")","v":"Seals"},{"$f":"IFERROR(INDEX('Master Database - amended'!$E$4:$AN$133,'Master Database - amended'!$C57,COLUMNS($A$15:AD133)),\"\")","v":"Not known"},{"$f":"IFERROR(INDEX('Master Database - amended'!$E$4:$AN$133,'Master Database - amended'!$C57,COLUMNS($A$15:AE133)),\"\")","v":"Not known"},{"$f":"IFERROR(INDEX('Master Database - amended'!$E$4:$AN$133,'Master Database - amended'!$C57,COLUMNS($A$15:AF133)),\"\")","v":"Not known"},{"$f":"IFERROR(INDEX('Master Database - amended'!$E$4:$AN$133,'Master Database - amended'!$C57,COLUMNS($A$15:AG133)),\"\")","v":"<500m"},{"$f":"IFERROR(INDEX('Master Database - amended'!$E$4:$AN$132,'Master Database - amended'!$C55,COLUMNS($A$15:AH68)),\"\")","v":"http://www.snh.org.uk/pdfs/publications/commissioned_reports/517.pdf\n\nhttps://research-repository.st-andrews.ac.uk/handle/10023/848\n\nhttps://www.ncbi.nlm.nih.gov/pubmed/20400639"},null,{"$f":"IFERROR(INDEX('Master Database - amended'!$E$4:$AN$133,'Master Database - amended'!$C57,COLUMNS($A$15:AJ133)),\"\")","v":"No Comments"}]

{"sheet":"HIDDEN LISTS","index":3,"n_rows":14,"n_cols":5,"rows_kept":14,"cut":false,"hidden":true,"merged":[]}
[]
[]
["Hearing Group List","Generalised Hearing Range"]
["Low Frequency Cetaceans","7 Hz to 35 kHz"]
["High Frequency Cetaceans","150 Hz to 160 kHz"]
["Very High Frequency Cetaceans","275 Hz to 160 kHz"]
["Pinnipeds","50 Hz to 86 kHz"]
["All Devices","7 Hz to 160 kHz"]
[]
[]
[]
[]
["Species Lists"]
["Low Frequency Cetaceans","Mid Frequency Cetaceans","High Frequency Cetaceans","Pinnipeds","All Hearing Groups"]